Workbook

Sheet RFM output
E2: Output Summary - RFM Version: 2.0
E5: Opening Regulatory Asset Base for 2014-15 ($m Nominal)
G6: Asset Class Name | J6: Opening Asset Value (Partially As Incurred) | K6: Opening Asset Value (As Commissioned) | L6: Average Remaining Life (Year) | M6: Standard Life (Year) | N6: Opening Tax Value | O6: Average Tax Remaining Life (Year) | P6: Tax Standard Life (Year) | Q6: Base Financial Year | R6: Length of Regulatory Control Period (Year)
E7: Asset Class 1 | G7: Transmission Lines (pre 2004-05) | J7: 1072.613944 | K7: 1072.613944 | L7: 18.133 | N7: 134.0490435 | O7: 2.078498945 | Q7: 2014-15
E8: Asset Class 2 | G8: Underground Cables (pre 2004-05) | J8: 204.1192126 | K8: 204.1192126 | L8: 30.303 | N8: 53.24627835 | O8: 34.59117717
E9: Asset Class 3 | G9: Substations including Buildings (pre 2004-05) | J9: 691.6118867 | K9: 691.6118867 | L9: 16.475 | N9: 287.7566616 | O9: 12.1930043
E10: Asset Class 4 | G10: SCADA and Communications (pre 2004-05) | J10: 9.348083127 | K10: 9.348083127 | L10: 1.765 | N10: 1.937278029 | O10: 0.3758832776
E11: Asset Class 5 | G11: Non-network Assets (pre 2004-05) | J11: 0.2747811524 | K11: 0.2747811524 | L11: 1 | N11: 0 | O11: n/a
E12: Asset Class 6 | G12: SMHEA Assets (pre 2004-05) | J12: 16.96855238 | K12: 16.96855238 | L12: 3.024 | N12: 0 | O12: n/a
E13: Asset Class 7 | G13: Accelerated Lines (pre 2004-05) | J13: 0.0001901929549 | K13: 0.0001901929549 | L13: n/a | N13: 0 | O13: n/a
E14: Asset Class 8 | G14: Accelerated Substations (pre 2004-05) | J14: 6.382529178e-05 | K14: 6.382529178e-05 | L14: n/a | N14: 0 | O14: n/a
E15: Asset Class 9 | G15: Land and Easements (pre 2004-05) | J15: 579.8324817 | K15: 579.8324817 | L15: n/a | N15: 473.7718754 | O15: n/a
E16: Asset Class 10 | G16: Transmission Lines (2004-09) | J16: 207.9758482 | K16: 207.9758482 | L16: 44.08763174 | N16: 159.1165919 | O16: 44.13238402
E17: Asset Class 11 | G17: Underground Cables (2004-09) | J17: 8.928232679 | K17: 8.928232679 | L17: 36.40835092 | N17: 6.731628598 | O17: 36.41771808
E18: Asset Class 12 | G18: Substations including Buildings (2004-09) | J18: 970.3513658 | K18: 970.3513658 | L18: 33.77919541 | N18: 754.0323268 | O18: 33.83225651
E19: Asset Class 13 | G19: SCADA and Communications (2004-09) | J19: 62.06473171 | K19: 62.06473171 | L19: 8.778477724 | N19: 43.9986761 | O19: 8.834525491
E20: Asset Class 14 | G20: Non-network Assets (2004-09) | J20: 36.63839533 | K20: 36.63839533 | L20: 3.410537391 | N20: 31.65705877 | O20: 3.46031658
E21: Asset Class 15 | G21: Land and Easements (2004-09) | J21: 88.5459601 | K21: 88.5459601 | L21: n/a | N21: 80.39053674 | O21: n/a
E22: Asset Class 16 | G22: Transmission Lines & Cables - Aug. (09-14) | J22: 507.1003914 | K22: 477.845946 | L22: 48.74138047 | N22: 440.8130689 | O22: 48.79288065
E23: Asset Class 17 | G23: Substations - Augmentation (09-14) | J23: 1066.319659 | K23: 977.4380147 | L23: 38.27683197 | N23: 891.8556124 | O23: 38.32247377
E24: Asset Class 18 | G24: Secondary Systems - Augmentation (09-14) | J24: 60.24466106 | K24: 47.1061274 | L24: 33.76646956 | N24: 43.51290411 | O24: 33.8210746
E25: Asset Class 19 | G25: Communications - Augmentation (09-14) | J25: 107.2770698 | K25: 60.63814415 | L25: 34.51629864 | N25: 56.96696774 | O25: 34.53256292
E26: Asset Class 20 | G26: Transmission Lines & Cables - Rep. (09-14) | J26: 24.6297859 | K26: 23.34434142 | L26: 47.45601536 | N26: 20.84606396 | O26: 47.49962721
E27: Asset Class 21 | G27: Substations - Replacement (09-14) | J27: 113.1875105 | K27: 98.18996518 | L27: 37.47316945 | N27: 87.799162 | O27: 37.50785332
E28: Asset Class 22 | G28: Secondary Systems - Replacement (09-14) | J28: 32.8096904 | K28: 31.45191213 | L28: 33.10812045 | N28: 28.54186755 | O28: 33.1337474
E29: Asset Class 23 | G29: Communications - Replacement (09-14) | J29: 30.01258432 | K29: 56.97799748 | L29: 32.3176555 | N29: 50.85462205 | O29: 32.33403498
E30: Asset Class 24 | G30: Land & Easement (09-14) | J30: 147.6545417 | K30: 53.21771327 | L30: n/a | N30: 50.02003652 | O30: n/a
E31: Asset Class 25 | G31: Business IT (09-14) | J31: 69.69426537 | K31: 64.0183294 | L31: 3.168561102 | N31: 59.68764469 | O31: 3.186234594
E32: Asset Class 26 | G32: Support the Business - Minor Plant (09-14) | J32: 6.671064783 | K32: 6.671064783 | L32: 5.788600348 | N32: 6.016336338 | O32: 5.810114275
E33: Asset Class 27 | G33: Motor Vehicles & Mobile Plant (09-14) | J33: 30.46485653 | K33: 30.46485653 | L33: 6.617972627 | N33: 28.02097936 | O33: 6.671320532
E34: Asset Class 28 | G34: Equity raising costs (09-14) | J34: 1.358610543 | K34: 1.358610543 | L34: 36.64477492 | N34: 1.167413389 | O34: 36.64477492
E35: Asset Class 29 | G35: 0 | J35: 0 | K35: 0 | L35: n/a | N35: 0 | O35: n/a
E36: Asset Class 30 | G36: 0 | J36: 0 | K36: 0 | L36: n/a | N36: 0 | O36: n/a
E37: Total | J37: =SUM(J7:J36) -> 6146.69842 | K37: =SUM(K7:K36) -> 5877.996752 | N37: =SUM(N7:N36) -> 3792.790635
G39: Adjusted asset classes and asset lives
G40: Asset Class Name | J40: Opening Asset Value (Partially As Incurred) | K40: Opening Asset Value (As Commissioned) | L40: Average Remaining Life (Year) | M40: Standard Life (Year) | N40: Opening Tax Value | O40: Average Tax Remaining Life (Year) | P40: Tax Standard Life (Year) | Q40: Base Financial Year | R40: Length of Regulatory Control Period (Year)
G41: Transmission Lines (pre 2004-05) | J41: =J7 -> 1072.613944 | K41: 1072.613944 | L41: 18.133 | N41: =N7 -> 134.0490435 | O41: 2.078498945 | Q41: 2014-15
G42: Underground Cables (pre 2004-05) | J42: 204.1192126 | K42: 204.1192126 | L42: 30.303 | N42: 53.24627835 | O42: 34.59117717
G43: Substations including Buildings (pre 2004-05) | J43: 691.6118867 | K43: 691.6118867 | L43: 16.475 | N43: 287.7566616 | O43: 12.1930043
G44: SCADA and Communications (pre 2004-05) | J44: 9.348083127 | K44: 9.348083127 | L44: 1.765 | N44: 1.937278029 | O44: 0.3758832776
G45: Non-network Assets (pre 2004-05) | J45: 0.2747811524 | K45: 0.2747811524 | L45: 1 | N45: 0 | O45: n/a
G46: SMHEA Assets (pre 2004-05) | J46: 16.96855238 | K46: 16.96855238 | L46: 3.024 | N46: 0 | O46: n/a
G47: Transmission Lines (2004-09) | J47: =J16 -> 207.9758482 | K47: 207.9758482 | L47: 44.08763174 | N47: =N16 -> 159.1165919 | O47: 44.13238402
G48: Underground Cables (2004-09) | J48: 8.928232679 | K48: 8.928232679 | L48: 36.40835092 | N48: 6.731628598 | O48: 36.41771808
G49: Substations including Buildings (2004-09) | J49: 970.3513658 | K49: 970.3513658 | L49: 33.77919541 | N49: 754.0323268 | O49: 33.83225651
G50: SCADA and Communications (2004-09) | J50: 62.06473171 | K50: 62.06473171 | L50: 8.778477724 | N50: 43.9986761 | O50: 8.834525491
G51: Non-network Assets (2004-09) | J51: 36.63839533 | K51: 36.63839533 | L51: 3.410537391 | N51: 31.65705877 | O51: 3.46031658
G52: Transmission Lines & Cables (2009-14) | J52: =J22+J26 -> 531.7301773 | K52: 501.1902874 | L52: =(L22*K22+L26*K26)/(K22+K26) -> 48.68151099 | N52: =N22+N26 -> 461.6591329 | O52: =(O22*N22+O26*N26)/(N22+N26) -> 48.73448423
G53: Substations (2009-14) | J53: 1179.507169 | K53: 1075.62798 | L53: =(L23*K23+L27*K27)/(K23+K27) -> 38.2034687 | N53: =N23+N27 -> 979.6547744 | O53: =(O23*N23+O27*N27)/(N23+N27) -> 38.2494654
G54: Secondary Systems (2009-14) | J54: 93.05435146 | K54: 78.55803953 | L54: =(L24*K24+L28*K28)/(K24+K28) -> 33.50288943 | N54: =N24+N28 -> 72.05477166 | O54: =(O24*N24+O28*N28)/(N24+N28) -> 33.54881502
G55: Communications (2009-14) | J55: 137.2896542 | K55: 117.6161416 | L55: =(L25*K25+L29*K29)/(K25+K29) -> 33.45118732 | N55: =N25+N29 -> 107.8215898 | O55: =(O25*N25+O29*N29)/(N25+N29) -> 33.49561561
G56: Business IT (2009-14) | J56: =J31 -> 69.69426537 | K56: =K31 -> 64.0183294 | L56: =L31 -> 3.168561102 | N56: =N31 -> 59.68764469 | O56: =O31 -> 3.186234594
G57: Minor Plant, Motor Vehicles & Mobile Plant (2009-14) | J57: =J33+J32 -> 37.13592131 | K57: =K33+K32 -> 37.13592131 | L57: =(L32*K32+L33*K33)/(K32+K33) -> 6.468984909 | N57: =N33+N32 -> 34.03731569 | O57: =(O32*N32+O33*N33)/(N32+N33) -> 6.519096234
G58: * Equity raising costs (2009-14) | J58: =J34 -> 1.358610543 | K58: =K34 -> 1.358610543 | L58: =L34 -> 36.64477492 | N58: =N34 -> 1.167413389 | O58: =O34 -> 36.64477492
G59: Transmission Lines (2014-19) | M59: 50 | P59: =M59 -> 50
G60: Underground Cables (2014-19) | M60: 45 | P60: =M60 -> 45
G61: Substations (2014-19) | M61: 40 | P61: 40
G62: Secondary Systems (2014-19) | M62: 15 | P62: 15
G63: Communications (2014-19) | M63: 10 | P63: 10
G64: Business IT (2014-19) | M64: 4 | P64: 4
G65: Minor Plant, Motor Vehicles & Mobile Plant (2014-19) | M65: 8 | P65: 8
G66: Transmission Line Life Extension (2014-19) | M66: 25 | P66: 25
G67: * Equity raising costs (2014-19)
G68: Land and Easements | J68: =J15+J21+J30 -> 816.0329834 | K68: =K15+K21+K30 -> 721.596155 | L68: n/a | M68: n/a | N68: =N15+N21+N30 -> 604.1824487 | O68: n/a | P68: n/a
G70: Total | J70: =SUM(J41:J69) -> 6146.698166 | K70: =SUM(K41:K69) -> 5877.996498 | N70: =SUM(N41:N69) -> 3792.790635
G71: Variance check | J71: =J70-J37 -> -0.0002540182477 | K71: =K70-K37 -> -0.0002540182486 | N71: =N70-N37 -> 0
G72: Variance check (PTRM) | J72: =J37-RAB -> 0.0002540182477 | K72: =K37-Input!K57 -> 0.0002540182486 | N72: =N37-Input!N57 -> 0

Sheet capex input
A1: PTRM - As Incurred | I1: PTRM - As Commissioned
A3: PTRM As incurred - Total | B3: 2015 | C3: 2016 | D3: 2017 | E3: 2018 | F3: 2019 | G3: total | I3: PTRM As commissioned - Total | J3: 2015 | K3: 2016 | L3: 2017 | M3: 2018 | N3: 2019 | O3: total
A4: TL | B4: 25.30153416 | C4: 67.54861356 | D4: 47.46691153 | E4: 84.96648599 | F4: 46.94770367 | G4: =SUM(B4:F4) -> 272.2312489 | I4: TL | J4: 12.1312764 | K4: 59.63582693 | L4: 33.94707451 | M4: 91.34358962 | N4: 83.04950899 | O4: =SUM(J4:N4) -> 280.1072764
A5: Cables | B5: 2.555189631 | C5: 8.677951947 | D5: 2.310400644 | E5: 0.3859863281 | F5: 0 | G5: =SUM(B5:F5) -> 13.92952855 | I5: Cables | J5: 1.22357666 | K5: 0 | L5: 12.34292479 | M5: 0.7719726562 | N5: 0 | O5: =SUM(J5:N5) -> 14.3384741
A6: Subs | B6: 176.5095016 | C6: 150.619914 | D6: 168.1700806 | E6: 139.1998836 | F6: 81.39032691 | G6: 715.8897067 | I6: Subs | J6: 174.5435563 | K6: 126.327569 | L6: 154.362075 | M6: 216.8925717 | N6: 115.7701623 | O6: 787.8959344
A7: Sec Sys | B7: 38.5635895 | C7: 45.4183964 | D7: 36.66547525 | E7: 43.10100927 | F7: 39.16265924 | G7: 202.9111297 | I7: Sec Sys | J7: 21.88257783 | K7: 51.2718639 | L7: 22.56888953 | M7: 53.76894308 | N7: 60.77342291 | O7: 210.2656973
A8: Comms | B8: 31.96335007 | C8: 18.26063502 | D8: 9.732176152 | E8: 9.968421495 | F8: 14.35236632 | G8: 84.27694905 | I8: Comms | J8: 31.73511623 | K8: 48.85689575 | L8: 15.28327896 | M8: 12.86517073 | N8: 7.480970377 | O8: 116.2214321
A9: Bus. IT | B9: 21.87078125 | C9: 19.65957031 | D9: 18.115625 | E9: 20.79179687 | F9: 19.99052734 | G9: 100.4283008 | I9: Bus. IT | J9: 21.87078125 | K9: 19.65957031 | L9: 18.115625 | M9: 20.79179687 | N9: 19.99052734 | O9: 100.4283008
A10: Minor Plant, MV & MP | B10: 11.48318868 | C10: 9.185672754 | D10: 10.78167031 | E10: 11.77185273 | F10: 11.95630439 | G10: 55.17868886 | I10: Minor Plant, MV & MP | J10: 11.48318868 | K10: 9.185672754 | L10: 10.78167031 | M10: 11.77185273 | N10: 11.95630439 | O10: 55.17868886
A11: TL Life Ext | B11: 7.863828125 | C11: 8.813869141 | D11: 6.558679687 | E11: 10.26826562 | F11: 6.76865625 | G11: 40.27329883 | I11: TL Life Ext | J11: 5.074433594 | K11: 6.143873047 | L11: 11.001125 | M11: 1.132226563 | N11: 16.92164062 | O11: 40.27329883
A12: Equity Raising | B12: 0 | C12: 0 | D12: 0 | E12: 0 | F12: 0 | G12: 0 | I12: Equity Raising | J12: 0 | K12: 0 | L12: 0 | M12: 0 | N12: 0 | O12: 0
A13: Land | B13: 37.38008525 | C13: 72.66805146 | D13: 11.22122419 | E13: 1.570844318 | F13: 0.4046004659 | G13: 123.2448057 | I13: Land | J13: 44.1155874 | K13: 61.71189452 | L13: 31.82703279 | M13: 4.624807036 | N13: 0.1041463902 | O13: 142.3834681
A14: Total | B14: =SUM(B4:B13) -> 353.4910483 | C14: =SUM(C4:C13) -> 400.8526746 | D14: =SUM(D4:D13) -> 311.0222433 | E14: =SUM(E4:E13) -> 322.0245462 | F14: =SUM(F4:F13) -> 220.9731446 | G14: =SUM(B14:F14) -> 1608.363657 | I14: Total | J14: =SUM(J4:J13) -> 324.0600944 | K14: =SUM(K4:K13) -> 382.7931662 | L14: =SUM(L4:L13) -> 310.2296959 | M14: =SUM(M4:M13) -> 413.962931 | N14: =SUM(N4:N13) -> 316.0466833 | O14: =SUM(J14:N14) -> 1747.092571

Sheet Intro
G2: Electricity Transmission Network Service Provider
H3: Post-Tax Revenue Model
L4: Version: 2.0
L5: Date: February 2011
B8: Introduction | J8: Electricity Transmission Module
C14: This Post-Tax Revenue Model (PTRM) is used by the Australian Energy Regulator to determine the maximum allowed
C15: revenue for a transmission network service provider.
D16: WACC based on AER's draf determination for Roma - Brisbane Pipeline
C17: Before using the PTRM, Excel’s iteration mode of calculation needs to be selected.
C18: To do so, select Options from the Tools menu in Excel, then select the Calculation tab.
C19: Make sure that Manual (rather than Automatic) is selected and tick the iteration box.
C21: To run the 'Fix_Te' and ‘Smooth’ macros manually, select Macro from the Tools menu, and then select Macros.
C22: To operate 'Fix_Te', highlight it and click on Run. To operate ‘Smooth’, highlight it and click on Run.
C25: Amendment record:
C27: Date | F27: Details of amendments
C28: February 2011 | F28: New opex row macro - Updated to reference row 247 of Input tab.
F29: Input tab - Inserted default rate of 30% in cell F253.
F30: Analysis tab - Updated formula in cell G38 to reference cell F253 of Input tab.
F31: Analysis tab - Updated formula in cell F75 to be in a consistent format with the formula in cells G75:BI75 (no impact on value).
F32: Analysis tab - Updated formula in row 102 to link with the length of regulatory control period, consistent with the format in other tabs (no impact on values).
F33: Equity raising cost-capex tab - Updated formula in column Q to sum to column P.
F34: Price path (nominal) tab - Updated label in cell B8 to remove reference to "m".
F35: Price path (real) tab - Updated label in cell B8 to remove reference to "m".

Sheet Input
E2: ="Input Variables - PTRM "&Intro!L4 -> Input Variables - PTRM Version: 2.0 | G2: Input cells are in blue | J2: AER draft decision amendments | K2: 1 | L2: AER draft decision amendments
E5: ="Opening Regulatory Asset Base and Opening Tax Asset Base for "&Q7&" ($m Nominal)" -> Opening Regulatory Asset Base and Opening Tax Asset Base for 2014-15 ($m Nominal)
G6: Asset Class Name | J6: Opening Asset Value (Partially As Incurred) | K6: Opening Asset Value (As Commissioned) | L6: Average Remaining Life (Year) | M6: Standard Life (Year) | N6: Opening Tax Asset Value | O6: Average Tax Remaining Life (Year) | P6: Tax Standard Life (Year) | Q6: Base Financial Year | R6: Length of Regulatory Control Period (Year) | S6: Weighted avg total standard life
E7: Asset Class 1 | G7: Transmission Lines (pre 2004-05) | J7: ='RFM output'!J41 -> 1072.613944 | K7: ='RFM output'!K41 -> 1072.613944 | L7: ='RFM output'!L41 -> 18.133 | N7: ='RFM output'!N41 -> 134.0490435 | O7: ='RFM output'!O41 -> 2.078498945 | Q7: 2014-15 | R7: 5
E8: Asset Class 2 | G8: Underground Cables (pre 2004-05) | J8: ='RFM output'!J42 -> 204.1192126 | K8: ='RFM output'!K42 -> 204.1192126 | L8: ='RFM output'!L42 -> 30.303 | N8: ='RFM output'!N42 -> 53.24627835 | O8: ='RFM output'!O42 -> 34.59117717
E9: Asset Class 3 | G9: Substations including Buildings (pre 2004-05) | J9: ='RFM output'!J43 -> 691.6118867 | K9: ='RFM output'!K43 -> 691.6118867 | L9: ='RFM output'!L43 -> 16.475 | N9: ='RFM output'!N43 -> 287.7566616 | O9: ='RFM output'!O43 -> 12.1930043
E10: Asset Class 4 | G10: SCADA and Communications (pre 2004-05) | J10: ='RFM output'!J44 -> 9.348083127 | K10: ='RFM output'!K44 -> 9.348083127 | L10: ='RFM output'!L44 -> 1.765 | N10: ='RFM output'!N44 -> 1.937278029 | O10: ='RFM output'!O44 -> 0.3758832776
E11: Asset Class 5 | G11: Non-network Assets (pre 2004-05) | J11: ='RFM output'!J45 -> 0.2747811524 | K11: ='RFM output'!K45 -> 0.2747811524 | L11: 1 | N11: ='RFM output'!N45 -> 0 | O11: ='RFM output'!O45 -> n/a
E12: Asset Class 6 | G12: SMHEA Assets (pre 2004-05) | J12: ='RFM output'!J46 -> 16.96855238 | K12: ='RFM output'!K46 -> 16.96855238 | L12: ='RFM output'!L46 -> 3.024 | N12: ='RFM output'!N46 -> 0 | O12: ='RFM output'!O46 -> n/a
E13: Asset Class 7 | G13: Transmission Lines (2004-09) | J13: ='RFM output'!J47 -> 207.9758482 | K13: ='RFM output'!K47 -> 207.9758482 | L13: ='RFM output'!L47 -> 44.08763174 | N13: ='RFM output'!N47 -> 159.1165919 | O13: ='RFM output'!O47 -> 44.13238402
E14: Asset Class 8 | G14: Underground Cables (2004-09) | J14: ='RFM output'!J48 -> 8.928232679 | K14: ='RFM output'!K48 -> 8.928232679 | L14: ='RFM output'!L48 -> 36.40835092 | N14: ='RFM output'!N48 -> 6.731628598 | O14: ='RFM output'!O48 -> 36.41771808
E15: Asset Class 9 | G15: Substations including Buildings (2004-09) | J15: ='RFM output'!J49 -> 970.3513658 | K15: ='RFM output'!K49 -> 970.3513658 | L15: ='RFM output'!L49 -> 33.77919541 | N15: ='RFM output'!N49 -> 754.0323268 | O15: ='RFM output'!O49 -> 33.83225651
E16: Asset Class 10 | G16: SCADA and Communications (2004-09) | J16: ='RFM output'!J50 -> 62.06473171 | K16: ='RFM output'!K50 -> 62.06473171 | L16: ='RFM output'!L50 -> 8.778477724 | N16: ='RFM output'!N50 -> 43.9986761 | O16: ='RFM output'!O50 -> 8.834525491
E17: Asset Class 11 | G17: Non-network Assets (2004-09) | J17: ='RFM output'!J51 -> 36.63839533 | K17: ='RFM output'!K51 -> 36.63839533 | L17: ='RFM output'!L51 -> 3.410537391 | N17: ='RFM output'!N51 -> 31.65705877 | O17: ='RFM output'!O51 -> 3.46031658
E18: Asset Class 12 | G18: Transmission Lines & Cables (2009-14) | J18: ='RFM output'!J52 -> 531.7301773 | K18: ='RFM output'!K52 -> 501.1902874 | L18: ='RFM output'!L52 -> 48.68151099 | N18: ='RFM output'!N52 -> 461.6591329 | O18: ='RFM output'!O52 -> 48.73448423
E19: Asset Class 13 | G19: Substations (2009-14) | J19: ='RFM output'!J53 -> 1179.507169 | K19: ='RFM output'!K53 -> 1075.62798 | L19: ='RFM output'!L53 -> 38.2034687 | N19: ='RFM output'!N53 -> 979.6547744 | O19: ='RFM output'!O53 -> 38.2494654
E20: Asset Class 14 | G20: Secondary Systems (2009-14) | J20: ='RFM output'!J54 -> 93.05435146 | K20: ='RFM output'!K54 -> 78.55803953 | L20: ='RFM output'!L54 -> 33.50288943 | N20: ='RFM output'!N54 -> 72.05477166 | O20: ='RFM output'!O54 -> 33.54881502
E21: Asset Class 15 | G21: Communications (2009-14) | J21: ='RFM output'!J55 -> 137.2896542 | K21: ='RFM output'!K55 -> 117.6161416 | L21: ='RFM output'!L55 -> 33.45118732 | N21: ='RFM output'!N55 -> 107.8215898 | O21: ='RFM output'!O55 -> 33.49561561
E22: Asset Class 16 | G22: Business IT (2009-14) | J22: ='RFM output'!J56 -> 69.69426537 | K22: ='RFM output'!K56 -> 64.0183294 | L22: ='RFM output'!L56 -> 3.168561102 | N22: ='RFM output'!N56 -> 59.68764469 | O22: ='RFM output'!O56 -> 3.186234594
E23: Asset Class 17 | G23: Minor Plant, Motor Vehicles & Mobile Plant (2009-14) | J23: ='RFM output'!J57 -> 37.13592131 | K23: ='RFM output'!K57 -> 37.13592131 | L23: ='RFM output'!L57 -> 6.468984909 | N23: ='RFM output'!N57 -> 34.03731569 | O23: ='RFM output'!O57 -> 6.519096234
E24: Asset Class 18 | G24: * Equity raising costs (2009-14) | J24: ='RFM output'!J58 -> 1.358610543 | K24: ='RFM output'!K58 -> 1.358610543 | L24: ='RFM output'!L58 -> 36.64477492 | N24: ='RFM output'!N58 -> 1.167413389 | O24: ='RFM output'!O58 -> 36.64477492
E25: Asset Class 19 | G25: Transmission Lines (2014-18) | M25: 50 | P25: 50 | S25: =Q79/SUM($Q$79:$Q$86)*A19stdlife -> 7.199941124
E26: Asset Class 20 | G26: Underground Cables (2014-18) | M26: 45 | P26: 45 | S26: =Q80/SUM($Q$79:$Q$86)*A20stdlife -> 0.3228138596
E27: Asset Class 21 | G27: Substations (2014-18) | M27: 40 | P27: 40 | S27: =Q81/SUM($Q$79:$Q$86)*A21stdlife -> 20.14810042
E28: Asset Class 22 | G28: Secondary Systems (2014-18) | M28: 15 | P28: 15 | S28: =Q82/SUM($Q$79:$Q$86)*A22stdlife -> 1.92151556
E29: Asset Class 23 | G29: Communications (short life) (2014-18) | M29: 10 | P29: 10 | S29: =Q83/SUM($Q$79:$Q$86)*A23stdlife -> 0.5470132125
E30: Asset Class 24 | G30: Business IT (2014-18) | M30: 4 | P30: 4 | S30: =Q84/SUM($Q$79:$Q$86)*A24stdlife -> 0.3534951371
E31: Asset Class 25 | G31: Minor Plant, Motor Vehicles & Mobile Plant (2014-18) | M31: 8 | P31: 8 | S31: =Q85/SUM($Q$79:$Q$86)*A25stdlife -> 0.383498059
E32: Asset Class 26 | G32: Transmission Line Life Extension (2014-18) | M32: 25 | P32: 25 | S32: =Q86/SUM($Q$79:$Q$86)*A26stdlife -> 0.650290634
E33: Asset Class 27 | G33: Equity raising costs (2014-18) | M33: n/a | P33: n/a | S33: =SUM(S25:S32) -> 31.52666801
E34: Asset Class 28 | G34: Land and Easements | J34: ='RFM output'!J68 -> 816.0329834 | K34: ='RFM output'!K68 -> 721.596155 | L34: n/a | M34: n/a | N34: ='RFM output'!N68 -> 604.1824487 | O34: n/a | P34: n/a
E35: Asset Class 29 | G35: 29
E36: Asset Class 30 | G36: 30
E37: Asset Class 31 | G37: 31
E38: Asset Class 32 | G38: 32
E39: Asset Class 33 | G39: 33
E40: Asset Class 34 | G40: 34
E41: Asset Class 35 | G41: 35
E42: Asset Class 36 | G42: 36
E43: Asset Class 37 | G43: 37
E44: Asset Class 38 | G44: 38
E45: Asset Class 39 | G45: 39
E46: Asset Class 40 | G46: 40
E47: Asset Class 41 | G47: 41
E48: Asset Class 42 | G48: 42
E49: Asset Class 43 | G49: 43
E50: Asset Class 44 | G50: 44
E51: Asset Class 45 | G51: 45
E52: Asset Class 46 | G52: 46
E53: Asset Class 47 | G53: 47
E54: Asset Class 48 | G54: 48
E55: Asset Class 49 | G55: 49
E56: Asset Class 50 | G56: 50
E57: Total | J57: =SUM(J7:J56) -> 6146.698166 | K57: =SUM(K7:K56) -> 5877.996498 | N57: =SUM(N7:N56) -> 3792.790635
E59: ="Forecast Capital Expenditure – As Incurred ($m Real "&CONCATENATE(LEFT(Q7, 4)-1 &"-" &IF(Q7>"2009-10",,"0") &RIGHT(Q7,2)-1)&")" -> Forecast Capital Expenditure – As Incurred ($m Real 2013-14)
E60: Year | G60: =Q7 -> 2014-15 | H60: =CONCATENATE(LEFT(G60, 4)+1 &"-" &IF(G60>"2007-08",,"0") &RIGHT(G60,2)+1) -> 2015-16 | I60: =CONCATENATE(LEFT(H60, 4)+1 &"-" &IF(H60>"2007-08",,"0") &RIGHT(H60,2)+1) -> 2016-17 | J60: 2017-18 | K60: 2018-19 | L60: 2019-20 | M60: 2020-21 | N60: 2021-22 | O60: 2022-23 | P60: 2023-24
E61: =Asset1 -> Transmission Lines (pre 2004-05)
E62: =Asset2 -> Underground Cables (pre 2004-05)
E63: =Asset3 -> Substations including Buildings (pre 2004-05)
E64: =Asset4 -> SCADA and Communications (pre 2004-05)
E65: =Asset5 -> Non-network Assets (pre 2004-05)
E66: =Asset6 -> SMHEA Assets (pre 2004-05)
E67: =Asset7 -> Transmission Lines (2004-09)
E68: =Asset8 -> Underground Cables (2004-09)
E69: =Asset9 -> Substations including Buildings (2004-09)
E70: =Asset10 -> SCADA and Communications (2004-09)
E71: =Asset11 -> Non-network Assets (2004-09)
E72: =Asset12 -> Transmission Lines & Cables (2009-14)
E73: =Asset13 -> Substations (2009-14)
E74: =Asset14 -> Secondary Systems (2009-14)
E75: =Asset15 -> Communications (2009-14)
E76: =Asset16 -> Business IT (2009-14)
E77: =Asset17 -> Minor Plant, Motor Vehicles & Mobile Plant (2009-14)
E78: =Asset18 -> * Equity raising costs (2009-14) | Q78: Total per asset class over regulatory control period
E79: =Asset19 -> Transmission Lines (2014-18) | G79: 15.4096167 | H79: 42.37508636 | I79: 25.70749067 | J79: 46.34361271 | Q79: =SUM(G79:K79) -> 129.8358064
E80: =Asset20 -> Underground Cables (2014-18) | G80: 1.349016093 | H80: 3.543173602 | I80: 1.305697117 | J80: 0.2701904297 | Q80: =SUM(G80:K80) -> 6.468077242
E81: =Asset21 -> Substations (2014-18) | G81: 130.7789541 | H81: 109.05987 | I81: 120.1112518 | J81: 94.21073284 | Q81: 454.1608087
E82: =Asset22 -> Secondary Systems (2014-18) | G82: 27.2874211 | H82: 31.91145238 | I82: 25.98086568 | J82: 30.32191012 | Q82: 115.5016493
E83: =Asset23 -> Communications (short life) (2014-18) | G83: 22.50517745 | H83: 12.82315656 | I83: 6.948996035 | J83: 7.043838247 | Q83: 49.32116829
E84: =Asset24 -> Business IT (2014-18) | G84: 21.11478125 | H84: 19.65957031 | I84: 18.115625 | J84: 20.79179687 | Q84: 79.68177344
E85: =Asset25 -> Minor Plant, Motor Vehicles & Mobile Plant (2014-18) | G85: 11.48318868 | H85: 9.185672754 | I85: 10.78167031 | J85: 11.77185273 | Q85: 43.22238448
E86: =Asset26 -> Transmission Line Life Extension (2014-18) | G86: 5.504679688 | H86: 6.169708398 | I86: 4.591075781 | J86: 7.187785938 | Q86: 23.4532498
E87: =Asset27 -> Equity raising costs (2014-18) | Q87: 0
E88: =Asset28 -> Land and Easements | G88: 5.408770355 | H88: 4.67727374 | I88: 9.446911578 | J88: 1.159016841 | Q88: 20.69197251
E89: =Asset29 -> 29
E90: =Asset30 -> 30
E91: =Asset31 -> 31
E92: =Asset32 -> 32
E93: =Asset33 -> 33
E94: =Asset34 -> 34
E95: =Asset35 -> 35
E96: =Asset36 -> 36
E97: =Asset37 -> 37
E98: =Asset38 -> 38
E99: =Asset39 -> 39
E100: =Asset40 -> 40
E101: =Asset41 -> 41
E102: =Asset42 -> 42
E103: =Asset43 -> 43
E104: =Asset44 -> 44
E105: =Asset45 -> 45
E106: =Asset46 -> 46
E107: =Asset47 -> 47
E108: =Asset48 -> 48
E109: =Asset49 -> 49
E110: =Asset50 -> 50
E111: Total | G111: =SUM(G61:G110) -> 240.8416054 | H111: =SUM(H61:H110) -> 239.4049641 | I111: 222.989584 | J111: 219.1007367 | K111: 0 | L111: 0 | M111: 0 | N111: 0 | O111: 0 | P111: 0
Q112: =SUM(G111:P111) -> 922.3368902
E113: ="Forecast Asset Disposal – As Incurred ($m Real "&CONCATENATE(LEFT(Q7, 4)-1 &"-" &IF(Q7>"2009-10",,"0") &RIGHT(Q7,2)-1)&")" -> Forecast Asset Disposal – As Incurred ($m Real 2013-14)
E114: Year | G114: =G60 -> 2014-15 | H114: =H60 -> 2015-16 | I114: 2016-17 | J114: 2017-18 | K114: 2018-19 | L114: 2019-20 | M114: 2020-21 | N114: 2021-22 | O114: 2022-23 | P114: 2023-24
E115: =Asset1 -> Transmission Lines (pre 2004-05)
E116: =Asset2 -> Underground Cables (pre 2004-05)
E117: =Asset3 -> Substations including Buildings (pre 2004-05)
E118: =Asset4 -> SCADA and Communications (pre 2004-05)
E119: =Asset5 -> Non-network Assets (pre 2004-05)
E120: =Asset6 -> SMHEA Assets (pre 2004-05)
E121: =Asset7 -> Transmission Lines (2004-09)
E122: =Asset8 -> Underground Cables (2004-09)
E123: =Asset9 -> Substations including Buildings (2004-09)
E124: =Asset10 -> SCADA and Communications (2004-09)
E125: =Asset11 -> Non-network Assets (2004-09)
E126: =Asset12 -> Transmission Lines & Cables (2009-14)
E127: =Asset13 -> Substations (2009-14)
E128: =Asset14 -> Secondary Systems (2009-14)
E129: =Asset15 -> Communications (2009-14)
E130: =Asset16 -> Business IT (2009-14)
E131: =Asset17 -> Minor Plant, Motor Vehicles & Mobile Plant (2009-14)
E132: =Asset18 -> * Equity raising costs (2009-14)
E133: =Asset19 -> Transmission Lines (2014-18)
E134: =Asset20 -> Underground Cables (2014-18)
E135: =Asset21 -> Substations (2014-18)
E136: =Asset22 -> Secondary Systems (2014-18)
E137: =Asset23 -> Communications (short life) (2014-18)
E138: =Asset24 -> Business IT (2014-18)
E139: =Asset25 -> Minor Plant, Motor Vehicles & Mobile Plant (2014-18) | G139: 2.657220061 | H139: 2.657220061 | I139: 2.657220061 | J139: 2.657220061
E140: =Asset26 -> Transmission Line Life Extension (2014-18)
E141: =Asset27 -> Equity raising costs (2014-18)
E142: =Asset28 -> Land and Easements | G142: 0.25
E143: =Asset29 -> 29
E144: =Asset30 -> 30
E145: =Asset31 -> 31
E146: =Asset32 -> 32
E147: =Asset33 -> 33
E148: =Asset34 -> 34
E149: =Asset35 -> 35
E150: =Asset36 -> 36
E151: =Asset37 -> 37
E152: =Asset38 -> 38
E153: =Asset39 -> 39
E154: =Asset40 -> 40
E155: =Asset41 -> 41
E156: =Asset42 -> 42
E157: =Asset43 -> 43
E158: =Asset44 -> 44
E159: =Asset45 -> 45
E160: =Asset46 -> 46
E161: =Asset47 -> 47
E162: =Asset48 -> 48
E163: =Asset49 -> 49
E164: =Asset50 -> 50
E165: Total | G165: =SUM(G115:G164) -> 2.907220061 | H165: 2.657220061 | I165: 2.657220061 | J165: 2.657220061 | K165: 0 | L165: 0 | M165: 0 | N165: 0 | O165: 0 | P165: 0
Q166: =SUM(G165:P165) -> 10.87888024
E167: ="Forecast Net Capital Expenditure – As Incurred ($m Real "&CONCATENATE(LEFT(Q7, 4)-1 &"-" &IF(Q7>"2009-10",,"0") &RIGHT(Q7,2)-1)&")" -> Forecast Net Capital Expenditure – As Incurred ($m Real 2013-14)
E168: Year | G168: =G60 -> 2014-15 | H168: =H60 -> 2015-16 | I168: 2016-17 | J168: 2017-18 | K168: 2018-19 | L168: 2019-20 | M168: 2020-21 | N168: 2021-22 | O168: 2022-23 | P168: 2023-24
E169: =Asset1 -> Transmission Lines (pre 2004-05) | G169: =G61-G115 -> 0 | H169: 0 | I169: 0 | J169: 0 | K169: 0 | L169: 0 | M169: 0 | N169: 0 | O169: 0 | P169: 0
E170: =Asset2 -> Underground Cables (pre 2004-05) | G170: =G62-G116 -> 0 | H170: 0 | I170: 0 | J170: 0 | K170: 0 | L170: 0 | M170: 0 | N170: 0 | O170: 0 | P170: 0
E171: =Asset3 -> Substations including Buildings (pre 2004-05) | G171: =G63-G117 -> 0 | H171: 0 | I171: 0 | J171: 0 | K171: 0 | L171: 0 | M171: 0 | N171: 0 | O171: 0 | P171: 0
E172: =Asset4 -> SCADA and Communications (pre 2004-05) | G172: =G64-G118 -> 0 | H172: 0 | I172: 0 | J172: 0 | K172: 0 | L172: 0 | M172: 0 | N172: 0 | O172: 0 | P172: 0
E173: =Asset5 -> Non-network Assets (pre 2004-05) | G173: =G65-G119 -> 0 | H173: 0 | I173: 0 | J173: 0 | K173: 0 | L173: 0 | M173: 0 | N173: 0 | O173: 0 | P173: 0
E174: =Asset6 -> SMHEA Assets (pre 2004-05) | G174: =G66-G120 -> 0 | H174: 0 | I174: 0 | J174: 0 | K174: 0 | L174: 0 | M174: 0 | N174: 0 | O174: 0 | P174: 0
E175: =Asset7 -> Transmission Lines (2004-09) | G175: =G67-G121 -> 0 | H175: 0 | I175: 0 | J175: 0 | K175: 0 | L175: 0 | M175: 0 | N175: 0 | O175: 0 | P175: 0
E176: =Asset8 -> Underground Cables (2004-09) | G176: =G68-G122 -> 0 | H176: 0 | I176: 0 | J176: 0 | K176: 0 | L176: 0 | M176: 0 | N176: 0 | O176: 0 | P176: 0
E177: =Asset9 -> Substations including Buildings (2004-09) | G177: =G69-G123 -> 0 | H177: 0 | I177: 0 | J177: 0 | K177: 0 | L177: 0 | M177: 0 | N177: 0 | O177: 0 | P177: 0
E178: =Asset10 -> SCADA and Communications (2004-09) | G178: =G70-G124 -> 0 | H178: 0 | I178: 0 | J178: 0 | K178: 0 | L178: 0 | M178: 0 | N178: 0 | O178: 0 | P178: 0
E179: =Asset11 -> Non-network Assets (2004-09) | G179: =G71-G125 -> 0 | H179: 0 | I179: 0 | J179: 0 | K179: 0 | L179: 0 | M179: 0 | N179: 0 | O179: 0 | P179: 0
E180: =Asset12 -> Transmission Lines & Cables (2009-14) | G180: =G72-G126 -> 0 | H180: 0 | I180: 0 | J180: 0 | K180: 0 | L180: 0 | M180: 0 | N180: 0 | O180: 0 | P180: 0
E181: =Asset13 -> Substations (2009-14) | G181: =G73-G127 -> 0 | H181: 0 | I181: 0 | J181: 0 | K181: 0 | L181: 0 | M181: 0 | N181: 0 | O181: 0 | P181: 0
E182: =Asset14 -> Secondary Systems (2009-14) | G182: =G74-G128 -> 0 | H182: 0 | I182: 0 | J182: 0 | K182: 0 | L182: 0 | M182: 0 | N182: 0 | O182: 0 | P182: 0
E183: =Asset15 -> Communications (2009-14) | G183: =G75-G129 -> 0 | H183: 0 | I183: 0 | J183: 0 | K183: 0 | L183: 0 | M183: 0 | N183: 0 | O183: 0 | P183: 0
E184: =Asset16 -> Business IT (2009-14) | G184: =G76-G130 -> 0 | H184: 0 | I184: 0 | J184: 0 | K184: 0 | L184: 0 | M184: 0 | N184: 0 | O184: 0 | P184: 0
E185: =Asset17 -> Minor Plant, Motor Vehicles & Mobile Plant (2009-14) | G185: =G77-G131 -> 0 | H185: 0 | I185: 0 | J185: 0 | K185: 0 | L185: 0 | M185: 0 | N185: 0 | O185: 0 | P185: 0
E186: =Asset18 -> * Equity raising costs (2009-14) | G186: =G78-G132 -> 0 | H186: 0 | I186: 0 | J186: 0 | K186: 0 | L186: 0 | M186: 0 | N186: 0 | O186: 0 | P186: 0
E187: =Asset19 -> Transmission Lines (2014-18) | G187: =G79-G133 -> 15.4096167 | H187: 42.37508636 | I187: 25.70749067 | J187: 46.34361271 | K187: 0 | L187: =L79-L133 -> 0 | M187: 0 | N187: 0 | O187: 0 | P187: 0
E188: =Asset20 -> Underground Cables (2014-18) | G188: 1.349016093 | H188: 3.543173602 | I188: 1.305697117 | J188: 0.2701904297 | K188: 0 | L188: 0 | M188: 0 | N188: 0 | O188: 0 | P188: 0
E189: =Asset21 -> Substations (2014-18) | G189: 130.7789541 | H189: 109.05987 | I189: 120.1112518 | J189: 94.21073284 | K189: 0 | L189: 0 | M189: 0 | N189: 0 | O189: 0 | P189: 0
E190: =Asset22 -> Secondary Systems (2014-18) | G190: 27.2874211 | H190: 31.91145238 | I190: 25.98086568 | J190: 30.32191012 | K190: 0 | L190: 0 | M190: 0 | N190: 0 | O190: 0 | P190: 0
E191: =Asset23 -> Communications (short life) (2014-18) | G191: 22.50517745 | H191: 12.82315656 | I191: 6.948996035 | J191: 7.043838247 | K191: 0 | L191: 0 | M191: 0 | N191: 0 | O191: 0 | P191: 0
E192: =Asset24 -> Business IT (2014-18) | G192: 21.11478125 | H192: 19.65957031 | I192: 18.115625 | J192: 20.79179687 | K192: 0 | L192: 0 | M192: 0 | N192: 0 | O192: 0 | P192: 0
E193: =Asset25 -> Minor Plant, Motor Vehicles & Mobile Plant (2014-18) | G193: 8.825968619 | H193: 6.528452693 | I193: 8.124450251 | J193: 9.114632671 | K193: 0 | L193: 0 | M193: 0 | N193: 0 | O193: 0 | P193: 0
E194: =Asset26 -> Transmission Line Life Extension (2014-18) | G194: 5.504679688 | H194: 6.169708398 | I194: 4.591075781 | J194: 7.187785938 | K194: 0 | L194: 0 | M194: 0 | N194: 0 | O194: 0 | P194: 0
E195: =Asset27 -> Equity raising costs (2014-18) | G195: =G87-G141 -> 0 | H195: =H87-H141 -> 0 | I195: =I87-I141 -> 0 | J195: =J87-J141 -> 0 | K195: =K87-K141 -> 0 | L195: 0 | M195: 0 | N195: 0 | O195: 0 | P195: 0
E196: =Asset28 -> Land and Easements | G196: 5.158770355 | H196: 4.67727374 | I196: 9.446911578 | J196: 1.159016841 | K196: 0 | L196: 0 | M196: 0 | N196: 0 | O196: 0 | P196: 0
E197: =Asset29 -> 29 | G197: =G89-G143 -> 0 | H197: 0 | I197: 0 | J197: 0 | K197: 0 | L197: 0 | M197: 0 | N197: 0 | O197: 0 | P197: 0
E198: =Asset30 -> 30 | G198: =G90-G144 -> 0 | H198: 0 | I198: 0 | J198: 0 | K198: 0 | L198: 0 | M198: 0 | N198: 0 | O198: 0 | P198: 0
E199: =Asset31 -> 31 | G199: =G91-G145 -> 0 | H199: 0 | I199: 0 | J199: 0 | K199: 0 | L199: 0 | M199: 0 | N199: 0 | O199: 0 | P199: 0
E200: =Asset32 -> 32 | G200: =G92-G146 -> 0 | H200: 0 | I200: 0 | J200: 0 | K200: 0 | L200: 0 | M200: 0 | N200: 0 | O200: 0 | P200: 0
E201: =Asset33 -> 33 | G201: =G93-G147 -> 0 | H201: 0 | I201: 0 | J201: 0 | K201: 0 | L201: 0 | M201: 0 | N201: 0 | O201: 0 | P201: =P93-P147 -> 0
E202: =Asset34 -> 34 | G202: =G94-G148 -> 0 | H202: 0 | I202: 0 | J202: 0 | K202: 0 | L202: 0 | M202: 0 | N202: 0 | O202: 0 | P202: 0
E203: =Asset35 -> 35 | G203: =G95-G149 -> 0 | H203: 0 | I203: 0 | J203: 0 | K203: 0 | L203: 0 | M203: 0 | N203: 0 | O203: 0 | P203: 0
E204: =Asset36 -> 36 | G204: =G96-G150 -> 0 | H204: 0 | I204: 0 | J204: 0 | K204: 0 | L204: 0 | M204: 0 | N204: 0 | O204: 0 | P204: 0
... 213 more rows

Sheet WACC
B2: ="Cost of Capital Parameters - PTRM "&Intro!L4 -> Cost of Capital Parameters - PTRM Version: 2.0
F6: Input Data & Calculated Inputs | G6: Basic Building Block Model
B7: Nominal Risk Free Rate | D7: Rf | F7: =Rf -> 0
B8: Real Risk Free Rate | D8: Rrf | F8: =(1+F7)/(1+F9)-1 -> -0.0243902439
B9: Inflation Rate | D9: f | F9: =f -> 0.025
B10: Cost of Debt Margin | D10: DRP | F10: 0.0667
B11: Nominal Pre-tax Cost of Debt | D11: Rd | F11: =F7+F10 -> 0.0667
B12: Real Pre-tax Cost of Debt | D12: Rrd | F12: =(1+F11)/(1+F9)-1 -> 0.04068292683
B13: Market Risk Premium | D13: MRP | F13: =Mrp -> 0
B14: Corporate Tax Rate | D14: T | F14: =AVERAGE(Input!G395:P395) -> 0.3
B15: Effective Tax Rate for Equity (from relevant cashflows) | D15: Te | F15: 0.2771073306 | G15: =Analysis!$D$59 -> 0.2771073306
B16: Effective Tax Rate for Debt (effective debt shield) | D16: Td | F16: =Td -> 0.3 | G16: =Analysis!$D$69 -> 0.3
B17: Utilisation of Imputation (franking) Credits | D17: g | F17: =g -> 0.4
B18: Proportion of Equity Funding | D18: E/V | F18: =1-F19 -> 0.4
B19: Proportion of Debt Funding | D19: D/V | F19: =Dv -> 0.6
B20: Equity Beta | D20: βe | F20: =Be -> 0
B22: WACC Analysis
F24: Formula Approximation
B25: Post-tax Nominal Return on Equity (pre-imp) | F25: 0.081 | G25: =Analysis!$E$61 -> 0.081
B26: Post-tax Real Return on Equity (pre-imp) | F26: =(1+F25)/(1+F9)-1 -> 0.05463414634 | G26: =Analysis!$E$65 -> 0.05463414634
B27: Nominal Vanilla WACC | F27: =F18*F25+F19*F11 -> 0.07242 | G27: =Analysis!$E$75 -> 0.07242
B28: Real Vanilla WACC | F28: =F18*F26+F19*F12 -> 0.04626341463 | G28: =Analysis!$E$76 -> 0.04626341463
B29: Post-tax Nominal WACC | F29: =F25*((1-F15)/(1-F15*(1-F17)))*F18+F11*F19*(1-F16) -> 0.05610650612 | G29: =Analysis!$E$72 -> 0.06803459482
B30: Post-tax Real WACC | F30: =(1+F29)/(1+F9)-1 -> 0.03034781085 | G30: =Analysis!$E$74 -> 0.04198497056
B31: Pre-tax Nominal WACC | F31: =F25*(1/(1-F15*(1-F17)))*F18+F11*F19 -> 0.07888124082 | G31: =Analysis!$E$71 -> 0.07892233599
B32: Pre-tax Real WACC | F32: =(1+F31)/(1+F9)-1 -> 0.05256706422 | G32: =Analysis!$E$73 -> 0.05260715707
B33: Nominal Tax Allowance | F33: =F31-F27 -> 0.006461240825 | G33: =G31-$F$27 -> 0.006502335993
B34: Real Tax Allowance | F34: =F32-F28 -> 0.006303649585 | G34: =G32-$F$28 -> 0.006343742432
F37: Numbers in White cells are calculated on this sheet from input parameters.
F38: Numbers in Orange cells are transferred from relevant sheets

Sheet Assets
B2: ="Asset Roll Forward - PTRM "&Intro!L4 -> Asset Roll Forward - PTRM Version: 2.0
F3: 0 | G3: =F3+1 -> 1 | H3: 2 | I3: 3 | J3: 4 | K3: 5 | L3: 6 | M3: 7 | N3: 8 | O3: 9 | P3: 10 | Q3: 11 | R3: 12 | S3: 13 | T3: 14 | U3: 15 | V3: 16 | W3: 17 | X3: 18 | Y3: 19 | Z3: 20 | AA3: 21 | AB3: 22 | AC3: 23 | AD3: 24 | AE3: 25 | AF3: 26 | AG3: 27 | AH3: 28 | AI3: 29 | AJ3: 30 | AK3: 31 | AL3: 32 | AM3: =AL3+1 -> 33 | AN3: 34 | AO3: 35 | AP3: 36 | AQ3: 37 | AR3: 38 | AS3: 39 | AT3: 40 | AU3: 41 | AV3: 42 | AW3: 43 | AX3: 44 | AY3: 45 | AZ3: 46 | BA3: 47 | BB3: 48 | BC3: 49 | BD3: 50 | BE3: 51 | BF3: 52 | BG3: 53 | BH3: 54 | BI3: 55
B4: Year | F4: =Input!F420 -> 2013-14 | G4: =Input!G420 -> 2014-15 | H4: =Input!H420 -> 2015-16 | I4: =Input!I420 -> 2016-17 | J4: =Input!J420 -> 2017-18 | K4: =Input!K420 -> 2018-19 | L4: =Input!L420 -> 2019-20 | M4: =Input!M420 -> 2020-21 | N4: =Input!N420 -> 2021-22 | O4: =Input!O420 -> 2022-23 | P4: =Input!P420 -> 2023-24 | Q4: =CONCATENATE(LEFT(P4, 4)+1 &"-" &IF(P4>"2007-08",,"0") &RIGHT(P4,2)+1) -> 2024-25 | R4: =CONCATENATE(LEFT(Q4, 4)+1 &"-" &IF(Q4>"2007-08",,"0") &RIGHT(Q4,2)+1) -> 2025-26 | S4: 2026-27 | T4: 2027-28 | U4: 2028-29 | V4: 2029-30 | W4: 2030-31 | X4: 2031-32 | Y4: 2032-33 | Z4: 2033-34 | AA4: 2034-35 | AB4: 2035-36 | AC4: 2036-37 | AD4: 2037-38 | AE4: 2038-39 | AF4: 2039-40 | AG4: 2040-41 | AH4: 2041-42 | AI4: 2042-43 | AJ4: 2043-44 | AK4: 2044-45 | AL4: 2045-46 | AM4: 2046-47 | AN4: 2047-48 | AO4: 2048-49 | AP4: 2049-50 | AQ4: 2050-51 | AR4: 2051-52 | AS4: 2052-53 | AT4: 2053-54 | AU4: 2054-55 | AV4: 2055-56 | AW4: 2056-57 | AX4: 2057-58 | AY4: 2058-59 | AZ4: 2059-60 | BA4: 2060-61 | BB4: 2061-62 | BC4: 2062-63 | BD4: 2063-64 | BE4: 2064-65 | BF4: 2065-66 | BG4: 2066-67 | BH4: 2067-68 | BI4: 2068-69
B6: Inflation Assumption (CPI % increase) | D6: =f -> 0.025 | G6: =$D$6 -> 0.025 | H6: =$D$6 -> 0.025 | I6: 0.025 | J6: 0.025 | K6: 0.025 | L6: 0.025 | M6: 0.025 | N6: 0.025 | O6: 0.025 | P6: 0.025 | Q6: 0.025 | R6: 0.025 | S6: 0.025 | T6: 0.025 | U6: 0.025 | V6: 0.025 | W6: 0.025 | X6: 0.025 | Y6: 0.025 | Z6: 0.025 | AA6: 0.025 | AB6: 0.025 | AC6: 0.025 | AD6: 0.025 | AE6: 0.025 | AF6: 0.025 | AG6: 0.025 | AH6: 0.025 | AI6: 0.025 | AJ6: 0.025 | AK6: 0.025 | AL6: 0.025 | AM6: 0.025 | AN6: 0.025 | AO6: 0.025 | AP6: 0.025 | AQ6: 0.025 | AR6: 0.025 | AS6: 0.025 | AT6: 0.025 | AU6: 0.025 | AV6: 0.025 | AW6: 0.025 | AX6: 0.025 | AY6: 0.025 | AZ6: 0.025 | BA6: 0.025 | BB6: 0.025 | BC6: 0.025 | BD6: 0.025 | BE6: 0.025 | BF6: 0.025 | BG6: 0.025 | BH6: 0.025 | BI6: 0.025
B7: Cumulative Inflation Index (CPI end period) | F7: 1 | G7: =F7*(1+G6) -> 1.025 | H7: =G7*(1+H6) -> 1.050625 | I7: =H7*(1+I6) -> 1.076890625 | J7: =I7*(1+J6) -> 1.103812891 | K7: 1.131408213 | L7: 1.159693418 | M7: 1.188685754 | N7: 1.218402898 | O7: 1.24886297 | P7: =O7*(1+P6) -> 1.280084544 | Q7: 1.312086658 | R7: 1.344888824 | S7: 1.378511045 | T7: 1.412973821 | U7: 1.448298166 | V7: 1.484505621 | W7: 1.521618261 | X7: 1.559658718 | Y7: 1.598650186 | Z7: 1.63861644 | AA7: 1.679581851 | AB7: 1.721571398 | AC7: 1.764610683 | AD7: 1.80872595 | AE7: 1.853944098 | AF7: 1.900292701 | AG7: 1.947800018 | AH7: 1.996495019 | AI7: 2.046407394 | AJ7: 2.097567579 | AK7: 2.150006769 | AL7: 2.203756938 | AM7: 2.258850861 | AN7: 2.315322133 | AO7: 2.373205186 | AP7: 2.432535316 | AQ7: 2.493348699 | AR7: 2.555682416 | AS7: 2.619574476 | AT7: 2.685063838 | AU7: 2.752190434 | AV7: 2.820995195 | AW7: 2.891520075 | AX7: 2.963808077 | AY7: 3.037903279 | AZ7: 3.113850861 | BA7: 3.191697132 | BB7: 3.271489561 | BC7: 3.3532768 | BD7: 3.43710872 | BE7: 3.523036438 | BF7: 3.611112349 | BG7: 3.701390157 | BH7: 3.793924911 | BI7: 3.888773034
B9: Opening Regulatory Asset Base (RAB) | F9: =RAB -> 6146.698166
B10: Real Net Capital Expenditure (capex) | G10: =SUM(G11:G60) -> 243.3759886 | H10: =SUM(H11:H60) -> 242.1622086 | I10: 225.3714058 | J10: 221.3936199 | K10: 0 | L10: 0 | M10: 0 | N10: 0 | O10: 0 | P10: 0
C11: =Asset1 -> Transmission Lines (pre 2004-05) | G11: =Input!G169*(1+rvanilla)^0.5 -> 0 | H11: =Input!H169*(1+rvanilla)^0.5 -> 0 | I11: =Input!I169*(1+rvanilla)^0.5 -> 0 | J11: =Input!J169*(1+rvanilla)^0.5 -> 0 | K11: =Input!K169*(1+rvanilla)^0.5 -> 0 | L11: =Input!L169*(1+rvanilla)^0.5 -> 0 | M11: =Input!M169*(1+rvanilla)^0.5 -> 0 | N11: =Input!N169*(1+rvanilla)^0.5 -> 0 | O11: =Input!O169*(1+rvanilla)^0.5 -> 0 | P11: =Input!P169*(1+rvanilla)^0.5 -> 0
C12: =Asset2 -> Underground Cables (pre 2004-05) | G12: =Input!G170*(1+rvanilla)^0.5 -> 0 | H12: =Input!H170*(1+rvanilla)^0.5 -> 0 | I12: =Input!I170*(1+rvanilla)^0.5 -> 0 | J12: =Input!J170*(1+rvanilla)^0.5 -> 0 | K12: =Input!K170*(1+rvanilla)^0.5 -> 0 | L12: =Input!L170*(1+rvanilla)^0.5 -> 0 | M12: =Input!M170*(1+rvanilla)^0.5 -> 0 | N12: =Input!N170*(1+rvanilla)^0.5 -> 0 | O12: =Input!O170*(1+rvanilla)^0.5 -> 0 | P12: =Input!P170*(1+rvanilla)^0.5 -> 0
C13: =Asset3 -> Substations including Buildings (pre 2004-05) | G13: =Input!G171*(1+rvanilla)^0.5 -> 0 | H13: =Input!H171*(1+rvanilla)^0.5 -> 0 | I13: =Input!I171*(1+rvanilla)^0.5 -> 0 | J13: =Input!J171*(1+rvanilla)^0.5 -> 0 | K13: =Input!K171*(1+rvanilla)^0.5 -> 0 | L13: =Input!L171*(1+rvanilla)^0.5 -> 0 | M13: =Input!M171*(1+rvanilla)^0.5 -> 0 | N13: =Input!N171*(1+rvanilla)^0.5 -> 0 | O13: =Input!O171*(1+rvanilla)^0.5 -> 0 | P13: =Input!P171*(1+rvanilla)^0.5 -> 0
C14: =Asset4 -> SCADA and Communications (pre 2004-05) | G14: =Input!G172*(1+rvanilla)^0.5 -> 0 | H14: =Input!H172*(1+rvanilla)^0.5 -> 0 | I14: =Input!I172*(1+rvanilla)^0.5 -> 0 | J14: =Input!J172*(1+rvanilla)^0.5 -> 0 | K14: =Input!K172*(1+rvanilla)^0.5 -> 0 | L14: =Input!L172*(1+rvanilla)^0.5 -> 0 | M14: =Input!M172*(1+rvanilla)^0.5 -> 0 | N14: =Input!N172*(1+rvanilla)^0.5 -> 0 | O14: =Input!O172*(1+rvanilla)^0.5 -> 0 | P14: =Input!P172*(1+rvanilla)^0.5 -> 0
C15: =Asset5 -> Non-network Assets (pre 2004-05) | G15: =Input!G173*(1+rvanilla)^0.5 -> 0 | H15: =Input!H173*(1+rvanilla)^0.5 -> 0 | I15: =Input!I173*(1+rvanilla)^0.5 -> 0 | J15: =Input!J173*(1+rvanilla)^0.5 -> 0 | K15: =Input!K173*(1+rvanilla)^0.5 -> 0 | L15: =Input!L173*(1+rvanilla)^0.5 -> 0 | M15: =Input!M173*(1+rvanilla)^0.5 -> 0 | N15: =Input!N173*(1+rvanilla)^0.5 -> 0 | O15: =Input!O173*(1+rvanilla)^0.5 -> 0 | P15: =Input!P173*(1+rvanilla)^0.5 -> 0
C16: =Asset6 -> SMHEA Assets (pre 2004-05) | G16: =Input!G174*(1+rvanilla)^0.5 -> 0 | H16: =Input!H174*(1+rvanilla)^0.5 -> 0 | I16: =Input!I174*(1+rvanilla)^0.5 -> 0 | J16: =Input!J174*(1+rvanilla)^0.5 -> 0 | K16: =Input!K174*(1+rvanilla)^0.5 -> 0 | L16: =Input!L174*(1+rvanilla)^0.5 -> 0 | M16: =Input!M174*(1+rvanilla)^0.5 -> 0 | N16: =Input!N174*(1+rvanilla)^0.5 -> 0 | O16: =Input!O174*(1+rvanilla)^0.5 -> 0 | P16: =Input!P174*(1+rvanilla)^0.5 -> 0
C17: =Asset7 -> Transmission Lines (2004-09) | G17: =Input!G175*(1+rvanilla)^0.5 -> 0 | H17: =Input!H175*(1+rvanilla)^0.5 -> 0 | I17: =Input!I175*(1+rvanilla)^0.5 -> 0 | J17: =Input!J175*(1+rvanilla)^0.5 -> 0 | K17: =Input!K175*(1+rvanilla)^0.5 -> 0 | L17: =Input!L175*(1+rvanilla)^0.5 -> 0 | M17: =Input!M175*(1+rvanilla)^0.5 -> 0 | N17: =Input!N175*(1+rvanilla)^0.5 -> 0 | O17: =Input!O175*(1+rvanilla)^0.5 -> 0 | P17: =Input!P175*(1+rvanilla)^0.5 -> 0
C18: =Asset8 -> Underground Cables (2004-09) | G18: =Input!G176*(1+rvanilla)^0.5 -> 0 | H18: =Input!H176*(1+rvanilla)^0.5 -> 0 | I18: =Input!I176*(1+rvanilla)^0.5 -> 0 | J18: =Input!J176*(1+rvanilla)^0.5 -> 0 | K18: =Input!K176*(1+rvanilla)^0.5 -> 0 | L18: =Input!L176*(1+rvanilla)^0.5 -> 0 | M18: =Input!M176*(1+rvanilla)^0.5 -> 0 | N18: =Input!N176*(1+rvanilla)^0.5 -> 0 | O18: =Input!O176*(1+rvanilla)^0.5 -> 0 | P18: =Input!P176*(1+rvanilla)^0.5 -> 0
C19: =Asset9 -> Substations including Buildings (2004-09) | G19: =Input!G177*(1+rvanilla)^0.5 -> 0 | H19: =Input!H177*(1+rvanilla)^0.5 -> 0 | I19: =Input!I177*(1+rvanilla)^0.5 -> 0 | J19: =Input!J177*(1+rvanilla)^0.5 -> 0 | K19: =Input!K177*(1+rvanilla)^0.5 -> 0 | L19: =Input!L177*(1+rvanilla)^0.5 -> 0 | M19: =Input!M177*(1+rvanilla)^0.5 -> 0 | N19: =Input!N177*(1+rvanilla)^0.5 -> 0 | O19: =Input!O177*(1+rvanilla)^0.5 -> 0 | P19: =Input!P177*(1+rvanilla)^0.5 -> 0
C20: =Asset10 -> SCADA and Communications (2004-09) | G20: =Input!G178*(1+rvanilla)^0.5 -> 0 | H20: =Input!H178*(1+rvanilla)^0.5 -> 0 | I20: =Input!I178*(1+rvanilla)^0.5 -> 0 | J20: =Input!J178*(1+rvanilla)^0.5 -> 0 | K20: =Input!K178*(1+rvanilla)^0.5 -> 0 | L20: =Input!L178*(1+rvanilla)^0.5 -> 0 | M20: =Input!M178*(1+rvanilla)^0.5 -> 0 | N20: =Input!N178*(1+rvanilla)^0.5 -> 0 | O20: =Input!O178*(1+rvanilla)^0.5 -> 0 | P20: =Input!P178*(1+rvanilla)^0.5 -> 0
C21: =Asset11 -> Non-network Assets (2004-09) | G21: =Input!G179*(1+rvanilla)^0.5 -> 0 | H21: =Input!H179*(1+rvanilla)^0.5 -> 0 | I21: =Input!I179*(1+rvanilla)^0.5 -> 0 | J21: =Input!J179*(1+rvanilla)^0.5 -> 0 | K21: =Input!K179*(1+rvanilla)^0.5 -> 0 | L21: =Input!L179*(1+rvanilla)^0.5 -> 0 | M21: =Input!M179*(1+rvanilla)^0.5 -> 0 | N21: =Input!N179*(1+rvanilla)^0.5 -> 0 | O21: =Input!O179*(1+rvanilla)^0.5 -> 0 | P21: =Input!P179*(1+rvanilla)^0.5 -> 0
C22: =Asset12 -> Transmission Lines & Cables (2009-14) | G22: =Input!G180*(1+rvanilla)^0.5 -> 0 | H22: =Input!H180*(1+rvanilla)^0.5 -> 0 | I22: =Input!I180*(1+rvanilla)^0.5 -> 0 | J22: =Input!J180*(1+rvanilla)^0.5 -> 0 | K22: =Input!K180*(1+rvanilla)^0.5 -> 0 | L22: =Input!L180*(1+rvanilla)^0.5 -> 0 | M22: =Input!M180*(1+rvanilla)^0.5 -> 0 | N22: =Input!N180*(1+rvanilla)^0.5 -> 0 | O22: =Input!O180*(1+rvanilla)^0.5 -> 0 | P22: =Input!P180*(1+rvanilla)^0.5 -> 0
C23: =Asset13 -> Substations (2009-14) | G23: =Input!G181*(1+rvanilla)^0.5 -> 0 | H23: =Input!H181*(1+rvanilla)^0.5 -> 0 | I23: =Input!I181*(1+rvanilla)^0.5 -> 0 | J23: =Input!J181*(1+rvanilla)^0.5 -> 0 | K23: =Input!K181*(1+rvanilla)^0.5 -> 0 | L23: =Input!L181*(1+rvanilla)^0.5 -> 0 | M23: =Input!M181*(1+rvanilla)^0.5 -> 0 | N23: =Input!N181*(1+rvanilla)^0.5 -> 0 | O23: =Input!O181*(1+rvanilla)^0.5 -> 0 | P23: =Input!P181*(1+rvanilla)^0.5 -> 0
C24: =Asset14 -> Secondary Systems (2009-14) | G24: =Input!G182*(1+rvanilla)^0.5 -> 0 | H24: =Input!H182*(1+rvanilla)^0.5 -> 0 | I24: =Input!I182*(1+rvanilla)^0.5 -> 0 | J24: =Input!J182*(1+rvanilla)^0.5 -> 0 | K24: =Input!K182*(1+rvanilla)^0.5 -> 0 | L24: =Input!L182*(1+rvanilla)^0.5 -> 0 | M24: =Input!M182*(1+rvanilla)^0.5 -> 0 | N24: =Input!N182*(1+rvanilla)^0.5 -> 0 | O24: =Input!O182*(1+rvanilla)^0.5 -> 0 | P24: =Input!P182*(1+rvanilla)^0.5 -> 0
C25: =Asset15 -> Communications (2009-14) | G25: =Input!G183*(1+rvanilla)^0.5 -> 0 | H25: =Input!H183*(1+rvanilla)^0.5 -> 0 | I25: =Input!I183*(1+rvanilla)^0.5 -> 0 | J25: =Input!J183*(1+rvanilla)^0.5 -> 0 | K25: =Input!K183*(1+rvanilla)^0.5 -> 0 | L25: =Input!L183*(1+rvanilla)^0.5 -> 0 | M25: =Input!M183*(1+rvanilla)^0.5 -> 0 | N25: =Input!N183*(1+rvanilla)^0.5 -> 0 | O25: =Input!O183*(1+rvanilla)^0.5 -> 0 | P25: =Input!P183*(1+rvanilla)^0.5 -> 0
C26: =Asset16 -> Business IT (2009-14) | G26: =Input!G184*(1+rvanilla)^0.5 -> 0 | H26: =Input!H184*(1+rvanilla)^0.5 -> 0 | I26: =Input!I184*(1+rvanilla)^0.5 -> 0 | J26: =Input!J184*(1+rvanilla)^0.5 -> 0 | K26: =Input!K184*(1+rvanilla)^0.5 -> 0 | L26: =Input!L184*(1+rvanilla)^0.5 -> 0 | M26: =Input!M184*(1+rvanilla)^0.5 -> 0 | N26: =Input!N184*(1+rvanilla)^0.5 -> 0 | O26: =Input!O184*(1+rvanilla)^0.5 -> 0 | P26: =Input!P184*(1+rvanilla)^0.5 -> 0
C27: =Asset17 -> Minor Plant, Motor Vehicles & Mobile Plant (2009-14) | G27: =Input!G185*(1+rvanilla)^0.5 -> 0 | H27: =Input!H185*(1+rvanilla)^0.5 -> 0 | I27: =Input!I185*(1+rvanilla)^0.5 -> 0 | J27: =Input!J185*(1+rvanilla)^0.5 -> 0 | K27: =Input!K185*(1+rvanilla)^0.5 -> 0 | L27: =Input!L185*(1+rvanilla)^0.5 -> 0 | M27: =Input!M185*(1+rvanilla)^0.5 -> 0 | N27: =Input!N185*(1+rvanilla)^0.5 -> 0 | O27: =Input!O185*(1+rvanilla)^0.5 -> 0 | P27: =Input!P185*(1+rvanilla)^0.5 -> 0
C28: =Asset18 -> * Equity raising costs (2009-14) | G28: =Input!G186*(1+rvanilla)^0.5 -> 0 | H28: =Input!H186*(1+rvanilla)^0.5 -> 0 | I28: =Input!I186*(1+rvanilla)^0.5 -> 0 | J28: =Input!J186*(1+rvanilla)^0.5 -> 0 | K28: =Input!K186*(1+rvanilla)^0.5 -> 0 | L28: =Input!L186*(1+rvanilla)^0.5 -> 0 | M28: =Input!M186*(1+rvanilla)^0.5 -> 0 | N28: =Input!N186*(1+rvanilla)^0.5 -> 0 | O28: =Input!O186*(1+rvanilla)^0.5 -> 0 | P28: =Input!P186*(1+rvanilla)^0.5 -> 0
C29: =Asset19 -> Transmission Lines (2014-18) | G29: =Input!G187*(1+rvanilla)^0.5 -> 15.76203748 | H29: =Input!H187*(1+rvanilla)^0.5 -> 43.34421241 | I29: =Input!I187*(1+rvanilla)^0.5 -> 26.29542573 | J29: =Input!J187*(1+rvanilla)^0.5 -> 47.40349969 | K29: =Input!K187*(1+rvanilla)^0.5 -> 0 | L29: =Input!L187*(1+rvanilla)^0.5 -> 0 | M29: =Input!M187*(1+rvanilla)^0.5 -> 0 | N29: =Input!N187*(1+rvanilla)^0.5 -> 0 | O29: =Input!O187*(1+rvanilla)^0.5 -> 0 | P29: =Input!P187*(1+rvanilla)^0.5 -> 0
C30: =Asset20 -> Underground Cables (2014-18) | G30: =Input!G188*(1+rvanilla)^0.5 -> 1.379868341 | H30: =Input!H188*(1+rvanilla)^0.5 -> 3.624206637 | I30: =Input!I188*(1+rvanilla)^0.5 -> 1.335558651 | J30: =Input!J188*(1+rvanilla)^0.5 -> 0.2763697347 | K30: =Input!K188*(1+rvanilla)^0.5 -> 0 | L30: =Input!L188*(1+rvanilla)^0.5 -> 0 | M30: =Input!M188*(1+rvanilla)^0.5 -> 0 | N30: =Input!N188*(1+rvanilla)^0.5 -> 0 | O30: =Input!O188*(1+rvanilla)^0.5 -> 0 | P30: =Input!P188*(1+rvanilla)^0.5 -> 0
C31: =Asset21 -> Substations (2014-18) | G31: =Input!G189*(1+rvanilla)^0.5 -> 133.7698929 | H31: =Input!H189*(1+rvanilla)^0.5 -> 111.5540893 | I31: =Input!I189*(1+rvanilla)^0.5 -> 122.8582183 | J31: =Input!J189*(1+rvanilla)^0.5 -> 96.3653497 | K31: =Input!K189*(1+rvanilla)^0.5 -> 0 | L31: =Input!L189*(1+rvanilla)^0.5 -> 0 | M31: =Input!M189*(1+rvanilla)^0.5 -> 0 | N31: =Input!N189*(1+rvanilla)^0.5 -> 0 | O31: =Input!O189*(1+rvanilla)^0.5 -> 0 | P31: =Input!P189*(1+rvanilla)^0.5 -> 0
C32: =Asset22 -> Secondary Systems (2014-18) | G32: =Input!G190*(1+rvanilla)^0.5 -> 27.91148946 | H32: =Input!H190*(1+rvanilla)^0.5 -> 32.64127318 | I32: =Input!I190*(1+rvanilla)^0.5 -> 26.57505287 | J32: =Input!J190*(1+rvanilla)^0.5 -> 31.01537781 | K32: =Input!K190*(1+rvanilla)^0.5 -> 0 | L32: =Input!L190*(1+rvanilla)^0.5 -> 0 | M32: =Input!M190*(1+rvanilla)^0.5 -> 0 | N32: =Input!N190*(1+rvanilla)^0.5 -> 0 | O32: =Input!O190*(1+rvanilla)^0.5 -> 0 | P32: =Input!P190*(1+rvanilla)^0.5 -> 0
C33: =Asset23 -> Communications (short life) (2014-18) | G33: =Input!G191*(1+rvanilla)^0.5 -> 23.01987501 | H33: =Input!H191*(1+rvanilla)^0.5 -> 13.11642452 | I33: =Input!I191*(1+rvanilla)^0.5 -> 7.107920857 | J33: =Input!J191*(1+rvanilla)^0.5 -> 7.204932129 | K33: =Input!K191*(1+rvanilla)^0.5 -> 0 | L33: =Input!L191*(1+rvanilla)^0.5 -> 0 | M33: =Input!M191*(1+rvanilla)^0.5 -> 0 | N33: =Input!N191*(1+rvanilla)^0.5 -> 0 | O33: =Input!O191*(1+rvanilla)^0.5 -> 0 | P33: =Input!P191*(1+rvanilla)^0.5 -> 0
C34: =Asset24 -> Business IT (2014-18) | G34: =Input!G192*(1+rvanilla)^0.5 -> 21.5976802 | H34: =Input!H192*(1+rvanilla)^0.5 -> 20.10918832 | I34: =Input!I192*(1+rvanilla)^0.5 -> 18.52993269 | J34: =Input!J192*(1+rvanilla)^0.5 -> 21.26730911 | K34: =Input!K192*(1+rvanilla)^0.5 -> 0 | L34: =Input!L192*(1+rvanilla)^0.5 -> 0 | M34: =Input!M192*(1+rvanilla)^0.5 -> 0 | N34: =Input!N192*(1+rvanilla)^0.5 -> 0 | O34: =Input!O192*(1+rvanilla)^0.5 -> 0 | P34: =Input!P192*(1+rvanilla)^0.5 -> 0
C35: =Asset25 -> Minor Plant, Motor Vehicles & Mobile Plant (2014-18) | G35: =Input!G193*(1+rvanilla)^0.5 -> 9.027820151 | H35: =Input!H193*(1+rvanilla)^0.5 -> 6.677759612 | I35: =Input!I193*(1+rvanilla)^0.5 -> 8.310257929 | J35: =Input!J193*(1+rvanilla)^0.5 -> 9.323086003 | K35: =Input!K193*(1+rvanilla)^0.5 -> 0 | L35: =Input!L193*(1+rvanilla)^0.5 -> 0 | M35: =Input!M193*(1+rvanilla)^0.5 -> 0 | N35: =Input!N193*(1+rvanilla)^0.5 -> 0 | O35: =Input!O193*(1+rvanilla)^0.5 -> 0 | P35: =Input!P193*(1+rvanilla)^0.5 -> 0
C36: =Asset26 -> Transmission Line Life Extension (2014-18) | G36: =Input!G194*(1+rvanilla)^0.5 -> 5.630572728 | H36: =Input!H194*(1+rvanilla)^0.5 -> 6.310810769 | I36: =Input!I194*(1+rvanilla)^0.5 -> 4.696074532 | J36: =Input!J194*(1+rvanilla)^0.5 -> 7.352171929 | K36: =Input!K194*(1+rvanilla)^0.5 -> 0 | L36: =Input!L194*(1+rvanilla)^0.5 -> 0 | M36: =Input!M194*(1+rvanilla)^0.5 -> 0 | N36: =Input!N194*(1+rvanilla)^0.5 -> 0 | O36: =Input!O194*(1+rvanilla)^0.5 -> 0 | P36: =Input!P194*(1+rvanilla)^0.5 -> 0
C37: =Asset27 -> Equity raising costs (2014-18) | G37: =Input!G195*(1+rvanilla)^0.5 -> 0 | H37: =Input!H195*(1+rvanilla)^0.5 -> 0 | I37: =Input!I195*(1+rvanilla)^0.5 -> 0 | J37: =Input!J195*(1+rvanilla)^0.5 -> 0 | K37: =Input!K195*(1+rvanilla)^0.5 -> 0 | L37: =Input!L195*(1+rvanilla)^0.5 -> 0 | M37: =Input!M195*(1+rvanilla)^0.5 -> 0 | N37: =Input!N195*(1+rvanilla)^0.5 -> 0 | O37: =Input!O195*(1+rvanilla)^0.5 -> 0 | P37: =Input!P195*(1+rvanilla)^0.5 -> 0
C38: =Asset28 -> Land and Easements | G38: =Input!G196*(1+rvanilla)^0.5 -> 5.276752385 | H38: =Input!H196*(1+rvanilla)^0.5 -> 4.784243854 | I38: =Input!I196*(1+rvanilla)^0.5 -> 9.662964191 | J38: =Input!J196*(1+rvanilla)^0.5 -> 1.18552377 | K38: =Input!K196*(1+rvanilla)^0.5 -> 0 | L38: =Input!L196*(1+rvanilla)^0.5 -> 0 | M38: =Input!M196*(1+rvanilla)^0.5 -> 0 | N38: =Input!N196*(1+rvanilla)^0.5 -> 0 | O38: =Input!O196*(1+rvanilla)^0.5 -> 0 | P38: =Input!P196*(1+rvanilla)^0.5 -> 0
C39: =Asset29 -> 29 | G39: =Input!G197*(1+rvanilla)^0.5 -> 0 | H39: =Input!H197*(1+rvanilla)^0.5 -> 0 | I39: =Input!I197*(1+rvanilla)^0.5 -> 0 | J39: =Input!J197*(1+rvanilla)^0.5 -> 0 | K39: =Input!K197*(1+rvanilla)^0.5 -> 0 | L39: =Input!L197*(1+rvanilla)^0.5 -> 0 | M39: =Input!M197*(1+rvanilla)^0.5 -> 0 | N39: =Input!N197*(1+rvanilla)^0.5 -> 0 | O39: =Input!O197*(1+rvanilla)^0.5 -> 0 | P39: =Input!P197*(1+rvanilla)^0.5 -> 0
C40: =Asset30 -> 30 | G40: =Input!G198*(1+rvanilla)^0.5 -> 0 | H40: =Input!H198*(1+rvanilla)^0.5 -> 0 | I40: =Input!I198*(1+rvanilla)^0.5 -> 0 | J40: =Input!J198*(1+rvanilla)^0.5 -> 0 | K40: =Input!K198*(1+rvanilla)^0.5 -> 0 | L40: =Input!L198*(1+rvanilla)^0.5 -> 0 | M40: =Input!M198*(1+rvanilla)^0.5 -> 0 | N40: =Input!N198*(1+rvanilla)^0.5 -> 0 | O40: =Input!O198*(1+rvanilla)^0.5 -> 0 | P40: =Input!P198*(1+rvanilla)^0.5 -> 0
C41: =Asset31 -> 31 | G41: =Input!G199*(1+rvanilla)^0.5 -> 0 | H41: =Input!H199*(1+rvanilla)^0.5 -> 0 | I41: =Input!I199*(1+rvanilla)^0.5 -> 0 | J41: =Input!J199*(1+rvanilla)^0.5 -> 0 | K41: =Input!K199*(1+rvanilla)^0.5 -> 0 | L41: =Input!L199*(1+rvanilla)^0.5 -> 0 | M41: =Input!M199*(1+rvanilla)^0.5 -> 0 | N41: =Input!N199*(1+rvanilla)^0.5 -> 0 | O41: =Input!O199*(1+rvanilla)^0.5 -> 0 | P41: =Input!P199*(1+rvanilla)^0.5 -> 0
C42: =Asset32 -> 32 | G42: =Input!G200*(1+rvanilla)^0.5 -> 0 | H42: =Input!H200*(1+rvanilla)^0.5 -> 0 | I42: =Input!I200*(1+rvanilla)^0.5 -> 0 | J42: =Input!J200*(1+rvanilla)^0.5 -> 0 | K42: =Input!K200*(1+rvanilla)^0.5 -> 0 | L42: =Input!L200*(1+rvanilla)^0.5 -> 0 | M42: =Input!M200*(1+rvanilla)^0.5 -> 0 | N42: =Input!N200*(1+rvanilla)^0.5 -> 0 | O42: =Input!O200*(1+rvanilla)^0.5 -> 0 | P42: =Input!P200*(1+rvanilla)^0.5 -> 0
C43: =Asset33 -> 33 | G43: =Input!G201*(1+rvanilla)^0.5 -> 0 | H43: =Input!H201*(1+rvanilla)^0.5 -> 0 | I43: =Input!I201*(1+rvanilla)^0.5 -> 0 | J43: =Input!J201*(1+rvanilla)^0.5 -> 0 | K43: =Input!K201*(1+rvanilla)^0.5 -> 0 | L43: =Input!L201*(1+rvanilla)^0.5 -> 0 | M43: =Input!M201*(1+rvanilla)^0.5 -> 0 | N43: =Input!N201*(1+rvanilla)^0.5 -> 0 | O43: =Input!O201*(1+rvanilla)^0.5 -> 0 | P43: =Input!P201*(1+rvanilla)^0.5 -> 0
C44: =Asset34 -> 34 | G44: =Input!G202*(1+rvanilla)^0.5 -> 0 | H44: =Input!H202*(1+rvanilla)^0.5 -> 0 | I44: =Input!I202*(1+rvanilla)^0.5 -> 0 | J44: =Input!J202*(1+rvanilla)^0.5 -> 0 | K44: =Input!K202*(1+rvanilla)^0.5 -> 0 | L44: =Input!L202*(1+rvanilla)^0.5 -> 0 | M44: =Input!M202*(1+rvanilla)^0.5 -> 0 | N44: =Input!N202*(1+rvanilla)^0.5 -> 0 | O44: =Input!O202*(1+rvanilla)^0.5 -> 0 | P44: =Input!P202*(1+rvanilla)^0.5 -> 0
C45: =Asset35 -> 35 | G45: =Input!G203*(1+rvanilla)^0.5 -> 0 | H45: =Input!H203*(1+rvanilla)^0.5 -> 0 | I45: =Input!I203*(1+rvanilla)^0.5 -> 0 | J45: =Input!J203*(1+rvanilla)^0.5 -> 0 | K45: =Input!K203*(1+rvanilla)^0.5 -> 0 | L45: =Input!L203*(1+rvanilla)^0.5 -> 0 | M45: =Input!M203*(1+rvanilla)^0.5 -> 0 | N45: =Input!N203*(1+rvanilla)^0.5 -> 0 | O45: =Input!O203*(1+rvanilla)^0.5 -> 0 | P45: =Input!P203*(1+rvanilla)^0.5 -> 0
C46: =Asset36 -> 36 | G46: =Input!G204*(1+rvanilla)^0.5 -> 0 | H46: =Input!H204*(1+rvanilla)^0.5 -> 0 | I46: =Input!I204*(1+rvanilla)^0.5 -> 0 | J46: =Input!J204*(1+rvanilla)^0.5 -> 0 | K46: =Input!K204*(1+rvanilla)^0.5 -> 0 | L46: =Input!L204*(1+rvanilla)^0.5 -> 0 | M46: =Input!M204*(1+rvanilla)^0.5 -> 0 | N46: =Input!N204*(1+rvanilla)^0.5 -> 0 | O46: =Input!O204*(1+rvanilla)^0.5 -> 0 | P46: =Input!P204*(1+rvanilla)^0.5 -> 0
C47: =Asset37 -> 37 | G47: =Input!G205*(1+rvanilla)^0.5 -> 0 | H47: =Input!H205*(1+rvanilla)^0.5 -> 0 | I47: =Input!I205*(1+rvanilla)^0.5 -> 0 | J47: =Input!J205*(1+rvanilla)^0.5 -> 0 | K47: =Input!K205*(1+rvanilla)^0.5 -> 0 | L47: =Input!L205*(1+rvanilla)^0.5 -> 0 | M47: =Input!M205*(1+rvanilla)^0.5 -> 0 | N47: =Input!N205*(1+rvanilla)^0.5 -> 0 | O47: =Input!O205*(1+rvanilla)^0.5 -> 0 | P47: =Input!P205*(1+rvanilla)^0.5 -> 0
C48: =Asset38 -> 38 | G48: =Input!G206*(1+rvanilla)^0.5 -> 0 | H48: =Input!H206*(1+rvanilla)^0.5 -> 0 | I48: =Input!I206*(1+rvanilla)^0.5 -> 0 | J48: =Input!J206*(1+rvanilla)^0.5 -> 0 | K48: =Input!K206*(1+rvanilla)^0.5 -> 0 | L48: =Input!L206*(1+rvanilla)^0.5 -> 0 | M48: =Input!M206*(1+rvanilla)^0.5 -> 0 | N48: =Input!N206*(1+rvanilla)^0.5 -> 0 | O48: =Input!O206*(1+rvanilla)^0.5 -> 0 | P48: =Input!P206*(1+rvanilla)^0.5 -> 0
C49: =Asset39 -> 39 | G49: =Input!G207*(1+rvanilla)^0.5 -> 0 | H49: =Input!H207*(1+rvanilla)^0.5 -> 0 | I49: =Input!I207*(1+rvanilla)^0.5 -> 0 | J49: =Input!J207*(1+rvanilla)^0.5 -> 0 | K49: =Input!K207*(1+rvanilla)^0.5 -> 0 | L49: =Input!L207*(1+rvanilla)^0.5 -> 0 | M49: =Input!M207*(1+rvanilla)^0.5 -> 0 | N49: =Input!N207*(1+rvanilla)^0.5 -> 0 | O49: =Input!O207*(1+rvanilla)^0.5 -> 0 | P49: =Input!P207*(1+rvanilla)^0.5 -> 0
C50: =Asset40 -> 40 | G50: =Input!G208*(1+rvanilla)^0.5 -> 0 | H50: =Input!H208*(1+rvanilla)^0.5 -> 0 | I50: =Input!I208*(1+rvanilla)^0.5 -> 0 | J50: =Input!J208*(1+rvanilla)^0.5 -> 0 | K50: =Input!K208*(1+rvanilla)^0.5 -> 0 | L50: =Input!L208*(1+rvanilla)^0.5 -> 0 | M50: =Input!M208*(1+rvanilla)^0.5 -> 0 | N50: =Input!N208*(1+rvanilla)^0.5 -> 0 | O50: =Input!O208*(1+rvanilla)^0.5 -> 0 | P50: =Input!P208*(1+rvanilla)^0.5 -> 0
C51: =Asset41 -> 41 | G51: =Input!G209*(1+rvanilla)^0.5 -> 0 | H51: =Input!H209*(1+rvanilla)^0.5 -> 0 | I51: =Input!I209*(1+rvanilla)^0.5 -> 0 | J51: =Input!J209*(1+rvanilla)^0.5 -> 0 | K51: =Input!K209*(1+rvanilla)^0.5 -> 0 | L51: =Input!L209*(1+rvanilla)^0.5 -> 0 | M51: =Input!M209*(1+rvanilla)^0.5 -> 0 | N51: =Input!N209*(1+rvanilla)^0.5 -> 0 | O51: =Input!O209*(1+rvanilla)^0.5 -> 0 | P51: =Input!P209*(1+rvanilla)^0.5 -> 0
C52: =Asset42 -> 42 | G52: =Input!G210*(1+rvanilla)^0.5 -> 0 | H52: =Input!H210*(1+rvanilla)^0.5 -> 0 | I52: =Input!I210*(1+rvanilla)^0.5 -> 0 | J52: =Input!J210*(1+rvanilla)^0.5 -> 0 | K52: =Input!K210*(1+rvanilla)^0.5 -> 0 | L52: =Input!L210*(1+rvanilla)^0.5 -> 0 | M52: =Input!M210*(1+rvanilla)^0.5 -> 0 | N52: =Input!N210*(1+rvanilla)^0.5 -> 0 | O52: =Input!O210*(1+rvanilla)^0.5 -> 0 | P52: =Input!P210*(1+rvanilla)^0.5 -> 0
C53: =Asset43 -> 43 | G53: =Input!G211*(1+rvanilla)^0.5 -> 0 | H53: =Input!H211*(1+rvanilla)^0.5 -> 0 | I53: =Input!I211*(1+rvanilla)^0.5 -> 0 | J53: =Input!J211*(1+rvanilla)^0.5 -> 0 | K53: =Input!K211*(1+rvanilla)^0.5 -> 0 | L53: =Input!L211*(1+rvanilla)^0.5 -> 0 | M53: =Input!M211*(1+rvanilla)^0.5 -> 0 | N53: =Input!N211*(1+rvanilla)^0.5 -> 0 | O53: =Input!O211*(1+rvanilla)^0.5 -> 0 | P53: =Input!P211*(1+rvanilla)^0.5 -> 0
C54: =Asset44 -> 44 | G54: =Input!G212*(1+rvanilla)^0.5 -> 0 | H54: =Input!H212*(1+rvanilla)^0.5 -> 0 | I54: =Input!I212*(1+rvanilla)^0.5 -> 0 | J54: =Input!J212*(1+rvanilla)^0.5 -> 0 | K54: =Input!K212*(1+rvanilla)^0.5 -> 0 | L54: =Input!L212*(1+rvanilla)^0.5 -> 0 | M54: =Input!M212*(1+rvanilla)^0.5 -> 0 | N54: =Input!N212*(1+rvanilla)^0.5 -> 0 | O54: =Input!O212*(1+rvanilla)^0.5 -> 0 | P54: =Input!P212*(1+rvanilla)^0.5 -> 0
C55: =Asset45 -> 45 | G55: =Input!G213*(1+rvanilla)^0.5 -> 0 | H55: =Input!H213*(1+rvanilla)^0.5 -> 0 | I55: =Input!I213*(1+rvanilla)^0.5 -> 0 | J55: =Input!J213*(1+rvanilla)^0.5 -> 0 | K55: =Input!K213*(1+rvanilla)^0.5 -> 0 | L55: =Input!L213*(1+rvanilla)^0.5 -> 0 | M55: =Input!M213*(1+rvanilla)^0.5 -> 0 | N55: =Input!N213*(1+rvanilla)^0.5 -> 0 | O55: =Input!O213*(1+rvanilla)^0.5 -> 0 | P55: =Input!P213*(1+rvanilla)^0.5 -> 0
C56: =Asset46 -> 46 | G56: =Input!G214*(1+rvanilla)^0.5 -> 0 | H56: =Input!H214*(1+rvanilla)^0.5 -> 0 | I56: =Input!I214*(1+rvanilla)^0.5 -> 0 | J56: =Input!J214*(1+rvanilla)^0.5 -> 0 | K56: =Input!K214*(1+rvanilla)^0.5 -> 0 | L56: =Input!L214*(1+rvanilla)^0.5 -> 0 | M56: =Input!M214*(1+rvanilla)^0.5 -> 0 | N56: =Input!N214*(1+rvanilla)^0.5 -> 0 | O56: =Input!O214*(1+rvanilla)^0.5 -> 0 | P56: =Input!P214*(1+rvanilla)^0.5 -> 0
C57: =Asset47 -> 47 | G57: =Input!G215*(1+rvanilla)^0.5 -> 0 | H57: =Input!H215*(1+rvanilla)^0.5 -> 0 | I57: =Input!I215*(1+rvanilla)^0.5 -> 0 | J57: =Input!J215*(1+rvanilla)^0.5 -> 0 | K57: =Input!K215*(1+rvanilla)^0.5 -> 0 | L57: =Input!L215*(1+rvanilla)^0.5 -> 0 | M57: =Input!M215*(1+rvanilla)^0.5 -> 0 | N57: =Input!N215*(1+rvanilla)^0.5 -> 0 | O57: =Input!O215*(1+rvanilla)^0.5 -> 0 | P57: =Input!P215*(1+rvanilla)^0.5 -> 0
C58: =Asset48 -> 48 | G58: =Input!G216*(1+rvanilla)^0.5 -> 0 | H58: =Input!H216*(1+rvanilla)^0.5 -> 0 | I58: =Input!I216*(1+rvanilla)^0.5 -> 0 | J58: =Input!J216*(1+rvanilla)^0.5 -> 0 | K58: =Input!K216*(1+rvanilla)^0.5 -> 0 | L58: =Input!L216*(1+rvanilla)^0.5 -> 0 | M58: =Input!M216*(1+rvanilla)^0.5 -> 0 | N58: =Input!N216*(1+rvanilla)^0.5 -> 0 | O58: =Input!O216*(1+rvanilla)^0.5 -> 0 | P58: =Input!P216*(1+rvanilla)^0.5 -> 0
C59: =Asset49 -> 49 | G59: =Input!G217*(1+rvanilla)^0.5 -> 0 | H59: =Input!H217*(1+rvanilla)^0.5 -> 0 | I59: =Input!I217*(1+rvanilla)^0.5 -> 0 | J59: =Input!J217*(1+rvanilla)^0.5 -> 0 | K59: =Input!K217*(1+rvanilla)^0.5 -> 0 | L59: =Input!L217*(1+rvanilla)^0.5 -> 0 | M59: =Input!M217*(1+rvanilla)^0.5 -> 0 | N59: =Input!N217*(1+rvanilla)^0.5 -> 0 | O59: =Input!O217*(1+rvanilla)^0.5 -> 0 | P59: =Input!P217*(1+rvanilla)^0.5 -> 0
C60: =Asset50 -> 50 | G60: =Input!G218*(1+rvanilla)^0.5 -> 0 | H60: =Input!H218*(1+rvanilla)^0.5 -> 0 | I60: =Input!I218*(1+rvanilla)^0.5 -> 0 | J60: =Input!J218*(1+rvanilla)^0.5 -> 0 | K60: =Input!K218*(1+rvanilla)^0.5 -> 0 | L60: =Input!L218*(1+rvanilla)^0.5 -> 0 | M60: =Input!M218*(1+rvanilla)^0.5 -> 0 | N60: =Input!N218*(1+rvanilla)^0.5 -> 0 | O60: =Input!O218*(1+rvanilla)^0.5 -> 0 | P60: =Input!P218*(1+rvanilla)^0.5 -> 0
B61: Nominal Net Capex | G61: =SUM(G62:G111) -> 249.4603884 | H61: =SUM(H62:H111) -> 254.4216705 | I61: 242.700354 | J61: 244.3771315 | K61: 0 | L61: 0 | M61: 0 | N61: 0 | O61: 0 | P61: 0
C62: =Asset1 -> Transmission Lines (pre 2004-05) | G62: =G11*G$7 -> 0 | H62: =H11*H$7 -> 0 | I62: 0 | J62: 0 | K62: 0 | L62: 0 | M62: 0 | N62: 0 | O62: 0 | P62: 0
C63: =Asset2 -> Underground Cables (pre 2004-05) | G63: =G12*G$7 -> 0 | H63: =H12*H$7 -> 0 | I63: 0 | J63: 0 | K63: 0 | L63: 0 | M63: 0 | N63: 0 | O63: 0 | P63: 0
C64: =Asset3 -> Substations including Buildings (pre 2004-05) | G64: =G13*G$7 -> 0 | H64: 0 | I64: 0 | J64: 0 | K64: =K13*K$7 -> 0 | L64: 0 | M64: 0 | N64: 0 | O64: 0 | P64: 0
C65: =Asset4 -> SCADA and Communications (pre 2004-05) | G65: 0 | H65: 0 | I65: 0 | J65: 0 | K65: 0 | L65: 0 | M65: 0 | N65: 0 | O65: 0 | P65: 0
C66: =Asset5 -> Non-network Assets (pre 2004-05) | G66: 0 | H66: 0 | I66: 0 | J66: 0 | K66: 0 | L66: 0 | M66: 0 | N66: 0 | O66: 0 | P66: 0
C67: =Asset6 -> SMHEA Assets (pre 2004-05) | G67: 0 | H67: =H16*H$7 -> 0 | I67: 0 | J67: 0 | K67: 0 | L67: 0 | M67: 0 | N67: 0 | O67: 0 | P67: 0
C68: =Asset7 -> Transmission Lines (2004-09) | G68: 0 | H68: 0 | I68: 0 | J68: 0 | K68: 0 | L68: 0 | M68: 0 | N68: 0 | O68: 0 | P68: 0
C69: =Asset8 -> Underground Cables (2004-09) | G69: 0 | H69: 0 | I69: 0 | J69: 0 | K69: 0 | L69: 0 | M69: 0 | N69: 0 | O69: 0 | P69: 0
C70: =Asset9 -> Substations including Buildings (2004-09) | G70: 0 | H70: 0 | I70: 0 | J70: 0 | K70: 0 | L70: 0 | M70: 0 | N70: 0 | O70: 0 | P70: 0
C71: =Asset10 -> SCADA and Communications (2004-09) | G71: 0 | H71: 0 | I71: 0 | J71: 0 | K71: 0 | L71: 0 | M71: 0 | N71: 0 | O71: 0 | P71: 0
C72: =Asset11 -> Non-network Assets (2004-09) | G72: 0 | H72: 0 | I72: 0 | J72: 0 | K72: 0 | L72: 0 | M72: 0 | N72: 0 | O72: 0 | P72: 0
C73: =Asset12 -> Transmission Lines & Cables (2009-14) | G73: 0 | H73: 0 | I73: 0 | J73: 0 | K73: 0 | L73: 0 | M73: 0 | N73: 0 | O73: 0 | P73: 0
C74: =Asset13 -> Substations (2009-14) | G74: 0 | H74: 0 | I74: 0 | J74: 0 | K74: 0 | L74: 0 | M74: 0 | N74: 0 | O74: 0 | P74: 0
C75: =Asset14 -> Secondary Systems (2009-14) | G75: 0 | H75: 0 | I75: 0 | J75: 0 | K75: 0 | L75: 0 | M75: 0 | N75: 0 | O75: 0 | P75: 0
C76: =Asset15 -> Communications (2009-14) | G76: 0 | H76: 0 | I76: 0 | J76: 0 | K76: 0 | L76: 0 | M76: 0 | N76: 0 | O76: 0 | P76: 0
C77: =Asset16 -> Business IT (2009-14) | G77: 0 | H77: 0 | I77: 0 | J77: 0 | K77: 0 | L77: 0 | M77: 0 | N77: 0 | O77: 0 | P77: 0
C78: =Asset17 -> Minor Plant, Motor Vehicles & Mobile Plant (2009-14) | G78: 0 | H78: 0 | I78: 0 | J78: 0 | K78: 0 | L78: 0 | M78: 0 | N78: 0 | O78: 0 | P78: 0
C79: =Asset18 -> * Equity raising costs (2009-14) | G79: 0 | H79: 0 | I79: 0 | J79: 0 | K79: 0 | L79: 0 | M79: 0 | N79: 0 | O79: 0 | P79: 0
C80: =Asset19 -> Transmission Lines (2014-18) | G80: 16.15608841 | H80: 45.53851317 | I80: 28.31729745 | J80: 52.32459402 | K80: 0 | L80: 0 | M80: 0 | N80: 0 | O80: 0 | P80: 0
C81: =Asset20 -> Underground Cables (2014-18) | G81: 1.414365049 | H81: 3.807682098 | I81: 1.438250591 | J81: 0.3050604757 | K81: 0 | L81: 0 | M81: 0 | N81: 0 | O81: 0 | P81: 0
C82: =Asset21 -> Substations (2014-18) | G82: =G31*G$7 -> 137.1141402 | H82: 117.2015151 | I82: 132.3048635 | J82: 106.3693152 | K82: 0 | L82: 0 | M82: 0 | N82: 0 | O82: 0 | P82: 0
C83: =Asset22 -> Secondary Systems (2014-18) | G83: =G32*G$7 -> 28.60927669 | H83: 34.29373764 | I83: 28.6184253 | J83: 34.23517383 | K83: 0 | L83: 0 | M83: 0 | N83: 0 | O83: 0 | P83: 0
C84: =Asset23 -> Communications (short life) (2014-18) | G84: =G33*G$7 -> 23.59537189 | H84: 13.78044351 | I84: 7.654453334 | J84: 7.95289696 | K84: 0 | L84: 0 | M84: 0 | N84: 0 | O84: 0 | P84: 0
C85: =Asset24 -> Business IT (2014-18) | G85: =G34*G$7 -> 22.1376222 | H85: 21.12721597 | I85: 19.95471079 | J85: 23.47512994 | K85: 0 | L85: 0 | M85: 0 | N85: 0 | O85: 0 | P85: 0
C86: =Asset25 -> Minor Plant, Motor Vehicles & Mobile Plant (2014-18) | G86: =G35*G$7 -> 9.253515655 | H86: 7.015821192 | I86: 8.949238855 | J86: 10.29094251 | K86: 0 | L86: 0 | M86: 0 | N86: 0 | O86: 0 | P86: 0
C87: =Asset26 -> Transmission Line Life Extension (2014-18) | G87: =G36*G$7 -> 5.771337047 | H87: 6.630295564 | I87: 5.057158638 | J87: 8.115422149 | K87: 0 | L87: 0 | M87: 0 | N87: 0 | O87: 0 | P87: 0
C88: =Asset27 -> Equity raising costs (2014-18) | G88: =G37*G$7 -> 0 | H88: 0 | I88: 0 | J88: 0 | K88: 0 | L88: 0 | M88: 0 | N88: 0 | O88: 0 | P88: 0
C89: =Asset28 -> Land and Easements | G89: =G38*G$7 -> 5.408671195 | H89: 5.026446199 | I89: 10.40595555 | J89: 1.308596419 | K89: 0 | L89: 0 | M89: 0 | N89: 0 | O89: 0 | P89: 0
C90: =Asset29 -> 29 | G90: =G39*G$7 -> 0 | H90: 0 | I90: 0 | J90: 0 | K90: 0 | L90: 0 | M90: 0 | N90: 0 | O90: 0 | P90: 0
C91: =Asset30 -> 30 | G91: =G40*G$7 -> 0 | H91: 0 | I91: 0 | J91: 0 | K91: 0 | L91: 0 | M91: 0 | N91: 0 | O91: 0 | P91: 0
C92: =Asset31 -> 31 | G92: =G41*G$7 -> 0 | H92: 0 | I92: 0 | J92: 0 | K92: 0 | L92: 0 | M92: 0 | N92: 0 | O92: 0 | P92: 0
C93: =Asset32 -> 32 | G93: =G42*G$7 -> 0 | H93: 0 | I93: 0 | J93: 0 | K93: 0 | L93: 0 | M93: 0 | N93: 0 | O93: 0 | P93: 0
C94: =Asset33 -> 33 | G94: =G43*G$7 -> 0 | H94: 0 | I94: 0 | J94: 0 | K94: 0 | L94: 0 | M94: 0 | N94: 0 | O94: 0 | P94: 0
C95: =Asset34 -> 34 | G95: =G44*G$7 -> 0 | H95: 0 | I95: 0 | J95: 0 | K95: 0 | L95: 0 | M95: 0 | N95: 0 | O95: 0 | P95: 0
C96: =Asset35 -> 35 | G96: =G45*G$7 -> 0 | H96: 0 | I96: 0 | J96: 0 | K96: 0 | L96: 0 | M96: 0 | N96: 0 | O96: 0 | P96: 0
C97: =Asset36 -> 36 | G97: =G46*G$7 -> 0 | H97: 0 | I97: 0 | J97: 0 | K97: 0 | L97: 0 | M97: 0 | N97: 0 | O97: 0 | P97: 0
C98: =Asset37 -> 37 | G98: =G47*G$7 -> 0 | H98: 0 | I98: 0 | J98: 0 | K98: 0 | L98: 0 | M98: 0 | N98: 0 | O98: 0 | P98: 0
C99: =Asset38 -> 38 | G99: =G48*G$7 -> 0 | H99: 0 | I99: 0 | J99: 0 | K99: 0 | L99: 0 | M99: 0 | N99: 0 | O99: 0 | P99: 0
C100: =Asset39 -> 39 | G100: =G49*G$7 -> 0 | H100: 0 | I100: 0 | J100: 0 | K100: 0 | L100: 0 | M100: 0 | N100: 0 | O100: 0 | P100: 0
C101: =Asset40 -> 40 | G101: =G50*G$7 -> 0 | H101: 0 | I101: 0 | J101: 0 | K101: 0 | L101: 0 | M101: 0 | N101: 0 | O101: 0 | P101: 0
C102: =Asset41 -> 41 | G102: =G51*G$7 -> 0 | H102: 0 | I102: 0 | J102: 0 | K102: 0 | L102: 0 | M102: 0 | N102: 0 | O102: 0 | P102: 0
C103: =Asset42 -> 42 | G103: =G52*G$7 -> 0 | H103: 0 | I103: 0 | J103: 0 | K103: 0 | L103: 0 | M103: =M52*M$7 -> 0 | N103: 0 | O103: 0 | P103: 0
C104: =Asset43 -> 43 | G104: =G53*G$7 -> 0 | H104: 0 | I104: 0 | J104: 0 | K104: 0 | L104: 0 | M104: 0 | N104: 0 | O104: 0 | P104: 0
C105: =Asset44 -> 44 | G105: =G54*G$7 -> 0 | H105: 0 | I105: 0 | J105: 0 | K105: 0 | L105: 0 | M105: 0 | N105: 0 | O105: 0 | P105: 0
C106: =Asset45 -> 45 | G106: =G55*G$7 -> 0 | H106: 0 | I106: 0 | J106: 0 | K106: 0 | L106: 0 | M106: 0 | N106: 0 | O106: 0 | P106: 0
C107: =Asset46 -> 46 | G107: =G56*G$7 -> 0 | H107: 0 | I107: 0 | J107: 0 | K107: 0 | L107: 0 | M107: 0 | N107: 0 | O107: 0 | P107: 0
C108: =Asset47 -> 47 | G108: =G57*G$7 -> 0 | H108: 0 | I108: 0 | J108: 0 | K108: 0 | L108: 0 | M108: 0 | N108: 0 | O108: 0 | P108: 0
C109: =Asset48 -> 48 | G109: =G58*G$7 -> 0 | H109: 0 | I109: 0 | J109: 0 | K109: 0 | L109: 0 | M109: 0 | N109: 0 | O109: 0 | P109: 0
C110: =Asset49 -> 49 | G110: =G59*G$7 -> 0 | H110: 0 | I110: 0 | J110: 0 | K110: 0 | L110: 0 | M110: 0 | N110: 0 | O110: 0 | P110: 0
C111: =Asset50 -> 50 | G111: =G60*G$7 -> 0 | H111: 0 | I111: 0 | J111: 0 | K111: 0 | L111: 0 | M111: 0 | N111: 0 | O111: 0 | P111: 0
B113: ="Asset Values ($m Real "&F4&")" -> Asset Values ($m Real 2013-14)
B115: Real Straight-line Depreciation | G115: =G128+G141+G154+G167+G180+G193+G206+G219+G232+G245+G258+G271+G284+G297+G310+G323+G336+G349+G362+G375+G388+G401+G414+G427+G440+G453+G466+G479+G492+G505+G518+G531+G544+G557+G570+G583+G596+G609+G622+G635+G648+G661+G674+G687+G700+G713+G726+G739+G752+G765 -> 240.8454245 | H115: =H128+H141+H154+H167+H180+H193+H206+H219+H232+H245+H258+H271+H284+H297+H310+H323+H336+H349+H362+H375+H388+H401+H414+H427+H440+H453+H466+H479+H492+H505+H518+H531+H544+H557+H570+H583+H596+H609+H622+H635+H648+H661+H674+H687+H700+H713+H726+H739+H752+H765 -> 254.5472797 | I115: 266.7933621 | J115: 249.8454722 | K115: 257.0806541 | L115: 251.681234 | M115: 243.6055862 | N115: 236.2808435 | O115: 229.3978311 | P115: 222.7654368 | Q115: 221.9307169 | R115: 217.9599258 | S115: 212.629458 | T115: 211.5095099 | U115: 210.5610949 | V115: 210.5610949 | W115: 187.2460031 | X115: 164.5922895 | Y115: 112.2205111 | Z115: 101.7354072 | AA115: 101.7354072 | AB115: 101.7354072 | AC115: 101.7354072 | AD115: 101.7354072 | AE115: 101.7354072 | AF115: 101.7354072 | AG115: 101.5900736 | AH115: 101.4141108 | AI115: 101.0990346 | AJ115: 101.0666072 | AK115: 96.37165651 | AL115: 94.33066646 | AM115: 94.33066646 | AN115: 84.8924809 | AO115: 59.74349786 | AP115: 59.74349786 | AQ115: 59.58524077 | AR115: 59.46119785 | AS115: 37.03466468 | AT115: 31.30595392 | AU115: 31.30595392 | AV115: 27.21530312 | AW115: 24.65542519 | AX115: 21.79964628 | AY115: 13.43286535 | AZ115: 13.01947763 | BA115: 12.99166518 | BB115: 12.99166518 | BC115: 9.596506094 | BD115: 2.567869523 | BE115: 2.567869523 | BF115: 2.346157083 | BG115: 1.524757595 | BH115: 1.02979394 | BI115: -4.263256415e-14
B116: =C128 -> Transmission Lines (pre 2004-05) | D116: Initial Asset Base | G116: =IF(G$3>A1remlife,A1acvalue-SUM($F116:F116),IF(A1remlife="N/A","n/a",A1acvalue/A1remlife)) -> 59.1525916 | H116: =IF(H$3>A1remlife,A1acvalue-SUM($F116:G116),IF(A1remlife="N/A","n/a",A1acvalue/A1remlife)) -> 59.1525916 | I116: =IF(I$3>A1remlife,A1acvalue-SUM($F116:H116),IF(A1remlife="N/A","n/a",A1acvalue/A1remlife)) -> 59.1525916 | J116: =IF(J$3>A1remlife,A1acvalue-SUM($F116:I116),IF(A1remlife="N/A","n/a",A1acvalue/A1remlife)) -> 59.1525916 | K116: =IF(K$3>A1remlife,A1acvalue-SUM($F116:J116),IF(A1remlife="N/A","n/a",A1acvalue/A1remlife)) -> 59.1525916 | L116: =IF(L$3>A1remlife,A1acvalue-SUM($F116:K116),IF(A1remlife="N/A","n/a",A1acvalue/A1remlife)) -> 59.1525916 | M116: =IF(M$3>A1remlife,A1acvalue-SUM($F116:L116),IF(A1remlife="N/A","n/a",A1acvalue/A1remlife)) -> 59.1525916 | N116: =IF(N$3>A1remlife,A1acvalue-SUM($F116:M116),IF(A1remlife="N/A","n/a",A1acvalue/A1remlife)) -> 59.1525916 | O116: =IF(O$3>A1remlife,A1acvalue-SUM($F116:N116),IF(A1remlife="N/A","n/a",A1acvalue/A1remlife)) -> 59.1525916 | P116: =IF(P$3>A1remlife,A1acvalue-SUM($F116:O116),IF(A1remlife="N/A","n/a",A1acvalue/A1remlife)) -> 59.1525916 | Q116: =IF(Q$3>A1remlife,A1acvalue-SUM($F116:P116),IF(A1remlife="N/A","n/a",A1acvalue/A1remlife)) -> 59.1525916 | R116: =IF(R$3>A1remlife,A1acvalue-SUM($F116:Q116),IF(A1remlife="N/A","n/a",A1acvalue/A1remlife)) -> 59.1525916 | S116: =IF(S$3>A1remlife,A1acvalue-SUM($F116:R116),IF(A1remlife="N/A","n/a",A1acvalue/A1remlife)) -> 59.1525916 | T116: =IF(T$3>A1remlife,A1acvalue-SUM($F116:S116),IF(A1remlife="N/A","n/a",A1acvalue/A1remlife)) -> 59.1525916 | U116: =IF(U$3>A1remlife,A1acvalue-SUM($F116:T116),IF(A1remlife="N/A","n/a",A1acvalue/A1remlife)) -> 59.1525916 | V116: =IF(V$3>A1remlife,A1acvalue-SUM($F116:U116),IF(A1remlife="N/A","n/a",A1acvalue/A1remlife)) -> 59.1525916 | W116: =IF(W$3>A1remlife,A1acvalue-SUM($F116:V116),IF(A1remlife="N/A","n/a",A1acvalue/A1remlife)) -> 59.1525916 | X116: =IF(X$3>A1remlife,A1acvalue-SUM($F116:W116),IF(A1remlife="N/A","n/a",A1acvalue/A1remlife)) -> 59.1525916 | Y116: =IF(Y$3>A1remlife,A1acvalue-SUM($F116:X116),IF(A1remlife="N/A","n/a",A1acvalue/A1remlife)) -> 7.867294683 | Z116: =IF(Z$3>A1remlife,A1acvalue-SUM($F116:Y116),IF(A1remlife="N/A","n/a",A1acvalue/A1remlife)) -> 0 | AA116: =IF(AA$3>A1remlife,A1acvalue-SUM($F116:Z116),IF(A1remlife="N/A","n/a",A1acvalue/A1remlife)) -> 0 | AB116: =IF(AB$3>A1remlife,A1acvalue-SUM($F116:AA116),IF(A1remlife="N/A","n/a",A1acvalue/A1remlife)) -> 0 | AC116: =IF(AC$3>A1remlife,A1acvalue-SUM($F116:AB116),IF(A1remlife="N/A","n/a",A1acvalue/A1remlife)) -> 0 | AD116: =IF(AD$3>A1remlife,A1acvalue-SUM($F116:AC116),IF(A1remlife="N/A","n/a",A1acvalue/A1remlife)) -> 0 | AE116: =IF(AE$3>A1remlife,A1acvalue-SUM($F116:AD116),IF(A1remlife="N/A","n/a",A1acvalue/A1remlife)) -> 0 | AF116: =IF(AF$3>A1remlife,A1acvalue-SUM($F116:AE116),IF(A1remlife="N/A","n/a",A1acvalue/A1remlife)) -> 0 | AG116: =IF(AG$3>A1remlife,A1acvalue-SUM($F116:AF116),IF(A1remlife="N/A","n/a",A1acvalue/A1remlife)) -> 0 | AH116: =IF(AH$3>A1remlife,A1acvalue-SUM($F116:AG116),IF(A1remlife="N/A","n/a",A1acvalue/A1remlife)) -> 0 | AI116: =IF(AI$3>A1remlife,A1acvalue-SUM($F116:AH116),IF(A1remlife="N/A","n/a",A1acvalue/A1remlife)) -> 0 | AJ116: =IF(AJ$3>A1remlife,A1acvalue-SUM($F116:AI116),IF(A1remlife="N/A","n/a",A1acvalue/A1remlife)) -> 0 | AK116: =IF(AK$3>A1remlife,A1acvalue-SUM($F116:AJ116),IF(A1remlife="N/A","n/a",A1acvalue/A1remlife)) -> 0 | AL116: =IF(AL$3>A1remlife,A1acvalue-SUM($F116:AK116),IF(A1remlife="N/A","n/a",A1acvalue/A1remlife)) -> 0 | AM116: =IF(AM$3>A1remlife,A1acvalue-SUM($F116:AL116),IF(A1remlife="N/A","n/a",A1acvalue/A1remlife)) -> 0 | AN116: =IF(AN$3>A1remlife,A1acvalue-SUM($F116:AM116),IF(A1remlife="N/A","n/a",A1acvalue/A1remlife)) -> 0 | AO116: =IF(AO$3>A1remlife,A1acvalue-SUM($F116:AN116),IF(A1remlife="N/A","n/a",A1acvalue/A1remlife)) -> 0 | AP116: =IF(AP$3>A1remlife,A1acvalue-SUM($F116:AO116),IF(A1remlife="N/A","n/a",A1acvalue/A1remlife)) -> 0 | AQ116: =IF(AQ$3>A1remlife,A1acvalue-SUM($F116:AP116),IF(A1remlife="N/A","n/a",A1acvalue/A1remlife)) -> 0 | AR116: =IF(AR$3>A1remlife,A1acvalue-SUM($F116:AQ116),IF(A1remlife="N/A","n/a",A1acvalue/A1remlife)) -> 0 | AS116: =IF(AS$3>A1remlife,A1acvalue-SUM($F116:AR116),IF(A1remlife="N/A","n/a",A1acvalue/A1remlife)) -> 0 | AT116: =IF(AT$3>A1remlife,A1acvalue-SUM($F116:AS116),IF(A1remlife="N/A","n/a",A1acvalue/A1remlife)) -> 0 | AU116: =IF(AU$3>A1remlife,A1acvalue-SUM($F116:AT116),IF(A1remlife="N/A","n/a",A1acvalue/A1remlife)) -> 0 | AV116: =IF(AV$3>A1remlife,A1acvalue-SUM($F116:AU116),IF(A1remlife="N/A","n/a",A1acvalue/A1remlife)) -> 0 | AW116: =IF(AW$3>A1remlife,A1acvalue-SUM($F116:AV116),IF(A1remlife="N/A","n/a",A1acvalue/A1remlife)) -> 0 | AX116: =IF(AX$3>A1remlife,A1acvalue-SUM($F116:AW116),IF(A1remlife="N/A","n/a",A1acvalue/A1remlife)) -> 0 | AY116: =IF(AY$3>A1remlife,A1acvalue-SUM($F116:AX116),IF(A1remlife="N/A","n/a",A1acvalue/A1remlife)) -> 0 | AZ116: =IF(AZ$3>A1remlife,A1acvalue-SUM($F116:AY116),IF(A1remlife="N/A","n/a",A1acvalue/A1remlife)) -> 0 | BA116: =IF(BA$3>A1remlife,A1acvalue-SUM($F116:AZ116),IF(A1remlife="N/A","n/a",A1acvalue/A1remlife)) -> 0 | BB116: =IF(BB$3>A1remlife,A1acvalue-SUM($F116:BA116),IF(A1remlife="N/A","n/a",A1acvalue/A1remlife)) -> 0 | BC116: =IF(BC$3>A1remlife,A1acvalue-SUM($F116:BB116),IF(A1remlife="N/A","n/a",A1acvalue/A1remlife)) -> 0 | BD116: =IF(BD$3>A1remlife,A1acvalue-SUM($F116:BC116),IF(A1remlife="N/A","n/a",A1acvalue/A1remlife)) -> 0 | BE116: =IF(BE$3>A1remlife,A1acvalue-SUM($F116:BD116),IF(A1remlife="N/A","n/a",A1acvalue/A1remlife)) -> 0 | BF116: =IF(BF$3>A1remlife,A1acvalue-SUM($F116:BE116),IF(A1remlife="N/A","n/a",A1acvalue/A1remlife)) -> 0 | BG116: =IF(BG$3>A1remlife,A1acvalue-SUM($F116:BF116),IF(A1remlife="N/A","n/a",A1acvalue/A1remlife)) -> 0 | BH116: =IF(BH$3>A1remlife,A1acvalue-SUM($F116:BG116),IF(A1remlife="N/A","n/a",A1acvalue/A1remlife)) -> 0 | BI116: =IF(BI$3>A1remlife,A1acvalue-SUM($F116:BH116),IF(A1remlife="N/A","n/a",A1acvalue/A1remlife)) -> 0
D117: Capex in year | E117: 0
E118: 1 | H118: =IF(A1stdlife="n/a","n/a",IF(H$3>(A1stdlife+$E118),(Input!$G$331*(1+rvanilla)^0.5)-SUM($G118:G118),(Input!$G$331*(1+rvanilla)^0.5)/A1stdlife)) -> 0 | I118: =IF(A1stdlife="n/a","n/a",IF(I$3>(A1stdlife+$E118),(Input!$G$331*(1+rvanilla)^0.5)-SUM($G118:H118),(Input!$G$331*(1+rvanilla)^0.5)/A1stdlife)) -> 0 | J118: =IF(A1stdlife="n/a","n/a",IF(J$3>(A1stdlife+$E118),(Input!$G$331*(1+rvanilla)^0.5)-SUM($G118:I118),(Input!$G$331*(1+rvanilla)^0.5)/A1stdlife)) -> 0 | K118: =IF(A1stdlife="n/a","n/a",IF(K$3>(A1stdlife+$E118),(Input!$G$331*(1+rvanilla)^0.5)-SUM($G118:J118),(Input!$G$331*(1+rvanilla)^0.5)/A1stdlife)) -> 0 | L118: =IF(A1stdlife="n/a","n/a",IF(L$3>(A1stdlife+$E118),(Input!$G$331*(1+rvanilla)^0.5)-SUM($G118:K118),(Input!$G$331*(1+rvanilla)^0.5)/A1stdlife)) -> 0 | M118: =IF(A1stdlife="n/a","n/a",IF(M$3>(A1stdlife+$E118),(Input!$G$331*(1+rvanilla)^0.5)-SUM($G118:L118),(Input!$G$331*(1+rvanilla)^0.5)/A1stdlife)) -> 0 | N118: =IF(A1stdlife="n/a","n/a",IF(N$3>(A1stdlife+$E118),(Input!$G$331*(1+rvanilla)^0.5)-SUM($G118:M118),(Input!$G$331*(1+rvanilla)^0.5)/A1stdlife)) -> 0 | O118: =IF(A1stdlife="n/a","n/a",IF(O$3>(A1stdlife+$E118),(Input!$G$331*(1+rvanilla)^0.5)-SUM($G118:N118),(Input!$G$331*(1+rvanilla)^0.5)/A1stdlife)) -> 0 | P118: =IF(A1stdlife="n/a","n/a",IF(P$3>(A1stdlife+$E118),(Input!$G$331*(1+rvanilla)^0.5)-SUM($G118:O118),(Input!$G$331*(1+rvanilla)^0.5)/A1stdlife)) -> 0 | Q118: =IF(A1stdlife="n/a","n/a",IF(Q$3>(A1stdlife+$E118),(Input!$G$331*(1+rvanilla)^0.5)-SUM($G118:P118),(Input!$G$331*(1+rvanilla)^0.5)/A1stdlife)) -> 0 | R118: =IF(A1stdlife="n/a","n/a",IF(R$3>(A1stdlife+$E118),(Input!$G$331*(1+rvanilla)^0.5)-SUM($G118:Q118),(Input!$G$331*(1+rvanilla)^0.5)/A1stdlife)) -> 0 | S118: =IF(A1stdlife="n/a","n/a",IF(S$3>(A1stdlife+$E118),(Input!$G$331*(1+rvanilla)^0.5)-SUM($G118:R118),(Input!$G$331*(1+rvanilla)^0.5)/A1stdlife)) -> 0 | T118: =IF(A1stdlife="n/a","n/a",IF(T$3>(A1stdlife+$E118),(Input!$G$331*(1+rvanilla)^0.5)-SUM($G118:S118),(Input!$G$331*(1+rvanilla)^0.5)/A1stdlife)) -> 0 | U118: =IF(A1stdlife="n/a","n/a",IF(U$3>(A1stdlife+$E118),(Input!$G$331*(1+rvanilla)^0.5)-SUM($G118:T118),(Input!$G$331*(1+rvanilla)^0.5)/A1stdlife)) -> 0 | V118: =IF(A1stdlife="n/a","n/a",IF(V$3>(A1stdlife+$E118),(Input!$G$331*(1+rvanilla)^0.5)-SUM($G118:U118),(Input!$G$331*(1+rvanilla)^0.5)/A1stdlife)) -> 0 | W118: =IF(A1stdlife="n/a","n/a",IF(W$3>(A1stdlife+$E118),(Input!$G$331*(1+rvanilla)^0.5)-SUM($G118:V118),(Input!$G$331*(1+rvanilla)^0.5)/A1stdlife)) -> 0 | X118: =IF(A1stdlife="n/a","n/a",IF(X$3>(A1stdlife+$E118),(Input!$G$331*(1+rvanilla)^0.5)-SUM($G118:W118),(Input!$G$331*(1+rvanilla)^0.5)/A1stdlife)) -> 0 | Y118: =IF(A1stdlife="n/a","n/a",IF(Y$3>(A1stdlife+$E118),(Input!$G$331*(1+rvanilla)^0.5)-SUM($G118:X118),(Input!$G$331*(1+rvanilla)^0.5)/A1stdlife)) -> 0 | Z118: =IF(A1stdlife="n/a","n/a",IF(Z$3>(A1stdlife+$E118),(Input!$G$331*(1+rvanilla)^0.5)-SUM($G118:Y118),(Input!$G$331*(1+rvanilla)^0.5)/A1stdlife)) -> 0 | AA118: =IF(A1stdlife="n/a","n/a",IF(AA$3>(A1stdlife+$E118),(Input!$G$331*(1+rvanilla)^0.5)-SUM($G118:Z118),(Input!$G$331*(1+rvanilla)^0.5)/A1stdlife)) -> 0 | AB118: =IF(A1stdlife="n/a","n/a",IF(AB$3>(A1stdlife+$E118),(Input!$G$331*(1+rvanilla)^0.5)-SUM($G118:AA118),(Input!$G$331*(1+rvanilla)^0.5)/A1stdlife)) -> 0 | AC118: =IF(A1stdlife="n/a","n/a",IF(AC$3>(A1stdlife+$E118),(Input!$G$331*(1+rvanilla)^0.5)-SUM($G118:AB118),(Input!$G$331*(1+rvanilla)^0.5)/A1stdlife)) -> 0 | AD118: =IF(A1stdlife="n/a","n/a",IF(AD$3>(A1stdlife+$E118),(Input!$G$331*(1+rvanilla)^0.5)-SUM($G118:AC118),(Input!$G$331*(1+rvanilla)^0.5)/A1stdlife)) -> 0 | AE118: =IF(A1stdlife="n/a","n/a",IF(AE$3>(A1stdlife+$E118),(Input!$G$331*(1+rvanilla)^0.5)-SUM($G118:AD118),(Input!$G$331*(1+rvanilla)^0.5)/A1stdlife)) -> 0 | AF118: =IF(A1stdlife="n/a","n/a",IF(AF$3>(A1stdlife+$E118),(Input!$G$331*(1+rvanilla)^0.5)-SUM($G118:AE118),(Input!$G$331*(1+rvanilla)^0.5)/A1stdlife)) -> 0 | AG118: =IF(A1stdlife="n/a","n/a",IF(AG$3>(A1stdlife+$E118),(Input!$G$331*(1+rvanilla)^0.5)-SUM($G118:AF118),(Input!$G$331*(1+rvanilla)^0.5)/A1stdlife)) -> 0 | AH118: =IF(A1stdlife="n/a","n/a",IF(AH$3>(A1stdlife+$E118),(Input!$G$331*(1+rvanilla)^0.5)-SUM($G118:AG118),(Input!$G$331*(1+rvanilla)^0.5)/A1stdlife)) -> 0 | AI118: =IF(A1stdlife="n/a","n/a",IF(AI$3>(A1stdlife+$E118),(Input!$G$331*(1+rvanilla)^0.5)-SUM($G118:AH118),(Input!$G$331*(1+rvanilla)^0.5)/A1stdlife)) -> 0 | AJ118: =IF(A1stdlife="n/a","n/a",IF(AJ$3>(A1stdlife+$E118),(Input!$G$331*(1+rvanilla)^0.5)-SUM($G118:AI118),(Input!$G$331*(1+rvanilla)^0.5)/A1stdlife)) -> 0 | AK118: =IF(A1stdlife="n/a","n/a",IF(AK$3>(A1stdlife+$E118),(Input!$G$331*(1+rvanilla)^0.5)-SUM($G118:AJ118),(Input!$G$331*(1+rvanilla)^0.5)/A1stdlife)) -> 0 | AL118: =IF(A1stdlife="n/a","n/a",IF(AL$3>(A1stdlife+$E118),(Input!$G$331*(1+rvanilla)^0.5)-SUM($G118:AK118),(Input!$G$331*(1+rvanilla)^0.5)/A1stdlife)) -> 0 | AM118: =IF(A1stdlife="n/a","n/a",IF(AM$3>(A1stdlife+$E118),(Input!$G$331*(1+rvanilla)^0.5)-SUM($G118:AL118),(Input!$G$331*(1+rvanilla)^0.5)/A1stdlife)) -> 0 | AN118: =IF(A1stdlife="n/a","n/a",IF(AN$3>(A1stdlife+$E118),(Input!$G$331*(1+rvanilla)^0.5)-SUM($G118:AM118),(Input!$G$331*(1+rvanilla)^0.5)/A1stdlife)) -> 0 | AO118: =IF(A1stdlife="n/a","n/a",IF(AO$3>(A1stdlife+$E118),(Input!$G$331*(1+rvanilla)^0.5)-SUM($G118:AN118),(Input!$G$331*(1+rvanilla)^0.5)/A1stdlife)) -> 0 | AP118: =IF(A1stdlife="n/a","n/a",IF(AP$3>(A1stdlife+$E118),(Input!$G$331*(1+rvanilla)^0.5)-SUM($G118:AO118),(Input!$G$331*(1+rvanilla)^0.5)/A1stdlife)) -> 0 | AQ118: =IF(A1stdlife="n/a","n/a",IF(AQ$3>(A1stdlife+$E118),(Input!$G$331*(1+rvanilla)^0.5)-SUM($G118:AP118),(Input!$G$331*(1+rvanilla)^0.5)/A1stdlife)) -> 0 | AR118: =IF(A1stdlife="n/a","n/a",IF(AR$3>(A1stdlife+$E118),(Input!$G$331*(1+rvanilla)^0.5)-SUM($G118:AQ118),(Input!$G$331*(1+rvanilla)^0.5)/A1stdlife)) -> 0 | AS118: =IF(A1stdlife="n/a","n/a",IF(AS$3>(A1stdlife+$E118),(Input!$G$331*(1+rvanilla)^0.5)-SUM($G118:AR118),(Input!$G$331*(1+rvanilla)^0.5)/A1stdlife)) -> 0 | AT118: =IF(A1stdlife="n/a","n/a",IF(AT$3>(A1stdlife+$E118),(Input!$G$331*(1+rvanilla)^0.5)-SUM($G118:AS118),(Input!$G$331*(1+rvanilla)^0.5)/A1stdlife)) -> 0 | AU118: =IF(A1stdlife="n/a","n/a",IF(AU$3>(A1stdlife+$E118),(Input!$G$331*(1+rvanilla)^0.5)-SUM($G118:AT118),(Input!$G$331*(1+rvanilla)^0.5)/A1stdlife)) -> 0 | AV118: =IF(A1stdlife="n/a","n/a",IF(AV$3>(A1stdlife+$E118),(Input!$G$331*(1+rvanilla)^0.5)-SUM($G118:AU118),(Input!$G$331*(1+rvanilla)^0.5)/A1stdlife)) -> 0 | AW118: =IF(A1stdlife="n/a","n/a",IF(AW$3>(A1stdlife+$E118),(Input!$G$331*(1+rvanilla)^0.5)-SUM($G118:AV118),(Input!$G$331*(1+rvanilla)^0.5)/A1stdlife)) -> 0 | AX118: =IF(A1stdlife="n/a","n/a",IF(AX$3>(A1stdlife+$E118),(Input!$G$331*(1+rvanilla)^0.5)-SUM($G118:AW118),(Input!$G$331*(1+rvanilla)^0.5)/A1stdlife)) -> 0 | AY118: =IF(A1stdlife="n/a","n/a",IF(AY$3>(A1stdlife+$E118),(Input!$G$331*(1+rvanilla)^0.5)-SUM($G118:AX118),(Input!$G$331*(1+rvanilla)^0.5)/A1stdlife)) -> 0 | AZ118: =IF(A1stdlife="n/a","n/a",IF(AZ$3>(A1stdlife+$E118),(Input!$G$331*(1+rvanilla)^0.5)-SUM($G118:AY118),(Input!$G$331*(1+rvanilla)^0.5)/A1stdlife)) -> 0 | BA118: =IF(A1stdlife="n/a","n/a",IF(BA$3>(A1stdlife+$E118),(Input!$G$331*(1+rvanilla)^0.5)-SUM($G118:AZ118),(Input!$G$331*(1+rvanilla)^0.5)/A1stdlife)) -> 0 | BB118: =IF(A1stdlife="n/a","n/a",IF(BB$3>(A1stdlife+$E118),(Input!$G$331*(1+rvanilla)^0.5)-SUM($G118:BA118),(Input!$G$331*(1+rvanilla)^0.5)/A1stdlife)) -> 0 | BC118: =IF(A1stdlife="n/a","n/a",IF(BC$3>(A1stdlife+$E118),(Input!$G$331*(1+rvanilla)^0.5)-SUM($G118:BB118),(Input!$G$331*(1+rvanilla)^0.5)/A1stdlife)) -> 0 | BD118: =IF(A1stdlife="n/a","n/a",IF(BD$3>(A1stdlife+$E118),(Input!$G$331*(1+rvanilla)^0.5)-SUM($G118:BC118),(Input!$G$331*(1+rvanilla)^0.5)/A1stdlife)) -> 0 | BE118: =IF(A1stdlife="n/a","n/a",IF(BE$3>(A1stdlife+$E118),(Input!$G$331*(1+rvanilla)^0.5)-SUM($G118:BD118),(Input!$G$331*(1+rvanilla)^0.5)/A1stdlife)) -> 0 | BF118: =IF(A1stdlife="n/a","n/a",IF(BF$3>(A1stdlife+$E118),(Input!$G$331*(1+rvanilla)^0.5)-SUM($G118:BE118),(Input!$G$331*(1+rvanilla)^0.5)/A1stdlife)) -> 0 | BG118: =IF(A1stdlife="n/a","n/a",IF(BG$3>(A1stdlife+$E118),(Input!$G$331*(1+rvanilla)^0.5)-SUM($G118:BF118),(Input!$G$331*(1+rvanilla)^0.5)/A1stdlife)) -> 0 | BH118: =IF(A1stdlife="n/a","n/a",IF(BH$3>(A1stdlife+$E118),(Input!$G$331*(1+rvanilla)^0.5)-SUM($G118:BG118),(Input!$G$331*(1+rvanilla)^0.5)/A1stdlife)) -> 0 | BI118: =IF(A1stdlife="n/a","n/a",IF(BI$3>(A1stdlife+$E118),(Input!$G$331*(1+rvanilla)^0.5)-SUM($G118:BH118),(Input!$G$331*(1+rvanilla)^0.5)/A1stdlife)) -> 0
E119: 2 | I119: =IF(A1stdlife="n/a","n/a",IF(I$3>(A1stdlife+$E119),(Input!$H$331*(1+rvanilla)^0.5)-SUM($H119:H119),(Input!$H$331*(1+rvanilla)^0.5)/A1stdlife)) -> 0 | J119: =IF(A1stdlife="n/a","n/a",IF(J$3>(A1stdlife+$E119),(Input!$H$331*(1+rvanilla)^0.5)-SUM($H119:I119),(Input!$H$331*(1+rvanilla)^0.5)/A1stdlife)) -> 0 | K119: =IF(A1stdlife="n/a","n/a",IF(K$3>(A1stdlife+$E119),(Input!$H$331*(1+rvanilla)^0.5)-SUM($H119:J119),(Input!$H$331*(1+rvanilla)^0.5)/A1stdlife)) -> 0 | L119: =IF(A1stdlife="n/a","n/a",IF(L$3>(A1stdlife+$E119),(Input!$H$331*(1+rvanilla)^0.5)-SUM($H119:K119),(Input!$H$331*(1+rvanilla)^0.5)/A1stdlife)) -> 0 | M119: =IF(A1stdlife="n/a","n/a",IF(M$3>(A1stdlife+$E119),(Input!$H$331*(1+rvanilla)^0.5)-SUM($H119:L119),(Input!$H$331*(1+rvanilla)^0.5)/A1stdlife)) -> 0 | N119: =IF(A1stdlife="n/a","n/a",IF(N$3>(A1stdlife+$E119),(Input!$H$331*(1+rvanilla)^0.5)-SUM($H119:M119),(Input!$H$331*(1+rvanilla)^0.5)/A1stdlife)) -> 0 | O119: =IF(A1stdlife="n/a","n/a",IF(O$3>(A1stdlife+$E119),(Input!$H$331*(1+rvanilla)^0.5)-SUM($H119:N119),(Input!$H$331*(1+rvanilla)^0.5)/A1stdlife)) -> 0 | P119: =IF(A1stdlife="n/a","n/a",IF(P$3>(A1stdlife+$E119),(Input!$H$331*(1+rvanilla)^0.5)-SUM($H119:O119),(Input!$H$331*(1+rvanilla)^0.5)/A1stdlife)) -> 0 | Q119: =IF(A1stdlife="n/a","n/a",IF(Q$3>(A1stdlife+$E119),(Input!$H$331*(1+rvanilla)^0.5)-SUM($H119:P119),(Input!$H$331*(1+rvanilla)^0.5)/A1stdlife)) -> 0 | R119: =IF(A1stdlife="n/a","n/a",IF(R$3>(A1stdlife+$E119),(Input!$H$331*(1+rvanilla)^0.5)-SUM($H119:Q119),(Input!$H$331*(1+rvanilla)^0.5)/A1stdlife)) -> 0 | S119: =IF(A1stdlife="n/a","n/a",IF(S$3>(A1stdlife+$E119),(Input!$H$331*(1+rvanilla)^0.5)-SUM($H119:R119),(Input!$H$331*(1+rvanilla)^0.5)/A1stdlife)) -> 0 | T119: =IF(A1stdlife="n/a","n/a",IF(T$3>(A1stdlife+$E119),(Input!$H$331*(1+rvanilla)^0.5)-SUM($H119:S119),(Input!$H$331*(1+rvanilla)^0.5)/A1stdlife)) -> 0 | U119: =IF(A1stdlife="n/a","n/a",IF(U$3>(A1stdlife+$E119),(Input!$H$331*(1+rvanilla)^0.5)-SUM($H119:T119),(Input!$H$331*(1+rvanilla)^0.5)/A1stdlife)) -> 0 | V119: =IF(A1stdlife="n/a","n/a",IF(V$3>(A1stdlife+$E119),(Input!$H$331*(1+rvanilla)^0.5)-SUM($H119:U119),(Input!$H$331*(1+rvanilla)^0.5)/A1stdlife)) -> 0 | W119: =IF(A1stdlife="n/a","n/a",IF(W$3>(A1stdlife+$E119),(Input!$H$331*(1+rvanilla)^0.5)-SUM($H119:V119),(Input!$H$331*(1+rvanilla)^0.5)/A1stdlife)) -> 0 | X119: =IF(A1stdlife="n/a","n/a",IF(X$3>(A1stdlife+$E119),(Input!$H$331*(1+rvanilla)^0.5)-SUM($H119:W119),(Input!$H$331*(1+rvanilla)^0.5)/A1stdlife)) -> 0 | Y119: =IF(A1stdlife="n/a","n/a",IF(Y$3>(A1stdlife+$E119),(Input!$H$331*(1+rvanilla)^0.5)-SUM($H119:X119),(Input!$H$331*(1+rvanilla)^0.5)/A1stdlife)) -> 0 | Z119: =IF(A1stdlife="n/a","n/a",IF(Z$3>(A1stdlife+$E119),(Input!$H$331*(1+rvanilla)^0.5)-SUM($H119:Y119),(Input!$H$331*(1+rvanilla)^0.5)/A1stdlife)) -> 0 | AA119: =IF(A1stdlife="n/a","n/a",IF(AA$3>(A1stdlife+$E119),(Input!$H$331*(1+rvanilla)^0.5)-SUM($H119:Z119),(Input!$H$331*(1+rvanilla)^0.5)/A1stdlife)) -> 0 | AB119: =IF(A1stdlife="n/a","n/a",IF(AB$3>(A1stdlife+$E119),(Input!$H$331*(1+rvanilla)^0.5)-SUM($H119:AA119),(Input!$H$331*(1+rvanilla)^0.5)/A1stdlife)) -> 0 | AC119: =IF(A1stdlife="n/a","n/a",IF(AC$3>(A1stdlife+$E119),(Input!$H$331*(1+rvanilla)^0.5)-SUM($H119:AB119),(Input!$H$331*(1+rvanilla)^0.5)/A1stdlife)) -> 0 | AD119: =IF(A1stdlife="n/a","n/a",IF(AD$3>(A1stdlife+$E119),(Input!$H$331*(1+rvanilla)^0.5)-SUM($H119:AC119),(Input!$H$331*(1+rvanilla)^0.5)/A1stdlife)) -> 0 | AE119: =IF(A1stdlife="n/a","n/a",IF(AE$3>(A1stdlife+$E119),(Input!$H$331*(1+rvanilla)^0.5)-SUM($H119:AD119),(Input!$H$331*(1+rvanilla)^0.5)/A1stdlife)) -> 0 | AF119: =IF(A1stdlife="n/a","n/a",IF(AF$3>(A1stdlife+$E119),(Input!$H$331*(1+rvanilla)^0.5)-SUM($H119:AE119),(Input!$H$331*(1+rvanilla)^0.5)/A1stdlife)) -> 0 | AG119: =IF(A1stdlife="n/a","n/a",IF(AG$3>(A1stdlife+$E119),(Input!$H$331*(1+rvanilla)^0.5)-SUM($H119:AF119),(Input!$H$331*(1+rvanilla)^0.5)/A1stdlife)) -> 0 | AH119: =IF(A1stdlife="n/a","n/a",IF(AH$3>(A1stdlife+$E119),(Input!$H$331*(1+rvanilla)^0.5)-SUM($H119:AG119),(Input!$H$331*(1+rvanilla)^0.5)/A1stdlife)) -> 0 | AI119: =IF(A1stdlife="n/a","n/a",IF(AI$3>(A1stdlife+$E119),(Input!$H$331*(1+rvanilla)^0.5)-SUM($H119:AH119),(Input!$H$331*(1+rvanilla)^0.5)/A1stdlife)) -> 0 | AJ119: =IF(A1stdlife="n/a","n/a",IF(AJ$3>(A1stdlife+$E119),(Input!$H$331*(1+rvanilla)^0.5)-SUM($H119:AI119),(Input!$H$331*(1+rvanilla)^0.5)/A1stdlife)) -> 0 | AK119: =IF(A1stdlife="n/a","n/a",IF(AK$3>(A1stdlife+$E119),(Input!$H$331*(1+rvanilla)^0.5)-SUM($H119:AJ119),(Input!$H$331*(1+rvanilla)^0.5)/A1stdlife)) -> 0 | AL119: =IF(A1stdlife="n/a","n/a",IF(AL$3>(A1stdlife+$E119),(Input!$H$331*(1+rvanilla)^0.5)-SUM($H119:AK119),(Input!$H$331*(1+rvanilla)^0.5)/A1stdlife)) -> 0 | AM119: =IF(A1stdlife="n/a","n/a",IF(AM$3>(A1stdlife+$E119),(Input!$H$331*(1+rvanilla)^0.5)-SUM($H119:AL119),(Input!$H$331*(1+rvanilla)^0.5)/A1stdlife)) -> 0 | AN119: =IF(A1stdlife="n/a","n/a",IF(AN$3>(A1stdlife+$E119),(Input!$H$331*(1+rvanilla)^0.5)-SUM($H119:AM119),(Input!$H$331*(1+rvanilla)^0.5)/A1stdlife)) -> 0 | AO119: =IF(A1stdlife="n/a","n/a",IF(AO$3>(A1stdlife+$E119),(Input!$H$331*(1+rvanilla)^0.5)-SUM($H119:AN119),(Input!$H$331*(1+rvanilla)^0.5)/A1stdlife)) -> 0 | AP119: =IF(A1stdlife="n/a","n/a",IF(AP$3>(A1stdlife+$E119),(Input!$H$331*(1+rvanilla)^0.5)-SUM($H119:AO119),(Input!$H$331*(1+rvanilla)^0.5)/A1stdlife)) -> 0 | AQ119: =IF(A1stdlife="n/a","n/a",IF(AQ$3>(A1stdlife+$E119),(Input!$H$331*(1+rvanilla)^0.5)-SUM($H119:AP119),(Input!$H$331*(1+rvanilla)^0.5)/A1stdlife)) -> 0 | AR119: =IF(A1stdlife="n/a","n/a",IF(AR$3>(A1stdlife+$E119),(Input!$H$331*(1+rvanilla)^0.5)-SUM($H119:AQ119),(Input!$H$331*(1+rvanilla)^0.5)/A1stdlife)) -> 0 | AS119: =IF(A1stdlife="n/a","n/a",IF(AS$3>(A1stdlife+$E119),(Input!$H$331*(1+rvanilla)^0.5)-SUM($H119:AR119),(Input!$H$331*(1+rvanilla)^0.5)/A1stdlife)) -> 0 | AT119: =IF(A1stdlife="n/a","n/a",IF(AT$3>(A1stdlife+$E119),(Input!$H$331*(1+rvanilla)^0.5)-SUM($H119:AS119),(Input!$H$331*(1+rvanilla)^0.5)/A1stdlife)) -> 0 | AU119: =IF(A1stdlife="n/a","n/a",IF(AU$3>(A1stdlife+$E119),(Input!$H$331*(1+rvanilla)^0.5)-SUM($H119:AT119),(Input!$H$331*(1+rvanilla)^0.5)/A1stdlife)) -> 0 | AV119: =IF(A1stdlife="n/a","n/a",IF(AV$3>(A1stdlife+$E119),(Input!$H$331*(1+rvanilla)^0.5)-SUM($H119:AU119),(Input!$H$331*(1+rvanilla)^0.5)/A1stdlife)) -> 0 | AW119: =IF(A1stdlife="n/a","n/a",IF(AW$3>(A1stdlife+$E119),(Input!$H$331*(1+rvanilla)^0.5)-SUM($H119:AV119),(Input!$H$331*(1+rvanilla)^0.5)/A1stdlife)) -> 0 | AX119: =IF(A1stdlife="n/a","n/a",IF(AX$3>(A1stdlife+$E119),(Input!$H$331*(1+rvanilla)^0.5)-SUM($H119:AW119),(Input!$H$331*(1+rvanilla)^0.5)/A1stdlife)) -> 0 | AY119: =IF(A1stdlife="n/a","n/a",IF(AY$3>(A1stdlife+$E119),(Input!$H$331*(1+rvanilla)^0.5)-SUM($H119:AX119),(Input!$H$331*(1+rvanilla)^0.5)/A1stdlife)) -> 0 | AZ119: =IF(A1stdlife="n/a","n/a",IF(AZ$3>(A1stdlife+$E119),(Input!$H$331*(1+rvanilla)^0.5)-SUM($H119:AY119),(Input!$H$331*(1+rvanilla)^0.5)/A1stdlife)) -> 0 | BA119: =IF(A1stdlife="n/a","n/a",IF(BA$3>(A1stdlife+$E119),(Input!$H$331*(1+rvanilla)^0.5)-SUM($H119:AZ119),(Input!$H$331*(1+rvanilla)^0.5)/A1stdlife)) -> 0 | BB119: =IF(A1stdlife="n/a","n/a",IF(BB$3>(A1stdlife+$E119),(Input!$H$331*(1+rvanilla)^0.5)-SUM($H119:BA119),(Input!$H$331*(1+rvanilla)^0.5)/A1stdlife)) -> 0 | BC119: =IF(A1stdlife="n/a","n/a",IF(BC$3>(A1stdlife+$E119),(Input!$H$331*(1+rvanilla)^0.5)-SUM($H119:BB119),(Input!$H$331*(1+rvanilla)^0.5)/A1stdlife)) -> 0 | BD119: =IF(A1stdlife="n/a","n/a",IF(BD$3>(A1stdlife+$E119),(Input!$H$331*(1+rvanilla)^0.5)-SUM($H119:BC119),(Input!$H$331*(1+rvanilla)^0.5)/A1stdlife)) -> 0 | BE119: =IF(A1stdlife="n/a","n/a",IF(BE$3>(A1stdlife+$E119),(Input!$H$331*(1+rvanilla)^0.5)-SUM($H119:BD119),(Input!$H$331*(1+rvanilla)^0.5)/A1stdlife)) -> 0 | BF119: =IF(A1stdlife="n/a","n/a",IF(BF$3>(A1stdlife+$E119),(Input!$H$331*(1+rvanilla)^0.5)-SUM($H119:BE119),(Input!$H$331*(1+rvanilla)^0.5)/A1stdlife)) -> 0 | BG119: =IF(A1stdlife="n/a","n/a",IF(BG$3>(A1stdlife+$E119),(Input!$H$331*(1+rvanilla)^0.5)-SUM($H119:BF119),(Input!$H$331*(1+rvanilla)^0.5)/A1stdlife)) -> 0 | BH119: =IF(A1stdlife="n/a","n/a",IF(BH$3>(A1stdlife+$E119),(Input!$H$331*(1+rvanilla)^0.5)-SUM($H119:BG119),(Input!$H$331*(1+rvanilla)^0.5)/A1stdlife)) -> 0 | BI119: =IF(A1stdlife="n/a","n/a",IF(BI$3>(A1stdlife+$E119),(Input!$H$331*(1+rvanilla)^0.5)-SUM($H119:BH119),(Input!$H$331*(1+rvanilla)^0.5)/A1stdlife)) -> 0
E120: 3 | J120: =IF(A1stdlife="n/a","n/a",IF(J$3>(A1stdlife+$E120),(Input!$I$331*(1+rvanilla)^0.5)-SUM($I120:I120),(Input!$I$331*(1+rvanilla)^0.5)/A1stdlife)) -> 0 | K120: =IF(A1stdlife="n/a","n/a",IF(K$3>(A1stdlife+$E120),(Input!$I$331*(1+rvanilla)^0.5)-SUM($I120:J120),(Input!$I$331*(1+rvanilla)^0.5)/A1stdlife)) -> 0 | L120: =IF(A1stdlife="n/a","n/a",IF(L$3>(A1stdlife+$E120),(Input!$I$331*(1+rvanilla)^0.5)-SUM($I120:K120),(Input!$I$331*(1+rvanilla)^0.5)/A1stdlife)) -> 0 | M120: =IF(A1stdlife="n/a","n/a",IF(M$3>(A1stdlife+$E120),(Input!$I$331*(1+rvanilla)^0.5)-SUM($I120:L120),(Input!$I$331*(1+rvanilla)^0.5)/A1stdlife)) -> 0 | N120: =IF(A1stdlife="n/a","n/a",IF(N$3>(A1stdlife+$E120),(Input!$I$331*(1+rvanilla)^0.5)-SUM($I120:M120),(Input!$I$331*(1+rvanilla)^0.5)/A1stdlife)) -> 0 | O120: =IF(A1stdlife="n/a","n/a",IF(O$3>(A1stdlife+$E120),(Input!$I$331*(1+rvanilla)^0.5)-SUM($I120:N120),(Input!$I$331*(1+rvanilla)^0.5)/A1stdlife)) -> 0 | P120: =IF(A1stdlife="n/a","n/a",IF(P$3>(A1stdlife+$E120),(Input!$I$331*(1+rvanilla)^0.5)-SUM($I120:O120),(Input!$I$331*(1+rvanilla)^0.5)/A1stdlife)) -> 0 | Q120: =IF(A1stdlife="n/a","n/a",IF(Q$3>(A1stdlife+$E120),(Input!$I$331*(1+rvanilla)^0.5)-SUM($I120:P120),(Input!$I$331*(1+rvanilla)^0.5)/A1stdlife)) -> 0 | R120: =IF(A1stdlife="n/a","n/a",IF(R$3>(A1stdlife+$E120),(Input!$I$331*(1+rvanilla)^0.5)-SUM($I120:Q120),(Input!$I$331*(1+rvanilla)^0.5)/A1stdlife)) -> 0 | S120: =IF(A1stdlife="n/a","n/a",IF(S$3>(A1stdlife+$E120),(Input!$I$331*(1+rvanilla)^0.5)-SUM($I120:R120),(Input!$I$331*(1+rvanilla)^0.5)/A1stdlife)) -> 0 | T120: =IF(A1stdlife="n/a","n/a",IF(T$3>(A1stdlife+$E120),(Input!$I$331*(1+rvanilla)^0.5)-SUM($I120:S120),(Input!$I$331*(1+rvanilla)^0.5)/A1stdlife)) -> 0 | U120: =IF(A1stdlife="n/a","n/a",IF(U$3>(A1stdlife+$E120),(Input!$I$331*(1+rvanilla)^0.5)-SUM($I120:T120),(Input!$I$331*(1+rvanilla)^0.5)/A1stdlife)) -> 0 | V120: =IF(A1stdlife="n/a","n/a",IF(V$3>(A1stdlife+$E120),(Input!$I$331*(1+rvanilla)^0.5)-SUM($I120:U120),(Input!$I$331*(1+rvanilla)^0.5)/A1stdlife)) -> 0 | W120: =IF(A1stdlife="n/a","n/a",IF(W$3>(A1stdlife+$E120),(Input!$I$331*(1+rvanilla)^0.5)-SUM($I120:V120),(Input!$I$331*(1+rvanilla)^0.5)/A1stdlife)) -> 0 | X120: =IF(A1stdlife="n/a","n/a",IF(X$3>(A1stdlife+$E120),(Input!$I$331*(1+rvanilla)^0.5)-SUM($I120:W120),(Input!$I$331*(1+rvanilla)^0.5)/A1stdlife)) -> 0 | Y120: =IF(A1stdlife="n/a","n/a",IF(Y$3>(A1stdlife+$E120),(Input!$I$331*(1+rvanilla)^0.5)-SUM($I120:X120),(Input!$I$331*(1+rvanilla)^0.5)/A1stdlife)) -> 0 | Z120: =IF(A1stdlife="n/a","n/a",IF(Z$3>(A1stdlife+$E120),(Input!$I$331*(1+rvanilla)^0.5)-SUM($I120:Y120),(Input!$I$331*(1+rvanilla)^0.5)/A1stdlife)) -> 0 | AA120: =IF(A1stdlife="n/a","n/a",IF(AA$3>(A1stdlife+$E120),(Input!$I$331*(1+rvanilla)^0.5)-SUM($I120:Z120),(Input!$I$331*(1+rvanilla)^0.5)/A1stdlife)) -> 0 | AB120: =IF(A1stdlife="n/a","n/a",IF(AB$3>(A1stdlife+$E120),(Input!$I$331*(1+rvanilla)^0.5)-SUM($I120:AA120),(Input!$I$331*(1+rvanilla)^0.5)/A1stdlife)) -> 0 | AC120: =IF(A1stdlife="n/a","n/a",IF(AC$3>(A1stdlife+$E120),(Input!$I$331*(1+rvanilla)^0.5)-SUM($I120:AB120),(Input!$I$331*(1+rvanilla)^0.5)/A1stdlife)) -> 0 | AD120: =IF(A1stdlife="n/a","n/a",IF(AD$3>(A1stdlife+$E120),(Input!$I$331*(1+rvanilla)^0.5)-SUM($I120:AC120),(Input!$I$331*(1+rvanilla)^0.5)/A1stdlife)) -> 0 | AE120: =IF(A1stdlife="n/a","n/a",IF(AE$3>(A1stdlife+$E120),(Input!$I$331*(1+rvanilla)^0.5)-SUM($I120:AD120),(Input!$I$331*(1+rvanilla)^0.5)/A1stdlife)) -> 0 | AF120: =IF(A1stdlife="n/a","n/a",IF(AF$3>(A1stdlife+$E120),(Input!$I$331*(1+rvanilla)^0.5)-SUM($I120:AE120),(Input!$I$331*(1+rvanilla)^0.5)/A1stdlife)) -> 0 | AG120: =IF(A1stdlife="n/a","n/a",IF(AG$3>(A1stdlife+$E120),(Input!$I$331*(1+rvanilla)^0.5)-SUM($I120:AF120),(Input!$I$331*(1+rvanilla)^0.5)/A1stdlife)) -> 0 | AH120: =IF(A1stdlife="n/a","n/a",IF(AH$3>(A1stdlife+$E120),(Input!$I$331*(1+rvanilla)^0.5)-SUM($I120:AG120),(Input!$I$331*(1+rvanilla)^0.5)/A1stdlife)) -> 0 | AI120: =IF(A1stdlife="n/a","n/a",IF(AI$3>(A1stdlife+$E120),(Input!$I$331*(1+rvanilla)^0.5)-SUM($I120:AH120),(Input!$I$331*(1+rvanilla)^0.5)/A1stdlife)) -> 0 | AJ120: =IF(A1stdlife="n/a","n/a",IF(AJ$3>(A1stdlife+$E120),(Input!$I$331*(1+rvanilla)^0.5)-SUM($I120:AI120),(Input!$I$331*(1+rvanilla)^0.5)/A1stdlife)) -> 0 | AK120: =IF(A1stdlife="n/a","n/a",IF(AK$3>(A1stdlife+$E120),(Input!$I$331*(1+rvanilla)^0.5)-SUM($I120:AJ120),(Input!$I$331*(1+rvanilla)^0.5)/A1stdlife)) -> 0 | AL120: =IF(A1stdlife="n/a","n/a",IF(AL$3>(A1stdlife+$E120),(Input!$I$331*(1+rvanilla)^0.5)-SUM($I120:AK120),(Input!$I$331*(1+rvanilla)^0.5)/A1stdlife)) -> 0 | AM120: =IF(A1stdlife="n/a","n/a",IF(AM$3>(A1stdlife+$E120),(Input!$I$331*(1+rvanilla)^0.5)-SUM($I120:AL120),(Input!$I$331*(1+rvanilla)^0.5)/A1stdlife)) -> 0 | AN120: =IF(A1stdlife="n/a","n/a",IF(AN$3>(A1stdlife+$E120),(Input!$I$331*(1+rvanilla)^0.5)-SUM($I120:AM120),(Input!$I$331*(1+rvanilla)^0.5)/A1stdlife)) -> 0 | AO120: =IF(A1stdlife="n/a","n/a",IF(AO$3>(A1stdlife+$E120),(Input!$I$331*(1+rvanilla)^0.5)-SUM($I120:AN120),(Input!$I$331*(1+rvanilla)^0.5)/A1stdlife)) -> 0 | AP120: =IF(A1stdlife="n/a","n/a",IF(AP$3>(A1stdlife+$E120),(Input!$I$331*(1+rvanilla)^0.5)-SUM($I120:AO120),(Input!$I$331*(1+rvanilla)^0.5)/A1stdlife)) -> 0 | AQ120: =IF(A1stdlife="n/a","n/a",IF(AQ$3>(A1stdlife+$E120),(Input!$I$331*(1+rvanilla)^0.5)-SUM($I120:AP120),(Input!$I$331*(1+rvanilla)^0.5)/A1stdlife)) -> 0 | AR120: =IF(A1stdlife="n/a","n/a",IF(AR$3>(A1stdlife+$E120),(Input!$I$331*(1+rvanilla)^0.5)-SUM($I120:AQ120),(Input!$I$331*(1+rvanilla)^0.5)/A1stdlife)) -> 0 | AS120: =IF(A1stdlife="n/a","n/a",IF(AS$3>(A1stdlife+$E120),(Input!$I$331*(1+rvanilla)^0.5)-SUM($I120:AR120),(Input!$I$331*(1+rvanilla)^0.5)/A1stdlife)) -> 0 | AT120: =IF(A1stdlife="n/a","n/a",IF(AT$3>(A1stdlife+$E120),(Input!$I$331*(1+rvanilla)^0.5)-SUM($I120:AS120),(Input!$I$331*(1+rvanilla)^0.5)/A1stdlife)) -> 0 | AU120: =IF(A1stdlife="n/a","n/a",IF(AU$3>(A1stdlife+$E120),(Input!$I$331*(1+rvanilla)^0.5)-SUM($I120:AT120),(Input!$I$331*(1+rvanilla)^0.5)/A1stdlife)) -> 0 | AV120: =IF(A1stdlife="n/a","n/a",IF(AV$3>(A1stdlife+$E120),(Input!$I$331*(1+rvanilla)^0.5)-SUM($I120:AU120),(Input!$I$331*(1+rvanilla)^0.5)/A1stdlife)) -> 0 | AW120: =IF(A1stdlife="n/a","n/a",IF(AW$3>(A1stdlife+$E120),(Input!$I$331*(1+rvanilla)^0.5)-SUM($I120:AV120),(Input!$I$331*(1+rvanilla)^0.5)/A1stdlife)) -> 0 | AX120: =IF(A1stdlife="n/a","n/a",IF(AX$3>(A1stdlife+$E120),(Input!$I$331*(1+rvanilla)^0.5)-SUM($I120:AW120),(Input!$I$331*(1+rvanilla)^0.5)/A1stdlife)) -> 0 | AY120: =IF(A1stdlife="n/a","n/a",IF(AY$3>(A1stdlife+$E120),(Input!$I$331*(1+rvanilla)^0.5)-SUM($I120:AX120),(Input!$I$331*(1+rvanilla)^0.5)/A1stdlife)) -> 0 | AZ120: =IF(A1stdlife="n/a","n/a",IF(AZ$3>(A1stdlife+$E120),(Input!$I$331*(1+rvanilla)^0.5)-SUM($I120:AY120),(Input!$I$331*(1+rvanilla)^0.5)/A1stdlife)) -> 0 | BA120: =IF(A1stdlife="n/a","n/a",IF(BA$3>(A1stdlife+$E120),(Input!$I$331*(1+rvanilla)^0.5)-SUM($I120:AZ120),(Input!$I$331*(1+rvanilla)^0.5)/A1stdlife)) -> 0 | BB120: =IF(A1stdlife="n/a","n/a",IF(BB$3>(A1stdlife+$E120),(Input!$I$331*(1+rvanilla)^0.5)-SUM($I120:BA120),(Input!$I$331*(1+rvanilla)^0.5)/A1stdlife)) -> 0 | BC120: =IF(A1stdlife="n/a","n/a",IF(BC$3>(A1stdlife+$E120),(Input!$I$331*(1+rvanilla)^0.5)-SUM($I120:BB120),(Input!$I$331*(1+rvanilla)^0.5)/A1stdlife)) -> 0 | BD120: =IF(A1stdlife="n/a","n/a",IF(BD$3>(A1stdlife+$E120),(Input!$I$331*(1+rvanilla)^0.5)-SUM($I120:BC120),(Input!$I$331*(1+rvanilla)^0.5)/A1stdlife)) -> 0 | BE120: =IF(A1stdlife="n/a","n/a",IF(BE$3>(A1stdlife+$E120),(Input!$I$331*(1+rvanilla)^0.5)-SUM($I120:BD120),(Input!$I$331*(1+rvanilla)^0.5)/A1stdlife)) -> 0 | BF120: =IF(A1stdlife="n/a","n/a",IF(BF$3>(A1stdlife+$E120),(Input!$I$331*(1+rvanilla)^0.5)-SUM($I120:BE120),(Input!$I$331*(1+rvanilla)^0.5)/A1stdlife)) -> 0 | BG120: =IF(A1stdlife="n/a","n/a",IF(BG$3>(A1stdlife+$E120),(Input!$I$331*(1+rvanilla)^0.5)-SUM($I120:BF120),(Input!$I$331*(1+rvanilla)^0.5)/A1stdlife)) -> 0 | BH120: =IF(A1stdlife="n/a","n/a",IF(BH$3>(A1stdlife+$E120),(Input!$I$331*(1+rvanilla)^0.5)-SUM($I120:BG120),(Input!$I$331*(1+rvanilla)^0.5)/A1stdlife)) -> 0 | BI120: =IF(A1stdlife="n/a","n/a",IF(BI$3>(A1stdlife+$E120),(Input!$I$331*(1+rvanilla)^0.5)-SUM($I120:BH120),(Input!$I$331*(1+rvanilla)^0.5)/A1stdlife)) -> 0
E121: 4 | K121: =IF(A1stdlife="n/a","n/a",IF(K$3>(A1stdlife+$E121),(Input!$J$331*(1+rvanilla)^0.5)-SUM($J121:J121),(Input!$J$331*(1+rvanilla)^0.5)/A1stdlife)) -> 0 | L121: =IF(A1stdlife="n/a","n/a",IF(L$3>(A1stdlife+$E121),(Input!$J$331*(1+rvanilla)^0.5)-SUM($J121:K121),(Input!$J$331*(1+rvanilla)^0.5)/A1stdlife)) -> 0 | M121: =IF(A1stdlife="n/a","n/a",IF(M$3>(A1stdlife+$E121),(Input!$J$331*(1+rvanilla)^0.5)-SUM($J121:L121),(Input!$J$331*(1+rvanilla)^0.5)/A1stdlife)) -> 0 | N121: =IF(A1stdlife="n/a","n/a",IF(N$3>(A1stdlife+$E121),(Input!$J$331*(1+rvanilla)^0.5)-SUM($J121:M121),(Input!$J$331*(1+rvanilla)^0.5)/A1stdlife)) -> 0 | O121: =IF(A1stdlife="n/a","n/a",IF(O$3>(A1stdlife+$E121),(Input!$J$331*(1+rvanilla)^0.5)-SUM($J121:N121),(Input!$J$331*(1+rvanilla)^0.5)/A1stdlife)) -> 0 | P121: =IF(A1stdlife="n/a","n/a",IF(P$3>(A1stdlife+$E121),(Input!$J$331*(1+rvanilla)^0.5)-SUM($J121:O121),(Input!$J$331*(1+rvanilla)^0.5)/A1stdlife)) -> 0 | Q121: =IF(A1stdlife="n/a","n/a",IF(Q$3>(A1stdlife+$E121),(Input!$J$331*(1+rvanilla)^0.5)-SUM($J121:P121),(Input!$J$331*(1+rvanilla)^0.5)/A1stdlife)) -> 0 | R121: =IF(A1stdlife="n/a","n/a",IF(R$3>(A1stdlife+$E121),(Input!$J$331*(1+rvanilla)^0.5)-SUM($J121:Q121),(Input!$J$331*(1+rvanilla)^0.5)/A1stdlife)) -> 0 | S121: =IF(A1stdlife="n/a","n/a",IF(S$3>(A1stdlife+$E121),(Input!$J$331*(1+rvanilla)^0.5)-SUM($J121:R121),(Input!$J$331*(1+rvanilla)^0.5)/A1stdlife)) -> 0 | T121: =IF(A1stdlife="n/a","n/a",IF(T$3>(A1stdlife+$E121),(Input!$J$331*(1+rvanilla)^0.5)-SUM($J121:S121),(Input!$J$331*(1+rvanilla)^0.5)/A1stdlife)) -> 0 | U121: =IF(A1stdlife="n/a","n/a",IF(U$3>(A1stdlife+$E121),(Input!$J$331*(1+rvanilla)^0.5)-SUM($J121:T121),(Input!$J$331*(1+rvanilla)^0.5)/A1stdlife)) -> 0 | V121: =IF(A1stdlife="n/a","n/a",IF(V$3>(A1stdlife+$E121),(Input!$J$331*(1+rvanilla)^0.5)-SUM($J121:U121),(Input!$J$331*(1+rvanilla)^0.5)/A1stdlife)) -> 0 | W121: =IF(A1stdlife="n/a","n/a",IF(W$3>(A1stdlife+$E121),(Input!$J$331*(1+rvanilla)^0.5)-SUM($J121:V121),(Input!$J$331*(1+rvanilla)^0.5)/A1stdlife)) -> 0 | X121: =IF(A1stdlife="n/a","n/a",IF(X$3>(A1stdlife+$E121),(Input!$J$331*(1+rvanilla)^0.5)-SUM($J121:W121),(Input!$J$331*(1+rvanilla)^0.5)/A1stdlife)) -> 0 | Y121: =IF(A1stdlife="n/a","n/a",IF(Y$3>(A1stdlife+$E121),(Input!$J$331*(1+rvanilla)^0.5)-SUM($J121:X121),(Input!$J$331*(1+rvanilla)^0.5)/A1stdlife)) -> 0 | Z121: =IF(A1stdlife="n/a","n/a",IF(Z$3>(A1stdlife+$E121),(Input!$J$331*(1+rvanilla)^0.5)-SUM($J121:Y121),(Input!$J$331*(1+rvanilla)^0.5)/A1stdlife)) -> 0 | AA121: =IF(A1stdlife="n/a","n/a",IF(AA$3>(A1stdlife+$E121),(Input!$J$331*(1+rvanilla)^0.5)-SUM($J121:Z121),(Input!$J$331*(1+rvanilla)^0.5)/A1stdlife)) -> 0 | AB121: =IF(A1stdlife="n/a","n/a",IF(AB$3>(A1stdlife+$E121),(Input!$J$331*(1+rvanilla)^0.5)-SUM($J121:AA121),(Input!$J$331*(1+rvanilla)^0.5)/A1stdlife)) -> 0 | AC121: =IF(A1stdlife="n/a","n/a",IF(AC$3>(A1stdlife+$E121),(Input!$J$331*(1+rvanilla)^0.5)-SUM($J121:AB121),(Input!$J$331*(1+rvanilla)^0.5)/A1stdlife)) -> 0 | AD121: =IF(A1stdlife="n/a","n/a",IF(AD$3>(A1stdlife+$E121),(Input!$J$331*(1+rvanilla)^0.5)-SUM($J121:AC121),(Input!$J$331*(1+rvanilla)^0.5)/A1stdlife)) -> 0 | AE121: =IF(A1stdlife="n/a","n/a",IF(AE$3>(A1stdlife+$E121),(Input!$J$331*(1+rvanilla)^0.5)-SUM($J121:AD121),(Input!$J$331*(1+rvanilla)^0.5)/A1stdlife)) -> 0 | AF121: =IF(A1stdlife="n/a","n/a",IF(AF$3>(A1stdlife+$E121),(Input!$J$331*(1+rvanilla)^0.5)-SUM($J121:AE121),(Input!$J$331*(1+rvanilla)^0.5)/A1stdlife)) -> 0 | AG121: =IF(A1stdlife="n/a","n/a",IF(AG$3>(A1stdlife+$E121),(Input!$J$331*(1+rvanilla)^0.5)-SUM($J121:AF121),(Input!$J$331*(1+rvanilla)^0.5)/A1stdlife)) -> 0 | AH121: =IF(A1stdlife="n/a","n/a",IF(AH$3>(A1stdlife+$E121),(Input!$J$331*(1+rvanilla)^0.5)-SUM($J121:AG121),(Input!$J$331*(1+rvanilla)^0.5)/A1stdlife)) -> 0 | AI121: =IF(A1stdlife="n/a","n/a",IF(AI$3>(A1stdlife+$E121),(Input!$J$331*(1+rvanilla)^0.5)-SUM($J121:AH121),(Input!$J$331*(1+rvanilla)^0.5)/A1stdlife)) -> 0 | AJ121: =IF(A1stdlife="n/a","n/a",IF(AJ$3>(A1stdlife+$E121),(Input!$J$331*(1+rvanilla)^0.5)-SUM($J121:AI121),(Input!$J$331*(1+rvanilla)^0.5)/A1stdlife)) -> 0 | AK121: =IF(A1stdlife="n/a","n/a",IF(AK$3>(A1stdlife+$E121),(Input!$J$331*(1+rvanilla)^0.5)-SUM($J121:AJ121),(Input!$J$331*(1+rvanilla)^0.5)/A1stdlife)) -> 0 | AL121: =IF(A1stdlife="n/a","n/a",IF(AL$3>(A1stdlife+$E121),(Input!$J$331*(1+rvanilla)^0.5)-SUM($J121:AK121),(Input!$J$331*(1+rvanilla)^0.5)/A1stdlife)) -> 0 | AM121: =IF(A1stdlife="n/a","n/a",IF(AM$3>(A1stdlife+$E121),(Input!$J$331*(1+rvanilla)^0.5)-SUM($J121:AL121),(Input!$J$331*(1+rvanilla)^0.5)/A1stdlife)) -> 0 | AN121: =IF(A1stdlife="n/a","n/a",IF(AN$3>(A1stdlife+$E121),(Input!$J$331*(1+rvanilla)^0.5)-SUM($J121:AM121),(Input!$J$331*(1+rvanilla)^0.5)/A1stdlife)) -> 0 | AO121: =IF(A1stdlife="n/a","n/a",IF(AO$3>(A1stdlife+$E121),(Input!$J$331*(1+rvanilla)^0.5)-SUM($J121:AN121),(Input!$J$331*(1+rvanilla)^0.5)/A1stdlife)) -> 0 | AP121: =IF(A1stdlife="n/a","n/a",IF(AP$3>(A1stdlife+$E121),(Input!$J$331*(1+rvanilla)^0.5)-SUM($J121:AO121),(Input!$J$331*(1+rvanilla)^0.5)/A1stdlife)) -> 0 | AQ121: =IF(A1stdlife="n/a","n/a",IF(AQ$3>(A1stdlife+$E121),(Input!$J$331*(1+rvanilla)^0.5)-SUM($J121:AP121),(Input!$J$331*(1+rvanilla)^0.5)/A1stdlife)) -> 0 | AR121: =IF(A1stdlife="n/a","n/a",IF(AR$3>(A1stdlife+$E121),(Input!$J$331*(1+rvanilla)^0.5)-SUM($J121:AQ121),(Input!$J$331*(1+rvanilla)^0.5)/A1stdlife)) -> 0 | AS121: =IF(A1stdlife="n/a","n/a",IF(AS$3>(A1stdlife+$E121),(Input!$J$331*(1+rvanilla)^0.5)-SUM($J121:AR121),(Input!$J$331*(1+rvanilla)^0.5)/A1stdlife)) -> 0 | AT121: =IF(A1stdlife="n/a","n/a",IF(AT$3>(A1stdlife+$E121),(Input!$J$331*(1+rvanilla)^0.5)-SUM($J121:AS121),(Input!$J$331*(1+rvanilla)^0.5)/A1stdlife)) -> 0 | AU121: =IF(A1stdlife="n/a","n/a",IF(AU$3>(A1stdlife+$E121),(Input!$J$331*(1+rvanilla)^0.5)-SUM($J121:AT121),(Input!$J$331*(1+rvanilla)^0.5)/A1stdlife)) -> 0 | AV121: =IF(A1stdlife="n/a","n/a",IF(AV$3>(A1stdlife+$E121),(Input!$J$331*(1+rvanilla)^0.5)-SUM($J121:AU121),(Input!$J$331*(1+rvanilla)^0.5)/A1stdlife)) -> 0 | AW121: =IF(A1stdlife="n/a","n/a",IF(AW$3>(A1stdlife+$E121),(Input!$J$331*(1+rvanilla)^0.5)-SUM($J121:AV121),(Input!$J$331*(1+rvanilla)^0.5)/A1stdlife)) -> 0 | AX121: =IF(A1stdlife="n/a","n/a",IF(AX$3>(A1stdlife+$E121),(Input!$J$331*(1+rvanilla)^0.5)-SUM($J121:AW121),(Input!$J$331*(1+rvanilla)^0.5)/A1stdlife)) -> 0 | AY121: =IF(A1stdlife="n/a","n/a",IF(AY$3>(A1stdlife+$E121),(Input!$J$331*(1+rvanilla)^0.5)-SUM($J121:AX121),(Input!$J$331*(1+rvanilla)^0.5)/A1stdlife)) -> 0 | AZ121: =IF(A1stdlife="n/a","n/a",IF(AZ$3>(A1stdlife+$E121),(Input!$J$331*(1+rvanilla)^0.5)-SUM($J121:AY121),(Input!$J$331*(1+rvanilla)^0.5)/A1stdlife)) -> 0 | BA121: =IF(A1stdlife="n/a","n/a",IF(BA$3>(A1stdlife+$E121),(Input!$J$331*(1+rvanilla)^0.5)-SUM($J121:AZ121),(Input!$J$331*(1+rvanilla)^0.5)/A1stdlife)) -> 0 | BB121: =IF(A1stdlife="n/a","n/a",IF(BB$3>(A1stdlife+$E121),(Input!$J$331*(1+rvanilla)^0.5)-SUM($J121:BA121),(Input!$J$331*(1+rvanilla)^0.5)/A1stdlife)) -> 0 | BC121: =IF(A1stdlife="n/a","n/a",IF(BC$3>(A1stdlife+$E121),(Input!$J$331*(1+rvanilla)^0.5)-SUM($J121:BB121),(Input!$J$331*(1+rvanilla)^0.5)/A1stdlife)) -> 0 | BD121: =IF(A1stdlife="n/a","n/a",IF(BD$3>(A1stdlife+$E121),(Input!$J$331*(1+rvanilla)^0.5)-SUM($J121:BC121),(Input!$J$331*(1+rvanilla)^0.5)/A1stdlife)) -> 0 | BE121: =IF(A1stdlife="n/a","n/a",IF(BE$3>(A1stdlife+$E121),(Input!$J$331*(1+rvanilla)^0.5)-SUM($J121:BD121),(Input!$J$331*(1+rvanilla)^0.5)/A1stdlife)) -> 0 | BF121: =IF(A1stdlife="n/a","n/a",IF(BF$3>(A1stdlife+$E121),(Input!$J$331*(1+rvanilla)^0.5)-SUM($J121:BE121),(Input!$J$331*(1+rvanilla)^0.5)/A1stdlife)) -> 0 | BG121: =IF(A1stdlife="n/a","n/a",IF(BG$3>(A1stdlife+$E121),(Input!$J$331*(1+rvanilla)^0.5)-SUM($J121:BF121),(Input!$J$331*(1+rvanilla)^0.5)/A1stdlife)) -> 0 | BH121: =IF(A1stdlife="n/a","n/a",IF(BH$3>(A1stdlife+$E121),(Input!$J$331*(1+rvanilla)^0.5)-SUM($J121:BG121),(Input!$J$331*(1+rvanilla)^0.5)/A1stdlife)) -> 0 | BI121: =IF(A1stdlife="n/a","n/a",IF(BI$3>(A1stdlife+$E121),(Input!$J$331*(1+rvanilla)^0.5)-SUM($J121:BH121),(Input!$J$331*(1+rvanilla)^0.5)/A1stdlife)) -> 0
E122: 5 | L122: =IF(A1stdlife="n/a","n/a",IF(L$3>(A1stdlife+$E122),(Input!$K$331*(1+rvanilla)^0.5)-SUM($K122:K122),(Input!$K$331*(1+rvanilla)^0.5)/A1stdlife)) -> 0 | M122: =IF(A1stdlife="n/a","n/a",IF(M$3>(A1stdlife+$E122),(Input!$K$331*(1+rvanilla)^0.5)-SUM($K122:L122),(Input!$K$331*(1+rvanilla)^0.5)/A1stdlife)) -> 0 | N122: =IF(A1stdlife="n/a","n/a",IF(N$3>(A1stdlife+$E122),(Input!$K$331*(1+rvanilla)^0.5)-SUM($K122:M122),(Input!$K$331*(1+rvanilla)^0.5)/A1stdlife)) -> 0 | O122: =IF(A1stdlife="n/a","n/a",IF(O$3>(A1stdlife+$E122),(Input!$K$331*(1+rvanilla)^0.5)-SUM($K122:N122),(Input!$K$331*(1+rvanilla)^0.5)/A1stdlife)) -> 0 | P122: =IF(A1stdlife="n/a","n/a",IF(P$3>(A1stdlife+$E122),(Input!$K$331*(1+rvanilla)^0.5)-SUM($K122:O122),(Input!$K$331*(1+rvanilla)^0.5)/A1stdlife)) -> 0 | Q122: =IF(A1stdlife="n/a","n/a",IF(Q$3>(A1stdlife+$E122),(Input!$K$331*(1+rvanilla)^0.5)-SUM($K122:P122),(Input!$K$331*(1+rvanilla)^0.5)/A1stdlife)) -> 0 | R122: =IF(A1stdlife="n/a","n/a",IF(R$3>(A1stdlife+$E122),(Input!$K$331*(1+rvanilla)^0.5)-SUM($K122:Q122),(Input!$K$331*(1+rvanilla)^0.5)/A1stdlife)) -> 0 | S122: =IF(A1stdlife="n/a","n/a",IF(S$3>(A1stdlife+$E122),(Input!$K$331*(1+rvanilla)^0.5)-SUM($K122:R122),(Input!$K$331*(1+rvanilla)^0.5)/A1stdlife)) -> 0 | T122: =IF(A1stdlife="n/a","n/a",IF(T$3>(A1stdlife+$E122),(Input!$K$331*(1+rvanilla)^0.5)-SUM($K122:S122),(Input!$K$331*(1+rvanilla)^0.5)/A1stdlife)) -> 0 | U122: =IF(A1stdlife="n/a","n/a",IF(U$3>(A1stdlife+$E122),(Input!$K$331*(1+rvanilla)^0.5)-SUM($K122:T122),(Input!$K$331*(1+rvanilla)^0.5)/A1stdlife)) -> 0 | V122: =IF(A1stdlife="n/a","n/a",IF(V$3>(A1stdlife+$E122),(Input!$K$331*(1+rvanilla)^0.5)-SUM($K122:U122),(Input!$K$331*(1+rvanilla)^0.5)/A1stdlife)) -> 0 | W122: =IF(A1stdlife="n/a","n/a",IF(W$3>(A1stdlife+$E122),(Input!$K$331*(1+rvanilla)^0.5)-SUM($K122:V122),(Input!$K$331*(1+rvanilla)^0.5)/A1stdlife)) -> 0 | X122: =IF(A1stdlife="n/a","n/a",IF(X$3>(A1stdlife+$E122),(Input!$K$331*(1+rvanilla)^0.5)-SUM($K122:W122),(Input!$K$331*(1+rvanilla)^0.5)/A1stdlife)) -> 0 | Y122: =IF(A1stdlife="n/a","n/a",IF(Y$3>(A1stdlife+$E122),(Input!$K$331*(1+rvanilla)^0.5)-SUM($K122:X122),(Input!$K$331*(1+rvanilla)^0.5)/A1stdlife)) -> 0 | Z122: =IF(A1stdlife="n/a","n/a",IF(Z$3>(A1stdlife+$E122),(Input!$K$331*(1+rvanilla)^0.5)-SUM($K122:Y122),(Input!$K$331*(1+rvanilla)^0.5)/A1stdlife)) -> 0 | AA122: =IF(A1stdlife="n/a","n/a",IF(AA$3>(A1stdlife+$E122),(Input!$K$331*(1+rvanilla)^0.5)-SUM($K122:Z122),(Input!$K$331*(1+rvanilla)^0.5)/A1stdlife)) -> 0 | AB122: =IF(A1stdlife="n/a","n/a",IF(AB$3>(A1stdlife+$E122),(Input!$K$331*(1+rvanilla)^0.5)-SUM($K122:AA122),(Input!$K$331*(1+rvanilla)^0.5)/A1stdlife)) -> 0 | AC122: =IF(A1stdlife="n/a","n/a",IF(AC$3>(A1stdlife+$E122),(Input!$K$331*(1+rvanilla)^0.5)-SUM($K122:AB122),(Input!$K$331*(1+rvanilla)^0.5)/A1stdlife)) -> 0 | AD122: =IF(A1stdlife="n/a","n/a",IF(AD$3>(A1stdlife+$E122),(Input!$K$331*(1+rvanilla)^0.5)-SUM($K122:AC122),(Input!$K$331*(1+rvanilla)^0.5)/A1stdlife)) -> 0 | AE122: =IF(A1stdlife="n/a","n/a",IF(AE$3>(A1stdlife+$E122),(Input!$K$331*(1+rvanilla)^0.5)-SUM($K122:AD122),(Input!$K$331*(1+rvanilla)^0.5)/A1stdlife)) -> 0 | AF122: =IF(A1stdlife="n/a","n/a",IF(AF$3>(A1stdlife+$E122),(Input!$K$331*(1+rvanilla)^0.5)-SUM($K122:AE122),(Input!$K$331*(1+rvanilla)^0.5)/A1stdlife)) -> 0 | AG122: =IF(A1stdlife="n/a","n/a",IF(AG$3>(A1stdlife+$E122),(Input!$K$331*(1+rvanilla)^0.5)-SUM($K122:AF122),(Input!$K$331*(1+rvanilla)^0.5)/A1stdlife)) -> 0 | AH122: =IF(A1stdlife="n/a","n/a",IF(AH$3>(A1stdlife+$E122),(Input!$K$331*(1+rvanilla)^0.5)-SUM($K122:AG122),(Input!$K$331*(1+rvanilla)^0.5)/A1stdlife)) -> 0 | AI122: =IF(A1stdlife="n/a","n/a",IF(AI$3>(A1stdlife+$E122),(Input!$K$331*(1+rvanilla)^0.5)-SUM($K122:AH122),(Input!$K$331*(1+rvanilla)^0.5)/A1stdlife)) -> 0 | AJ122: =IF(A1stdlife="n/a","n/a",IF(AJ$3>(A1stdlife+$E122),(Input!$K$331*(1+rvanilla)^0.5)-SUM($K122:AI122),(Input!$K$331*(1+rvanilla)^0.5)/A1stdlife)) -> 0 | AK122: =IF(A1stdlife="n/a","n/a",IF(AK$3>(A1stdlife+$E122),(Input!$K$331*(1+rvanilla)^0.5)-SUM($K122:AJ122),(Input!$K$331*(1+rvanilla)^0.5)/A1stdlife)) -> 0 | AL122: =IF(A1stdlife="n/a","n/a",IF(AL$3>(A1stdlife+$E122),(Input!$K$331*(1+rvanilla)^0.5)-SUM($K122:AK122),(Input!$K$331*(1+rvanilla)^0.5)/A1stdlife)) -> 0 | AM122: =IF(A1stdlife="n/a","n/a",IF(AM$3>(A1stdlife+$E122),(Input!$K$331*(1+rvanilla)^0.5)-SUM($K122:AL122),(Input!$K$331*(1+rvanilla)^0.5)/A1stdlife)) -> 0 | AN122: =IF(A1stdlife="n/a","n/a",IF(AN$3>(A1stdlife+$E122),(Input!$K$331*(1+rvanilla)^0.5)-SUM($K122:AM122),(Input!$K$331*(1+rvanilla)^0.5)/A1stdlife)) -> 0 | AO122: =IF(A1stdlife="n/a","n/a",IF(AO$3>(A1stdlife+$E122),(Input!$K$331*(1+rvanilla)^0.5)-SUM($K122:AN122),(Input!$K$331*(1+rvanilla)^0.5)/A1stdlife)) -> 0 | AP122: =IF(A1stdlife="n/a","n/a",IF(AP$3>(A1stdlife+$E122),(Input!$K$331*(1+rvanilla)^0.5)-SUM($K122:AO122),(Input!$K$331*(1+rvanilla)^0.5)/A1stdlife)) -> 0 | AQ122: =IF(A1stdlife="n/a","n/a",IF(AQ$3>(A1stdlife+$E122),(Input!$K$331*(1+rvanilla)^0.5)-SUM($K122:AP122),(Input!$K$331*(1+rvanilla)^0.5)/A1stdlife)) -> 0 | AR122: =IF(A1stdlife="n/a","n/a",IF(AR$3>(A1stdlife+$E122),(Input!$K$331*(1+rvanilla)^0.5)-SUM($K122:AQ122),(Input!$K$331*(1+rvanilla)^0.5)/A1stdlife)) -> 0 | AS122: =IF(A1stdlife="n/a","n/a",IF(AS$3>(A1stdlife+$E122),(Input!$K$331*(1+rvanilla)^0.5)-SUM($K122:AR122),(Input!$K$331*(1+rvanilla)^0.5)/A1stdlife)) -> 0 | AT122: =IF(A1stdlife="n/a","n/a",IF(AT$3>(A1stdlife+$E122),(Input!$K$331*(1+rvanilla)^0.5)-SUM($K122:AS122),(Input!$K$331*(1+rvanilla)^0.5)/A1stdlife)) -> 0 | AU122: =IF(A1stdlife="n/a","n/a",IF(AU$3>(A1stdlife+$E122),(Input!$K$331*(1+rvanilla)^0.5)-SUM($K122:AT122),(Input!$K$331*(1+rvanilla)^0.5)/A1stdlife)) -> 0 | AV122: =IF(A1stdlife="n/a","n/a",IF(AV$3>(A1stdlife+$E122),(Input!$K$331*(1+rvanilla)^0.5)-SUM($K122:AU122),(Input!$K$331*(1+rvanilla)^0.5)/A1stdlife)) -> 0 | AW122: =IF(A1stdlife="n/a","n/a",IF(AW$3>(A1stdlife+$E122),(Input!$K$331*(1+rvanilla)^0.5)-SUM($K122:AV122),(Input!$K$331*(1+rvanilla)^0.5)/A1stdlife)) -> 0 | AX122: =IF(A1stdlife="n/a","n/a",IF(AX$3>(A1stdlife+$E122),(Input!$K$331*(1+rvanilla)^0.5)-SUM($K122:AW122),(Input!$K$331*(1+rvanilla)^0.5)/A1stdlife)) -> 0 | AY122: =IF(A1stdlife="n/a","n/a",IF(AY$3>(A1stdlife+$E122),(Input!$K$331*(1+rvanilla)^0.5)-SUM($K122:AX122),(Input!$K$331*(1+rvanilla)^0.5)/A1stdlife)) -> 0 | AZ122: =IF(A1stdlife="n/a","n/a",IF(AZ$3>(A1stdlife+$E122),(Input!$K$331*(1+rvanilla)^0.5)-SUM($K122:AY122),(Input!$K$331*(1+rvanilla)^0.5)/A1stdlife)) -> 0 | BA122: =IF(A1stdlife="n/a","n/a",IF(BA$3>(A1stdlife+$E122),(Input!$K$331*(1+rvanilla)^0.5)-SUM($K122:AZ122),(Input!$K$331*(1+rvanilla)^0.5)/A1stdlife)) -> 0 | BB122: =IF(A1stdlife="n/a","n/a",IF(BB$3>(A1stdlife+$E122),(Input!$K$331*(1+rvanilla)^0.5)-SUM($K122:BA122),(Input!$K$331*(1+rvanilla)^0.5)/A1stdlife)) -> 0 | BC122: =IF(A1stdlife="n/a","n/a",IF(BC$3>(A1stdlife+$E122),(Input!$K$331*(1+rvanilla)^0.5)-SUM($K122:BB122),(Input!$K$331*(1+rvanilla)^0.5)/A1stdlife)) -> 0 | BD122: =IF(A1stdlife="n/a","n/a",IF(BD$3>(A1stdlife+$E122),(Input!$K$331*(1+rvanilla)^0.5)-SUM($K122:BC122),(Input!$K$331*(1+rvanilla)^0.5)/A1stdlife)) -> 0 | BE122: =IF(A1stdlife="n/a","n/a",IF(BE$3>(A1stdlife+$E122),(Input!$K$331*(1+rvanilla)^0.5)-SUM($K122:BD122),(Input!$K$331*(1+rvanilla)^0.5)/A1stdlife)) -> 0 | BF122: =IF(A1stdlife="n/a","n/a",IF(BF$3>(A1stdlife+$E122),(Input!$K$331*(1+rvanilla)^0.5)-SUM($K122:BE122),(Input!$K$331*(1+rvanilla)^0.5)/A1stdlife)) -> 0 | BG122: =IF(A1stdlife="n/a","n/a",IF(BG$3>(A1stdlife+$E122),(Input!$K$331*(1+rvanilla)^0.5)-SUM($K122:BF122),(Input!$K$331*(1+rvanilla)^0.5)/A1stdlife)) -> 0 | BH122: =IF(A1stdlife="n/a","n/a",IF(BH$3>(A1stdlife+$E122),(Input!$K$331*(1+rvanilla)^0.5)-SUM($K122:BG122),(Input!$K$331*(1+rvanilla)^0.5)/A1stdlife)) -> 0 | BI122: =IF(A1stdlife="n/a","n/a",IF(BI$3>(A1stdlife+$E122),(Input!$K$331*(1+rvanilla)^0.5)-SUM($K122:BH122),(Input!$K$331*(1+rvanilla)^0.5)/A1stdlife)) -> 0
E123: 6 | M123: =IF(A1stdlife="n/a","n/a",IF(M$3>(A1stdlife+$E123),(Input!$L$331*(1+rvanilla)^0.5)-SUM($L123:L123),(Input!$L$331*(1+rvanilla)^0.5)/A1stdlife)) -> 0 | N123: =IF(A1stdlife="n/a","n/a",IF(N$3>(A1stdlife+$E123),(Input!$L$331*(1+rvanilla)^0.5)-SUM($L123:M123),(Input!$L$331*(1+rvanilla)^0.5)/A1stdlife)) -> 0 | O123: =IF(A1stdlife="n/a","n/a",IF(O$3>(A1stdlife+$E123),(Input!$L$331*(1+rvanilla)^0.5)-SUM($L123:N123),(Input!$L$331*(1+rvanilla)^0.5)/A1stdlife)) -> 0 | P123: =IF(A1stdlife="n/a","n/a",IF(P$3>(A1stdlife+$E123),(Input!$L$331*(1+rvanilla)^0.5)-SUM($L123:O123),(Input!$L$331*(1+rvanilla)^0.5)/A1stdlife)) -> 0 | Q123: =IF(A1stdlife="n/a","n/a",IF(Q$3>(A1stdlife+$E123),(Input!$L$331*(1+rvanilla)^0.5)-SUM($L123:P123),(Input!$L$331*(1+rvanilla)^0.5)/A1stdlife)) -> 0 | R123: =IF(A1stdlife="n/a","n/a",IF(R$3>(A1stdlife+$E123),(Input!$L$331*(1+rvanilla)^0.5)-SUM($L123:Q123),(Input!$L$331*(1+rvanilla)^0.5)/A1stdlife)) -> 0 | S123: =IF(A1stdlife="n/a","n/a",IF(S$3>(A1stdlife+$E123),(Input!$L$331*(1+rvanilla)^0.5)-SUM($L123:R123),(Input!$L$331*(1+rvanilla)^0.5)/A1stdlife)) -> 0 | T123: =IF(A1stdlife="n/a","n/a",IF(T$3>(A1stdlife+$E123),(Input!$L$331*(1+rvanilla)^0.5)-SUM($L123:S123),(Input!$L$331*(1+rvanilla)^0.5)/A1stdlife)) -> 0 | U123: =IF(A1stdlife="n/a","n/a",IF(U$3>(A1stdlife+$E123),(Input!$L$331*(1+rvanilla)^0.5)-SUM($L123:T123),(Input!$L$331*(1+rvanilla)^0.5)/A1stdlife)) -> 0 | V123: =IF(A1stdlife="n/a","n/a",IF(V$3>(A1stdlife+$E123),(Input!$L$331*(1+rvanilla)^0.5)-SUM($L123:U123),(Input!$L$331*(1+rvanilla)^0.5)/A1stdlife)) -> 0 | W123: =IF(A1stdlife="n/a","n/a",IF(W$3>(A1stdlife+$E123),(Input!$L$331*(1+rvanilla)^0.5)-SUM($L123:V123),(Input!$L$331*(1+rvanilla)^0.5)/A1stdlife)) -> 0 | X123: =IF(A1stdlife="n/a","n/a",IF(X$3>(A1stdlife+$E123),(Input!$L$331*(1+rvanilla)^0.5)-SUM($L123:W123),(Input!$L$331*(1+rvanilla)^0.5)/A1stdlife)) -> 0 | Y123: =IF(A1stdlife="n/a","n/a",IF(Y$3>(A1stdlife+$E123),(Input!$L$331*(1+rvanilla)^0.5)-SUM($L123:X123),(Input!$L$331*(1+rvanilla)^0.5)/A1stdlife)) -> 0 | Z123: =IF(A1stdlife="n/a","n/a",IF(Z$3>(A1stdlife+$E123),(Input!$L$331*(1+rvanilla)^0.5)-SUM($L123:Y123),(Input!$L$331*(1+rvanilla)^0.5)/A1stdlife)) -> 0 | AA123: =IF(A1stdlife="n/a","n/a",IF(AA$3>(A1stdlife+$E123),(Input!$L$331*(1+rvanilla)^0.5)-SUM($L123:Z123),(Input!$L$331*(1+rvanilla)^0.5)/A1stdlife)) -> 0 | AB123: =IF(A1stdlife="n/a","n/a",IF(AB$3>(A1stdlife+$E123),(Input!$L$331*(1+rvanilla)^0.5)-SUM($L123:AA123),(Input!$L$331*(1+rvanilla)^0.5)/A1stdlife)) -> 0 | AC123: =IF(A1stdlife="n/a","n/a",IF(AC$3>(A1stdlife+$E123),(Input!$L$331*(1+rvanilla)^0.5)-SUM($L123:AB123),(Input!$L$331*(1+rvanilla)^0.5)/A1stdlife)) -> 0 | AD123: =IF(A1stdlife="n/a","n/a",IF(AD$3>(A1stdlife+$E123),(Input!$L$331*(1+rvanilla)^0.5)-SUM($L123:AC123),(Input!$L$331*(1+rvanilla)^0.5)/A1stdlife)) -> 0 | AE123: =IF(A1stdlife="n/a","n/a",IF(AE$3>(A1stdlife+$E123),(Input!$L$331*(1+rvanilla)^0.5)-SUM($L123:AD123),(Input!$L$331*(1+rvanilla)^0.5)/A1stdlife)) -> 0 | AF123: =IF(A1stdlife="n/a","n/a",IF(AF$3>(A1stdlife+$E123),(Input!$L$331*(1+rvanilla)^0.5)-SUM($L123:AE123),(Input!$L$331*(1+rvanilla)^0.5)/A1stdlife)) -> 0 | AG123: =IF(A1stdlife="n/a","n/a",IF(AG$3>(A1stdlife+$E123),(Input!$L$331*(1+rvanilla)^0.5)-SUM($L123:AF123),(Input!$L$331*(1+rvanilla)^0.5)/A1stdlife)) -> 0 | AH123: =IF(A1stdlife="n/a","n/a",IF(AH$3>(A1stdlife+$E123),(Input!$L$331*(1+rvanilla)^0.5)-SUM($L123:AG123),(Input!$L$331*(1+rvanilla)^0.5)/A1stdlife)) -> 0 | AI123: =IF(A1stdlife="n/a","n/a",IF(AI$3>(A1stdlife+$E123),(Input!$L$331*(1+rvanilla)^0.5)-SUM($L123:AH123),(Input!$L$331*(1+rvanilla)^0.5)/A1stdlife)) -> 0 | AJ123: =IF(A1stdlife="n/a","n/a",IF(AJ$3>(A1stdlife+$E123),(Input!$L$331*(1+rvanilla)^0.5)-SUM($L123:AI123),(Input!$L$331*(1+rvanilla)^0.5)/A1stdlife)) -> 0 | AK123: =IF(A1stdlife="n/a","n/a",IF(AK$3>(A1stdlife+$E123),(Input!$L$331*(1+rvanilla)^0.5)-SUM($L123:AJ123),(Input!$L$331*(1+rvanilla)^0.5)/A1stdlife)) -> 0 | AL123: =IF(A1stdlife="n/a","n/a",IF(AL$3>(A1stdlife+$E123),(Input!$L$331*(1+rvanilla)^0.5)-SUM($L123:AK123),(Input!$L$331*(1+rvanilla)^0.5)/A1stdlife)) -> 0 | AM123: =IF(A1stdlife="n/a","n/a",IF(AM$3>(A1stdlife+$E123),(Input!$L$331*(1+rvanilla)^0.5)-SUM($L123:AL123),(Input!$L$331*(1+rvanilla)^0.5)/A1stdlife)) -> 0 | AN123: =IF(A1stdlife="n/a","n/a",IF(AN$3>(A1stdlife+$E123),(Input!$L$331*(1+rvanilla)^0.5)-SUM($L123:AM123),(Input!$L$331*(1+rvanilla)^0.5)/A1stdlife)) -> 0 | AO123: =IF(A1stdlife="n/a","n/a",IF(AO$3>(A1stdlife+$E123),(Input!$L$331*(1+rvanilla)^0.5)-SUM($L123:AN123),(Input!$L$331*(1+rvanilla)^0.5)/A1stdlife)) -> 0 | AP123: =IF(A1stdlife="n/a","n/a",IF(AP$3>(A1stdlife+$E123),(Input!$L$331*(1+rvanilla)^0.5)-SUM($L123:AO123),(Input!$L$331*(1+rvanilla)^0.5)/A1stdlife)) -> 0 | AQ123: =IF(A1stdlife="n/a","n/a",IF(AQ$3>(A1stdlife+$E123),(Input!$L$331*(1+rvanilla)^0.5)-SUM($L123:AP123),(Input!$L$331*(1+rvanilla)^0.5)/A1stdlife)) -> 0 | AR123: =IF(A1stdlife="n/a","n/a",IF(AR$3>(A1stdlife+$E123),(Input!$L$331*(1+rvanilla)^0.5)-SUM($L123:AQ123),(Input!$L$331*(1+rvanilla)^0.5)/A1stdlife)) -> 0 | AS123: =IF(A1stdlife="n/a","n/a",IF(AS$3>(A1stdlife+$E123),(Input!$L$331*(1+rvanilla)^0.5)-SUM($L123:AR123),(Input!$L$331*(1+rvanilla)^0.5)/A1stdlife)) -> 0 | AT123: =IF(A1stdlife="n/a","n/a",IF(AT$3>(A1stdlife+$E123),(Input!$L$331*(1+rvanilla)^0.5)-SUM($L123:AS123),(Input!$L$331*(1+rvanilla)^0.5)/A1stdlife)) -> 0 | AU123: =IF(A1stdlife="n/a","n/a",IF(AU$3>(A1stdlife+$E123),(Input!$L$331*(1+rvanilla)^0.5)-SUM($L123:AT123),(Input!$L$331*(1+rvanilla)^0.5)/A1stdlife)) -> 0 | AV123: =IF(A1stdlife="n/a","n/a",IF(AV$3>(A1stdlife+$E123),(Input!$L$331*(1+rvanilla)^0.5)-SUM($L123:AU123),(Input!$L$331*(1+rvanilla)^0.5)/A1stdlife)) -> 0 | AW123: =IF(A1stdlife="n/a","n/a",IF(AW$3>(A1stdlife+$E123),(Input!$L$331*(1+rvanilla)^0.5)-SUM($L123:AV123),(Input!$L$331*(1+rvanilla)^0.5)/A1stdlife)) -> 0 | AX123: =IF(A1stdlife="n/a","n/a",IF(AX$3>(A1stdlife+$E123),(Input!$L$331*(1+rvanilla)^0.5)-SUM($L123:AW123),(Input!$L$331*(1+rvanilla)^0.5)/A1stdlife)) -> 0 | AY123: =IF(A1stdlife="n/a","n/a",IF(AY$3>(A1stdlife+$E123),(Input!$L$331*(1+rvanilla)^0.5)-SUM($L123:AX123),(Input!$L$331*(1+rvanilla)^0.5)/A1stdlife)) -> 0 | AZ123: =IF(A1stdlife="n/a","n/a",IF(AZ$3>(A1stdlife+$E123),(Input!$L$331*(1+rvanilla)^0.5)-SUM($L123:AY123),(Input!$L$331*(1+rvanilla)^0.5)/A1stdlife)) -> 0 | BA123: =IF(A1stdlife="n/a","n/a",IF(BA$3>(A1stdlife+$E123),(Input!$L$331*(1+rvanilla)^0.5)-SUM($L123:AZ123),(Input!$L$331*(1+rvanilla)^0.5)/A1stdlife)) -> 0 | BB123: =IF(A1stdlife="n/a","n/a",IF(BB$3>(A1stdlife+$E123),(Input!$L$331*(1+rvanilla)^0.5)-SUM($L123:BA123),(Input!$L$331*(1+rvanilla)^0.5)/A1stdlife)) -> 0 | BC123: =IF(A1stdlife="n/a","n/a",IF(BC$3>(A1stdlife+$E123),(Input!$L$331*(1+rvanilla)^0.5)-SUM($L123:BB123),(Input!$L$331*(1+rvanilla)^0.5)/A1stdlife)) -> 0 | BD123: =IF(A1stdlife="n/a","n/a",IF(BD$3>(A1stdlife+$E123),(Input!$L$331*(1+rvanilla)^0.5)-SUM($L123:BC123),(Input!$L$331*(1+rvanilla)^0.5)/A1stdlife)) -> 0 | BE123: =IF(A1stdlife="n/a","n/a",IF(BE$3>(A1stdlife+$E123),(Input!$L$331*(1+rvanilla)^0.5)-SUM($L123:BD123),(Input!$L$331*(1+rvanilla)^0.5)/A1stdlife)) -> 0 | BF123: =IF(A1stdlife="n/a","n/a",IF(BF$3>(A1stdlife+$E123),(Input!$L$331*(1+rvanilla)^0.5)-SUM($L123:BE123),(Input!$L$331*(1+rvanilla)^0.5)/A1stdlife)) -> 0 | BG123: =IF(A1stdlife="n/a","n/a",IF(BG$3>(A1stdlife+$E123),(Input!$L$331*(1+rvanilla)^0.5)-SUM($L123:BF123),(Input!$L$331*(1+rvanilla)^0.5)/A1stdlife)) -> 0 | BH123: =IF(A1stdlife="n/a","n/a",IF(BH$3>(A1stdlife+$E123),(Input!$L$331*(1+rvanilla)^0.5)-SUM($L123:BG123),(Input!$L$331*(1+rvanilla)^0.5)/A1stdlife)) -> 0 | BI123: =IF(A1stdlife="n/a","n/a",IF(BI$3>(A1stdlife+$E123),(Input!$L$331*(1+rvanilla)^0.5)-SUM($L123:BH123),(Input!$L$331*(1+rvanilla)^0.5)/A1stdlife)) -> 0
E124: 7 | N124: =IF(A1stdlife="n/a","n/a",IF(N$3>(A1stdlife+$E124),(Input!$M$331*(1+rvanilla)^0.5)-SUM($M124:M124),(Input!$M$331*(1+rvanilla)^0.5)/A1stdlife)) -> 0 | O124: =IF(A1stdlife="n/a","n/a",IF(O$3>(A1stdlife+$E124),(Input!$M$331*(1+rvanilla)^0.5)-SUM($M124:N124),(Input!$M$331*(1+rvanilla)^0.5)/A1stdlife)) -> 0 | P124: =IF(A1stdlife="n/a","n/a",IF(P$3>(A1stdlife+$E124),(Input!$M$331*(1+rvanilla)^0.5)-SUM($M124:O124),(Input!$M$331*(1+rvanilla)^0.5)/A1stdlife)) -> 0 | Q124: =IF(A1stdlife="n/a","n/a",IF(Q$3>(A1stdlife+$E124),(Input!$M$331*(1+rvanilla)^0.5)-SUM($M124:P124),(Input!$M$331*(1+rvanilla)^0.5)/A1stdlife)) -> 0 | R124: =IF(A1stdlife="n/a","n/a",IF(R$3>(A1stdlife+$E124),(Input!$M$331*(1+rvanilla)^0.5)-SUM($M124:Q124),(Input!$M$331*(1+rvanilla)^0.5)/A1stdlife)) -> 0 | S124: =IF(A1stdlife="n/a","n/a",IF(S$3>(A1stdlife+$E124),(Input!$M$331*(1+rvanilla)^0.5)-SUM($M124:R124),(Input!$M$331*(1+rvanilla)^0.5)/A1stdlife)) -> 0 | T124: =IF(A1stdlife="n/a","n/a",IF(T$3>(A1stdlife+$E124),(Input!$M$331*(1+rvanilla)^0.5)-SUM($M124:S124),(Input!$M$331*(1+rvanilla)^0.5)/A1stdlife)) -> 0 | U124: =IF(A1stdlife="n/a","n/a",IF(U$3>(A1stdlife+$E124),(Input!$M$331*(1+rvanilla)^0.5)-SUM($M124:T124),(Input!$M$331*(1+rvanilla)^0.5)/A1stdlife)) -> 0 | V124: =IF(A1stdlife="n/a","n/a",IF(V$3>(A1stdlife+$E124),(Input!$M$331*(1+rvanilla)^0.5)-SUM($M124:U124),(Input!$M$331*(1+rvanilla)^0.5)/A1stdlife)) -> 0 | W124: =IF(A1stdlife="n/a","n/a",IF(W$3>(A1stdlife+$E124),(Input!$M$331*(1+rvanilla)^0.5)-SUM($M124:V124),(Input!$M$331*(1+rvanilla)^0.5)/A1stdlife)) -> 0 | X124: =IF(A1stdlife="n/a","n/a",IF(X$3>(A1stdlife+$E124),(Input!$M$331*(1+rvanilla)^0.5)-SUM($M124:W124),(Input!$M$331*(1+rvanilla)^0.5)/A1stdlife)) -> 0 | Y124: =IF(A1stdlife="n/a","n/a",IF(Y$3>(A1stdlife+$E124),(Input!$M$331*(1+rvanilla)^0.5)-SUM($M124:X124),(Input!$M$331*(1+rvanilla)^0.5)/A1stdlife)) -> 0 | Z124: =IF(A1stdlife="n/a","n/a",IF(Z$3>(A1stdlife+$E124),(Input!$M$331*(1+rvanilla)^0.5)-SUM($M124:Y124),(Input!$M$331*(1+rvanilla)^0.5)/A1stdlife)) -> 0 | AA124: =IF(A1stdlife="n/a","n/a",IF(AA$3>(A1stdlife+$E124),(Input!$M$331*(1+rvanilla)^0.5)-SUM($M124:Z124),(Input!$M$331*(1+rvanilla)^0.5)/A1stdlife)) -> 0 | AB124: =IF(A1stdlife="n/a","n/a",IF(AB$3>(A1stdlife+$E124),(Input!$M$331*(1+rvanilla)^0.5)-SUM($M124:AA124),(Input!$M$331*(1+rvanilla)^0.5)/A1stdlife)) -> 0 | AC124: =IF(A1stdlife="n/a","n/a",IF(AC$3>(A1stdlife+$E124),(Input!$M$331*(1+rvanilla)^0.5)-SUM($M124:AB124),(Input!$M$331*(1+rvanilla)^0.5)/A1stdlife)) -> 0 | AD124: =IF(A1stdlife="n/a","n/a",IF(AD$3>(A1stdlife+$E124),(Input!$M$331*(1+rvanilla)^0.5)-SUM($M124:AC124),(Input!$M$331*(1+rvanilla)^0.5)/A1stdlife)) -> 0 | AE124: =IF(A1stdlife="n/a","n/a",IF(AE$3>(A1stdlife+$E124),(Input!$M$331*(1+rvanilla)^0.5)-SUM($M124:AD124),(Input!$M$331*(1+rvanilla)^0.5)/A1stdlife)) -> 0 | AF124: =IF(A1stdlife="n/a","n/a",IF(AF$3>(A1stdlife+$E124),(Input!$M$331*(1+rvanilla)^0.5)-SUM($M124:AE124),(Input!$M$331*(1+rvanilla)^0.5)/A1stdlife)) -> 0 | AG124: =IF(A1stdlife="n/a","n/a",IF(AG$3>(A1stdlife+$E124),(Input!$M$331*(1+rvanilla)^0.5)-SUM($M124:AF124),(Input!$M$331*(1+rvanilla)^0.5)/A1stdlife)) -> 0 | AH124: =IF(A1stdlife="n/a","n/a",IF(AH$3>(A1stdlife+$E124),(Input!$M$331*(1+rvanilla)^0.5)-SUM($M124:AG124),(Input!$M$331*(1+rvanilla)^0.5)/A1stdlife)) -> 0 | AI124: =IF(A1stdlife="n/a","n/a",IF(AI$3>(A1stdlife+$E124),(Input!$M$331*(1+rvanilla)^0.5)-SUM($M124:AH124),(Input!$M$331*(1+rvanilla)^0.5)/A1stdlife)) -> 0 | AJ124: =IF(A1stdlife="n/a","n/a",IF(AJ$3>(A1stdlife+$E124),(Input!$M$331*(1+rvanilla)^0.5)-SUM($M124:AI124),(Input!$M$331*(1+rvanilla)^0.5)/A1stdlife)) -> 0 | AK124: =IF(A1stdlife="n/a","n/a",IF(AK$3>(A1stdlife+$E124),(Input!$M$331*(1+rvanilla)^0.5)-SUM($M124:AJ124),(Input!$M$331*(1+rvanilla)^0.5)/A1stdlife)) -> 0 | AL124: =IF(A1stdlife="n/a","n/a",IF(AL$3>(A1stdlife+$E124),(Input!$M$331*(1+rvanilla)^0.5)-SUM($M124:AK124),(Input!$M$331*(1+rvanilla)^0.5)/A1stdlife)) -> 0 | AM124: =IF(A1stdlife="n/a","n/a",IF(AM$3>(A1stdlife+$E124),(Input!$M$331*(1+rvanilla)^0.5)-SUM($M124:AL124),(Input!$M$331*(1+rvanilla)^0.5)/A1stdlife)) -> 0 | AN124: =IF(A1stdlife="n/a","n/a",IF(AN$3>(A1stdlife+$E124),(Input!$M$331*(1+rvanilla)^0.5)-SUM($M124:AM124),(Input!$M$331*(1+rvanilla)^0.5)/A1stdlife)) -> 0 | AO124: =IF(A1stdlife="n/a","n/a",IF(AO$3>(A1stdlife+$E124),(Input!$M$331*(1+rvanilla)^0.5)-SUM($M124:AN124),(Input!$M$331*(1+rvanilla)^0.5)/A1stdlife)) -> 0 | AP124: =IF(A1stdlife="n/a","n/a",IF(AP$3>(A1stdlife+$E124),(Input!$M$331*(1+rvanilla)^0.5)-SUM($M124:AO124),(Input!$M$331*(1+rvanilla)^0.5)/A1stdlife)) -> 0 | AQ124: =IF(A1stdlife="n/a","n/a",IF(AQ$3>(A1stdlife+$E124),(Input!$M$331*(1+rvanilla)^0.5)-SUM($M124:AP124),(Input!$M$331*(1+rvanilla)^0.5)/A1stdlife)) -> 0 | AR124: =IF(A1stdlife="n/a","n/a",IF(AR$3>(A1stdlife+$E124),(Input!$M$331*(1+rvanilla)^0.5)-SUM($M124:AQ124),(Input!$M$331*(1+rvanilla)^0.5)/A1stdlife)) -> 0 | AS124: =IF(A1stdlife="n/a","n/a",IF(AS$3>(A1stdlife+$E124),(Input!$M$331*(1+rvanilla)^0.5)-SUM($M124:AR124),(Input!$M$331*(1+rvanilla)^0.5)/A1stdlife)) -> 0 | AT124: =IF(A1stdlife="n/a","n/a",IF(AT$3>(A1stdlife+$E124),(Input!$M$331*(1+rvanilla)^0.5)-SUM($M124:AS124),(Input!$M$331*(1+rvanilla)^0.5)/A1stdlife)) -> 0 | AU124: =IF(A1stdlife="n/a","n/a",IF(AU$3>(A1stdlife+$E124),(Input!$M$331*(1+rvanilla)^0.5)-SUM($M124:AT124),(Input!$M$331*(1+rvanilla)^0.5)/A1stdlife)) -> 0 | AV124: =IF(A1stdlife="n/a","n/a",IF(AV$3>(A1stdlife+$E124),(Input!$M$331*(1+rvanilla)^0.5)-SUM($M124:AU124),(Input!$M$331*(1+rvanilla)^0.5)/A1stdlife)) -> 0 | AW124: =IF(A1stdlife="n/a","n/a",IF(AW$3>(A1stdlife+$E124),(Input!$M$331*(1+rvanilla)^0.5)-SUM($M124:AV124),(Input!$M$331*(1+rvanilla)^0.5)/A1stdlife)) -> 0 | AX124: =IF(A1stdlife="n/a","n/a",IF(AX$3>(A1stdlife+$E124),(Input!$M$331*(1+rvanilla)^0.5)-SUM($M124:AW124),(Input!$M$331*(1+rvanilla)^0.5)/A1stdlife)) -> 0 | AY124: =IF(A1stdlife="n/a","n/a",IF(AY$3>(A1stdlife+$E124),(Input!$M$331*(1+rvanilla)^0.5)-SUM($M124:AX124),(Input!$M$331*(1+rvanilla)^0.5)/A1stdlife)) -> 0 | AZ124: =IF(A1stdlife="n/a","n/a",IF(AZ$3>(A1stdlife+$E124),(Input!$M$331*(1+rvanilla)^0.5)-SUM($M124:AY124),(Input!$M$331*(1+rvanilla)^0.5)/A1stdlife)) -> 0 | BA124: =IF(A1stdlife="n/a","n/a",IF(BA$3>(A1stdlife+$E124),(Input!$M$331*(1+rvanilla)^0.5)-SUM($M124:AZ124),(Input!$M$331*(1+rvanilla)^0.5)/A1stdlife)) -> 0 | BB124: =IF(A1stdlife="n/a","n/a",IF(BB$3>(A1stdlife+$E124),(Input!$M$331*(1+rvanilla)^0.5)-SUM($M124:BA124),(Input!$M$331*(1+rvanilla)^0.5)/A1stdlife)) -> 0 | BC124: =IF(A1stdlife="n/a","n/a",IF(BC$3>(A1stdlife+$E124),(Input!$M$331*(1+rvanilla)^0.5)-SUM($M124:BB124),(Input!$M$331*(1+rvanilla)^0.5)/A1stdlife)) -> 0 | BD124: =IF(A1stdlife="n/a","n/a",IF(BD$3>(A1stdlife+$E124),(Input!$M$331*(1+rvanilla)^0.5)-SUM($M124:BC124),(Input!$M$331*(1+rvanilla)^0.5)/A1stdlife)) -> 0 | BE124: =IF(A1stdlife="n/a","n/a",IF(BE$3>(A1stdlife+$E124),(Input!$M$331*(1+rvanilla)^0.5)-SUM($M124:BD124),(Input!$M$331*(1+rvanilla)^0.5)/A1stdlife)) -> 0 | BF124: =IF(A1stdlife="n/a","n/a",IF(BF$3>(A1stdlife+$E124),(Input!$M$331*(1+rvanilla)^0.5)-SUM($M124:BE124),(Input!$M$331*(1+rvanilla)^0.5)/A1stdlife)) -> 0 | BG124: =IF(A1stdlife="n/a","n/a",IF(BG$3>(A1stdlife+$E124),(Input!$M$331*(1+rvanilla)^0.5)-SUM($M124:BF124),(Input!$M$331*(1+rvanilla)^0.5)/A1stdlife)) -> 0 | BH124: =IF(A1stdlife="n/a","n/a",IF(BH$3>(A1stdlife+$E124),(Input!$M$331*(1+rvanilla)^0.5)-SUM($M124:BG124),(Input!$M$331*(1+rvanilla)^0.5)/A1stdlife)) -> 0 | BI124: =IF(A1stdlife="n/a","n/a",IF(BI$3>(A1stdlife+$E124),(Input!$M$331*(1+rvanilla)^0.5)-SUM($M124:BH124),(Input!$M$331*(1+rvanilla)^0.5)/A1stdlife)) -> 0
E125: 8 | O125: =IF(A1stdlife="n/a","n/a",IF(O$3>(A1stdlife+$E125),(Input!$N$331*(1+rvanilla)^0.5)-SUM($N125:N125),(Input!$N$331*(1+rvanilla)^0.5)/A1stdlife)) -> 0 | P125: =IF(A1stdlife="n/a","n/a",IF(P$3>(A1stdlife+$E125),(Input!$N$331*(1+rvanilla)^0.5)-SUM($N125:O125),(Input!$N$331*(1+rvanilla)^0.5)/A1stdlife)) -> 0 | Q125: =IF(A1stdlife="n/a","n/a",IF(Q$3>(A1stdlife+$E125),(Input!$N$331*(1+rvanilla)^0.5)-SUM($N125:P125),(Input!$N$331*(1+rvanilla)^0.5)/A1stdlife)) -> 0 | R125: =IF(A1stdlife="n/a","n/a",IF(R$3>(A1stdlife+$E125),(Input!$N$331*(1+rvanilla)^0.5)-SUM($N125:Q125),(Input!$N$331*(1+rvanilla)^0.5)/A1stdlife)) -> 0 | S125: =IF(A1stdlife="n/a","n/a",IF(S$3>(A1stdlife+$E125),(Input!$N$331*(1+rvanilla)^0.5)-SUM($N125:R125),(Input!$N$331*(1+rvanilla)^0.5)/A1stdlife)) -> 0 | T125: =IF(A1stdlife="n/a","n/a",IF(T$3>(A1stdlife+$E125),(Input!$N$331*(1+rvanilla)^0.5)-SUM($N125:S125),(Input!$N$331*(1+rvanilla)^0.5)/A1stdlife)) -> 0 | U125: =IF(A1stdlife="n/a","n/a",IF(U$3>(A1stdlife+$E125),(Input!$N$331*(1+rvanilla)^0.5)-SUM($N125:T125),(Input!$N$331*(1+rvanilla)^0.5)/A1stdlife)) -> 0 | V125: =IF(A1stdlife="n/a","n/a",IF(V$3>(A1stdlife+$E125),(Input!$N$331*(1+rvanilla)^0.5)-SUM($N125:U125),(Input!$N$331*(1+rvanilla)^0.5)/A1stdlife)) -> 0 | W125: =IF(A1stdlife="n/a","n/a",IF(W$3>(A1stdlife+$E125),(Input!$N$331*(1+rvanilla)^0.5)-SUM($N125:V125),(Input!$N$331*(1+rvanilla)^0.5)/A1stdlife)) -> 0 | X125: =IF(A1stdlife="n/a","n/a",IF(X$3>(A1stdlife+$E125),(Input!$N$331*(1+rvanilla)^0.5)-SUM($N125:W125),(Input!$N$331*(1+rvanilla)^0.5)/A1stdlife)) -> 0 | Y125: =IF(A1stdlife="n/a","n/a",IF(Y$3>(A1stdlife+$E125),(Input!$N$331*(1+rvanilla)^0.5)-SUM($N125:X125),(Input!$N$331*(1+rvanilla)^0.5)/A1stdlife)) -> 0 | Z125: =IF(A1stdlife="n/a","n/a",IF(Z$3>(A1stdlife+$E125),(Input!$N$331*(1+rvanilla)^0.5)-SUM($N125:Y125),(Input!$N$331*(1+rvanilla)^0.5)/A1stdlife)) -> 0 | AA125: =IF(A1stdlife="n/a","n/a",IF(AA$3>(A1stdlife+$E125),(Input!$N$331*(1+rvanilla)^0.5)-SUM($N125:Z125),(Input!$N$331*(1+rvanilla)^0.5)/A1stdlife)) -> 0 | AB125: =IF(A1stdlife="n/a","n/a",IF(AB$3>(A1stdlife+$E125),(Input!$N$331*(1+rvanilla)^0.5)-SUM($N125:AA125),(Input!$N$331*(1+rvanilla)^0.5)/A1stdlife)) -> 0 | AC125: =IF(A1stdlife="n/a","n/a",IF(AC$3>(A1stdlife+$E125),(Input!$N$331*(1+rvanilla)^0.5)-SUM($N125:AB125),(Input!$N$331*(1+rvanilla)^0.5)/A1stdlife)) -> 0 | AD125: =IF(A1stdlife="n/a","n/a",IF(AD$3>(A1stdlife+$E125),(Input!$N$331*(1+rvanilla)^0.5)-SUM($N125:AC125),(Input!$N$331*(1+rvanilla)^0.5)/A1stdlife)) -> 0 | AE125: =IF(A1stdlife="n/a","n/a",IF(AE$3>(A1stdlife+$E125),(Input!$N$331*(1+rvanilla)^0.5)-SUM($N125:AD125),(Input!$N$331*(1+rvanilla)^0.5)/A1stdlife)) -> 0 | AF125: =IF(A1stdlife="n/a","n/a",IF(AF$3>(A1stdlife+$E125),(Input!$N$331*(1+rvanilla)^0.5)-SUM($N125:AE125),(Input!$N$331*(1+rvanilla)^0.5)/A1stdlife)) -> 0 | AG125: =IF(A1stdlife="n/a","n/a",IF(AG$3>(A1stdlife+$E125),(Input!$N$331*(1+rvanilla)^0.5)-SUM($N125:AF125),(Input!$N$331*(1+rvanilla)^0.5)/A1stdlife)) -> 0 | AH125: =IF(A1stdlife="n/a","n/a",IF(AH$3>(A1stdlife+$E125),(Input!$N$331*(1+rvanilla)^0.5)-SUM($N125:AG125),(Input!$N$331*(1+rvanilla)^0.5)/A1stdlife)) -> 0 | AI125: =IF(A1stdlife="n/a","n/a",IF(AI$3>(A1stdlife+$E125),(Input!$N$331*(1+rvanilla)^0.5)-SUM($N125:AH125),(Input!$N$331*(1+rvanilla)^0.5)/A1stdlife)) -> 0 | AJ125: =IF(A1stdlife="n/a","n/a",IF(AJ$3>(A1stdlife+$E125),(Input!$N$331*(1+rvanilla)^0.5)-SUM($N125:AI125),(Input!$N$331*(1+rvanilla)^0.5)/A1stdlife)) -> 0 | AK125: =IF(A1stdlife="n/a","n/a",IF(AK$3>(A1stdlife+$E125),(Input!$N$331*(1+rvanilla)^0.5)-SUM($N125:AJ125),(Input!$N$331*(1+rvanilla)^0.5)/A1stdlife)) -> 0 | AL125: =IF(A1stdlife="n/a","n/a",IF(AL$3>(A1stdlife+$E125),(Input!$N$331*(1+rvanilla)^0.5)-SUM($N125:AK125),(Input!$N$331*(1+rvanilla)^0.5)/A1stdlife)) -> 0 | AM125: =IF(A1stdlife="n/a","n/a",IF(AM$3>(A1stdlife+$E125),(Input!$N$331*(1+rvanilla)^0.5)-SUM($N125:AL125),(Input!$N$331*(1+rvanilla)^0.5)/A1stdlife)) -> 0 | AN125: =IF(A1stdlife="n/a","n/a",IF(AN$3>(A1stdlife+$E125),(Input!$N$331*(1+rvanilla)^0.5)-SUM($N125:AM125),(Input!$N$331*(1+rvanilla)^0.5)/A1stdlife)) -> 0 | AO125: =IF(A1stdlife="n/a","n/a",IF(AO$3>(A1stdlife+$E125),(Input!$N$331*(1+rvanilla)^0.5)-SUM($N125:AN125),(Input!$N$331*(1+rvanilla)^0.5)/A1stdlife)) -> 0 | AP125: =IF(A1stdlife="n/a","n/a",IF(AP$3>(A1stdlife+$E125),(Input!$N$331*(1+rvanilla)^0.5)-SUM($N125:AO125),(Input!$N$331*(1+rvanilla)^0.5)/A1stdlife)) -> 0 | AQ125: =IF(A1stdlife="n/a","n/a",IF(AQ$3>(A1stdlife+$E125),(Input!$N$331*(1+rvanilla)^0.5)-SUM($N125:AP125),(Input!$N$331*(1+rvanilla)^0.5)/A1stdlife)) -> 0 | AR125: =IF(A1stdlife="n/a","n/a",IF(AR$3>(A1stdlife+$E125),(Input!$N$331*(1+rvanilla)^0.5)-SUM($N125:AQ125),(Input!$N$331*(1+rvanilla)^0.5)/A1stdlife)) -> 0 | AS125: =IF(A1stdlife="n/a","n/a",IF(AS$3>(A1stdlife+$E125),(Input!$N$331*(1+rvanilla)^0.5)-SUM($N125:AR125),(Input!$N$331*(1+rvanilla)^0.5)/A1stdlife)) -> 0 | AT125: =IF(A1stdlife="n/a","n/a",IF(AT$3>(A1stdlife+$E125),(Input!$N$331*(1+rvanilla)^0.5)-SUM($N125:AS125),(Input!$N$331*(1+rvanilla)^0.5)/A1stdlife)) -> 0 | AU125: =IF(A1stdlife="n/a","n/a",IF(AU$3>(A1stdlife+$E125),(Input!$N$331*(1+rvanilla)^0.5)-SUM($N125:AT125),(Input!$N$331*(1+rvanilla)^0.5)/A1stdlife)) -> 0 | AV125: =IF(A1stdlife="n/a","n/a",IF(AV$3>(A1stdlife+$E125),(Input!$N$331*(1+rvanilla)^0.5)-SUM($N125:AU125),(Input!$N$331*(1+rvanilla)^0.5)/A1stdlife)) -> 0 | AW125: =IF(A1stdlife="n/a","n/a",IF(AW$3>(A1stdlife+$E125),(Input!$N$331*(1+rvanilla)^0.5)-SUM($N125:AV125),(Input!$N$331*(1+rvanilla)^0.5)/A1stdlife)) -> 0 | AX125: =IF(A1stdlife="n/a","n/a",IF(AX$3>(A1stdlife+$E125),(Input!$N$331*(1+rvanilla)^0.5)-SUM($N125:AW125),(Input!$N$331*(1+rvanilla)^0.5)/A1stdlife)) -> 0 | AY125: =IF(A1stdlife="n/a","n/a",IF(AY$3>(A1stdlife+$E125),(Input!$N$331*(1+rvanilla)^0.5)-SUM($N125:AX125),(Input!$N$331*(1+rvanilla)^0.5)/A1stdlife)) -> 0 | AZ125: =IF(A1stdlife="n/a","n/a",IF(AZ$3>(A1stdlife+$E125),(Input!$N$331*(1+rvanilla)^0.5)-SUM($N125:AY125),(Input!$N$331*(1+rvanilla)^0.5)/A1stdlife)) -> 0 | BA125: =IF(A1stdlife="n/a","n/a",IF(BA$3>(A1stdlife+$E125),(Input!$N$331*(1+rvanilla)^0.5)-SUM($N125:AZ125),(Input!$N$331*(1+rvanilla)^0.5)/A1stdlife)) -> 0 | BB125: =IF(A1stdlife="n/a","n/a",IF(BB$3>(A1stdlife+$E125),(Input!$N$331*(1+rvanilla)^0.5)-SUM($N125:BA125),(Input!$N$331*(1+rvanilla)^0.5)/A1stdlife)) -> 0 | BC125: =IF(A1stdlife="n/a","n/a",IF(BC$3>(A1stdlife+$E125),(Input!$N$331*(1+rvanilla)^0.5)-SUM($N125:BB125),(Input!$N$331*(1+rvanilla)^0.5)/A1stdlife)) -> 0 | BD125: =IF(A1stdlife="n/a","n/a",IF(BD$3>(A1stdlife+$E125),(Input!$N$331*(1+rvanilla)^0.5)-SUM($N125:BC125),(Input!$N$331*(1+rvanilla)^0.5)/A1stdlife)) -> 0 | BE125: =IF(A1stdlife="n/a","n/a",IF(BE$3>(A1stdlife+$E125),(Input!$N$331*(1+rvanilla)^0.5)-SUM($N125:BD125),(Input!$N$331*(1+rvanilla)^0.5)/A1stdlife)) -> 0 | BF125: =IF(A1stdlife="n/a","n/a",IF(BF$3>(A1stdlife+$E125),(Input!$N$331*(1+rvanilla)^0.5)-SUM($N125:BE125),(Input!$N$331*(1+rvanilla)^0.5)/A1stdlife)) -> 0 | BG125: =IF(A1stdlife="n/a","n/a",IF(BG$3>(A1stdlife+$E125),(Input!$N$331*(1+rvanilla)^0.5)-SUM($N125:BF125),(Input!$N$331*(1+rvanilla)^0.5)/A1stdlife)) -> 0 | BH125: =IF(A1stdlife="n/a","n/a",IF(BH$3>(A1stdlife+$E125),(Input!$N$331*(1+rvanilla)^0.5)-SUM($N125:BG125),(Input!$N$331*(1+rvanilla)^0.5)/A1stdlife)) -> 0 | BI125: =IF(A1stdlife="n/a","n/a",IF(BI$3>(A1stdlife+$E125),(Input!$N$331*(1+rvanilla)^0.5)-SUM($N125:BH125),(Input!$N$331*(1+rvanilla)^0.5)/A1stdlife)) -> 0
E126: 9 | P126: =IF(A1stdlife="n/a","n/a",IF(P$3>(A1stdlife+$E126),(Input!$O$331*(1+rvanilla)^0.5)-SUM($O126:O126),(Input!$O$331*(1+rvanilla)^0.5)/A1stdlife)) -> 0 | Q126: =IF(A1stdlife="n/a","n/a",IF(Q$3>(A1stdlife+$E126),(Input!$O$331*(1+rvanilla)^0.5)-SUM($O126:P126),(Input!$O$331*(1+rvanilla)^0.5)/A1stdlife)) -> 0 | R126: =IF(A1stdlife="n/a","n/a",IF(R$3>(A1stdlife+$E126),(Input!$O$331*(1+rvanilla)^0.5)-SUM($O126:Q126),(Input!$O$331*(1+rvanilla)^0.5)/A1stdlife)) -> 0 | S126: =IF(A1stdlife="n/a","n/a",IF(S$3>(A1stdlife+$E126),(Input!$O$331*(1+rvanilla)^0.5)-SUM($O126:R126),(Input!$O$331*(1+rvanilla)^0.5)/A1stdlife)) -> 0 | T126: =IF(A1stdlife="n/a","n/a",IF(T$3>(A1stdlife+$E126),(Input!$O$331*(1+rvanilla)^0.5)-SUM($O126:S126),(Input!$O$331*(1+rvanilla)^0.5)/A1stdlife)) -> 0 | U126: =IF(A1stdlife="n/a","n/a",IF(U$3>(A1stdlife+$E126),(Input!$O$331*(1+rvanilla)^0.5)-SUM($O126:T126),(Input!$O$331*(1+rvanilla)^0.5)/A1stdlife)) -> 0 | V126: =IF(A1stdlife="n/a","n/a",IF(V$3>(A1stdlife+$E126),(Input!$O$331*(1+rvanilla)^0.5)-SUM($O126:U126),(Input!$O$331*(1+rvanilla)^0.5)/A1stdlife)) -> 0 | W126: =IF(A1stdlife="n/a","n/a",IF(W$3>(A1stdlife+$E126),(Input!$O$331*(1+rvanilla)^0.5)-SUM($O126:V126),(Input!$O$331*(1+rvanilla)^0.5)/A1stdlife)) -> 0 | X126: =IF(A1stdlife="n/a","n/a",IF(X$3>(A1stdlife+$E126),(Input!$O$331*(1+rvanilla)^0.5)-SUM($O126:W126),(Input!$O$331*(1+rvanilla)^0.5)/A1stdlife)) -> 0 | Y126: =IF(A1stdlife="n/a","n/a",IF(Y$3>(A1stdlife+$E126),(Input!$O$331*(1+rvanilla)^0.5)-SUM($O126:X126),(Input!$O$331*(1+rvanilla)^0.5)/A1stdlife)) -> 0 | Z126: =IF(A1stdlife="n/a","n/a",IF(Z$3>(A1stdlife+$E126),(Input!$O$331*(1+rvanilla)^0.5)-SUM($O126:Y126),(Input!$O$331*(1+rvanilla)^0.5)/A1stdlife)) -> 0 | AA126: =IF(A1stdlife="n/a","n/a",IF(AA$3>(A1stdlife+$E126),(Input!$O$331*(1+rvanilla)^0.5)-SUM($O126:Z126),(Input!$O$331*(1+rvanilla)^0.5)/A1stdlife)) -> 0 | AB126: =IF(A1stdlife="n/a","n/a",IF(AB$3>(A1stdlife+$E126),(Input!$O$331*(1+rvanilla)^0.5)-SUM($O126:AA126),(Input!$O$331*(1+rvanilla)^0.5)/A1stdlife)) -> 0 | AC126: =IF(A1stdlife="n/a","n/a",IF(AC$3>(A1stdlife+$E126),(Input!$O$331*(1+rvanilla)^0.5)-SUM($O126:AB126),(Input!$O$331*(1+rvanilla)^0.5)/A1stdlife)) -> 0 | AD126: =IF(A1stdlife="n/a","n/a",IF(AD$3>(A1stdlife+$E126),(Input!$O$331*(1+rvanilla)^0.5)-SUM($O126:AC126),(Input!$O$331*(1+rvanilla)^0.5)/A1stdlife)) -> 0 | AE126: =IF(A1stdlife="n/a","n/a",IF(AE$3>(A1stdlife+$E126),(Input!$O$331*(1+rvanilla)^0.5)-SUM($O126:AD126),(Input!$O$331*(1+rvanilla)^0.5)/A1stdlife)) -> 0 | AF126: =IF(A1stdlife="n/a","n/a",IF(AF$3>(A1stdlife+$E126),(Input!$O$331*(1+rvanilla)^0.5)-SUM($O126:AE126),(Input!$O$331*(1+rvanilla)^0.5)/A1stdlife)) -> 0 | AG126: =IF(A1stdlife="n/a","n/a",IF(AG$3>(A1stdlife+$E126),(Input!$O$331*(1+rvanilla)^0.5)-SUM($O126:AF126),(Input!$O$331*(1+rvanilla)^0.5)/A1stdlife)) -> 0 | AH126: =IF(A1stdlife="n/a","n/a",IF(AH$3>(A1stdlife+$E126),(Input!$O$331*(1+rvanilla)^0.5)-SUM($O126:AG126),(Input!$O$331*(1+rvanilla)^0.5)/A1stdlife)) -> 0 | AI126: =IF(A1stdlife="n/a","n/a",IF(AI$3>(A1stdlife+$E126),(Input!$O$331*(1+rvanilla)^0.5)-SUM($O126:AH126),(Input!$O$331*(1+rvanilla)^0.5)/A1stdlife)) -> 0 | AJ126: =IF(A1stdlife="n/a","n/a",IF(AJ$3>(A1stdlife+$E126),(Input!$O$331*(1+rvanilla)^0.5)-SUM($O126:AI126),(Input!$O$331*(1+rvanilla)^0.5)/A1stdlife)) -> 0 | AK126: =IF(A1stdlife="n/a","n/a",IF(AK$3>(A1stdlife+$E126),(Input!$O$331*(1+rvanilla)^0.5)-SUM($O126:AJ126),(Input!$O$331*(1+rvanilla)^0.5)/A1stdlife)) -> 0 | AL126: =IF(A1stdlife="n/a","n/a",IF(AL$3>(A1stdlife+$E126),(Input!$O$331*(1+rvanilla)^0.5)-SUM($O126:AK126),(Input!$O$331*(1+rvanilla)^0.5)/A1stdlife)) -> 0 | AM126: =IF(A1stdlife="n/a","n/a",IF(AM$3>(A1stdlife+$E126),(Input!$O$331*(1+rvanilla)^0.5)-SUM($O126:AL126),(Input!$O$331*(1+rvanilla)^0.5)/A1stdlife)) -> 0 | AN126: =IF(A1stdlife="n/a","n/a",IF(AN$3>(A1stdlife+$E126),(Input!$O$331*(1+rvanilla)^0.5)-SUM($O126:AM126),(Input!$O$331*(1+rvanilla)^0.5)/A1stdlife)) -> 0 | AO126: =IF(A1stdlife="n/a","n/a",IF(AO$3>(A1stdlife+$E126),(Input!$O$331*(1+rvanilla)^0.5)-SUM($O126:AN126),(Input!$O$331*(1+rvanilla)^0.5)/A1stdlife)) -> 0 | AP126: =IF(A1stdlife="n/a","n/a",IF(AP$3>(A1stdlife+$E126),(Input!$O$331*(1+rvanilla)^0.5)-SUM($O126:AO126),(Input!$O$331*(1+rvanilla)^0.5)/A1stdlife)) -> 0 | AQ126: =IF(A1stdlife="n/a","n/a",IF(AQ$3>(A1stdlife+$E126),(Input!$O$331*(1+rvanilla)^0.5)-SUM($O126:AP126),(Input!$O$331*(1+rvanilla)^0.5)/A1stdlife)) -> 0 | AR126: =IF(A1stdlife="n/a","n/a",IF(AR$3>(A1stdlife+$E126),(Input!$O$331*(1+rvanilla)^0.5)-SUM($O126:AQ126),(Input!$O$331*(1+rvanilla)^0.5)/A1stdlife)) -> 0 | AS126: =IF(A1stdlife="n/a","n/a",IF(AS$3>(A1stdlife+$E126),(Input!$O$331*(1+rvanilla)^0.5)-SUM($O126:AR126),(Input!$O$331*(1+rvanilla)^0.5)/A1stdlife)) -> 0 | AT126: =IF(A1stdlife="n/a","n/a",IF(AT$3>(A1stdlife+$E126),(Input!$O$331*(1+rvanilla)^0.5)-SUM($O126:AS126),(Input!$O$331*(1+rvanilla)^0.5)/A1stdlife)) -> 0 | AU126: =IF(A1stdlife="n/a","n/a",IF(AU$3>(A1stdlife+$E126),(Input!$O$331*(1+rvanilla)^0.5)-SUM($O126:AT126),(Input!$O$331*(1+rvanilla)^0.5)/A1stdlife)) -> 0 | AV126: =IF(A1stdlife="n/a","n/a",IF(AV$3>(A1stdlife+$E126),(Input!$O$331*(1+rvanilla)^0.5)-SUM($O126:AU126),(Input!$O$331*(1+rvanilla)^0.5)/A1stdlife)) -> 0 | AW126: =IF(A1stdlife="n/a","n/a",IF(AW$3>(A1stdlife+$E126),(Input!$O$331*(1+rvanilla)^0.5)-SUM($O126:AV126),(Input!$O$331*(1+rvanilla)^0.5)/A1stdlife)) -> 0 | AX126: =IF(A1stdlife="n/a","n/a",IF(AX$3>(A1stdlife+$E126),(Input!$O$331*(1+rvanilla)^0.5)-SUM($O126:AW126),(Input!$O$331*(1+rvanilla)^0.5)/A1stdlife)) -> 0 | AY126: =IF(A1stdlife="n/a","n/a",IF(AY$3>(A1stdlife+$E126),(Input!$O$331*(1+rvanilla)^0.5)-SUM($O126:AX126),(Input!$O$331*(1+rvanilla)^0.5)/A1stdlife)) -> 0 | AZ126: =IF(A1stdlife="n/a","n/a",IF(AZ$3>(A1stdlife+$E126),(Input!$O$331*(1+rvanilla)^0.5)-SUM($O126:AY126),(Input!$O$331*(1+rvanilla)^0.5)/A1stdlife)) -> 0 | BA126: =IF(A1stdlife="n/a","n/a",IF(BA$3>(A1stdlife+$E126),(Input!$O$331*(1+rvanilla)^0.5)-SUM($O126:AZ126),(Input!$O$331*(1+rvanilla)^0.5)/A1stdlife)) -> 0 | BB126: =IF(A1stdlife="n/a","n/a",IF(BB$3>(A1stdlife+$E126),(Input!$O$331*(1+rvanilla)^0.5)-SUM($O126:BA126),(Input!$O$331*(1+rvanilla)^0.5)/A1stdlife)) -> 0 | BC126: =IF(A1stdlife="n/a","n/a",IF(BC$3>(A1stdlife+$E126),(Input!$O$331*(1+rvanilla)^0.5)-SUM($O126:BB126),(Input!$O$331*(1+rvanilla)^0.5)/A1stdlife)) -> 0 | BD126: =IF(A1stdlife="n/a","n/a",IF(BD$3>(A1stdlife+$E126),(Input!$O$331*(1+rvanilla)^0.5)-SUM($O126:BC126),(Input!$O$331*(1+rvanilla)^0.5)/A1stdlife)) -> 0 | BE126: =IF(A1stdlife="n/a","n/a",IF(BE$3>(A1stdlife+$E126),(Input!$O$331*(1+rvanilla)^0.5)-SUM($O126:BD126),(Input!$O$331*(1+rvanilla)^0.5)/A1stdlife)) -> 0 | BF126: =IF(A1stdlife="n/a","n/a",IF(BF$3>(A1stdlife+$E126),(Input!$O$331*(1+rvanilla)^0.5)-SUM($O126:BE126),(Input!$O$331*(1+rvanilla)^0.5)/A1stdlife)) -> 0 | BG126: =IF(A1stdlife="n/a","n/a",IF(BG$3>(A1stdlife+$E126),(Input!$O$331*(1+rvanilla)^0.5)-SUM($O126:BF126),(Input!$O$331*(1+rvanilla)^0.5)/A1stdlife)) -> 0 | BH126: =IF(A1stdlife="n/a","n/a",IF(BH$3>(A1stdlife+$E126),(Input!$O$331*(1+rvanilla)^0.5)-SUM($O126:BG126),(Input!$O$331*(1+rvanilla)^0.5)/A1stdlife)) -> 0 | BI126: =IF(A1stdlife="n/a","n/a",IF(BI$3>(A1stdlife+$E126),(Input!$O$331*(1+rvanilla)^0.5)-SUM($O126:BH126),(Input!$O$331*(1+rvanilla)^0.5)/A1stdlife)) -> 0
E127: 10 | Q127: =IF(A1stdlife="n/a","n/a",IF(Q$3>(A1stdlife+$E127),(Input!$P$331*(1+rvanilla)^0.5)-SUM($P127:P127),(Input!$P$331*(1+rvanilla)^0.5)/A1stdlife)) -> 0 | R127: =IF(A1stdlife="n/a","n/a",IF(R$3>(A1stdlife+$E127),(Input!$P$331*(1+rvanilla)^0.5)-SUM($P127:Q127),(Input!$P$331*(1+rvanilla)^0.5)/A1stdlife)) -> 0 | S127: =IF(A1stdlife="n/a","n/a",IF(S$3>(A1stdlife+$E127),(Input!$P$331*(1+rvanilla)^0.5)-SUM($P127:R127),(Input!$P$331*(1+rvanilla)^0.5)/A1stdlife)) -> 0 | T127: =IF(A1stdlife="n/a","n/a",IF(T$3>(A1stdlife+$E127),(Input!$P$331*(1+rvanilla)^0.5)-SUM($P127:S127),(Input!$P$331*(1+rvanilla)^0.5)/A1stdlife)) -> 0 | U127: =IF(A1stdlife="n/a","n/a",IF(U$3>(A1stdlife+$E127),(Input!$P$331*(1+rvanilla)^0.5)-SUM($P127:T127),(Input!$P$331*(1+rvanilla)^0.5)/A1stdlife)) -> 0 | V127: =IF(A1stdlife="n/a","n/a",IF(V$3>(A1stdlife+$E127),(Input!$P$331*(1+rvanilla)^0.5)-SUM($P127:U127),(Input!$P$331*(1+rvanilla)^0.5)/A1stdlife)) -> 0 | W127: =IF(A1stdlife="n/a","n/a",IF(W$3>(A1stdlife+$E127),(Input!$P$331*(1+rvanilla)^0.5)-SUM($P127:V127),(Input!$P$331*(1+rvanilla)^0.5)/A1stdlife)) -> 0 | X127: =IF(A1stdlife="n/a","n/a",IF(X$3>(A1stdlife+$E127),(Input!$P$331*(1+rvanilla)^0.5)-SUM($P127:W127),(Input!$P$331*(1+rvanilla)^0.5)/A1stdlife)) -> 0 | Y127: =IF(A1stdlife="n/a","n/a",IF(Y$3>(A1stdlife+$E127),(Input!$P$331*(1+rvanilla)^0.5)-SUM($P127:X127),(Input!$P$331*(1+rvanilla)^0.5)/A1stdlife)) -> 0 | Z127: =IF(A1stdlife="n/a","n/a",IF(Z$3>(A1stdlife+$E127),(Input!$P$331*(1+rvanilla)^0.5)-SUM($P127:Y127),(Input!$P$331*(1+rvanilla)^0.5)/A1stdlife)) -> 0 | AA127: =IF(A1stdlife="n/a","n/a",IF(AA$3>(A1stdlife+$E127),(Input!$P$331*(1+rvanilla)^0.5)-SUM($P127:Z127),(Input!$P$331*(1+rvanilla)^0.5)/A1stdlife)) -> 0 | AB127: =IF(A1stdlife="n/a","n/a",IF(AB$3>(A1stdlife+$E127),(Input!$P$331*(1+rvanilla)^0.5)-SUM($P127:AA127),(Input!$P$331*(1+rvanilla)^0.5)/A1stdlife)) -> 0 | AC127: =IF(A1stdlife="n/a","n/a",IF(AC$3>(A1stdlife+$E127),(Input!$P$331*(1+rvanilla)^0.5)-SUM($P127:AB127),(Input!$P$331*(1+rvanilla)^0.5)/A1stdlife)) -> 0 | AD127: =IF(A1stdlife="n/a","n/a",IF(AD$3>(A1stdlife+$E127),(Input!$P$331*(1+rvanilla)^0.5)-SUM($P127:AC127),(Input!$P$331*(1+rvanilla)^0.5)/A1stdlife)) -> 0 | AE127: =IF(A1stdlife="n/a","n/a",IF(AE$3>(A1stdlife+$E127),(Input!$P$331*(1+rvanilla)^0.5)-SUM($P127:AD127),(Input!$P$331*(1+rvanilla)^0.5)/A1stdlife)) -> 0 | AF127: =IF(A1stdlife="n/a","n/a",IF(AF$3>(A1stdlife+$E127),(Input!$P$331*(1+rvanilla)^0.5)-SUM($P127:AE127),(Input!$P$331*(1+rvanilla)^0.5)/A1stdlife)) -> 0 | AG127: =IF(A1stdlife="n/a","n/a",IF(AG$3>(A1stdlife+$E127),(Input!$P$331*(1+rvanilla)^0.5)-SUM($P127:AF127),(Input!$P$331*(1+rvanilla)^0.5)/A1stdlife)) -> 0 | AH127: =IF(A1stdlife="n/a","n/a",IF(AH$3>(A1stdlife+$E127),(Input!$P$331*(1+rvanilla)^0.5)-SUM($P127:AG127),(Input!$P$331*(1+rvanilla)^0.5)/A1stdlife)) -> 0 | AI127: =IF(A1stdlife="n/a","n/a",IF(AI$3>(A1stdlife+$E127),(Input!$P$331*(1+rvanilla)^0.5)-SUM($P127:AH127),(Input!$P$331*(1+rvanilla)^0.5)/A1stdlife)) -> 0 | AJ127: =IF(A1stdlife="n/a","n/a",IF(AJ$3>(A1stdlife+$E127),(Input!$P$331*(1+rvanilla)^0.5)-SUM($P127:AI127),(Input!$P$331*(1+rvanilla)^0.5)/A1stdlife)) -> 0 | AK127: =IF(A1stdlife="n/a","n/a",IF(AK$3>(A1stdlife+$E127),(Input!$P$331*(1+rvanilla)^0.5)-SUM($P127:AJ127),(Input!$P$331*(1+rvanilla)^0.5)/A1stdlife)) -> 0 | AL127: =IF(A1stdlife="n/a","n/a",IF(AL$3>(A1stdlife+$E127),(Input!$P$331*(1+rvanilla)^0.5)-SUM($P127:AK127),(Input!$P$331*(1+rvanilla)^0.5)/A1stdlife)) -> 0 | AM127: =IF(A1stdlife="n/a","n/a",IF(AM$3>(A1stdlife+$E127),(Input!$P$331*(1+rvanilla)^0.5)-SUM($P127:AL127),(Input!$P$331*(1+rvanilla)^0.5)/A1stdlife)) -> 0 | AN127: =IF(A1stdlife="n/a","n/a",IF(AN$3>(A1stdlife+$E127),(Input!$P$331*(1+rvanilla)^0.5)-SUM($P127:AM127),(Input!$P$331*(1+rvanilla)^0.5)/A1stdlife)) -> 0 | AO127: =IF(A1stdlife="n/a","n/a",IF(AO$3>(A1stdlife+$E127),(Input!$P$331*(1+rvanilla)^0.5)-SUM($P127:AN127),(Input!$P$331*(1+rvanilla)^0.5)/A1stdlife)) -> 0 | AP127: =IF(A1stdlife="n/a","n/a",IF(AP$3>(A1stdlife+$E127),(Input!$P$331*(1+rvanilla)^0.5)-SUM($P127:AO127),(Input!$P$331*(1+rvanilla)^0.5)/A1stdlife)) -> 0 | AQ127: =IF(A1stdlife="n/a","n/a",IF(AQ$3>(A1stdlife+$E127),(Input!$P$331*(1+rvanilla)^0.5)-SUM($P127:AP127),(Input!$P$331*(1+rvanilla)^0.5)/A1stdlife)) -> 0 | AR127: =IF(A1stdlife="n/a","n/a",IF(AR$3>(A1stdlife+$E127),(Input!$P$331*(1+rvanilla)^0.5)-SUM($P127:AQ127),(Input!$P$331*(1+rvanilla)^0.5)/A1stdlife)) -> 0 | AS127: =IF(A1stdlife="n/a","n/a",IF(AS$3>(A1stdlife+$E127),(Input!$P$331*(1+rvanilla)^0.5)-SUM($P127:AR127),(Input!$P$331*(1+rvanilla)^0.5)/A1stdlife)) -> 0 | AT127: =IF(A1stdlife="n/a","n/a",IF(AT$3>(A1stdlife+$E127),(Input!$P$331*(1+rvanilla)^0.5)-SUM($P127:AS127),(Input!$P$331*(1+rvanilla)^0.5)/A1stdlife)) -> 0 | AU127: =IF(A1stdlife="n/a","n/a",IF(AU$3>(A1stdlife+$E127),(Input!$P$331*(1+rvanilla)^0.5)-SUM($P127:AT127),(Input!$P$331*(1+rvanilla)^0.5)/A1stdlife)) -> 0 | AV127: =IF(A1stdlife="n/a","n/a",IF(AV$3>(A1stdlife+$E127),(Input!$P$331*(1+rvanilla)^0.5)-SUM($P127:AU127),(Input!$P$331*(1+rvanilla)^0.5)/A1stdlife)) -> 0 | AW127: =IF(A1stdlife="n/a","n/a",IF(AW$3>(A1stdlife+$E127),(Input!$P$331*(1+rvanilla)^0.5)-SUM($P127:AV127),(Input!$P$331*(1+rvanilla)^0.5)/A1stdlife)) -> 0 | AX127: =IF(A1stdlife="n/a","n/a",IF(AX$3>(A1stdlife+$E127),(Input!$P$331*(1+rvanilla)^0.5)-SUM($P127:AW127),(Input!$P$331*(1+rvanilla)^0.5)/A1stdlife)) -> 0 | AY127: =IF(A1stdlife="n/a","n/a",IF(AY$3>(A1stdlife+$E127),(Input!$P$331*(1+rvanilla)^0.5)-SUM($P127:AX127),(Input!$P$331*(1+rvanilla)^0.5)/A1stdlife)) -> 0 | AZ127: =IF(A1stdlife="n/a","n/a",IF(AZ$3>(A1stdlife+$E127),(Input!$P$331*(1+rvanilla)^0.5)-SUM($P127:AY127),(Input!$P$331*(1+rvanilla)^0.5)/A1stdlife)) -> 0 | BA127: =IF(A1stdlife="n/a","n/a",IF(BA$3>(A1stdlife+$E127),(Input!$P$331*(1+rvanilla)^0.5)-SUM($P127:AZ127),(Input!$P$331*(1+rvanilla)^0.5)/A1stdlife)) -> 0 | BB127: =IF(A1stdlife="n/a","n/a",IF(BB$3>(A1stdlife+$E127),(Input!$P$331*(1+rvanilla)^0.5)-SUM($P127:BA127),(Input!$P$331*(1+rvanilla)^0.5)/A1stdlife)) -> 0 | BC127: =IF(A1stdlife="n/a","n/a",IF(BC$3>(A1stdlife+$E127),(Input!$P$331*(1+rvanilla)^0.5)-SUM($P127:BB127),(Input!$P$331*(1+rvanilla)^0.5)/A1stdlife)) -> 0 | BD127: =IF(A1stdlife="n/a","n/a",IF(BD$3>(A1stdlife+$E127),(Input!$P$331*(1+rvanilla)^0.5)-SUM($P127:BC127),(Input!$P$331*(1+rvanilla)^0.5)/A1stdlife)) -> 0 | BE127: =IF(A1stdlife="n/a","n/a",IF(BE$3>(A1stdlife+$E127),(Input!$P$331*(1+rvanilla)^0.5)-SUM($P127:BD127),(Input!$P$331*(1+rvanilla)^0.5)/A1stdlife)) -> 0 | BF127: =IF(A1stdlife="n/a","n/a",IF(BF$3>(A1stdlife+$E127),(Input!$P$331*(1+rvanilla)^0.5)-SUM($P127:BE127),(Input!$P$331*(1+rvanilla)^0.5)/A1stdlife)) -> 0 | BG127: =IF(A1stdlife="n/a","n/a",IF(BG$3>(A1stdlife+$E127),(Input!$P$331*(1+rvanilla)^0.5)-SUM($P127:BF127),(Input!$P$331*(1+rvanilla)^0.5)/A1stdlife)) -> 0 | BH127: =IF(A1stdlife="n/a","n/a",IF(BH$3>(A1stdlife+$E127),(Input!$P$331*(1+rvanilla)^0.5)-SUM($P127:BG127),(Input!$P$331*(1+rvanilla)^0.5)/A1stdlife)) -> 0 | BI127: =IF(A1stdlife="n/a","n/a",IF(BI$3>(A1stdlife+$E127),(Input!$P$331*(1+rvanilla)^0.5)-SUM($P127:BH127),(Input!$P$331*(1+rvanilla)^0.5)/A1stdlife)) -> 0
C128: =Asset1 -> Transmission Lines (pre 2004-05) | G128: =SUM(G116:G127) -> 59.1525916 | H128: =SUM(H116:H127) -> 59.1525916 | I128: 59.1525916 | J128: 59.1525916 | K128: 59.1525916 | L128: 59.1525916 | M128: 59.1525916 | N128: 59.1525916 | O128: 59.1525916 | P128: 59.1525916 | Q128: 59.1525916 | R128: 59.1525916 | S128: 59.1525916 | T128: 59.1525916 | U128: 59.1525916 | V128: 59.1525916 | W128: 59.1525916 | X128: 59.1525916 | Y128: 7.867294683 | Z128: 0 | AA128: 0 | AB128: 0 | AC128: 0 | AD128: 0 | AE128: 0 | AF128: 0 | AG128: 0 | AH128: 0 | AI128: 0 | AJ128: 0 | AK128: 0 | AL128: 0 | AM128: 0 | AN128: 0 | AO128: 0 | AP128: 0 | AQ128: 0 | AR128: 0 | AS128: 0 | AT128: 0 | AU128: 0 | AV128: 0 | AW128: 0 | AX128: 0 | AY128: 0 | AZ128: 0 | BA128: 0 | BB128: 0 | BC128: 0 | BD128: 0 | BE128: 0 | BF128: 0 | BG128: 0 | BH128: 0 | BI128: 0
B129: =C141 -> Underground Cables (pre 2004-05) | D129: Initial Asset Base | G129: =IF(G$3>A2remlife,A2acvalue-SUM($F129:F129),IF(A2remlife="N/A","n/a",A2acvalue/A2remlife)) -> 6.735940752 | H129: =IF(H$3>A2remlife,A2acvalue-SUM($F129:G129),IF(A2remlife="N/A","n/a",A2acvalue/A2remlife)) -> 6.735940752 | I129: =IF(I$3>A2remlife,A2acvalue-SUM($F129:H129),IF(A2remlife="N/A","n/a",A2acvalue/A2remlife)) -> 6.735940752 | J129: =IF(J$3>A2remlife,A2acvalue-SUM($F129:I129),IF(A2remlife="N/A","n/a",A2acvalue/A2remlife)) -> 6.735940752 | K129: =IF(K$3>A2remlife,A2acvalue-SUM($F129:J129),IF(A2remlife="N/A","n/a",A2acvalue/A2remlife)) -> 6.735940752 | L129: =IF(L$3>A2remlife,A2acvalue-SUM($F129:K129),IF(A2remlife="N/A","n/a",A2acvalue/A2remlife)) -> 6.735940752 | M129: =IF(M$3>A2remlife,A2acvalue-SUM($F129:L129),IF(A2remlife="N/A","n/a",A2acvalue/A2remlife)) -> 6.735940752 | N129: =IF(N$3>A2remlife,A2acvalue-SUM($F129:M129),IF(A2remlife="N/A","n/a",A2acvalue/A2remlife)) -> 6.735940752 | O129: =IF(O$3>A2remlife,A2acvalue-SUM($F129:N129),IF(A2remlife="N/A","n/a",A2acvalue/A2remlife)) -> 6.735940752 | P129: =IF(P$3>A2remlife,A2acvalue-SUM($F129:O129),IF(A2remlife="N/A","n/a",A2acvalue/A2remlife)) -> 6.735940752 | Q129: =IF(Q$3>A2remlife,A2acvalue-SUM($F129:P129),IF(A2remlife="N/A","n/a",A2acvalue/A2remlife)) -> 6.735940752 | R129: =IF(R$3>A2remlife,A2acvalue-SUM($F129:Q129),IF(A2remlife="N/A","n/a",A2acvalue/A2remlife)) -> 6.735940752 | S129: =IF(S$3>A2remlife,A2acvalue-SUM($F129:R129),IF(A2remlife="N/A","n/a",A2acvalue/A2remlife)) -> 6.735940752 | T129: =IF(T$3>A2remlife,A2acvalue-SUM($F129:S129),IF(A2remlife="N/A","n/a",A2acvalue/A2remlife)) -> 6.735940752 | U129: =IF(U$3>A2remlife,A2acvalue-SUM($F129:T129),IF(A2remlife="N/A","n/a",A2acvalue/A2remlife)) -> 6.735940752 | V129: =IF(V$3>A2remlife,A2acvalue-SUM($F129:U129),IF(A2remlife="N/A","n/a",A2acvalue/A2remlife)) -> 6.735940752 | W129: =IF(W$3>A2remlife,A2acvalue-SUM($F129:V129),IF(A2remlife="N/A","n/a",A2acvalue/A2remlife)) -> 6.735940752 | X129: =IF(X$3>A2remlife,A2acvalue-SUM($F129:W129),IF(A2remlife="N/A","n/a",A2acvalue/A2remlife)) -> 6.735940752 | Y129: =IF(Y$3>A2remlife,A2acvalue-SUM($F129:X129),IF(A2remlife="N/A","n/a",A2acvalue/A2remlife)) -> 6.735940752 | Z129: =IF(Z$3>A2remlife,A2acvalue-SUM($F129:Y129),IF(A2remlife="N/A","n/a",A2acvalue/A2remlife)) -> 6.735940752 | AA129: =IF(AA$3>A2remlife,A2acvalue-SUM($F129:Z129),IF(A2remlife="N/A","n/a",A2acvalue/A2remlife)) -> 6.735940752 | AB129: =IF(AB$3>A2remlife,A2acvalue-SUM($F129:AA129),IF(A2remlife="N/A","n/a",A2acvalue/A2remlife)) -> 6.735940752 | AC129: =IF(AC$3>A2remlife,A2acvalue-SUM($F129:AB129),IF(A2remlife="N/A","n/a",A2acvalue/A2remlife)) -> 6.735940752 | AD129: =IF(AD$3>A2remlife,A2acvalue-SUM($F129:AC129),IF(A2remlife="N/A","n/a",A2acvalue/A2remlife)) -> 6.735940752 | AE129: =IF(AE$3>A2remlife,A2acvalue-SUM($F129:AD129),IF(A2remlife="N/A","n/a",A2acvalue/A2remlife)) -> 6.735940752 | AF129: =IF(AF$3>A2remlife,A2acvalue-SUM($F129:AE129),IF(A2remlife="N/A","n/a",A2acvalue/A2remlife)) -> 6.735940752 | AG129: =IF(AG$3>A2remlife,A2acvalue-SUM($F129:AF129),IF(A2remlife="N/A","n/a",A2acvalue/A2remlife)) -> 6.735940752 | AH129: =IF(AH$3>A2remlife,A2acvalue-SUM($F129:AG129),IF(A2remlife="N/A","n/a",A2acvalue/A2remlife)) -> 6.735940752 | AI129: =IF(AI$3>A2remlife,A2acvalue-SUM($F129:AH129),IF(A2remlife="N/A","n/a",A2acvalue/A2remlife)) -> 6.735940752 | AJ129: =IF(AJ$3>A2remlife,A2acvalue-SUM($F129:AI129),IF(A2remlife="N/A","n/a",A2acvalue/A2remlife)) -> 6.735940752 | AK129: =IF(AK$3>A2remlife,A2acvalue-SUM($F129:AJ129),IF(A2remlife="N/A","n/a",A2acvalue/A2remlife)) -> 2.040990048 | AL129: =IF(AL$3>A2remlife,A2acvalue-SUM($F129:AK129),IF(A2remlife="N/A","n/a",A2acvalue/A2remlife)) -> 0 | AM129: =IF(AM$3>A2remlife,A2acvalue-SUM($F129:AL129),IF(A2remlife="N/A","n/a",A2acvalue/A2remlife)) -> 0 | AN129: =IF(AN$3>A2remlife,A2acvalue-SUM($F129:AM129),IF(A2remlife="N/A","n/a",A2acvalue/A2remlife)) -> 0 | AO129: =IF(AO$3>A2remlife,A2acvalue-SUM($F129:AN129),IF(A2remlife="N/A","n/a",A2acvalue/A2remlife)) -> 0 | AP129: =IF(AP$3>A2remlife,A2acvalue-SUM($F129:AO129),IF(A2remlife="N/A","n/a",A2acvalue/A2remlife)) -> 0 | AQ129: =IF(AQ$3>A2remlife,A2acvalue-SUM($F129:AP129),IF(A2remlife="N/A","n/a",A2acvalue/A2remlife)) -> 0 | AR129: =IF(AR$3>A2remlife,A2acvalue-SUM($F129:AQ129),IF(A2remlife="N/A","n/a",A2acvalue/A2remlife)) -> 0 | AS129: =IF(AS$3>A2remlife,A2acvalue-SUM($F129:AR129),IF(A2remlife="N/A","n/a",A2acvalue/A2remlife)) -> 0 | AT129: =IF(AT$3>A2remlife,A2acvalue-SUM($F129:AS129),IF(A2remlife="N/A","n/a",A2acvalue/A2remlife)) -> 0 | AU129: =IF(AU$3>A2remlife,A2acvalue-SUM($F129:AT129),IF(A2remlife="N/A","n/a",A2acvalue/A2remlife)) -> 0 | AV129: =IF(AV$3>A2remlife,A2acvalue-SUM($F129:AU129),IF(A2remlife="N/A","n/a",A2acvalue/A2remlife)) -> 0 | AW129: =IF(AW$3>A2remlife,A2acvalue-SUM($F129:AV129),IF(A2remlife="N/A","n/a",A2acvalue/A2remlife)) -> 0 | AX129: =IF(AX$3>A2remlife,A2acvalue-SUM($F129:AW129),IF(A2remlife="N/A","n/a",A2acvalue/A2remlife)) -> 0 | AY129: =IF(AY$3>A2remlife,A2acvalue-SUM($F129:AX129),IF(A2remlife="N/A","n/a",A2acvalue/A2remlife)) -> 0 | AZ129: =IF(AZ$3>A2remlife,A2acvalue-SUM($F129:AY129),IF(A2remlife="N/A","n/a",A2acvalue/A2remlife)) -> 0 | BA129: =IF(BA$3>A2remlife,A2acvalue-SUM($F129:AZ129),IF(A2remlife="N/A","n/a",A2acvalue/A2remlife)) -> 0 | BB129: =IF(BB$3>A2remlife,A2acvalue-SUM($F129:BA129),IF(A2remlife="N/A","n/a",A2acvalue/A2remlife)) -> 0 | BC129: =IF(BC$3>A2remlife,A2acvalue-SUM($F129:BB129),IF(A2remlife="N/A","n/a",A2acvalue/A2remlife)) -> 0 | BD129: =IF(BD$3>A2remlife,A2acvalue-SUM($F129:BC129),IF(A2remlife="N/A","n/a",A2acvalue/A2remlife)) -> 0 | BE129: =IF(BE$3>A2remlife,A2acvalue-SUM($F129:BD129),IF(A2remlife="N/A","n/a",A2acvalue/A2remlife)) -> 0 | BF129: =IF(BF$3>A2remlife,A2acvalue-SUM($F129:BE129),IF(A2remlife="N/A","n/a",A2acvalue/A2remlife)) -> 0 | BG129: =IF(BG$3>A2remlife,A2acvalue-SUM($F129:BF129),IF(A2remlife="N/A","n/a",A2acvalue/A2remlife)) -> 0 | BH129: =IF(BH$3>A2remlife,A2acvalue-SUM($F129:BG129),IF(A2remlife="N/A","n/a",A2acvalue/A2remlife)) -> 0 | BI129: =IF(BI$3>A2remlife,A2acvalue-SUM($F129:BH129),IF(A2remlife="N/A","n/a",A2acvalue/A2remlife)) -> 0
D130: Capex in year | E130: 0
E131: 1 | H131: =IF(A2stdlife="n/a","n/a",IF(H$3>(A2stdlife+$E131),(Input!$G$332*(1+rvanilla)^0.5)-SUM($G131:G131),(Input!$G$332*(1+rvanilla)^0.5)/A2stdlife)) -> 0 | I131: =IF(A2stdlife="n/a","n/a",IF(I$3>(A2stdlife+$E131),(Input!$G$332*(1+rvanilla)^0.5)-SUM($G131:H131),(Input!$G$332*(1+rvanilla)^0.5)/A2stdlife)) -> 0 | J131: =IF(A2stdlife="n/a","n/a",IF(J$3>(A2stdlife+$E131),(Input!$G$332*(1+rvanilla)^0.5)-SUM($G131:I131),(Input!$G$332*(1+rvanilla)^0.5)/A2stdlife)) -> 0 | K131: =IF(A2stdlife="n/a","n/a",IF(K$3>(A2stdlife+$E131),(Input!$G$332*(1+rvanilla)^0.5)-SUM($G131:J131),(Input!$G$332*(1+rvanilla)^0.5)/A2stdlife)) -> 0 | L131: =IF(A2stdlife="n/a","n/a",IF(L$3>(A2stdlife+$E131),(Input!$G$332*(1+rvanilla)^0.5)-SUM($G131:K131),(Input!$G$332*(1+rvanilla)^0.5)/A2stdlife)) -> 0 | M131: =IF(A2stdlife="n/a","n/a",IF(M$3>(A2stdlife+$E131),(Input!$G$332*(1+rvanilla)^0.5)-SUM($G131:L131),(Input!$G$332*(1+rvanilla)^0.5)/A2stdlife)) -> 0 | N131: =IF(A2stdlife="n/a","n/a",IF(N$3>(A2stdlife+$E131),(Input!$G$332*(1+rvanilla)^0.5)-SUM($G131:M131),(Input!$G$332*(1+rvanilla)^0.5)/A2stdlife)) -> 0 | O131: =IF(A2stdlife="n/a","n/a",IF(O$3>(A2stdlife+$E131),(Input!$G$332*(1+rvanilla)^0.5)-SUM($G131:N131),(Input!$G$332*(1+rvanilla)^0.5)/A2stdlife)) -> 0 | P131: =IF(A2stdlife="n/a","n/a",IF(P$3>(A2stdlife+$E131),(Input!$G$332*(1+rvanilla)^0.5)-SUM($G131:O131),(Input!$G$332*(1+rvanilla)^0.5)/A2stdlife)) -> 0 | Q131: =IF(A2stdlife="n/a","n/a",IF(Q$3>(A2stdlife+$E131),(Input!$G$332*(1+rvanilla)^0.5)-SUM($G131:P131),(Input!$G$332*(1+rvanilla)^0.5)/A2stdlife)) -> 0 | R131: =IF(A2stdlife="n/a","n/a",IF(R$3>(A2stdlife+$E131),(Input!$G$332*(1+rvanilla)^0.5)-SUM($G131:Q131),(Input!$G$332*(1+rvanilla)^0.5)/A2stdlife)) -> 0 | S131: =IF(A2stdlife="n/a","n/a",IF(S$3>(A2stdlife+$E131),(Input!$G$332*(1+rvanilla)^0.5)-SUM($G131:R131),(Input!$G$332*(1+rvanilla)^0.5)/A2stdlife)) -> 0 | T131: =IF(A2stdlife="n/a","n/a",IF(T$3>(A2stdlife+$E131),(Input!$G$332*(1+rvanilla)^0.5)-SUM($G131:S131),(Input!$G$332*(1+rvanilla)^0.5)/A2stdlife)) -> 0 | U131: =IF(A2stdlife="n/a","n/a",IF(U$3>(A2stdlife+$E131),(Input!$G$332*(1+rvanilla)^0.5)-SUM($G131:T131),(Input!$G$332*(1+rvanilla)^0.5)/A2stdlife)) -> 0 | V131: =IF(A2stdlife="n/a","n/a",IF(V$3>(A2stdlife+$E131),(Input!$G$332*(1+rvanilla)^0.5)-SUM($G131:U131),(Input!$G$332*(1+rvanilla)^0.5)/A2stdlife)) -> 0 | W131: =IF(A2stdlife="n/a","n/a",IF(W$3>(A2stdlife+$E131),(Input!$G$332*(1+rvanilla)^0.5)-SUM($G131:V131),(Input!$G$332*(1+rvanilla)^0.5)/A2stdlife)) -> 0 | X131: =IF(A2stdlife="n/a","n/a",IF(X$3>(A2stdlife+$E131),(Input!$G$332*(1+rvanilla)^0.5)-SUM($G131:W131),(Input!$G$332*(1+rvanilla)^0.5)/A2stdlife)) -> 0 | Y131: =IF(A2stdlife="n/a","n/a",IF(Y$3>(A2stdlife+$E131),(Input!$G$332*(1+rvanilla)^0.5)-SUM($G131:X131),(Input!$G$332*(1+rvanilla)^0.5)/A2stdlife)) -> 0 | Z131: =IF(A2stdlife="n/a","n/a",IF(Z$3>(A2stdlife+$E131),(Input!$G$332*(1+rvanilla)^0.5)-SUM($G131:Y131),(Input!$G$332*(1+rvanilla)^0.5)/A2stdlife)) -> 0 | AA131: =IF(A2stdlife="n/a","n/a",IF(AA$3>(A2stdlife+$E131),(Input!$G$332*(1+rvanilla)^0.5)-SUM($G131:Z131),(Input!$G$332*(1+rvanilla)^0.5)/A2stdlife)) -> 0 | AB131: =IF(A2stdlife="n/a","n/a",IF(AB$3>(A2stdlife+$E131),(Input!$G$332*(1+rvanilla)^0.5)-SUM($G131:AA131),(Input!$G$332*(1+rvanilla)^0.5)/A2stdlife)) -> 0 | AC131: =IF(A2stdlife="n/a","n/a",IF(AC$3>(A2stdlife+$E131),(Input!$G$332*(1+rvanilla)^0.5)-SUM($G131:AB131),(Input!$G$332*(1+rvanilla)^0.5)/A2stdlife)) -> 0 | AD131: =IF(A2stdlife="n/a","n/a",IF(AD$3>(A2stdlife+$E131),(Input!$G$332*(1+rvanilla)^0.5)-SUM($G131:AC131),(Input!$G$332*(1+rvanilla)^0.5)/A2stdlife)) -> 0 | AE131: =IF(A2stdlife="n/a","n/a",IF(AE$3>(A2stdlife+$E131),(Input!$G$332*(1+rvanilla)^0.5)-SUM($G131:AD131),(Input!$G$332*(1+rvanilla)^0.5)/A2stdlife)) -> 0 | AF131: =IF(A2stdlife="n/a","n/a",IF(AF$3>(A2stdlife+$E131),(Input!$G$332*(1+rvanilla)^0.5)-SUM($G131:AE131),(Input!$G$332*(1+rvanilla)^0.5)/A2stdlife)) -> 0 | AG131: =IF(A2stdlife="n/a","n/a",IF(AG$3>(A2stdlife+$E131),(Input!$G$332*(1+rvanilla)^0.5)-SUM($G131:AF131),(Input!$G$332*(1+rvanilla)^0.5)/A2stdlife)) -> 0 | AH131: =IF(A2stdlife="n/a","n/a",IF(AH$3>(A2stdlife+$E131),(Input!$G$332*(1+rvanilla)^0.5)-SUM($G131:AG131),(Input!$G$332*(1+rvanilla)^0.5)/A2stdlife)) -> 0 | AI131: =IF(A2stdlife="n/a","n/a",IF(AI$3>(A2stdlife+$E131),(Input!$G$332*(1+rvanilla)^0.5)-SUM($G131:AH131),(Input!$G$332*(1+rvanilla)^0.5)/A2stdlife)) -> 0 | AJ131: =IF(A2stdlife="n/a","n/a",IF(AJ$3>(A2stdlife+$E131),(Input!$G$332*(1+rvanilla)^0.5)-SUM($G131:AI131),(Input!$G$332*(1+rvanilla)^0.5)/A2stdlife)) -> 0 | AK131: =IF(A2stdlife="n/a","n/a",IF(AK$3>(A2stdlife+$E131),(Input!$G$332*(1+rvanilla)^0.5)-SUM($G131:AJ131),(Input!$G$332*(1+rvanilla)^0.5)/A2stdlife)) -> 0 | AL131: =IF(A2stdlife="n/a","n/a",IF(AL$3>(A2stdlife+$E131),(Input!$G$332*(1+rvanilla)^0.5)-SUM($G131:AK131),(Input!$G$332*(1+rvanilla)^0.5)/A2stdlife)) -> 0 | AM131: =IF(A2stdlife="n/a","n/a",IF(AM$3>(A2stdlife+$E131),(Input!$G$332*(1+rvanilla)^0.5)-SUM($G131:AL131),(Input!$G$332*(1+rvanilla)^0.5)/A2stdlife)) -> 0 | AN131: =IF(A2stdlife="n/a","n/a",IF(AN$3>(A2stdlife+$E131),(Input!$G$332*(1+rvanilla)^0.5)-SUM($G131:AM131),(Input!$G$332*(1+rvanilla)^0.5)/A2stdlife)) -> 0 | AO131: =IF(A2stdlife="n/a","n/a",IF(AO$3>(A2stdlife+$E131),(Input!$G$332*(1+rvanilla)^0.5)-SUM($G131:AN131),(Input!$G$332*(1+rvanilla)^0.5)/A2stdlife)) -> 0 | AP131: =IF(A2stdlife="n/a","n/a",IF(AP$3>(A2stdlife+$E131),(Input!$G$332*(1+rvanilla)^0.5)-SUM($G131:AO131),(Input!$G$332*(1+rvanilla)^0.5)/A2stdlife)) -> 0 | AQ131: =IF(A2stdlife="n/a","n/a",IF(AQ$3>(A2stdlife+$E131),(Input!$G$332*(1+rvanilla)^0.5)-SUM($G131:AP131),(Input!$G$332*(1+rvanilla)^0.5)/A2stdlife)) -> 0 | AR131: =IF(A2stdlife="n/a","n/a",IF(AR$3>(A2stdlife+$E131),(Input!$G$332*(1+rvanilla)^0.5)-SUM($G131:AQ131),(Input!$G$332*(1+rvanilla)^0.5)/A2stdlife)) -> 0 | AS131: =IF(A2stdlife="n/a","n/a",IF(AS$3>(A2stdlife+$E131),(Input!$G$332*(1+rvanilla)^0.5)-SUM($G131:AR131),(Input!$G$332*(1+rvanilla)^0.5)/A2stdlife)) -> 0 | AT131: =IF(A2stdlife="n/a","n/a",IF(AT$3>(A2stdlife+$E131),(Input!$G$332*(1+rvanilla)^0.5)-SUM($G131:AS131),(Input!$G$332*(1+rvanilla)^0.5)/A2stdlife)) -> 0 | AU131: =IF(A2stdlife="n/a","n/a",IF(AU$3>(A2stdlife+$E131),(Input!$G$332*(1+rvanilla)^0.5)-SUM($G131:AT131),(Input!$G$332*(1+rvanilla)^0.5)/A2stdlife)) -> 0 | AV131: =IF(A2stdlife="n/a","n/a",IF(AV$3>(A2stdlife+$E131),(Input!$G$332*(1+rvanilla)^0.5)-SUM($G131:AU131),(Input!$G$332*(1+rvanilla)^0.5)/A2stdlife)) -> 0 | AW131: =IF(A2stdlife="n/a","n/a",IF(AW$3>(A2stdlife+$E131),(Input!$G$332*(1+rvanilla)^0.5)-SUM($G131:AV131),(Input!$G$332*(1+rvanilla)^0.5)/A2stdlife)) -> 0 | AX131: =IF(A2stdlife="n/a","n/a",IF(AX$3>(A2stdlife+$E131),(Input!$G$332*(1+rvanilla)^0.5)-SUM($G131:AW131),(Input!$G$332*(1+rvanilla)^0.5)/A2stdlife)) -> 0 | AY131: =IF(A2stdlife="n/a","n/a",IF(AY$3>(A2stdlife+$E131),(Input!$G$332*(1+rvanilla)^0.5)-SUM($G131:AX131),(Input!$G$332*(1+rvanilla)^0.5)/A2stdlife)) -> 0 | AZ131: =IF(A2stdlife="n/a","n/a",IF(AZ$3>(A2stdlife+$E131),(Input!$G$332*(1+rvanilla)^0.5)-SUM($G131:AY131),(Input!$G$332*(1+rvanilla)^0.5)/A2stdlife)) -> 0 | BA131: =IF(A2stdlife="n/a","n/a",IF(BA$3>(A2stdlife+$E131),(Input!$G$332*(1+rvanilla)^0.5)-SUM($G131:AZ131),(Input!$G$332*(1+rvanilla)^0.5)/A2stdlife)) -> 0 | BB131: =IF(A2stdlife="n/a","n/a",IF(BB$3>(A2stdlife+$E131),(Input!$G$332*(1+rvanilla)^0.5)-SUM($G131:BA131),(Input!$G$332*(1+rvanilla)^0.5)/A2stdlife)) -> 0 | BC131: =IF(A2stdlife="n/a","n/a",IF(BC$3>(A2stdlife+$E131),(Input!$G$332*(1+rvanilla)^0.5)-SUM($G131:BB131),(Input!$G$332*(1+rvanilla)^0.5)/A2stdlife)) -> 0 | BD131: =IF(A2stdlife="n/a","n/a",IF(BD$3>(A2stdlife+$E131),(Input!$G$332*(1+rvanilla)^0.5)-SUM($G131:BC131),(Input!$G$332*(1+rvanilla)^0.5)/A2stdlife)) -> 0 | BE131: =IF(A2stdlife="n/a","n/a",IF(BE$3>(A2stdlife+$E131),(Input!$G$332*(1+rvanilla)^0.5)-SUM($G131:BD131),(Input!$G$332*(1+rvanilla)^0.5)/A2stdlife)) -> 0 | BF131: =IF(A2stdlife="n/a","n/a",IF(BF$3>(A2stdlife+$E131),(Input!$G$332*(1+rvanilla)^0.5)-SUM($G131:BE131),(Input!$G$332*(1+rvanilla)^0.5)/A2stdlife)) -> 0 | BG131: =IF(A2stdlife="n/a","n/a",IF(BG$3>(A2stdlife+$E131),(Input!$G$332*(1+rvanilla)^0.5)-SUM($G131:BF131),(Input!$G$332*(1+rvanilla)^0.5)/A2stdlife)) -> 0 | BH131: =IF(A2stdlife="n/a","n/a",IF(BH$3>(A2stdlife+$E131),(Input!$G$332*(1+rvanilla)^0.5)-SUM($G131:BG131),(Input!$G$332*(1+rvanilla)^0.5)/A2stdlife)) -> 0 | BI131: =IF(A2stdlife="n/a","n/a",IF(BI$3>(A2stdlife+$E131),(Input!$G$332*(1+rvanilla)^0.5)-SUM($G131:BH131),(Input!$G$332*(1+rvanilla)^0.5)/A2stdlife)) -> 0
E132: 2 | I132: =IF(A2stdlife="n/a","n/a",IF(I$3>(A2stdlife+$E132),(Input!$H$332*(1+rvanilla)^0.5)-SUM($H132:H132),(Input!$H$332*(1+rvanilla)^0.5)/A2stdlife)) -> 0 | J132: =IF(A2stdlife="n/a","n/a",IF(J$3>(A2stdlife+$E132),(Input!$H$332*(1+rvanilla)^0.5)-SUM($H132:I132),(Input!$H$332*(1+rvanilla)^0.5)/A2stdlife)) -> 0 | K132: =IF(A2stdlife="n/a","n/a",IF(K$3>(A2stdlife+$E132),(Input!$H$332*(1+rvanilla)^0.5)-SUM($H132:J132),(Input!$H$332*(1+rvanilla)^0.5)/A2stdlife)) -> 0 | L132: =IF(A2stdlife="n/a","n/a",IF(L$3>(A2stdlife+$E132),(Input!$H$332*(1+rvanilla)^0.5)-SUM($H132:K132),(Input!$H$332*(1+rvanilla)^0.5)/A2stdlife)) -> 0 | M132: =IF(A2stdlife="n/a","n/a",IF(M$3>(A2stdlife+$E132),(Input!$H$332*(1+rvanilla)^0.5)-SUM($H132:L132),(Input!$H$332*(1+rvanilla)^0.5)/A2stdlife)) -> 0 | N132: =IF(A2stdlife="n/a","n/a",IF(N$3>(A2stdlife+$E132),(Input!$H$332*(1+rvanilla)^0.5)-SUM($H132:M132),(Input!$H$332*(1+rvanilla)^0.5)/A2stdlife)) -> 0 | O132: =IF(A2stdlife="n/a","n/a",IF(O$3>(A2stdlife+$E132),(Input!$H$332*(1+rvanilla)^0.5)-SUM($H132:N132),(Input!$H$332*(1+rvanilla)^0.5)/A2stdlife)) -> 0 | P132: =IF(A2stdlife="n/a","n/a",IF(P$3>(A2stdlife+$E132),(Input!$H$332*(1+rvanilla)^0.5)-SUM($H132:O132),(Input!$H$332*(1+rvanilla)^0.5)/A2stdlife)) -> 0 | Q132: =IF(A2stdlife="n/a","n/a",IF(Q$3>(A2stdlife+$E132),(Input!$H$332*(1+rvanilla)^0.5)-SUM($H132:P132),(Input!$H$332*(1+rvanilla)^0.5)/A2stdlife)) -> 0 | R132: =IF(A2stdlife="n/a","n/a",IF(R$3>(A2stdlife+$E132),(Input!$H$332*(1+rvanilla)^0.5)-SUM($H132:Q132),(Input!$H$332*(1+rvanilla)^0.5)/A2stdlife)) -> 0 | S132: =IF(A2stdlife="n/a","n/a",IF(S$3>(A2stdlife+$E132),(Input!$H$332*(1+rvanilla)^0.5)-SUM($H132:R132),(Input!$H$332*(1+rvanilla)^0.5)/A2stdlife)) -> 0 | T132: =IF(A2stdlife="n/a","n/a",IF(T$3>(A2stdlife+$E132),(Input!$H$332*(1+rvanilla)^0.5)-SUM($H132:S132),(Input!$H$332*(1+rvanilla)^0.5)/A2stdlife)) -> 0 | U132: =IF(A2stdlife="n/a","n/a",IF(U$3>(A2stdlife+$E132),(Input!$H$332*(1+rvanilla)^0.5)-SUM($H132:T132),(Input!$H$332*(1+rvanilla)^0.5)/A2stdlife)) -> 0 | V132: =IF(A2stdlife="n/a","n/a",IF(V$3>(A2stdlife+$E132),(Input!$H$332*(1+rvanilla)^0.5)-SUM($H132:U132),(Input!$H$332*(1+rvanilla)^0.5)/A2stdlife)) -> 0 | W132: =IF(A2stdlife="n/a","n/a",IF(W$3>(A2stdlife+$E132),(Input!$H$332*(1+rvanilla)^0.5)-SUM($H132:V132),(Input!$H$332*(1+rvanilla)^0.5)/A2stdlife)) -> 0 | X132: =IF(A2stdlife="n/a","n/a",IF(X$3>(A2stdlife+$E132),(Input!$H$332*(1+rvanilla)^0.5)-SUM($H132:W132),(Input!$H$332*(1+rvanilla)^0.5)/A2stdlife)) -> 0 | Y132: =IF(A2stdlife="n/a","n/a",IF(Y$3>(A2stdlife+$E132),(Input!$H$332*(1+rvanilla)^0.5)-SUM($H132:X132),(Input!$H$332*(1+rvanilla)^0.5)/A2stdlife)) -> 0 | Z132: =IF(A2stdlife="n/a","n/a",IF(Z$3>(A2stdlife+$E132),(Input!$H$332*(1+rvanilla)^0.5)-SUM($H132:Y132),(Input!$H$332*(1+rvanilla)^0.5)/A2stdlife)) -> 0 | AA132: =IF(A2stdlife="n/a","n/a",IF(AA$3>(A2stdlife+$E132),(Input!$H$332*(1+rvanilla)^0.5)-SUM($H132:Z132),(Input!$H$332*(1+rvanilla)^0.5)/A2stdlife)) -> 0 | AB132: =IF(A2stdlife="n/a","n/a",IF(AB$3>(A2stdlife+$E132),(Input!$H$332*(1+rvanilla)^0.5)-SUM($H132:AA132),(Input!$H$332*(1+rvanilla)^0.5)/A2stdlife)) -> 0 | AC132: =IF(A2stdlife="n/a","n/a",IF(AC$3>(A2stdlife+$E132),(Input!$H$332*(1+rvanilla)^0.5)-SUM($H132:AB132),(Input!$H$332*(1+rvanilla)^0.5)/A2stdlife)) -> 0 | AD132: =IF(A2stdlife="n/a","n/a",IF(AD$3>(A2stdlife+$E132),(Input!$H$332*(1+rvanilla)^0.5)-SUM($H132:AC132),(Input!$H$332*(1+rvanilla)^0.5)/A2stdlife)) -> 0 | AE132: =IF(A2stdlife="n/a","n/a",IF(AE$3>(A2stdlife+$E132),(Input!$H$332*(1+rvanilla)^0.5)-SUM($H132:AD132),(Input!$H$332*(1+rvanilla)^0.5)/A2stdlife)) -> 0 | AF132: =IF(A2stdlife="n/a","n/a",IF(AF$3>(A2stdlife+$E132),(Input!$H$332*(1+rvanilla)^0.5)-SUM($H132:AE132),(Input!$H$332*(1+rvanilla)^0.5)/A2stdlife)) -> 0 | AG132: =IF(A2stdlife="n/a","n/a",IF(AG$3>(A2stdlife+$E132),(Input!$H$332*(1+rvanilla)^0.5)-SUM($H132:AF132),(Input!$H$332*(1+rvanilla)^0.5)/A2stdlife)) -> 0 | AH132: =IF(A2stdlife="n/a","n/a",IF(AH$3>(A2stdlife+$E132),(Input!$H$332*(1+rvanilla)^0.5)-SUM($H132:AG132),(Input!$H$332*(1+rvanilla)^0.5)/A2stdlife)) -> 0 | AI132: =IF(A2stdlife="n/a","n/a",IF(AI$3>(A2stdlife+$E132),(Input!$H$332*(1+rvanilla)^0.5)-SUM($H132:AH132),(Input!$H$332*(1+rvanilla)^0.5)/A2stdlife)) -> 0 | AJ132: =IF(A2stdlife="n/a","n/a",IF(AJ$3>(A2stdlife+$E132),(Input!$H$332*(1+rvanilla)^0.5)-SUM($H132:AI132),(Input!$H$332*(1+rvanilla)^0.5)/A2stdlife)) -> 0 | AK132: =IF(A2stdlife="n/a","n/a",IF(AK$3>(A2stdlife+$E132),(Input!$H$332*(1+rvanilla)^0.5)-SUM($H132:AJ132),(Input!$H$332*(1+rvanilla)^0.5)/A2stdlife)) -> 0 | AL132: =IF(A2stdlife="n/a","n/a",IF(AL$3>(A2stdlife+$E132),(Input!$H$332*(1+rvanilla)^0.5)-SUM($H132:AK132),(Input!$H$332*(1+rvanilla)^0.5)/A2stdlife)) -> 0 | AM132: =IF(A2stdlife="n/a","n/a",IF(AM$3>(A2stdlife+$E132),(Input!$H$332*(1+rvanilla)^0.5)-SUM($H132:AL132),(Input!$H$332*(1+rvanilla)^0.5)/A2stdlife)) -> 0 | AN132: =IF(A2stdlife="n/a","n/a",IF(AN$3>(A2stdlife+$E132),(Input!$H$332*(1+rvanilla)^0.5)-SUM($H132:AM132),(Input!$H$332*(1+rvanilla)^0.5)/A2stdlife)) -> 0 | AO132: =IF(A2stdlife="n/a","n/a",IF(AO$3>(A2stdlife+$E132),(Input!$H$332*(1+rvanilla)^0.5)-SUM($H132:AN132),(Input!$H$332*(1+rvanilla)^0.5)/A2stdlife)) -> 0 | AP132: =IF(A2stdlife="n/a","n/a",IF(AP$3>(A2stdlife+$E132),(Input!$H$332*(1+rvanilla)^0.5)-SUM($H132:AO132),(Input!$H$332*(1+rvanilla)^0.5)/A2stdlife)) -> 0 | AQ132: =IF(A2stdlife="n/a","n/a",IF(AQ$3>(A2stdlife+$E132),(Input!$H$332*(1+rvanilla)^0.5)-SUM($H132:AP132),(Input!$H$332*(1+rvanilla)^0.5)/A2stdlife)) -> 0 | AR132: =IF(A2stdlife="n/a","n/a",IF(AR$3>(A2stdlife+$E132),(Input!$H$332*(1+rvanilla)^0.5)-SUM($H132:AQ132),(Input!$H$332*(1+rvanilla)^0.5)/A2stdlife)) -> 0 | AS132: =IF(A2stdlife="n/a","n/a",IF(AS$3>(A2stdlife+$E132),(Input!$H$332*(1+rvanilla)^0.5)-SUM($H132:AR132),(Input!$H$332*(1+rvanilla)^0.5)/A2stdlife)) -> 0 | AT132: =IF(A2stdlife="n/a","n/a",IF(AT$3>(A2stdlife+$E132),(Input!$H$332*(1+rvanilla)^0.5)-SUM($H132:AS132),(Input!$H$332*(1+rvanilla)^0.5)/A2stdlife)) -> 0 | AU132: =IF(A2stdlife="n/a","n/a",IF(AU$3>(A2stdlife+$E132),(Input!$H$332*(1+rvanilla)^0.5)-SUM($H132:AT132),(Input!$H$332*(1+rvanilla)^0.5)/A2stdlife)) -> 0 | AV132: =IF(A2stdlife="n/a","n/a",IF(AV$3>(A2stdlife+$E132),(Input!$H$332*(1+rvanilla)^0.5)-SUM($H132:AU132),(Input!$H$332*(1+rvanilla)^0.5)/A2stdlife)) -> 0 | AW132: =IF(A2stdlife="n/a","n/a",IF(AW$3>(A2stdlife+$E132),(Input!$H$332*(1+rvanilla)^0.5)-SUM($H132:AV132),(Input!$H$332*(1+rvanilla)^0.5)/A2stdlife)) -> 0 | AX132: =IF(A2stdlife="n/a","n/a",IF(AX$3>(A2stdlife+$E132),(Input!$H$332*(1+rvanilla)^0.5)-SUM($H132:AW132),(Input!$H$332*(1+rvanilla)^0.5)/A2stdlife)) -> 0 | AY132: =IF(A2stdlife="n/a","n/a",IF(AY$3>(A2stdlife+$E132),(Input!$H$332*(1+rvanilla)^0.5)-SUM($H132:AX132),(Input!$H$332*(1+rvanilla)^0.5)/A2stdlife)) -> 0 | AZ132: =IF(A2stdlife="n/a","n/a",IF(AZ$3>(A2stdlife+$E132),(Input!$H$332*(1+rvanilla)^0.5)-SUM($H132:AY132),(Input!$H$332*(1+rvanilla)^0.5)/A2stdlife)) -> 0 | BA132: =IF(A2stdlife="n/a","n/a",IF(BA$3>(A2stdlife+$E132),(Input!$H$332*(1+rvanilla)^0.5)-SUM($H132:AZ132),(Input!$H$332*(1+rvanilla)^0.5)/A2stdlife)) -> 0 | BB132: =IF(A2stdlife="n/a","n/a",IF(BB$3>(A2stdlife+$E132),(Input!$H$332*(1+rvanilla)^0.5)-SUM($H132:BA132),(Input!$H$332*(1+rvanilla)^0.5)/A2stdlife)) -> 0 | BC132: =IF(A2stdlife="n/a","n/a",IF(BC$3>(A2stdlife+$E132),(Input!$H$332*(1+rvanilla)^0.5)-SUM($H132:BB132),(Input!$H$332*(1+rvanilla)^0.5)/A2stdlife)) -> 0 | BD132: =IF(A2stdlife="n/a","n/a",IF(BD$3>(A2stdlife+$E132),(Input!$H$332*(1+rvanilla)^0.5)-SUM($H132:BC132),(Input!$H$332*(1+rvanilla)^0.5)/A2stdlife)) -> 0 | BE132: =IF(A2stdlife="n/a","n/a",IF(BE$3>(A2stdlife+$E132),(Input!$H$332*(1+rvanilla)^0.5)-SUM($H132:BD132),(Input!$H$332*(1+rvanilla)^0.5)/A2stdlife)) -> 0 | BF132: =IF(A2stdlife="n/a","n/a",IF(BF$3>(A2stdlife+$E132),(Input!$H$332*(1+rvanilla)^0.5)-SUM($H132:BE132),(Input!$H$332*(1+rvanilla)^0.5)/A2stdlife)) -> 0 | BG132: =IF(A2stdlife="n/a","n/a",IF(BG$3>(A2stdlife+$E132),(Input!$H$332*(1+rvanilla)^0.5)-SUM($H132:BF132),(Input!$H$332*(1+rvanilla)^0.5)/A2stdlife)) -> 0 | BH132: =IF(A2stdlife="n/a","n/a",IF(BH$3>(A2stdlife+$E132),(Input!$H$332*(1+rvanilla)^0.5)-SUM($H132:BG132),(Input!$H$332*(1+rvanilla)^0.5)/A2stdlife)) -> 0 | BI132: =IF(A2stdlife="n/a","n/a",IF(BI$3>(A2stdlife+$E132),(Input!$H$332*(1+rvanilla)^0.5)-SUM($H132:BH132),(Input!$H$332*(1+rvanilla)^0.5)/A2stdlife)) -> 0
E133: 3 | J133: =IF(A2stdlife="n/a","n/a",IF(J$3>(A2stdlife+$E133),(Input!$I$332*(1+rvanilla)^0.5)-SUM($I133:I133),(Input!$I$332*(1+rvanilla)^0.5)/A2stdlife)) -> 0 | K133: =IF(A2stdlife="n/a","n/a",IF(K$3>(A2stdlife+$E133),(Input!$I$332*(1+rvanilla)^0.5)-SUM($I133:J133),(Input!$I$332*(1+rvanilla)^0.5)/A2stdlife)) -> 0 | L133: =IF(A2stdlife="n/a","n/a",IF(L$3>(A2stdlife+$E133),(Input!$I$332*(1+rvanilla)^0.5)-SUM($I133:K133),(Input!$I$332*(1+rvanilla)^0.5)/A2stdlife)) -> 0 | M133: =IF(A2stdlife="n/a","n/a",IF(M$3>(A2stdlife+$E133),(Input!$I$332*(1+rvanilla)^0.5)-SUM($I133:L133),(Input!$I$332*(1+rvanilla)^0.5)/A2stdlife)) -> 0 | N133: =IF(A2stdlife="n/a","n/a",IF(N$3>(A2stdlife+$E133),(Input!$I$332*(1+rvanilla)^0.5)-SUM($I133:M133),(Input!$I$332*(1+rvanilla)^0.5)/A2stdlife)) -> 0 | O133: =IF(A2stdlife="n/a","n/a",IF(O$3>(A2stdlife+$E133),(Input!$I$332*(1+rvanilla)^0.5)-SUM($I133:N133),(Input!$I$332*(1+rvanilla)^0.5)/A2stdlife)) -> 0 | P133: =IF(A2stdlife="n/a","n/a",IF(P$3>(A2stdlife+$E133),(Input!$I$332*(1+rvanilla)^0.5)-SUM($I133:O133),(Input!$I$332*(1+rvanilla)^0.5)/A2stdlife)) -> 0 | Q133: =IF(A2stdlife="n/a","n/a",IF(Q$3>(A2stdlife+$E133),(Input!$I$332*(1+rvanilla)^0.5)-SUM($I133:P133),(Input!$I$332*(1+rvanilla)^0.5)/A2stdlife)) -> 0 | R133: =IF(A2stdlife="n/a","n/a",IF(R$3>(A2stdlife+$E133),(Input!$I$332*(1+rvanilla)^0.5)-SUM($I133:Q133),(Input!$I$332*(1+rvanilla)^0.5)/A2stdlife)) -> 0 | S133: =IF(A2stdlife="n/a","n/a",IF(S$3>(A2stdlife+$E133),(Input!$I$332*(1+rvanilla)^0.5)-SUM($I133:R133),(Input!$I$332*(1+rvanilla)^0.5)/A2stdlife)) -> 0 | T133: =IF(A2stdlife="n/a","n/a",IF(T$3>(A2stdlife+$E133),(Input!$I$332*(1+rvanilla)^0.5)-SUM($I133:S133),(Input!$I$332*(1+rvanilla)^0.5)/A2stdlife)) -> 0 | U133: =IF(A2stdlife="n/a","n/a",IF(U$3>(A2stdlife+$E133),(Input!$I$332*(1+rvanilla)^0.5)-SUM($I133:T133),(Input!$I$332*(1+rvanilla)^0.5)/A2stdlife)) -> 0 | V133: =IF(A2stdlife="n/a","n/a",IF(V$3>(A2stdlife+$E133),(Input!$I$332*(1+rvanilla)^0.5)-SUM($I133:U133),(Input!$I$332*(1+rvanilla)^0.5)/A2stdlife)) -> 0 | W133: =IF(A2stdlife="n/a","n/a",IF(W$3>(A2stdlife+$E133),(Input!$I$332*(1+rvanilla)^0.5)-SUM($I133:V133),(Input!$I$332*(1+rvanilla)^0.5)/A2stdlife)) -> 0 | X133: =IF(A2stdlife="n/a","n/a",IF(X$3>(A2stdlife+$E133),(Input!$I$332*(1+rvanilla)^0.5)-SUM($I133:W133),(Input!$I$332*(1+rvanilla)^0.5)/A2stdlife)) -> 0 | Y133: =IF(A2stdlife="n/a","n/a",IF(Y$3>(A2stdlife+$E133),(Input!$I$332*(1+rvanilla)^0.5)-SUM($I133:X133),(Input!$I$332*(1+rvanilla)^0.5)/A2stdlife)) -> 0 | Z133: =IF(A2stdlife="n/a","n/a",IF(Z$3>(A2stdlife+$E133),(Input!$I$332*(1+rvanilla)^0.5)-SUM($I133:Y133),(Input!$I$332*(1+rvanilla)^0.5)/A2stdlife)) -> 0 | AA133: =IF(A2stdlife="n/a","n/a",IF(AA$3>(A2stdlife+$E133),(Input!$I$332*(1+rvanilla)^0.5)-SUM($I133:Z133),(Input!$I$332*(1+rvanilla)^0.5)/A2stdlife)) -> 0 | AB133: =IF(A2stdlife="n/a","n/a",IF(AB$3>(A2stdlife+$E133),(Input!$I$332*(1+rvanilla)^0.5)-SUM($I133:AA133),(Input!$I$332*(1+rvanilla)^0.5)/A2stdlife)) -> 0 | AC133: =IF(A2stdlife="n/a","n/a",IF(AC$3>(A2stdlife+$E133),(Input!$I$332*(1+rvanilla)^0.5)-SUM($I133:AB133),(Input!$I$332*(1+rvanilla)^0.5)/A2stdlife)) -> 0 | AD133: =IF(A2stdlife="n/a","n/a",IF(AD$3>(A2stdlife+$E133),(Input!$I$332*(1+rvanilla)^0.5)-SUM($I133:AC133),(Input!$I$332*(1+rvanilla)^0.5)/A2stdlife)) -> 0 | AE133: =IF(A2stdlife="n/a","n/a",IF(AE$3>(A2stdlife+$E133),(Input!$I$332*(1+rvanilla)^0.5)-SUM($I133:AD133),(Input!$I$332*(1+rvanilla)^0.5)/A2stdlife)) -> 0 | AF133: =IF(A2stdlife="n/a","n/a",IF(AF$3>(A2stdlife+$E133),(Input!$I$332*(1+rvanilla)^0.5)-SUM($I133:AE133),(Input!$I$332*(1+rvanilla)^0.5)/A2stdlife)) -> 0 | AG133: =IF(A2stdlife="n/a","n/a",IF(AG$3>(A2stdlife+$E133),(Input!$I$332*(1+rvanilla)^0.5)-SUM($I133:AF133),(Input!$I$332*(1+rvanilla)^0.5)/A2stdlife)) -> 0 | AH133: =IF(A2stdlife="n/a","n/a",IF(AH$3>(A2stdlife+$E133),(Input!$I$332*(1+rvanilla)^0.5)-SUM($I133:AG133),(Input!$I$332*(1+rvanilla)^0.5)/A2stdlife)) -> 0 | AI133: =IF(A2stdlife="n/a","n/a",IF(AI$3>(A2stdlife+$E133),(Input!$I$332*(1+rvanilla)^0.5)-SUM($I133:AH133),(Input!$I$332*(1+rvanilla)^0.5)/A2stdlife)) -> 0 | AJ133: =IF(A2stdlife="n/a","n/a",IF(AJ$3>(A2stdlife+$E133),(Input!$I$332*(1+rvanilla)^0.5)-SUM($I133:AI133),(Input!$I$332*(1+rvanilla)^0.5)/A2stdlife)) -> 0 | AK133: =IF(A2stdlife="n/a","n/a",IF(AK$3>(A2stdlife+$E133),(Input!$I$332*(1+rvanilla)^0.5)-SUM($I133:AJ133),(Input!$I$332*(1+rvanilla)^0.5)/A2stdlife)) -> 0 | AL133: =IF(A2stdlife="n/a","n/a",IF(AL$3>(A2stdlife+$E133),(Input!$I$332*(1+rvanilla)^0.5)-SUM($I133:AK133),(Input!$I$332*(1+rvanilla)^0.5)/A2stdlife)) -> 0 | AM133: =IF(A2stdlife="n/a","n/a",IF(AM$3>(A2stdlife+$E133),(Input!$I$332*(1+rvanilla)^0.5)-SUM($I133:AL133),(Input!$I$332*(1+rvanilla)^0.5)/A2stdlife)) -> 0 | AN133: =IF(A2stdlife="n/a","n/a",IF(AN$3>(A2stdlife+$E133),(Input!$I$332*(1+rvanilla)^0.5)-SUM($I133:AM133),(Input!$I$332*(1+rvanilla)^0.5)/A2stdlife)) -> 0 | AO133: =IF(A2stdlife="n/a","n/a",IF(AO$3>(A2stdlife+$E133),(Input!$I$332*(1+rvanilla)^0.5)-SUM($I133:AN133),(Input!$I$332*(1+rvanilla)^0.5)/A2stdlife)) -> 0 | AP133: =IF(A2stdlife="n/a","n/a",IF(AP$3>(A2stdlife+$E133),(Input!$I$332*(1+rvanilla)^0.5)-SUM($I133:AO133),(Input!$I$332*(1+rvanilla)^0.5)/A2stdlife)) -> 0 | AQ133: =IF(A2stdlife="n/a","n/a",IF(AQ$3>(A2stdlife+$E133),(Input!$I$332*(1+rvanilla)^0.5)-SUM($I133:AP133),(Input!$I$332*(1+rvanilla)^0.5)/A2stdlife)) -> 0 | AR133: =IF(A2stdlife="n/a","n/a",IF(AR$3>(A2stdlife+$E133),(Input!$I$332*(1+rvanilla)^0.5)-SUM($I133:AQ133),(Input!$I$332*(1+rvanilla)^0.5)/A2stdlife)) -> 0 | AS133: =IF(A2stdlife="n/a","n/a",IF(AS$3>(A2stdlife+$E133),(Input!$I$332*(1+rvanilla)^0.5)-SUM($I133:AR133),(Input!$I$332*(1+rvanilla)^0.5)/A2stdlife)) -> 0 | AT133: =IF(A2stdlife="n/a","n/a",IF(AT$3>(A2stdlife+$E133),(Input!$I$332*(1+rvanilla)^0.5)-SUM($I133:AS133),(Input!$I$332*(1+rvanilla)^0.5)/A2stdlife)) -> 0 | AU133: =IF(A2stdlife="n/a","n/a",IF(AU$3>(A2stdlife+$E133),(Input!$I$332*(1+rvanilla)^0.5)-SUM($I133:AT133),(Input!$I$332*(1+rvanilla)^0.5)/A2stdlife)) -> 0 | AV133: =IF(A2stdlife="n/a","n/a",IF(AV$3>(A2stdlife+$E133),(Input!$I$332*(1+rvanilla)^0.5)-SUM($I133:AU133),(Input!$I$332*(1+rvanilla)^0.5)/A2stdlife)) -> 0 | AW133: =IF(A2stdlife="n/a","n/a",IF(AW$3>(A2stdlife+$E133),(Input!$I$332*(1+rvanilla)^0.5)-SUM($I133:AV133),(Input!$I$332*(1+rvanilla)^0.5)/A2stdlife)) -> 0 | AX133: =IF(A2stdlife="n/a","n/a",IF(AX$3>(A2stdlife+$E133),(Input!$I$332*(1+rvanilla)^0.5)-SUM($I133:AW133),(Input!$I$332*(1+rvanilla)^0.5)/A2stdlife)) -> 0 | AY133: =IF(A2stdlife="n/a","n/a",IF(AY$3>(A2stdlife+$E133),(Input!$I$332*(1+rvanilla)^0.5)-SUM($I133:AX133),(Input!$I$332*(1+rvanilla)^0.5)/A2stdlife)) -> 0 | AZ133: =IF(A2stdlife="n/a","n/a",IF(AZ$3>(A2stdlife+$E133),(Input!$I$332*(1+rvanilla)^0.5)-SUM($I133:AY133),(Input!$I$332*(1+rvanilla)^0.5)/A2stdlife)) -> 0 | BA133: =IF(A2stdlife="n/a","n/a",IF(BA$3>(A2stdlife+$E133),(Input!$I$332*(1+rvanilla)^0.5)-SUM($I133:AZ133),(Input!$I$332*(1+rvanilla)^0.5)/A2stdlife)) -> 0 | BB133: =IF(A2stdlife="n/a","n/a",IF(BB$3>(A2stdlife+$E133),(Input!$I$332*(1+rvanilla)^0.5)-SUM($I133:BA133),(Input!$I$332*(1+rvanilla)^0.5)/A2stdlife)) -> 0 | BC133: =IF(A2stdlife="n/a","n/a",IF(BC$3>(A2stdlife+$E133),(Input!$I$332*(1+rvanilla)^0.5)-SUM($I133:BB133),(Input!$I$332*(1+rvanilla)^0.5)/A2stdlife)) -> 0 | BD133: =IF(A2stdlife="n/a","n/a",IF(BD$3>(A2stdlife+$E133),(Input!$I$332*(1+rvanilla)^0.5)-SUM($I133:BC133),(Input!$I$332*(1+rvanilla)^0.5)/A2stdlife)) -> 0 | BE133: =IF(A2stdlife="n/a","n/a",IF(BE$3>(A2stdlife+$E133),(Input!$I$332*(1+rvanilla)^0.5)-SUM($I133:BD133),(Input!$I$332*(1+rvanilla)^0.5)/A2stdlife)) -> 0 | BF133: =IF(A2stdlife="n/a","n/a",IF(BF$3>(A2stdlife+$E133),(Input!$I$332*(1+rvanilla)^0.5)-SUM($I133:BE133),(Input!$I$332*(1+rvanilla)^0.5)/A2stdlife)) -> 0 | BG133: =IF(A2stdlife="n/a","n/a",IF(BG$3>(A2stdlife+$E133),(Input!$I$332*(1+rvanilla)^0.5)-SUM($I133:BF133),(Input!$I$332*(1+rvanilla)^0.5)/A2stdlife)) -> 0 | BH133: =IF(A2stdlife="n/a","n/a",IF(BH$3>(A2stdlife+$E133),(Input!$I$332*(1+rvanilla)^0.5)-SUM($I133:BG133),(Input!$I$332*(1+rvanilla)^0.5)/A2stdlife)) -> 0 | BI133: =IF(A2stdlife="n/a","n/a",IF(BI$3>(A2stdlife+$E133),(Input!$I$332*(1+rvanilla)^0.5)-SUM($I133:BH133),(Input!$I$332*(1+rvanilla)^0.5)/A2stdlife)) -> 0
E134: 4 | K134: =IF(A2stdlife="n/a","n/a",IF(K$3>(A2stdlife+$E134),(Input!$J$332*(1+rvanilla)^0.5)-SUM($J134:J134),(Input!$J$332*(1+rvanilla)^0.5)/A2stdlife)) -> 0 | L134: =IF(A2stdlife="n/a","n/a",IF(L$3>(A2stdlife+$E134),(Input!$J$332*(1+rvanilla)^0.5)-SUM($J134:K134),(Input!$J$332*(1+rvanilla)^0.5)/A2stdlife)) -> 0 | M134: =IF(A2stdlife="n/a","n/a",IF(M$3>(A2stdlife+$E134),(Input!$J$332*(1+rvanilla)^0.5)-SUM($J134:L134),(Input!$J$332*(1+rvanilla)^0.5)/A2stdlife)) -> 0 | N134: =IF(A2stdlife="n/a","n/a",IF(N$3>(A2stdlife+$E134),(Input!$J$332*(1+rvanilla)^0.5)-SUM($J134:M134),(Input!$J$332*(1+rvanilla)^0.5)/A2stdlife)) -> 0 | O134: =IF(A2stdlife="n/a","n/a",IF(O$3>(A2stdlife+$E134),(Input!$J$332*(1+rvanilla)^0.5)-SUM($J134:N134),(Input!$J$332*(1+rvanilla)^0.5)/A2stdlife)) -> 0 | P134: =IF(A2stdlife="n/a","n/a",IF(P$3>(A2stdlife+$E134),(Input!$J$332*(1+rvanilla)^0.5)-SUM($J134:O134),(Input!$J$332*(1+rvanilla)^0.5)/A2stdlife)) -> 0 | Q134: =IF(A2stdlife="n/a","n/a",IF(Q$3>(A2stdlife+$E134),(Input!$J$332*(1+rvanilla)^0.5)-SUM($J134:P134),(Input!$J$332*(1+rvanilla)^0.5)/A2stdlife)) -> 0 | R134: =IF(A2stdlife="n/a","n/a",IF(R$3>(A2stdlife+$E134),(Input!$J$332*(1+rvanilla)^0.5)-SUM($J134:Q134),(Input!$J$332*(1+rvanilla)^0.5)/A2stdlife)) -> 0 | S134: =IF(A2stdlife="n/a","n/a",IF(S$3>(A2stdlife+$E134),(Input!$J$332*(1+rvanilla)^0.5)-SUM($J134:R134),(Input!$J$332*(1+rvanilla)^0.5)/A2stdlife)) -> 0 | T134: =IF(A2stdlife="n/a","n/a",IF(T$3>(A2stdlife+$E134),(Input!$J$332*(1+rvanilla)^0.5)-SUM($J134:S134),(Input!$J$332*(1+rvanilla)^0.5)/A2stdlife)) -> 0 | U134: =IF(A2stdlife="n/a","n/a",IF(U$3>(A2stdlife+$E134),(Input!$J$332*(1+rvanilla)^0.5)-SUM($J134:T134),(Input!$J$332*(1+rvanilla)^0.5)/A2stdlife)) -> 0 | V134: =IF(A2stdlife="n/a","n/a",IF(V$3>(A2stdlife+$E134),(Input!$J$332*(1+rvanilla)^0.5)-SUM($J134:U134),(Input!$J$332*(1+rvanilla)^0.5)/A2stdlife)) -> 0 | W134: =IF(A2stdlife="n/a","n/a",IF(W$3>(A2stdlife+$E134),(Input!$J$332*(1+rvanilla)^0.5)-SUM($J134:V134),(Input!$J$332*(1+rvanilla)^0.5)/A2stdlife)) -> 0 | X134: =IF(A2stdlife="n/a","n/a",IF(X$3>(A2stdlife+$E134),(Input!$J$332*(1+rvanilla)^0.5)-SUM($J134:W134),(Input!$J$332*(1+rvanilla)^0.5)/A2stdlife)) -> 0 | Y134: =IF(A2stdlife="n/a","n/a",IF(Y$3>(A2stdlife+$E134),(Input!$J$332*(1+rvanilla)^0.5)-SUM($J134:X134),(Input!$J$332*(1+rvanilla)^0.5)/A2stdlife)) -> 0 | Z134: =IF(A2stdlife="n/a","n/a",IF(Z$3>(A2stdlife+$E134),(Input!$J$332*(1+rvanilla)^0.5)-SUM($J134:Y134),(Input!$J$332*(1+rvanilla)^0.5)/A2stdlife)) -> 0 | AA134: =IF(A2stdlife="n/a","n/a",IF(AA$3>(A2stdlife+$E134),(Input!$J$332*(1+rvanilla)^0.5)-SUM($J134:Z134),(Input!$J$332*(1+rvanilla)^0.5)/A2stdlife)) -> 0 | AB134: =IF(A2stdlife="n/a","n/a",IF(AB$3>(A2stdlife+$E134),(Input!$J$332*(1+rvanilla)^0.5)-SUM($J134:AA134),(Input!$J$332*(1+rvanilla)^0.5)/A2stdlife)) -> 0 | AC134: =IF(A2stdlife="n/a","n/a",IF(AC$3>(A2stdlife+$E134),(Input!$J$332*(1+rvanilla)^0.5)-SUM($J134:AB134),(Input!$J$332*(1+rvanilla)^0.5)/A2stdlife)) -> 0 | AD134: =IF(A2stdlife="n/a","n/a",IF(AD$3>(A2stdlife+$E134),(Input!$J$332*(1+rvanilla)^0.5)-SUM($J134:AC134),(Input!$J$332*(1+rvanilla)^0.5)/A2stdlife)) -> 0 | AE134: =IF(A2stdlife="n/a","n/a",IF(AE$3>(A2stdlife+$E134),(Input!$J$332*(1+rvanilla)^0.5)-SUM($J134:AD134),(Input!$J$332*(1+rvanilla)^0.5)/A2stdlife)) -> 0 | AF134: =IF(A2stdlife="n/a","n/a",IF(AF$3>(A2stdlife+$E134),(Input!$J$332*(1+rvanilla)^0.5)-SUM($J134:AE134),(Input!$J$332*(1+rvanilla)^0.5)/A2stdlife)) -> 0 | AG134: =IF(A2stdlife="n/a","n/a",IF(AG$3>(A2stdlife+$E134),(Input!$J$332*(1+rvanilla)^0.5)-SUM($J134:AF134),(Input!$J$332*(1+rvanilla)^0.5)/A2stdlife)) -> 0 | AH134: =IF(A2stdlife="n/a","n/a",IF(AH$3>(A2stdlife+$E134),(Input!$J$332*(1+rvanilla)^0.5)-SUM($J134:AG134),(Input!$J$332*(1+rvanilla)^0.5)/A2stdlife)) -> 0 | AI134: =IF(A2stdlife="n/a","n/a",IF(AI$3>(A2stdlife+$E134),(Input!$J$332*(1+rvanilla)^0.5)-SUM($J134:AH134),(Input!$J$332*(1+rvanilla)^0.5)/A2stdlife)) -> 0 | AJ134: =IF(A2stdlife="n/a","n/a",IF(AJ$3>(A2stdlife+$E134),(Input!$J$332*(1+rvanilla)^0.5)-SUM($J134:AI134),(Input!$J$332*(1+rvanilla)^0.5)/A2stdlife)) -> 0 | AK134: =IF(A2stdlife="n/a","n/a",IF(AK$3>(A2stdlife+$E134),(Input!$J$332*(1+rvanilla)^0.5)-SUM($J134:AJ134),(Input!$J$332*(1+rvanilla)^0.5)/A2stdlife)) -> 0 | AL134: =IF(A2stdlife="n/a","n/a",IF(AL$3>(A2stdlife+$E134),(Input!$J$332*(1+rvanilla)^0.5)-SUM($J134:AK134),(Input!$J$332*(1+rvanilla)^0.5)/A2stdlife)) -> 0 | AM134: =IF(A2stdlife="n/a","n/a",IF(AM$3>(A2stdlife+$E134),(Input!$J$332*(1+rvanilla)^0.5)-SUM($J134:AL134),(Input!$J$332*(1+rvanilla)^0.5)/A2stdlife)) -> 0 | AN134: =IF(A2stdlife="n/a","n/a",IF(AN$3>(A2stdlife+$E134),(Input!$J$332*(1+rvanilla)^0.5)-SUM($J134:AM134),(Input!$J$332*(1+rvanilla)^0.5)/A2stdlife)) -> 0 | AO134: =IF(A2stdlife="n/a","n/a",IF(AO$3>(A2stdlife+$E134),(Input!$J$332*(1+rvanilla)^0.5)-SUM($J134:AN134),(Input!$J$332*(1+rvanilla)^0.5)/A2stdlife)) -> 0 | AP134: =IF(A2stdlife="n/a","n/a",IF(AP$3>(A2stdlife+$E134),(Input!$J$332*(1+rvanilla)^0.5)-SUM($J134:AO134),(Input!$J$332*(1+rvanilla)^0.5)/A2stdlife)) -> 0 | AQ134: =IF(A2stdlife="n/a","n/a",IF(AQ$3>(A2stdlife+$E134),(Input!$J$332*(1+rvanilla)^0.5)-SUM($J134:AP134),(Input!$J$332*(1+rvanilla)^0.5)/A2stdlife)) -> 0 | AR134: =IF(A2stdlife="n/a","n/a",IF(AR$3>(A2stdlife+$E134),(Input!$J$332*(1+rvanilla)^0.5)-SUM($J134:AQ134),(Input!$J$332*(1+rvanilla)^0.5)/A2stdlife)) -> 0 | AS134: =IF(A2stdlife="n/a","n/a",IF(AS$3>(A2stdlife+$E134),(Input!$J$332*(1+rvanilla)^0.5)-SUM($J134:AR134),(Input!$J$332*(1+rvanilla)^0.5)/A2stdlife)) -> 0 | AT134: =IF(A2stdlife="n/a","n/a",IF(AT$3>(A2stdlife+$E134),(Input!$J$332*(1+rvanilla)^0.5)-SUM($J134:AS134),(Input!$J$332*(1+rvanilla)^0.5)/A2stdlife)) -> 0 | AU134: =IF(A2stdlife="n/a","n/a",IF(AU$3>(A2stdlife+$E134),(Input!$J$332*(1+rvanilla)^0.5)-SUM($J134:AT134),(Input!$J$332*(1+rvanilla)^0.5)/A2stdlife)) -> 0 | AV134: =IF(A2stdlife="n/a","n/a",IF(AV$3>(A2stdlife+$E134),(Input!$J$332*(1+rvanilla)^0.5)-SUM($J134:AU134),(Input!$J$332*(1+rvanilla)^0.5)/A2stdlife)) -> 0 | AW134: =IF(A2stdlife="n/a","n/a",IF(AW$3>(A2stdlife+$E134),(Input!$J$332*(1+rvanilla)^0.5)-SUM($J134:AV134),(Input!$J$332*(1+rvanilla)^0.5)/A2stdlife)) -> 0 | AX134: =IF(A2stdlife="n/a","n/a",IF(AX$3>(A2stdlife+$E134),(Input!$J$332*(1+rvanilla)^0.5)-SUM($J134:AW134),(Input!$J$332*(1+rvanilla)^0.5)/A2stdlife)) -> 0 | AY134: =IF(A2stdlife="n/a","n/a",IF(AY$3>(A2stdlife+$E134),(Input!$J$332*(1+rvanilla)^0.5)-SUM($J134:AX134),(Input!$J$332*(1+rvanilla)^0.5)/A2stdlife)) -> 0 | AZ134: =IF(A2stdlife="n/a","n/a",IF(AZ$3>(A2stdlife+$E134),(Input!$J$332*(1+rvanilla)^0.5)-SUM($J134:AY134),(Input!$J$332*(1+rvanilla)^0.5)/A2stdlife)) -> 0 | BA134: =IF(A2stdlife="n/a","n/a",IF(BA$3>(A2stdlife+$E134),(Input!$J$332*(1+rvanilla)^0.5)-SUM($J134:AZ134),(Input!$J$332*(1+rvanilla)^0.5)/A2stdlife)) -> 0 | BB134: =IF(A2stdlife="n/a","n/a",IF(BB$3>(A2stdlife+$E134),(Input!$J$332*(1+rvanilla)^0.5)-SUM($J134:BA134),(Input!$J$332*(1+rvanilla)^0.5)/A2stdlife)) -> 0 | BC134: =IF(A2stdlife="n/a","n/a",IF(BC$3>(A2stdlife+$E134),(Input!$J$332*(1+rvanilla)^0.5)-SUM($J134:BB134),(Input!$J$332*(1+rvanilla)^0.5)/A2stdlife)) -> 0 | BD134: =IF(A2stdlife="n/a","n/a",IF(BD$3>(A2stdlife+$E134),(Input!$J$332*(1+rvanilla)^0.5)-SUM($J134:BC134),(Input!$J$332*(1+rvanilla)^0.5)/A2stdlife)) -> 0 | BE134: =IF(A2stdlife="n/a","n/a",IF(BE$3>(A2stdlife+$E134),(Input!$J$332*(1+rvanilla)^0.5)-SUM($J134:BD134),(Input!$J$332*(1+rvanilla)^0.5)/A2stdlife)) -> 0 | BF134: =IF(A2stdlife="n/a","n/a",IF(BF$3>(A2stdlife+$E134),(Input!$J$332*(1+rvanilla)^0.5)-SUM($J134:BE134),(Input!$J$332*(1+rvanilla)^0.5)/A2stdlife)) -> 0 | BG134: =IF(A2stdlife="n/a","n/a",IF(BG$3>(A2stdlife+$E134),(Input!$J$332*(1+rvanilla)^0.5)-SUM($J134:BF134),(Input!$J$332*(1+rvanilla)^0.5)/A2stdlife)) -> 0 | BH134: =IF(A2stdlife="n/a","n/a",IF(BH$3>(A2stdlife+$E134),(Input!$J$332*(1+rvanilla)^0.5)-SUM($J134:BG134),(Input!$J$332*(1+rvanilla)^0.5)/A2stdlife)) -> 0 | BI134: =IF(A2stdlife="n/a","n/a",IF(BI$3>(A2stdlife+$E134),(Input!$J$332*(1+rvanilla)^0.5)-SUM($J134:BH134),(Input!$J$332*(1+rvanilla)^0.5)/A2stdlife)) -> 0
E135: 5 | L135: =IF(A2stdlife="n/a","n/a",IF(L$3>(A2stdlife+$E135),(Input!$K$332*(1+rvanilla)^0.5)-SUM($K135:K135),(Input!$K$332*(1+rvanilla)^0.5)/A2stdlife)) -> 0 | M135: =IF(A2stdlife="n/a","n/a",IF(M$3>(A2stdlife+$E135),(Input!$K$332*(1+rvanilla)^0.5)-SUM($K135:L135),(Input!$K$332*(1+rvanilla)^0.5)/A2stdlife)) -> 0 | N135: =IF(A2stdlife="n/a","n/a",IF(N$3>(A2stdlife+$E135),(Input!$K$332*(1+rvanilla)^0.5)-SUM($K135:M135),(Input!$K$332*(1+rvanilla)^0.5)/A2stdlife)) -> 0 | O135: =IF(A2stdlife="n/a","n/a",IF(O$3>(A2stdlife+$E135),(Input!$K$332*(1+rvanilla)^0.5)-SUM($K135:N135),(Input!$K$332*(1+rvanilla)^0.5)/A2stdlife)) -> 0 | P135: =IF(A2stdlife="n/a","n/a",IF(P$3>(A2stdlife+$E135),(Input!$K$332*(1+rvanilla)^0.5)-SUM($K135:O135),(Input!$K$332*(1+rvanilla)^0.5)/A2stdlife)) -> 0 | Q135: =IF(A2stdlife="n/a","n/a",IF(Q$3>(A2stdlife+$E135),(Input!$K$332*(1+rvanilla)^0.5)-SUM($K135:P135),(Input!$K$332*(1+rvanilla)^0.5)/A2stdlife)) -> 0 | R135: =IF(A2stdlife="n/a","n/a",IF(R$3>(A2stdlife+$E135),(Input!$K$332*(1+rvanilla)^0.5)-SUM($K135:Q135),(Input!$K$332*(1+rvanilla)^0.5)/A2stdlife)) -> 0 | S135: =IF(A2stdlife="n/a","n/a",IF(S$3>(A2stdlife+$E135),(Input!$K$332*(1+rvanilla)^0.5)-SUM($K135:R135),(Input!$K$332*(1+rvanilla)^0.5)/A2stdlife)) -> 0 | T135: =IF(A2stdlife="n/a","n/a",IF(T$3>(A2stdlife+$E135),(Input!$K$332*(1+rvanilla)^0.5)-SUM($K135:S135),(Input!$K$332*(1+rvanilla)^0.5)/A2stdlife)) -> 0 | U135: =IF(A2stdlife="n/a","n/a",IF(U$3>(A2stdlife+$E135),(Input!$K$332*(1+rvanilla)^0.5)-SUM($K135:T135),(Input!$K$332*(1+rvanilla)^0.5)/A2stdlife)) -> 0 | V135: =IF(A2stdlife="n/a","n/a",IF(V$3>(A2stdlife+$E135),(Input!$K$332*(1+rvanilla)^0.5)-SUM($K135:U135),(Input!$K$332*(1+rvanilla)^0.5)/A2stdlife)) -> 0 | W135: =IF(A2stdlife="n/a","n/a",IF(W$3>(A2stdlife+$E135),(Input!$K$332*(1+rvanilla)^0.5)-SUM($K135:V135),(Input!$K$332*(1+rvanilla)^0.5)/A2stdlife)) -> 0 | X135: =IF(A2stdlife="n/a","n/a",IF(X$3>(A2stdlife+$E135),(Input!$K$332*(1+rvanilla)^0.5)-SUM($K135:W135),(Input!$K$332*(1+rvanilla)^0.5)/A2stdlife)) -> 0 | Y135: =IF(A2stdlife="n/a","n/a",IF(Y$3>(A2stdlife+$E135),(Input!$K$332*(1+rvanilla)^0.5)-SUM($K135:X135),(Input!$K$332*(1+rvanilla)^0.5)/A2stdlife)) -> 0 | Z135: =IF(A2stdlife="n/a","n/a",IF(Z$3>(A2stdlife+$E135),(Input!$K$332*(1+rvanilla)^0.5)-SUM($K135:Y135),(Input!$K$332*(1+rvanilla)^0.5)/A2stdlife)) -> 0 | AA135: =IF(A2stdlife="n/a","n/a",IF(AA$3>(A2stdlife+$E135),(Input!$K$332*(1+rvanilla)^0.5)-SUM($K135:Z135),(Input!$K$332*(1+rvanilla)^0.5)/A2stdlife)) -> 0 | AB135: =IF(A2stdlife="n/a","n/a",IF(AB$3>(A2stdlife+$E135),(Input!$K$332*(1+rvanilla)^0.5)-SUM($K135:AA135),(Input!$K$332*(1+rvanilla)^0.5)/A2stdlife)) -> 0 | AC135: =IF(A2stdlife="n/a","n/a",IF(AC$3>(A2stdlife+$E135),(Input!$K$332*(1+rvanilla)^0.5)-SUM($K135:AB135),(Input!$K$332*(1+rvanilla)^0.5)/A2stdlife)) -> 0 | AD135: =IF(A2stdlife="n/a","n/a",IF(AD$3>(A2stdlife+$E135),(Input!$K$332*(1+rvanilla)^0.5)-SUM($K135:AC135),(Input!$K$332*(1+rvanilla)^0.5)/A2stdlife)) -> 0 | AE135: =IF(A2stdlife="n/a","n/a",IF(AE$3>(A2stdlife+$E135),(Input!$K$332*(1+rvanilla)^0.5)-SUM($K135:AD135),(Input!$K$332*(1+rvanilla)^0.5)/A2stdlife)) -> 0 | AF135: =IF(A2stdlife="n/a","n/a",IF(AF$3>(A2stdlife+$E135),(Input!$K$332*(1+rvanilla)^0.5)-SUM($K135:AE135),(Input!$K$332*(1+rvanilla)^0.5)/A2stdlife)) -> 0 | AG135: =IF(A2stdlife="n/a","n/a",IF(AG$3>(A2stdlife+$E135),(Input!$K$332*(1+rvanilla)^0.5)-SUM($K135:AF135),(Input!$K$332*(1+rvanilla)^0.5)/A2stdlife)) -> 0 | AH135: =IF(A2stdlife="n/a","n/a",IF(AH$3>(A2stdlife+$E135),(Input!$K$332*(1+rvanilla)^0.5)-SUM($K135:AG135),(Input!$K$332*(1+rvanilla)^0.5)/A2stdlife)) -> 0 | AI135: =IF(A2stdlife="n/a","n/a",IF(AI$3>(A2stdlife+$E135),(Input!$K$332*(1+rvanilla)^0.5)-SUM($K135:AH135),(Input!$K$332*(1+rvanilla)^0.5)/A2stdlife)) -> 0 | AJ135: =IF(A2stdlife="n/a","n/a",IF(AJ$3>(A2stdlife+$E135),(Input!$K$332*(1+rvanilla)^0.5)-SUM($K135:AI135),(Input!$K$332*(1+rvanilla)^0.5)/A2stdlife)) -> 0 | AK135: =IF(A2stdlife="n/a","n/a",IF(AK$3>(A2stdlife+$E135),(Input!$K$332*(1+rvanilla)^0.5)-SUM($K135:AJ135),(Input!$K$332*(1+rvanilla)^0.5)/A2stdlife)) -> 0 | AL135: =IF(A2stdlife="n/a","n/a",IF(AL$3>(A2stdlife+$E135),(Input!$K$332*(1+rvanilla)^0.5)-SUM($K135:AK135),(Input!$K$332*(1+rvanilla)^0.5)/A2stdlife)) -> 0 | AM135: =IF(A2stdlife="n/a","n/a",IF(AM$3>(A2stdlife+$E135),(Input!$K$332*(1+rvanilla)^0.5)-SUM($K135:AL135),(Input!$K$332*(1+rvanilla)^0.5)/A2stdlife)) -> 0 | AN135: =IF(A2stdlife="n/a","n/a",IF(AN$3>(A2stdlife+$E135),(Input!$K$332*(1+rvanilla)^0.5)-SUM($K135:AM135),(Input!$K$332*(1+rvanilla)^0.5)/A2stdlife)) -> 0 | AO135: =IF(A2stdlife="n/a","n/a",IF(AO$3>(A2stdlife+$E135),(Input!$K$332*(1+rvanilla)^0.5)-SUM($K135:AN135),(Input!$K$332*(1+rvanilla)^0.5)/A2stdlife)) -> 0 | AP135: =IF(A2stdlife="n/a","n/a",IF(AP$3>(A2stdlife+$E135),(Input!$K$332*(1+rvanilla)^0.5)-SUM($K135:AO135),(Input!$K$332*(1+rvanilla)^0.5)/A2stdlife)) -> 0 | AQ135: =IF(A2stdlife="n/a","n/a",IF(AQ$3>(A2stdlife+$E135),(Input!$K$332*(1+rvanilla)^0.5)-SUM($K135:AP135),(Input!$K$332*(1+rvanilla)^0.5)/A2stdlife)) -> 0 | AR135: =IF(A2stdlife="n/a","n/a",IF(AR$3>(A2stdlife+$E135),(Input!$K$332*(1+rvanilla)^0.5)-SUM($K135:AQ135),(Input!$K$332*(1+rvanilla)^0.5)/A2stdlife)) -> 0 | AS135: =IF(A2stdlife="n/a","n/a",IF(AS$3>(A2stdlife+$E135),(Input!$K$332*(1+rvanilla)^0.5)-SUM($K135:AR135),(Input!$K$332*(1+rvanilla)^0.5)/A2stdlife)) -> 0 | AT135: =IF(A2stdlife="n/a","n/a",IF(AT$3>(A2stdlife+$E135),(Input!$K$332*(1+rvanilla)^0.5)-SUM($K135:AS135),(Input!$K$332*(1+rvanilla)^0.5)/A2stdlife)) -> 0 | AU135: =IF(A2stdlife="n/a","n/a",IF(AU$3>(A2stdlife+$E135),(Input!$K$332*(1+rvanilla)^0.5)-SUM($K135:AT135),(Input!$K$332*(1+rvanilla)^0.5)/A2stdlife)) -> 0 | AV135: =IF(A2stdlife="n/a","n/a",IF(AV$3>(A2stdlife+$E135),(Input!$K$332*(1+rvanilla)^0.5)-SUM($K135:AU135),(Input!$K$332*(1+rvanilla)^0.5)/A2stdlife)) -> 0 | AW135: =IF(A2stdlife="n/a","n/a",IF(AW$3>(A2stdlife+$E135),(Input!$K$332*(1+rvanilla)^0.5)-SUM($K135:AV135),(Input!$K$332*(1+rvanilla)^0.5)/A2stdlife)) -> 0 | AX135: =IF(A2stdlife="n/a","n/a",IF(AX$3>(A2stdlife+$E135),(Input!$K$332*(1+rvanilla)^0.5)-SUM($K135:AW135),(Input!$K$332*(1+rvanilla)^0.5)/A2stdlife)) -> 0 | AY135: =IF(A2stdlife="n/a","n/a",IF(AY$3>(A2stdlife+$E135),(Input!$K$332*(1+rvanilla)^0.5)-SUM($K135:AX135),(Input!$K$332*(1+rvanilla)^0.5)/A2stdlife)) -> 0 | AZ135: =IF(A2stdlife="n/a","n/a",IF(AZ$3>(A2stdlife+$E135),(Input!$K$332*(1+rvanilla)^0.5)-SUM($K135:AY135),(Input!$K$332*(1+rvanilla)^0.5)/A2stdlife)) -> 0 | BA135: =IF(A2stdlife="n/a","n/a",IF(BA$3>(A2stdlife+$E135),(Input!$K$332*(1+rvanilla)^0.5)-SUM($K135:AZ135),(Input!$K$332*(1+rvanilla)^0.5)/A2stdlife)) -> 0 | BB135: =IF(A2stdlife="n/a","n/a",IF(BB$3>(A2stdlife+$E135),(Input!$K$332*(1+rvanilla)^0.5)-SUM($K135:BA135),(Input!$K$332*(1+rvanilla)^0.5)/A2stdlife)) -> 0 | BC135: =IF(A2stdlife="n/a","n/a",IF(BC$3>(A2stdlife+$E135),(Input!$K$332*(1+rvanilla)^0.5)-SUM($K135:BB135),(Input!$K$332*(1+rvanilla)^0.5)/A2stdlife)) -> 0 | BD135: =IF(A2stdlife="n/a","n/a",IF(BD$3>(A2stdlife+$E135),(Input!$K$332*(1+rvanilla)^0.5)-SUM($K135:BC135),(Input!$K$332*(1+rvanilla)^0.5)/A2stdlife)) -> 0 | BE135: =IF(A2stdlife="n/a","n/a",IF(BE$3>(A2stdlife+$E135),(Input!$K$332*(1+rvanilla)^0.5)-SUM($K135:BD135),(Input!$K$332*(1+rvanilla)^0.5)/A2stdlife)) -> 0 | BF135: =IF(A2stdlife="n/a","n/a",IF(BF$3>(A2stdlife+$E135),(Input!$K$332*(1+rvanilla)^0.5)-SUM($K135:BE135),(Input!$K$332*(1+rvanilla)^0.5)/A2stdlife)) -> 0 | BG135: =IF(A2stdlife="n/a","n/a",IF(BG$3>(A2stdlife+$E135),(Input!$K$332*(1+rvanilla)^0.5)-SUM($K135:BF135),(Input!$K$332*(1+rvanilla)^0.5)/A2stdlife)) -> 0 | BH135: =IF(A2stdlife="n/a","n/a",IF(BH$3>(A2stdlife+$E135),(Input!$K$332*(1+rvanilla)^0.5)-SUM($K135:BG135),(Input!$K$332*(1+rvanilla)^0.5)/A2stdlife)) -> 0 | BI135: =IF(A2stdlife="n/a","n/a",IF(BI$3>(A2stdlife+$E135),(Input!$K$332*(1+rvanilla)^0.5)-SUM($K135:BH135),(Input!$K$332*(1+rvanilla)^0.5)/A2stdlife)) -> 0
E136: 6 | M136: =IF(A2stdlife="n/a","n/a",IF(M$3>(A2stdlife+$E136),(Input!$L$332*(1+rvanilla)^0.5)-SUM($L136:L136),(Input!$L$332*(1+rvanilla)^0.5)/A2stdlife)) -> 0 | N136: =IF(A2stdlife="n/a","n/a",IF(N$3>(A2stdlife+$E136),(Input!$L$332*(1+rvanilla)^0.5)-SUM($L136:M136),(Input!$L$332*(1+rvanilla)^0.5)/A2stdlife)) -> 0 | O136: =IF(A2stdlife="n/a","n/a",IF(O$3>(A2stdlife+$E136),(Input!$L$332*(1+rvanilla)^0.5)-SUM($L136:N136),(Input!$L$332*(1+rvanilla)^0.5)/A2stdlife)) -> 0 | P136: =IF(A2stdlife="n/a","n/a",IF(P$3>(A2stdlife+$E136),(Input!$L$332*(1+rvanilla)^0.5)-SUM($L136:O136),(Input!$L$332*(1+rvanilla)^0.5)/A2stdlife)) -> 0 | Q136: =IF(A2stdlife="n/a","n/a",IF(Q$3>(A2stdlife+$E136),(Input!$L$332*(1+rvanilla)^0.5)-SUM($L136:P136),(Input!$L$332*(1+rvanilla)^0.5)/A2stdlife)) -> 0 | R136: =IF(A2stdlife="n/a","n/a",IF(R$3>(A2stdlife+$E136),(Input!$L$332*(1+rvanilla)^0.5)-SUM($L136:Q136),(Input!$L$332*(1+rvanilla)^0.5)/A2stdlife)) -> 0 | S136: =IF(A2stdlife="n/a","n/a",IF(S$3>(A2stdlife+$E136),(Input!$L$332*(1+rvanilla)^0.5)-SUM($L136:R136),(Input!$L$332*(1+rvanilla)^0.5)/A2stdlife)) -> 0 | T136: =IF(A2stdlife="n/a","n/a",IF(T$3>(A2stdlife+$E136),(Input!$L$332*(1+rvanilla)^0.5)-SUM($L136:S136),(Input!$L$332*(1+rvanilla)^0.5)/A2stdlife)) -> 0 | U136: =IF(A2stdlife="n/a","n/a",IF(U$3>(A2stdlife+$E136),(Input!$L$332*(1+rvanilla)^0.5)-SUM($L136:T136),(Input!$L$332*(1+rvanilla)^0.5)/A2stdlife)) -> 0 | V136: =IF(A2stdlife="n/a","n/a",IF(V$3>(A2stdlife+$E136),(Input!$L$332*(1+rvanilla)^0.5)-SUM($L136:U136),(Input!$L$332*(1+rvanilla)^0.5)/A2stdlife)) -> 0 | W136: =IF(A2stdlife="n/a","n/a",IF(W$3>(A2stdlife+$E136),(Input!$L$332*(1+rvanilla)^0.5)-SUM($L136:V136),(Input!$L$332*(1+rvanilla)^0.5)/A2stdlife)) -> 0 | X136: =IF(A2stdlife="n/a","n/a",IF(X$3>(A2stdlife+$E136),(Input!$L$332*(1+rvanilla)^0.5)-SUM($L136:W136),(Input!$L$332*(1+rvanilla)^0.5)/A2stdlife)) -> 0 | Y136: =IF(A2stdlife="n/a","n/a",IF(Y$3>(A2stdlife+$E136),(Input!$L$332*(1+rvanilla)^0.5)-SUM($L136:X136),(Input!$L$332*(1+rvanilla)^0.5)/A2stdlife)) -> 0 | Z136: =IF(A2stdlife="n/a","n/a",IF(Z$3>(A2stdlife+$E136),(Input!$L$332*(1+rvanilla)^0.5)-SUM($L136:Y136),(Input!$L$332*(1+rvanilla)^0.5)/A2stdlife)) -> 0 | AA136: =IF(A2stdlife="n/a","n/a",IF(AA$3>(A2stdlife+$E136),(Input!$L$332*(1+rvanilla)^0.5)-SUM($L136:Z136),(Input!$L$332*(1+rvanilla)^0.5)/A2stdlife)) -> 0 | AB136: =IF(A2stdlife="n/a","n/a",IF(AB$3>(A2stdlife+$E136),(Input!$L$332*(1+rvanilla)^0.5)-SUM($L136:AA136),(Input!$L$332*(1+rvanilla)^0.5)/A2stdlife)) -> 0 | AC136: =IF(A2stdlife="n/a","n/a",IF(AC$3>(A2stdlife+$E136),(Input!$L$332*(1+rvanilla)^0.5)-SUM($L136:AB136),(Input!$L$332*(1+rvanilla)^0.5)/A2stdlife)) -> 0 | AD136: =IF(A2stdlife="n/a","n/a",IF(AD$3>(A2stdlife+$E136),(Input!$L$332*(1+rvanilla)^0.5)-SUM($L136:AC136),(Input!$L$332*(1+rvanilla)^0.5)/A2stdlife)) -> 0 | AE136: =IF(A2stdlife="n/a","n/a",IF(AE$3>(A2stdlife+$E136),(Input!$L$332*(1+rvanilla)^0.5)-SUM($L136:AD136),(Input!$L$332*(1+rvanilla)^0.5)/A2stdlife)) -> 0 | AF136: =IF(A2stdlife="n/a","n/a",IF(AF$3>(A2stdlife+$E136),(Input!$L$332*(1+rvanilla)^0.5)-SUM($L136:AE136),(Input!$L$332*(1+rvanilla)^0.5)/A2stdlife)) -> 0 | AG136: =IF(A2stdlife="n/a","n/a",IF(AG$3>(A2stdlife+$E136),(Input!$L$332*(1+rvanilla)^0.5)-SUM($L136:AF136),(Input!$L$332*(1+rvanilla)^0.5)/A2stdlife)) -> 0 | AH136: =IF(A2stdlife="n/a","n/a",IF(AH$3>(A2stdlife+$E136),(Input!$L$332*(1+rvanilla)^0.5)-SUM($L136:AG136),(Input!$L$332*(1+rvanilla)^0.5)/A2stdlife)) -> 0 | AI136: =IF(A2stdlife="n/a","n/a",IF(AI$3>(A2stdlife+$E136),(Input!$L$332*(1+rvanilla)^0.5)-SUM($L136:AH136),(Input!$L$332*(1+rvanilla)^0.5)/A2stdlife)) -> 0 | AJ136: =IF(A2stdlife="n/a","n/a",IF(AJ$3>(A2stdlife+$E136),(Input!$L$332*(1+rvanilla)^0.5)-SUM($L136:AI136),(Input!$L$332*(1+rvanilla)^0.5)/A2stdlife)) -> 0 | AK136: =IF(A2stdlife="n/a","n/a",IF(AK$3>(A2stdlife+$E136),(Input!$L$332*(1+rvanilla)^0.5)-SUM($L136:AJ136),(Input!$L$332*(1+rvanilla)^0.5)/A2stdlife)) -> 0 | AL136: =IF(A2stdlife="n/a","n/a",IF(AL$3>(A2stdlife+$E136),(Input!$L$332*(1+rvanilla)^0.5)-SUM($L136:AK136),(Input!$L$332*(1+rvanilla)^0.5)/A2stdlife)) -> 0 | AM136: =IF(A2stdlife="n/a","n/a",IF(AM$3>(A2stdlife+$E136),(Input!$L$332*(1+rvanilla)^0.5)-SUM($L136:AL136),(Input!$L$332*(1+rvanilla)^0.5)/A2stdlife)) -> 0 | AN136: =IF(A2stdlife="n/a","n/a",IF(AN$3>(A2stdlife+$E136),(Input!$L$332*(1+rvanilla)^0.5)-SUM($L136:AM136),(Input!$L$332*(1+rvanilla)^0.5)/A2stdlife)) -> 0 | AO136: =IF(A2stdlife="n/a","n/a",IF(AO$3>(A2stdlife+$E136),(Input!$L$332*(1+rvanilla)^0.5)-SUM($L136:AN136),(Input!$L$332*(1+rvanilla)^0.5)/A2stdlife)) -> 0 | AP136: =IF(A2stdlife="n/a","n/a",IF(AP$3>(A2stdlife+$E136),(Input!$L$332*(1+rvanilla)^0.5)-SUM($L136:AO136),(Input!$L$332*(1+rvanilla)^0.5)/A2stdlife)) -> 0 | AQ136: =IF(A2stdlife="n/a","n/a",IF(AQ$3>(A2stdlife+$E136),(Input!$L$332*(1+rvanilla)^0.5)-SUM($L136:AP136),(Input!$L$332*(1+rvanilla)^0.5)/A2stdlife)) -> 0 | AR136: =IF(A2stdlife="n/a","n/a",IF(AR$3>(A2stdlife+$E136),(Input!$L$332*(1+rvanilla)^0.5)-SUM($L136:AQ136),(Input!$L$332*(1+rvanilla)^0.5)/A2stdlife)) -> 0 | AS136: =IF(A2stdlife="n/a","n/a",IF(AS$3>(A2stdlife+$E136),(Input!$L$332*(1+rvanilla)^0.5)-SUM($L136:AR136),(Input!$L$332*(1+rvanilla)^0.5)/A2stdlife)) -> 0 | AT136: =IF(A2stdlife="n/a","n/a",IF(AT$3>(A2stdlife+$E136),(Input!$L$332*(1+rvanilla)^0.5)-SUM($L136:AS136),(Input!$L$332*(1+rvanilla)^0.5)/A2stdlife)) -> 0 | AU136: =IF(A2stdlife="n/a","n/a",IF(AU$3>(A2stdlife+$E136),(Input!$L$332*(1+rvanilla)^0.5)-SUM($L136:AT136),(Input!$L$332*(1+rvanilla)^0.5)/A2stdlife)) -> 0 | AV136: =IF(A2stdlife="n/a","n/a",IF(AV$3>(A2stdlife+$E136),(Input!$L$332*(1+rvanilla)^0.5)-SUM($L136:AU136),(Input!$L$332*(1+rvanilla)^0.5)/A2stdlife)) -> 0 | AW136: =IF(A2stdlife="n/a","n/a",IF(AW$3>(A2stdlife+$E136),(Input!$L$332*(1+rvanilla)^0.5)-SUM($L136:AV136),(Input!$L$332*(1+rvanilla)^0.5)/A2stdlife)) -> 0 | AX136: =IF(A2stdlife="n/a","n/a",IF(AX$3>(A2stdlife+$E136),(Input!$L$332*(1+rvanilla)^0.5)-SUM($L136:AW136),(Input!$L$332*(1+rvanilla)^0.5)/A2stdlife)) -> 0 | AY136: =IF(A2stdlife="n/a","n/a",IF(AY$3>(A2stdlife+$E136),(Input!$L$332*(1+rvanilla)^0.5)-SUM($L136:AX136),(Input!$L$332*(1+rvanilla)^0.5)/A2stdlife)) -> 0 | AZ136: =IF(A2stdlife="n/a","n/a",IF(AZ$3>(A2stdlife+$E136),(Input!$L$332*(1+rvanilla)^0.5)-SUM($L136:AY136),(Input!$L$332*(1+rvanilla)^0.5)/A2stdlife)) -> 0 | BA136: =IF(A2stdlife="n/a","n/a",IF(BA$3>(A2stdlife+$E136),(Input!$L$332*(1+rvanilla)^0.5)-SUM($L136:AZ136),(Input!$L$332*(1+rvanilla)^0.5)/A2stdlife)) -> 0 | BB136: =IF(A2stdlife="n/a","n/a",IF(BB$3>(A2stdlife+$E136),(Input!$L$332*(1+rvanilla)^0.5)-SUM($L136:BA136),(Input!$L$332*(1+rvanilla)^0.5)/A2stdlife)) -> 0 | BC136: =IF(A2stdlife="n/a","n/a",IF(BC$3>(A2stdlife+$E136),(Input!$L$332*(1+rvanilla)^0.5)-SUM($L136:BB136),(Input!$L$332*(1+rvanilla)^0.5)/A2stdlife)) -> 0 | BD136: =IF(A2stdlife="n/a","n/a",IF(BD$3>(A2stdlife+$E136),(Input!$L$332*(1+rvanilla)^0.5)-SUM($L136:BC136),(Input!$L$332*(1+rvanilla)^0.5)/A2stdlife)) -> 0 | BE136: =IF(A2stdlife="n/a","n/a",IF(BE$3>(A2stdlife+$E136),(Input!$L$332*(1+rvanilla)^0.5)-SUM($L136:BD136),(Input!$L$332*(1+rvanilla)^0.5)/A2stdlife)) -> 0 | BF136: =IF(A2stdlife="n/a","n/a",IF(BF$3>(A2stdlife+$E136),(Input!$L$332*(1+rvanilla)^0.5)-SUM($L136:BE136),(Input!$L$332*(1+rvanilla)^0.5)/A2stdlife)) -> 0 | BG136: =IF(A2stdlife="n/a","n/a",IF(BG$3>(A2stdlife+$E136),(Input!$L$332*(1+rvanilla)^0.5)-SUM($L136:BF136),(Input!$L$332*(1+rvanilla)^0.5)/A2stdlife)) -> 0 | BH136: =IF(A2stdlife="n/a","n/a",IF(BH$3>(A2stdlife+$E136),(Input!$L$332*(1+rvanilla)^0.5)-SUM($L136:BG136),(Input!$L$332*(1+rvanilla)^0.5)/A2stdlife)) -> 0 | BI136: =IF(A2stdlife="n/a","n/a",IF(BI$3>(A2stdlife+$E136),(Input!$L$332*(1+rvanilla)^0.5)-SUM($L136:BH136),(Input!$L$332*(1+rvanilla)^0.5)/A2stdlife)) -> 0
E137: 7 | N137: =IF(A2stdlife="n/a","n/a",IF(N$3>(A2stdlife+$E137),(Input!$M$332*(1+rvanilla)^0.5)-SUM($M137:M137),(Input!$M$332*(1+rvanilla)^0.5)/A2stdlife)) -> 0 | O137: =IF(A2stdlife="n/a","n/a",IF(O$3>(A2stdlife+$E137),(Input!$M$332*(1+rvanilla)^0.5)-SUM($M137:N137),(Input!$M$332*(1+rvanilla)^0.5)/A2stdlife)) -> 0 | P137: =IF(A2stdlife="n/a","n/a",IF(P$3>(A2stdlife+$E137),(Input!$M$332*(1+rvanilla)^0.5)-SUM($M137:O137),(Input!$M$332*(1+rvanilla)^0.5)/A2stdlife)) -> 0 | Q137: =IF(A2stdlife="n/a","n/a",IF(Q$3>(A2stdlife+$E137),(Input!$M$332*(1+rvanilla)^0.5)-SUM($M137:P137),(Input!$M$332*(1+rvanilla)^0.5)/A2stdlife)) -> 0 | R137: =IF(A2stdlife="n/a","n/a",IF(R$3>(A2stdlife+$E137),(Input!$M$332*(1+rvanilla)^0.5)-SUM($M137:Q137),(Input!$M$332*(1+rvanilla)^0.5)/A2stdlife)) -> 0 | S137: =IF(A2stdlife="n/a","n/a",IF(S$3>(A2stdlife+$E137),(Input!$M$332*(1+rvanilla)^0.5)-SUM($M137:R137),(Input!$M$332*(1+rvanilla)^0.5)/A2stdlife)) -> 0 | T137: =IF(A2stdlife="n/a","n/a",IF(T$3>(A2stdlife+$E137),(Input!$M$332*(1+rvanilla)^0.5)-SUM($M137:S137),(Input!$M$332*(1+rvanilla)^0.5)/A2stdlife)) -> 0 | U137: =IF(A2stdlife="n/a","n/a",IF(U$3>(A2stdlife+$E137),(Input!$M$332*(1+rvanilla)^0.5)-SUM($M137:T137),(Input!$M$332*(1+rvanilla)^0.5)/A2stdlife)) -> 0 | V137: =IF(A2stdlife="n/a","n/a",IF(V$3>(A2stdlife+$E137),(Input!$M$332*(1+rvanilla)^0.5)-SUM($M137:U137),(Input!$M$332*(1+rvanilla)^0.5)/A2stdlife)) -> 0 | W137: =IF(A2stdlife="n/a","n/a",IF(W$3>(A2stdlife+$E137),(Input!$M$332*(1+rvanilla)^0.5)-SUM($M137:V137),(Input!$M$332*(1+rvanilla)^0.5)/A2stdlife)) -> 0 | X137: =IF(A2stdlife="n/a","n/a",IF(X$3>(A2stdlife+$E137),(Input!$M$332*(1+rvanilla)^0.5)-SUM($M137:W137),(Input!$M$332*(1+rvanilla)^0.5)/A2stdlife)) -> 0 | Y137: =IF(A2stdlife="n/a","n/a",IF(Y$3>(A2stdlife+$E137),(Input!$M$332*(1+rvanilla)^0.5)-SUM($M137:X137),(Input!$M$332*(1+rvanilla)^0.5)/A2stdlife)) -> 0 | Z137: =IF(A2stdlife="n/a","n/a",IF(Z$3>(A2stdlife+$E137),(Input!$M$332*(1+rvanilla)^0.5)-SUM($M137:Y137),(Input!$M$332*(1+rvanilla)^0.5)/A2stdlife)) -> 0 | AA137: =IF(A2stdlife="n/a","n/a",IF(AA$3>(A2stdlife+$E137),(Input!$M$332*(1+rvanilla)^0.5)-SUM($M137:Z137),(Input!$M$332*(1+rvanilla)^0.5)/A2stdlife)) -> 0 | AB137: =IF(A2stdlife="n/a","n/a",IF(AB$3>(A2stdlife+$E137),(Input!$M$332*(1+rvanilla)^0.5)-SUM($M137:AA137),(Input!$M$332*(1+rvanilla)^0.5)/A2stdlife)) -> 0 | AC137: =IF(A2stdlife="n/a","n/a",IF(AC$3>(A2stdlife+$E137),(Input!$M$332*(1+rvanilla)^0.5)-SUM($M137:AB137),(Input!$M$332*(1+rvanilla)^0.5)/A2stdlife)) -> 0 | AD137: =IF(A2stdlife="n/a","n/a",IF(AD$3>(A2stdlife+$E137),(Input!$M$332*(1+rvanilla)^0.5)-SUM($M137:AC137),(Input!$M$332*(1+rvanilla)^0.5)/A2stdlife)) -> 0 | AE137: =IF(A2stdlife="n/a","n/a",IF(AE$3>(A2stdlife+$E137),(Input!$M$332*(1+rvanilla)^0.5)-SUM($M137:AD137),(Input!$M$332*(1+rvanilla)^0.5)/A2stdlife)) -> 0 | AF137: =IF(A2stdlife="n/a","n/a",IF(AF$3>(A2stdlife+$E137),(Input!$M$332*(1+rvanilla)^0.5)-SUM($M137:AE137),(Input!$M$332*(1+rvanilla)^0.5)/A2stdlife)) -> 0 | AG137: =IF(A2stdlife="n/a","n/a",IF(AG$3>(A2stdlife+$E137),(Input!$M$332*(1+rvanilla)^0.5)-SUM($M137:AF137),(Input!$M$332*(1+rvanilla)^0.5)/A2stdlife)) -> 0 | AH137: =IF(A2stdlife="n/a","n/a",IF(AH$3>(A2stdlife+$E137),(Input!$M$332*(1+rvanilla)^0.5)-SUM($M137:AG137),(Input!$M$332*(1+rvanilla)^0.5)/A2stdlife)) -> 0 | AI137: =IF(A2stdlife="n/a","n/a",IF(AI$3>(A2stdlife+$E137),(Input!$M$332*(1+rvanilla)^0.5)-SUM($M137:AH137),(Input!$M$332*(1+rvanilla)^0.5)/A2stdlife)) -> 0 | AJ137: =IF(A2stdlife="n/a","n/a",IF(AJ$3>(A2stdlife+$E137),(Input!$M$332*(1+rvanilla)^0.5)-SUM($M137:AI137),(Input!$M$332*(1+rvanilla)^0.5)/A2stdlife)) -> 0 | AK137: =IF(A2stdlife="n/a","n/a",IF(AK$3>(A2stdlife+$E137),(Input!$M$332*(1+rvanilla)^0.5)-SUM($M137:AJ137),(Input!$M$332*(1+rvanilla)^0.5)/A2stdlife)) -> 0 | AL137: =IF(A2stdlife="n/a","n/a",IF(AL$3>(A2stdlife+$E137),(Input!$M$332*(1+rvanilla)^0.5)-SUM($M137:AK137),(Input!$M$332*(1+rvanilla)^0.5)/A2stdlife)) -> 0 | AM137: =IF(A2stdlife="n/a","n/a",IF(AM$3>(A2stdlife+$E137),(Input!$M$332*(1+rvanilla)^0.5)-SUM($M137:AL137),(Input!$M$332*(1+rvanilla)^0.5)/A2stdlife)) -> 0 | AN137: =IF(A2stdlife="n/a","n/a",IF(AN$3>(A2stdlife+$E137),(Input!$M$332*(1+rvanilla)^0.5)-SUM($M137:AM137),(Input!$M$332*(1+rvanilla)^0.5)/A2stdlife)) -> 0 | AO137: =IF(A2stdlife="n/a","n/a",IF(AO$3>(A2stdlife+$E137),(Input!$M$332*(1+rvanilla)^0.5)-SUM($M137:AN137),(Input!$M$332*(1+rvanilla)^0.5)/A2stdlife)) -> 0 | AP137: =IF(A2stdlife="n/a","n/a",IF(AP$3>(A2stdlife+$E137),(Input!$M$332*(1+rvanilla)^0.5)-SUM($M137:AO137),(Input!$M$332*(1+rvanilla)^0.5)/A2stdlife)) -> 0 | AQ137: =IF(A2stdlife="n/a","n/a",IF(AQ$3>(A2stdlife+$E137),(Input!$M$332*(1+rvanilla)^0.5)-SUM($M137:AP137),(Input!$M$332*(1+rvanilla)^0.5)/A2stdlife)) -> 0 | AR137: =IF(A2stdlife="n/a","n/a",IF(AR$3>(A2stdlife+$E137),(Input!$M$332*(1+rvanilla)^0.5)-SUM($M137:AQ137),(Input!$M$332*(1+rvanilla)^0.5)/A2stdlife)) -> 0 | AS137: =IF(A2stdlife="n/a","n/a",IF(AS$3>(A2stdlife+$E137),(Input!$M$332*(1+rvanilla)^0.5)-SUM($M137:AR137),(Input!$M$332*(1+rvanilla)^0.5)/A2stdlife)) -> 0 | AT137: =IF(A2stdlife="n/a","n/a",IF(AT$3>(A2stdlife+$E137),(Input!$M$332*(1+rvanilla)^0.5)-SUM($M137:AS137),(Input!$M$332*(1+rvanilla)^0.5)/A2stdlife)) -> 0 | AU137: =IF(A2stdlife="n/a","n/a",IF(AU$3>(A2stdlife+$E137),(Input!$M$332*(1+rvanilla)^0.5)-SUM($M137:AT137),(Input!$M$332*(1+rvanilla)^0.5)/A2stdlife)) -> 0 | AV137: =IF(A2stdlife="n/a","n/a",IF(AV$3>(A2stdlife+$E137),(Input!$M$332*(1+rvanilla)^0.5)-SUM($M137:AU137),(Input!$M$332*(1+rvanilla)^0.5)/A2stdlife)) -> 0 | AW137: =IF(A2stdlife="n/a","n/a",IF(AW$3>(A2stdlife+$E137),(Input!$M$332*(1+rvanilla)^0.5)-SUM($M137:AV137),(Input!$M$332*(1+rvanilla)^0.5)/A2stdlife)) -> 0 | AX137: =IF(A2stdlife="n/a","n/a",IF(AX$3>(A2stdlife+$E137),(Input!$M$332*(1+rvanilla)^0.5)-SUM($M137:AW137),(Input!$M$332*(1+rvanilla)^0.5)/A2stdlife)) -> 0 | AY137: =IF(A2stdlife="n/a","n/a",IF(AY$3>(A2stdlife+$E137),(Input!$M$332*(1+rvanilla)^0.5)-SUM($M137:AX137),(Input!$M$332*(1+rvanilla)^0.5)/A2stdlife)) -> 0 | AZ137: =IF(A2stdlife="n/a","n/a",IF(AZ$3>(A2stdlife+$E137),(Input!$M$332*(1+rvanilla)^0.5)-SUM($M137:AY137),(Input!$M$332*(1+rvanilla)^0.5)/A2stdlife)) -> 0 | BA137: =IF(A2stdlife="n/a","n/a",IF(BA$3>(A2stdlife+$E137),(Input!$M$332*(1+rvanilla)^0.5)-SUM($M137:AZ137),(Input!$M$332*(1+rvanilla)^0.5)/A2stdlife)) -> 0 | BB137: =IF(A2stdlife="n/a","n/a",IF(BB$3>(A2stdlife+$E137),(Input!$M$332*(1+rvanilla)^0.5)-SUM($M137:BA137),(Input!$M$332*(1+rvanilla)^0.5)/A2stdlife)) -> 0 | BC137: =IF(A2stdlife="n/a","n/a",IF(BC$3>(A2stdlife+$E137),(Input!$M$332*(1+rvanilla)^0.5)-SUM($M137:BB137),(Input!$M$332*(1+rvanilla)^0.5)/A2stdlife)) -> 0 | BD137: =IF(A2stdlife="n/a","n/a",IF(BD$3>(A2stdlife+$E137),(Input!$M$332*(1+rvanilla)^0.5)-SUM($M137:BC137),(Input!$M$332*(1+rvanilla)^0.5)/A2stdlife)) -> 0 | BE137: =IF(A2stdlife="n/a","n/a",IF(BE$3>(A2stdlife+$E137),(Input!$M$332*(1+rvanilla)^0.5)-SUM($M137:BD137),(Input!$M$332*(1+rvanilla)^0.5)/A2stdlife)) -> 0 | BF137: =IF(A2stdlife="n/a","n/a",IF(BF$3>(A2stdlife+$E137),(Input!$M$332*(1+rvanilla)^0.5)-SUM($M137:BE137),(Input!$M$332*(1+rvanilla)^0.5)/A2stdlife)) -> 0 | BG137: =IF(A2stdlife="n/a","n/a",IF(BG$3>(A2stdlife+$E137),(Input!$M$332*(1+rvanilla)^0.5)-SUM($M137:BF137),(Input!$M$332*(1+rvanilla)^0.5)/A2stdlife)) -> 0 | BH137: =IF(A2stdlife="n/a","n/a",IF(BH$3>(A2stdlife+$E137),(Input!$M$332*(1+rvanilla)^0.5)-SUM($M137:BG137),(Input!$M$332*(1+rvanilla)^0.5)/A2stdlife)) -> 0 | BI137: =IF(A2stdlife="n/a","n/a",IF(BI$3>(A2stdlife+$E137),(Input!$M$332*(1+rvanilla)^0.5)-SUM($M137:BH137),(Input!$M$332*(1+rvanilla)^0.5)/A2stdlife)) -> 0
E138: 8 | O138: =IF(A2stdlife="n/a","n/a",IF(O$3>(A2stdlife+$E138),(Input!$N$332*(1+rvanilla)^0.5)-SUM($N138:N138),(Input!$N$332*(1+rvanilla)^0.5)/A2stdlife)) -> 0 | P138: =IF(A2stdlife="n/a","n/a",IF(P$3>(A2stdlife+$E138),(Input!$N$332*(1+rvanilla)^0.5)-SUM($N138:O138),(Input!$N$332*(1+rvanilla)^0.5)/A2stdlife)) -> 0 | Q138: =IF(A2stdlife="n/a","n/a",IF(Q$3>(A2stdlife+$E138),(Input!$N$332*(1+rvanilla)^0.5)-SUM($N138:P138),(Input!$N$332*(1+rvanilla)^0.5)/A2stdlife)) -> 0 | R138: =IF(A2stdlife="n/a","n/a",IF(R$3>(A2stdlife+$E138),(Input!$N$332*(1+rvanilla)^0.5)-SUM($N138:Q138),(Input!$N$332*(1+rvanilla)^0.5)/A2stdlife)) -> 0 | S138: =IF(A2stdlife="n/a","n/a",IF(S$3>(A2stdlife+$E138),(Input!$N$332*(1+rvanilla)^0.5)-SUM($N138:R138),(Input!$N$332*(1+rvanilla)^0.5)/A2stdlife)) -> 0 | T138: =IF(A2stdlife="n/a","n/a",IF(T$3>(A2stdlife+$E138),(Input!$N$332*(1+rvanilla)^0.5)-SUM($N138:S138),(Input!$N$332*(1+rvanilla)^0.5)/A2stdlife)) -> 0 | U138: =IF(A2stdlife="n/a","n/a",IF(U$3>(A2stdlife+$E138),(Input!$N$332*(1+rvanilla)^0.5)-SUM($N138:T138),(Input!$N$332*(1+rvanilla)^0.5)/A2stdlife)) -> 0 | V138: =IF(A2stdlife="n/a","n/a",IF(V$3>(A2stdlife+$E138),(Input!$N$332*(1+rvanilla)^0.5)-SUM($N138:U138),(Input!$N$332*(1+rvanilla)^0.5)/A2stdlife)) -> 0 | W138: =IF(A2stdlife="n/a","n/a",IF(W$3>(A2stdlife+$E138),(Input!$N$332*(1+rvanilla)^0.5)-SUM($N138:V138),(Input!$N$332*(1+rvanilla)^0.5)/A2stdlife)) -> 0 | X138: =IF(A2stdlife="n/a","n/a",IF(X$3>(A2stdlife+$E138),(Input!$N$332*(1+rvanilla)^0.5)-SUM($N138:W138),(Input!$N$332*(1+rvanilla)^0.5)/A2stdlife)) -> 0 | Y138: =IF(A2stdlife="n/a","n/a",IF(Y$3>(A2stdlife+$E138),(Input!$N$332*(1+rvanilla)^0.5)-SUM($N138:X138),(Input!$N$332*(1+rvanilla)^0.5)/A2stdlife)) -> 0 | Z138: =IF(A2stdlife="n/a","n/a",IF(Z$3>(A2stdlife+$E138),(Input!$N$332*(1+rvanilla)^0.5)-SUM($N138:Y138),(Input!$N$332*(1+rvanilla)^0.5)/A2stdlife)) -> 0 | AA138: =IF(A2stdlife="n/a","n/a",IF(AA$3>(A2stdlife+$E138),(Input!$N$332*(1+rvanilla)^0.5)-SUM($N138:Z138),(Input!$N$332*(1+rvanilla)^0.5)/A2stdlife)) -> 0 | AB138: =IF(A2stdlife="n/a","n/a",IF(AB$3>(A2stdlife+$E138),(Input!$N$332*(1+rvanilla)^0.5)-SUM($N138:AA138),(Input!$N$332*(1+rvanilla)^0.5)/A2stdlife)) -> 0 | AC138: =IF(A2stdlife="n/a","n/a",IF(AC$3>(A2stdlife+$E138),(Input!$N$332*(1+rvanilla)^0.5)-SUM($N138:AB138),(Input!$N$332*(1+rvanilla)^0.5)/A2stdlife)) -> 0 | AD138: =IF(A2stdlife="n/a","n/a",IF(AD$3>(A2stdlife+$E138),(Input!$N$332*(1+rvanilla)^0.5)-SUM($N138:AC138),(Input!$N$332*(1+rvanilla)^0.5)/A2stdlife)) -> 0 | AE138: =IF(A2stdlife="n/a","n/a",IF(AE$3>(A2stdlife+$E138),(Input!$N$332*(1+rvanilla)^0.5)-SUM($N138:AD138),(Input!$N$332*(1+rvanilla)^0.5)/A2stdlife)) -> 0 | AF138: =IF(A2stdlife="n/a","n/a",IF(AF$3>(A2stdlife+$E138),(Input!$N$332*(1+rvanilla)^0.5)-SUM($N138:AE138),(Input!$N$332*(1+rvanilla)^0.5)/A2stdlife)) -> 0 | AG138: =IF(A2stdlife="n/a","n/a",IF(AG$3>(A2stdlife+$E138),(Input!$N$332*(1+rvanilla)^0.5)-SUM($N138:AF138),(Input!$N$332*(1+rvanilla)^0.5)/A2stdlife)) -> 0 | AH138: =IF(A2stdlife="n/a","n/a",IF(AH$3>(A2stdlife+$E138),(Input!$N$332*(1+rvanilla)^0.5)-SUM($N138:AG138),(Input!$N$332*(1+rvanilla)^0.5)/A2stdlife)) -> 0 | AI138: =IF(A2stdlife="n/a","n/a",IF(AI$3>(A2stdlife+$E138),(Input!$N$332*(1+rvanilla)^0.5)-SUM($N138:AH138),(Input!$N$332*(1+rvanilla)^0.5)/A2stdlife)) -> 0 | AJ138: =IF(A2stdlife="n/a","n/a",IF(AJ$3>(A2stdlife+$E138),(Input!$N$332*(1+rvanilla)^0.5)-SUM($N138:AI138),(Input!$N$332*(1+rvanilla)^0.5)/A2stdlife)) -> 0 | AK138: =IF(A2stdlife="n/a","n/a",IF(AK$3>(A2stdlife+$E138),(Input!$N$332*(1+rvanilla)^0.5)-SUM($N138:AJ138),(Input!$N$332*(1+rvanilla)^0.5)/A2stdlife)) -> 0 | AL138: =IF(A2stdlife="n/a","n/a",IF(AL$3>(A2stdlife+$E138),(Input!$N$332*(1+rvanilla)^0.5)-SUM($N138:AK138),(Input!$N$332*(1+rvanilla)^0.5)/A2stdlife)) -> 0 | AM138: =IF(A2stdlife="n/a","n/a",IF(AM$3>(A2stdlife+$E138),(Input!$N$332*(1+rvanilla)^0.5)-SUM($N138:AL138),(Input!$N$332*(1+rvanilla)^0.5)/A2stdlife)) -> 0 | AN138: =IF(A2stdlife="n/a","n/a",IF(AN$3>(A2stdlife+$E138),(Input!$N$332*(1+rvanilla)^0.5)-SUM($N138:AM138),(Input!$N$332*(1+rvanilla)^0.5)/A2stdlife)) -> 0 | AO138: =IF(A2stdlife="n/a","n/a",IF(AO$3>(A2stdlife+$E138),(Input!$N$332*(1+rvanilla)^0.5)-SUM($N138:AN138),(Input!$N$332*(1+rvanilla)^0.5)/A2stdlife)) -> 0 | AP138: =IF(A2stdlife="n/a","n/a",IF(AP$3>(A2stdlife+$E138),(Input!$N$332*(1+rvanilla)^0.5)-SUM($N138:AO138),(Input!$N$332*(1+rvanilla)^0.5)/A2stdlife)) -> 0 | AQ138: =IF(A2stdlife="n/a","n/a",IF(AQ$3>(A2stdlife+$E138),(Input!$N$332*(1+rvanilla)^0.5)-SUM($N138:AP138),(Input!$N$332*(1+rvanilla)^0.5)/A2stdlife)) -> 0 | AR138: =IF(A2stdlife="n/a","n/a",IF(AR$3>(A2stdlife+$E138),(Input!$N$332*(1+rvanilla)^0.5)-SUM($N138:AQ138),(Input!$N$332*(1+rvanilla)^0.5)/A2stdlife)) -> 0 | AS138: =IF(A2stdlife="n/a","n/a",IF(AS$3>(A2stdlife+$E138),(Input!$N$332*(1+rvanilla)^0.5)-SUM($N138:AR138),(Input!$N$332*(1+rvanilla)^0.5)/A2stdlife)) -> 0 | AT138: =IF(A2stdlife="n/a","n/a",IF(AT$3>(A2stdlife+$E138),(Input!$N$332*(1+rvanilla)^0.5)-SUM($N138:AS138),(Input!$N$332*(1+rvanilla)^0.5)/A2stdlife)) -> 0 | AU138: =IF(A2stdlife="n/a","n/a",IF(AU$3>(A2stdlife+$E138),(Input!$N$332*(1+rvanilla)^0.5)-SUM($N138:AT138),(Input!$N$332*(1+rvanilla)^0.5)/A2stdlife)) -> 0 | AV138: =IF(A2stdlife="n/a","n/a",IF(AV$3>(A2stdlife+$E138),(Input!$N$332*(1+rvanilla)^0.5)-SUM($N138:AU138),(Input!$N$332*(1+rvanilla)^0.5)/A2stdlife)) -> 0 | AW138: =IF(A2stdlife="n/a","n/a",IF(AW$3>(A2stdlife+$E138),(Input!$N$332*(1+rvanilla)^0.5)-SUM($N138:AV138),(Input!$N$332*(1+rvanilla)^0.5)/A2stdlife)) -> 0 | AX138: =IF(A2stdlife="n/a","n/a",IF(AX$3>(A2stdlife+$E138),(Input!$N$332*(1+rvanilla)^0.5)-SUM($N138:AW138),(Input!$N$332*(1+rvanilla)^0.5)/A2stdlife)) -> 0 | AY138: =IF(A2stdlife="n/a","n/a",IF(AY$3>(A2stdlife+$E138),(Input!$N$332*(1+rvanilla)^0.5)-SUM($N138:AX138),(Input!$N$332*(1+rvanilla)^0.5)/A2stdlife)) -> 0 | AZ138: =IF(A2stdlife="n/a","n/a",IF(AZ$3>(A2stdlife+$E138),(Input!$N$332*(1+rvanilla)^0.5)-SUM($N138:AY138),(Input!$N$332*(1+rvanilla)^0.5)/A2stdlife)) -> 0 | BA138: =IF(A2stdlife="n/a","n/a",IF(BA$3>(A2stdlife+$E138),(Input!$N$332*(1+rvanilla)^0.5)-SUM($N138:AZ138),(Input!$N$332*(1+rvanilla)^0.5)/A2stdlife)) -> 0 | BB138: =IF(A2stdlife="n/a","n/a",IF(BB$3>(A2stdlife+$E138),(Input!$N$332*(1+rvanilla)^0.5)-SUM($N138:BA138),(Input!$N$332*(1+rvanilla)^0.5)/A2stdlife)) -> 0 | BC138: =IF(A2stdlife="n/a","n/a",IF(BC$3>(A2stdlife+$E138),(Input!$N$332*(1+rvanilla)^0.5)-SUM($N138:BB138),(Input!$N$332*(1+rvanilla)^0.5)/A2stdlife)) -> 0 | BD138: =IF(A2stdlife="n/a","n/a",IF(BD$3>(A2stdlife+$E138),(Input!$N$332*(1+rvanilla)^0.5)-SUM($N138:BC138),(Input!$N$332*(1+rvanilla)^0.5)/A2stdlife)) -> 0 | BE138: =IF(A2stdlife="n/a","n/a",IF(BE$3>(A2stdlife+$E138),(Input!$N$332*(1+rvanilla)^0.5)-SUM($N138:BD138),(Input!$N$332*(1+rvanilla)^0.5)/A2stdlife)) -> 0 | BF138: =IF(A2stdlife="n/a","n/a",IF(BF$3>(A2stdlife+$E138),(Input!$N$332*(1+rvanilla)^0.5)-SUM($N138:BE138),(Input!$N$332*(1+rvanilla)^0.5)/A2stdlife)) -> 0 | BG138: =IF(A2stdlife="n/a","n/a",IF(BG$3>(A2stdlife+$E138),(Input!$N$332*(1+rvanilla)^0.5)-SUM($N138:BF138),(Input!$N$332*(1+rvanilla)^0.5)/A2stdlife)) -> 0 | BH138: =IF(A2stdlife="n/a","n/a",IF(BH$3>(A2stdlife+$E138),(Input!$N$332*(1+rvanilla)^0.5)-SUM($N138:BG138),(Input!$N$332*(1+rvanilla)^0.5)/A2stdlife)) -> 0 | BI138: =IF(A2stdlife="n/a","n/a",IF(BI$3>(A2stdlife+$E138),(Input!$N$332*(1+rvanilla)^0.5)-SUM($N138:BH138),(Input!$N$332*(1+rvanilla)^0.5)/A2stdlife)) -> 0
E139: 9 | P139: =IF(A2stdlife="n/a","n/a",IF(P$3>(A2stdlife+$E139),(Input!$O$332*(1+rvanilla)^0.5)-SUM($O139:O139),(Input!$O$332*(1+rvanilla)^0.5)/A2stdlife)) -> 0 | Q139: =IF(A2stdlife="n/a","n/a",IF(Q$3>(A2stdlife+$E139),(Input!$O$332*(1+rvanilla)^0.5)-SUM($O139:P139),(Input!$O$332*(1+rvanilla)^0.5)/A2stdlife)) -> 0 | R139: =IF(A2stdlife="n/a","n/a",IF(R$3>(A2stdlife+$E139),(Input!$O$332*(1+rvanilla)^0.5)-SUM($O139:Q139),(Input!$O$332*(1+rvanilla)^0.5)/A2stdlife)) -> 0 | S139: =IF(A2stdlife="n/a","n/a",IF(S$3>(A2stdlife+$E139),(Input!$O$332*(1+rvanilla)^0.5)-SUM($O139:R139),(Input!$O$332*(1+rvanilla)^0.5)/A2stdlife)) -> 0 | T139: =IF(A2stdlife="n/a","n/a",IF(T$3>(A2stdlife+$E139),(Input!$O$332*(1+rvanilla)^0.5)-SUM($O139:S139),(Input!$O$332*(1+rvanilla)^0.5)/A2stdlife)) -> 0 | U139: =IF(A2stdlife="n/a","n/a",IF(U$3>(A2stdlife+$E139),(Input!$O$332*(1+rvanilla)^0.5)-SUM($O139:T139),(Input!$O$332*(1+rvanilla)^0.5)/A2stdlife)) -> 0 | V139: =IF(A2stdlife="n/a","n/a",IF(V$3>(A2stdlife+$E139),(Input!$O$332*(1+rvanilla)^0.5)-SUM($O139:U139),(Input!$O$332*(1+rvanilla)^0.5)/A2stdlife)) -> 0 | W139: =IF(A2stdlife="n/a","n/a",IF(W$3>(A2stdlife+$E139),(Input!$O$332*(1+rvanilla)^0.5)-SUM($O139:V139),(Input!$O$332*(1+rvanilla)^0.5)/A2stdlife)) -> 0 | X139: =IF(A2stdlife="n/a","n/a",IF(X$3>(A2stdlife+$E139),(Input!$O$332*(1+rvanilla)^0.5)-SUM($O139:W139),(Input!$O$332*(1+rvanilla)^0.5)/A2stdlife)) -> 0 | Y139: =IF(A2stdlife="n/a","n/a",IF(Y$3>(A2stdlife+$E139),(Input!$O$332*(1+rvanilla)^0.5)-SUM($O139:X139),(Input!$O$332*(1+rvanilla)^0.5)/A2stdlife)) -> 0 | Z139: =IF(A2stdlife="n/a","n/a",IF(Z$3>(A2stdlife+$E139),(Input!$O$332*(1+rvanilla)^0.5)-SUM($O139:Y139),(Input!$O$332*(1+rvanilla)^0.5)/A2stdlife)) -> 0 | AA139: =IF(A2stdlife="n/a","n/a",IF(AA$3>(A2stdlife+$E139),(Input!$O$332*(1+rvanilla)^0.5)-SUM($O139:Z139),(Input!$O$332*(1+rvanilla)^0.5)/A2stdlife)) -> 0 | AB139: =IF(A2stdlife="n/a","n/a",IF(AB$3>(A2stdlife+$E139),(Input!$O$332*(1+rvanilla)^0.5)-SUM($O139:AA139),(Input!$O$332*(1+rvanilla)^0.5)/A2stdlife)) -> 0 | AC139: =IF(A2stdlife="n/a","n/a",IF(AC$3>(A2stdlife+$E139),(Input!$O$332*(1+rvanilla)^0.5)-SUM($O139:AB139),(Input!$O$332*(1+rvanilla)^0.5)/A2stdlife)) -> 0 | AD139: =IF(A2stdlife="n/a","n/a",IF(AD$3>(A2stdlife+$E139),(Input!$O$332*(1+rvanilla)^0.5)-SUM($O139:AC139),(Input!$O$332*(1+rvanilla)^0.5)/A2stdlife)) -> 0 | AE139: =IF(A2stdlife="n/a","n/a",IF(AE$3>(A2stdlife+$E139),(Input!$O$332*(1+rvanilla)^0.5)-SUM($O139:AD139),(Input!$O$332*(1+rvanilla)^0.5)/A2stdlife)) -> 0 | AF139: =IF(A2stdlife="n/a","n/a",IF(AF$3>(A2stdlife+$E139),(Input!$O$332*(1+rvanilla)^0.5)-SUM($O139:AE139),(Input!$O$332*(1+rvanilla)^0.5)/A2stdlife)) -> 0 | AG139: =IF(A2stdlife="n/a","n/a",IF(AG$3>(A2stdlife+$E139),(Input!$O$332*(1+rvanilla)^0.5)-SUM($O139:AF139),(Input!$O$332*(1+rvanilla)^0.5)/A2stdlife)) -> 0 | AH139: =IF(A2stdlife="n/a","n/a",IF(AH$3>(A2stdlife+$E139),(Input!$O$332*(1+rvanilla)^0.5)-SUM($O139:AG139),(Input!$O$332*(1+rvanilla)^0.5)/A2stdlife)) -> 0 | AI139: =IF(A2stdlife="n/a","n/a",IF(AI$3>(A2stdlife+$E139),(Input!$O$332*(1+rvanilla)^0.5)-SUM($O139:AH139),(Input!$O$332*(1+rvanilla)^0.5)/A2stdlife)) -> 0 | AJ139: =IF(A2stdlife="n/a","n/a",IF(AJ$3>(A2stdlife+$E139),(Input!$O$332*(1+rvanilla)^0.5)-SUM($O139:AI139),(Input!$O$332*(1+rvanilla)^0.5)/A2stdlife)) -> 0 | AK139: =IF(A2stdlife="n/a","n/a",IF(AK$3>(A2stdlife+$E139),(Input!$O$332*(1+rvanilla)^0.5)-SUM($O139:AJ139),(Input!$O$332*(1+rvanilla)^0.5)/A2stdlife)) -> 0 | AL139: =IF(A2stdlife="n/a","n/a",IF(AL$3>(A2stdlife+$E139),(Input!$O$332*(1+rvanilla)^0.5)-SUM($O139:AK139),(Input!$O$332*(1+rvanilla)^0.5)/A2stdlife)) -> 0 | AM139: =IF(A2stdlife="n/a","n/a",IF(AM$3>(A2stdlife+$E139),(Input!$O$332*(1+rvanilla)^0.5)-SUM($O139:AL139),(Input!$O$332*(1+rvanilla)^0.5)/A2stdlife)) -> 0 | AN139: =IF(A2stdlife="n/a","n/a",IF(AN$3>(A2stdlife+$E139),(Input!$O$332*(1+rvanilla)^0.5)-SUM($O139:AM139),(Input!$O$332*(1+rvanilla)^0.5)/A2stdlife)) -> 0 | AO139: =IF(A2stdlife="n/a","n/a",IF(AO$3>(A2stdlife+$E139),(Input!$O$332*(1+rvanilla)^0.5)-SUM($O139:AN139),(Input!$O$332*(1+rvanilla)^0.5)/A2stdlife)) -> 0 | AP139: =IF(A2stdlife="n/a","n/a",IF(AP$3>(A2stdlife+$E139),(Input!$O$332*(1+rvanilla)^0.5)-SUM($O139:AO139),(Input!$O$332*(1+rvanilla)^0.5)/A2stdlife)) -> 0 | AQ139: =IF(A2stdlife="n/a","n/a",IF(AQ$3>(A2stdlife+$E139),(Input!$O$332*(1+rvanilla)^0.5)-SUM($O139:AP139),(Input!$O$332*(1+rvanilla)^0.5)/A2stdlife)) -> 0 | AR139: =IF(A2stdlife="n/a","n/a",IF(AR$3>(A2stdlife+$E139),(Input!$O$332*(1+rvanilla)^0.5)-SUM($O139:AQ139),(Input!$O$332*(1+rvanilla)^0.5)/A2stdlife)) -> 0 | AS139: =IF(A2stdlife="n/a","n/a",IF(AS$3>(A2stdlife+$E139),(Input!$O$332*(1+rvanilla)^0.5)-SUM($O139:AR139),(Input!$O$332*(1+rvanilla)^0.5)/A2stdlife)) -> 0 | AT139: =IF(A2stdlife="n/a","n/a",IF(AT$3>(A2stdlife+$E139),(Input!$O$332*(1+rvanilla)^0.5)-SUM($O139:AS139),(Input!$O$332*(1+rvanilla)^0.5)/A2stdlife)) -> 0 | AU139: =IF(A2stdlife="n/a","n/a",IF(AU$3>(A2stdlife+$E139),(Input!$O$332*(1+rvanilla)^0.5)-SUM($O139:AT139),(Input!$O$332*(1+rvanilla)^0.5)/A2stdlife)) -> 0 | AV139: =IF(A2stdlife="n/a","n/a",IF(AV$3>(A2stdlife+$E139),(Input!$O$332*(1+rvanilla)^0.5)-SUM($O139:AU139),(Input!$O$332*(1+rvanilla)^0.5)/A2stdlife)) -> 0 | AW139: =IF(A2stdlife="n/a","n/a",IF(AW$3>(A2stdlife+$E139),(Input!$O$332*(1+rvanilla)^0.5)-SUM($O139:AV139),(Input!$O$332*(1+rvanilla)^0.5)/A2stdlife)) -> 0 | AX139: =IF(A2stdlife="n/a","n/a",IF(AX$3>(A2stdlife+$E139),(Input!$O$332*(1+rvanilla)^0.5)-SUM($O139:AW139),(Input!$O$332*(1+rvanilla)^0.5)/A2stdlife)) -> 0 | AY139: =IF(A2stdlife="n/a","n/a",IF(AY$3>(A2stdlife+$E139),(Input!$O$332*(1+rvanilla)^0.5)-SUM($O139:AX139),(Input!$O$332*(1+rvanilla)^0.5)/A2stdlife)) -> 0 | AZ139: =IF(A2stdlife="n/a","n/a",IF(AZ$3>(A2stdlife+$E139),(Input!$O$332*(1+rvanilla)^0.5)-SUM($O139:AY139),(Input!$O$332*(1+rvanilla)^0.5)/A2stdlife)) -> 0 | BA139: =IF(A2stdlife="n/a","n/a",IF(BA$3>(A2stdlife+$E139),(Input!$O$332*(1+rvanilla)^0.5)-SUM($O139:AZ139),(Input!$O$332*(1+rvanilla)^0.5)/A2stdlife)) -> 0 | BB139: =IF(A2stdlife="n/a","n/a",IF(BB$3>(A2stdlife+$E139),(Input!$O$332*(1+rvanilla)^0.5)-SUM($O139:BA139),(Input!$O$332*(1+rvanilla)^0.5)/A2stdlife)) -> 0 | BC139: =IF(A2stdlife="n/a","n/a",IF(BC$3>(A2stdlife+$E139),(Input!$O$332*(1+rvanilla)^0.5)-SUM($O139:BB139),(Input!$O$332*(1+rvanilla)^0.5)/A2stdlife)) -> 0 | BD139: =IF(A2stdlife="n/a","n/a",IF(BD$3>(A2stdlife+$E139),(Input!$O$332*(1+rvanilla)^0.5)-SUM($O139:BC139),(Input!$O$332*(1+rvanilla)^0.5)/A2stdlife)) -> 0 | BE139: =IF(A2stdlife="n/a","n/a",IF(BE$3>(A2stdlife+$E139),(Input!$O$332*(1+rvanilla)^0.5)-SUM($O139:BD139),(Input!$O$332*(1+rvanilla)^0.5)/A2stdlife)) -> 0 | BF139: =IF(A2stdlife="n/a","n/a",IF(BF$3>(A2stdlife+$E139),(Input!$O$332*(1+rvanilla)^0.5)-SUM($O139:BE139),(Input!$O$332*(1+rvanilla)^0.5)/A2stdlife)) -> 0 | BG139: =IF(A2stdlife="n/a","n/a",IF(BG$3>(A2stdlife+$E139),(Input!$O$332*(1+rvanilla)^0.5)-SUM($O139:BF139),(Input!$O$332*(1+rvanilla)^0.5)/A2stdlife)) -> 0 | BH139: =IF(A2stdlife="n/a","n/a",IF(BH$3>(A2stdlife+$E139),(Input!$O$332*(1+rvanilla)^0.5)-SUM($O139:BG139),(Input!$O$332*(1+rvanilla)^0.5)/A2stdlife)) -> 0 | BI139: =IF(A2stdlife="n/a","n/a",IF(BI$3>(A2stdlife+$E139),(Input!$O$332*(1+rvanilla)^0.5)-SUM($O139:BH139),(Input!$O$332*(1+rvanilla)^0.5)/A2stdlife)) -> 0
E140: 10 | Q140: =IF(A2stdlife="n/a","n/a",IF(Q$3>(A2stdlife+$E140),(Input!$P$332*(1+rvanilla)^0.5)-SUM($P140:P140),(Input!$P$332*(1+rvanilla)^0.5)/A2stdlife)) -> 0 | R140: =IF(A2stdlife="n/a","n/a",IF(R$3>(A2stdlife+$E140),(Input!$P$332*(1+rvanilla)^0.5)-SUM($P140:Q140),(Input!$P$332*(1+rvanilla)^0.5)/A2stdlife)) -> 0 | S140: =IF(A2stdlife="n/a","n/a",IF(S$3>(A2stdlife+$E140),(Input!$P$332*(1+rvanilla)^0.5)-SUM($P140:R140),(Input!$P$332*(1+rvanilla)^0.5)/A2stdlife)) -> 0 | T140: =IF(A2stdlife="n/a","n/a",IF(T$3>(A2stdlife+$E140),(Input!$P$332*(1+rvanilla)^0.5)-SUM($P140:S140),(Input!$P$332*(1+rvanilla)^0.5)/A2stdlife)) -> 0 | U140: =IF(A2stdlife="n/a","n/a",IF(U$3>(A2stdlife+$E140),(Input!$P$332*(1+rvanilla)^0.5)-SUM($P140:T140),(Input!$P$332*(1+rvanilla)^0.5)/A2stdlife)) -> 0 | V140: =IF(A2stdlife="n/a","n/a",IF(V$3>(A2stdlife+$E140),(Input!$P$332*(1+rvanilla)^0.5)-SUM($P140:U140),(Input!$P$332*(1+rvanilla)^0.5)/A2stdlife)) -> 0 | W140: =IF(A2stdlife="n/a","n/a",IF(W$3>(A2stdlife+$E140),(Input!$P$332*(1+rvanilla)^0.5)-SUM($P140:V140),(Input!$P$332*(1+rvanilla)^0.5)/A2stdlife)) -> 0 | X140: =IF(A2stdlife="n/a","n/a",IF(X$3>(A2stdlife+$E140),(Input!$P$332*(1+rvanilla)^0.5)-SUM($P140:W140),(Input!$P$332*(1+rvanilla)^0.5)/A2stdlife)) -> 0 | Y140: =IF(A2stdlife="n/a","n/a",IF(Y$3>(A2stdlife+$E140),(Input!$P$332*(1+rvanilla)^0.5)-SUM($P140:X140),(Input!$P$332*(1+rvanilla)^0.5)/A2stdlife)) -> 0 | Z140: =IF(A2stdlife="n/a","n/a",IF(Z$3>(A2stdlife+$E140),(Input!$P$332*(1+rvanilla)^0.5)-SUM($P140:Y140),(Input!$P$332*(1+rvanilla)^0.5)/A2stdlife)) -> 0 | AA140: =IF(A2stdlife="n/a","n/a",IF(AA$3>(A2stdlife+$E140),(Input!$P$332*(1+rvanilla)^0.5)-SUM($P140:Z140),(Input!$P$332*(1+rvanilla)^0.5)/A2stdlife)) -> 0 | AB140: =IF(A2stdlife="n/a","n/a",IF(AB$3>(A2stdlife+$E140),(Input!$P$332*(1+rvanilla)^0.5)-SUM($P140:AA140),(Input!$P$332*(1+rvanilla)^0.5)/A2stdlife)) -> 0 | AC140: =IF(A2stdlife="n/a","n/a",IF(AC$3>(A2stdlife+$E140),(Input!$P$332*(1+rvanilla)^0.5)-SUM($P140:AB140),(Input!$P$332*(1+rvanilla)^0.5)/A2stdlife)) -> 0 | AD140: =IF(A2stdlife="n/a","n/a",IF(AD$3>(A2stdlife+$E140),(Input!$P$332*(1+rvanilla)^0.5)-SUM($P140:AC140),(Input!$P$332*(1+rvanilla)^0.5)/A2stdlife)) -> 0 | AE140: =IF(A2stdlife="n/a","n/a",IF(AE$3>(A2stdlife+$E140),(Input!$P$332*(1+rvanilla)^0.5)-SUM($P140:AD140),(Input!$P$332*(1+rvanilla)^0.5)/A2stdlife)) -> 0 | AF140: =IF(A2stdlife="n/a","n/a",IF(AF$3>(A2stdlife+$E140),(Input!$P$332*(1+rvanilla)^0.5)-SUM($P140:AE140),(Input!$P$332*(1+rvanilla)^0.5)/A2stdlife)) -> 0 | AG140: =IF(A2stdlife="n/a","n/a",IF(AG$3>(A2stdlife+$E140),(Input!$P$332*(1+rvanilla)^0.5)-SUM($P140:AF140),(Input!$P$332*(1+rvanilla)^0.5)/A2stdlife)) -> 0 | AH140: =IF(A2stdlife="n/a","n/a",IF(AH$3>(A2stdlife+$E140),(Input!$P$332*(1+rvanilla)^0.5)-SUM($P140:AG140),(Input!$P$332*(1+rvanilla)^0.5)/A2stdlife)) -> 0 | AI140: =IF(A2stdlife="n/a","n/a",IF(AI$3>(A2stdlife+$E140),(Input!$P$332*(1+rvanilla)^0.5)-SUM($P140:AH140),(Input!$P$332*(1+rvanilla)^0.5)/A2stdlife)) -> 0 | AJ140: =IF(A2stdlife="n/a","n/a",IF(AJ$3>(A2stdlife+$E140),(Input!$P$332*(1+rvanilla)^0.5)-SUM($P140:AI140),(Input!$P$332*(1+rvanilla)^0.5)/A2stdlife)) -> 0 | AK140: =IF(A2stdlife="n/a","n/a",IF(AK$3>(A2stdlife+$E140),(Input!$P$332*(1+rvanilla)^0.5)-SUM($P140:AJ140),(Input!$P$332*(1+rvanilla)^0.5)/A2stdlife)) -> 0 | AL140: =IF(A2stdlife="n/a","n/a",IF(AL$3>(A2stdlife+$E140),(Input!$P$332*(1+rvanilla)^0.5)-SUM($P140:AK140),(Input!$P$332*(1+rvanilla)^0.5)/A2stdlife)) -> 0 | AM140: =IF(A2stdlife="n/a","n/a",IF(AM$3>(A2stdlife+$E140),(Input!$P$332*(1+rvanilla)^0.5)-SUM($P140:AL140),(Input!$P$332*(1+rvanilla)^0.5)/A2stdlife)) -> 0 | AN140: =IF(A2stdlife="n/a","n/a",IF(AN$3>(A2stdlife+$E140),(Input!$P$332*(1+rvanilla)^0.5)-SUM($P140:AM140),(Input!$P$332*(1+rvanilla)^0.5)/A2stdlife)) -> 0 | AO140: =IF(A2stdlife="n/a","n/a",IF(AO$3>(A2stdlife+$E140),(Input!$P$332*(1+rvanilla)^0.5)-SUM($P140:AN140),(Input!$P$332*(1+rvanilla)^0.5)/A2stdlife)) -> 0 | AP140: =IF(A2stdlife="n/a","n/a",IF(AP$3>(A2stdlife+$E140),(Input!$P$332*(1+rvanilla)^0.5)-SUM($P140:AO140),(Input!$P$332*(1+rvanilla)^0.5)/A2stdlife)) -> 0 | AQ140: =IF(A2stdlife="n/a","n/a",IF(AQ$3>(A2stdlife+$E140),(Input!$P$332*(1+rvanilla)^0.5)-SUM($P140:AP140),(Input!$P$332*(1+rvanilla)^0.5)/A2stdlife)) -> 0 | AR140: =IF(A2stdlife="n/a","n/a",IF(AR$3>(A2stdlife+$E140),(Input!$P$332*(1+rvanilla)^0.5)-SUM($P140:AQ140),(Input!$P$332*(1+rvanilla)^0.5)/A2stdlife)) -> 0 | AS140: =IF(A2stdlife="n/a","n/a",IF(AS$3>(A2stdlife+$E140),(Input!$P$332*(1+rvanilla)^0.5)-SUM($P140:AR140),(Input!$P$332*(1+rvanilla)^0.5)/A2stdlife)) -> 0 | AT140: =IF(A2stdlife="n/a","n/a",IF(AT$3>(A2stdlife+$E140),(Input!$P$332*(1+rvanilla)^0.5)-SUM($P140:AS140),(Input!$P$332*(1+rvanilla)^0.5)/A2stdlife)) -> 0 | AU140: =IF(A2stdlife="n/a","n/a",IF(AU$3>(A2stdlife+$E140),(Input!$P$332*(1+rvanilla)^0.5)-SUM($P140:AT140),(Input!$P$332*(1+rvanilla)^0.5)/A2stdlife)) -> 0 | AV140: =IF(A2stdlife="n/a","n/a",IF(AV$3>(A2stdlife+$E140),(Input!$P$332*(1+rvanilla)^0.5)-SUM($P140:AU140),(Input!$P$332*(1+rvanilla)^0.5)/A2stdlife)) -> 0 | AW140: =IF(A2stdlife="n/a","n/a",IF(AW$3>(A2stdlife+$E140),(Input!$P$332*(1+rvanilla)^0.5)-SUM($P140:AV140),(Input!$P$332*(1+rvanilla)^0.5)/A2stdlife)) -> 0 | AX140: =IF(A2stdlife="n/a","n/a",IF(AX$3>(A2stdlife+$E140),(Input!$P$332*(1+rvanilla)^0.5)-SUM($P140:AW140),(Input!$P$332*(1+rvanilla)^0.5)/A2stdlife)) -> 0 | AY140: =IF(A2stdlife="n/a","n/a",IF(AY$3>(A2stdlife+$E140),(Input!$P$332*(1+rvanilla)^0.5)-SUM($P140:AX140),(Input!$P$332*(1+rvanilla)^0.5)/A2stdlife)) -> 0 | AZ140: =IF(A2stdlife="n/a","n/a",IF(AZ$3>(A2stdlife+$E140),(Input!$P$332*(1+rvanilla)^0.5)-SUM($P140:AY140),(Input!$P$332*(1+rvanilla)^0.5)/A2stdlife)) -> 0 | BA140: =IF(A2stdlife="n/a","n/a",IF(BA$3>(A2stdlife+$E140),(Input!$P$332*(1+rvanilla)^0.5)-SUM($P140:AZ140),(Input!$P$332*(1+rvanilla)^0.5)/A2stdlife)) -> 0 | BB140: =IF(A2stdlife="n/a","n/a",IF(BB$3>(A2stdlife+$E140),(Input!$P$332*(1+rvanilla)^0.5)-SUM($P140:BA140),(Input!$P$332*(1+rvanilla)^0.5)/A2stdlife)) -> 0 | BC140: =IF(A2stdlife="n/a","n/a",IF(BC$3>(A2stdlife+$E140),(Input!$P$332*(1+rvanilla)^0.5)-SUM($P140:BB140),(Input!$P$332*(1+rvanilla)^0.5)/A2stdlife)) -> 0 | BD140: =IF(A2stdlife="n/a","n/a",IF(BD$3>(A2stdlife+$E140),(Input!$P$332*(1+rvanilla)^0.5)-SUM($P140:BC140),(Input!$P$332*(1+rvanilla)^0.5)/A2stdlife)) -> 0 | BE140: =IF(A2stdlife="n/a","n/a",IF(BE$3>(A2stdlife+$E140),(Input!$P$332*(1+rvanilla)^0.5)-SUM($P140:BD140),(Input!$P$332*(1+rvanilla)^0.5)/A2stdlife)) -> 0 | BF140: =IF(A2stdlife="n/a","n/a",IF(BF$3>(A2stdlife+$E140),(Input!$P$332*(1+rvanilla)^0.5)-SUM($P140:BE140),(Input!$P$332*(1+rvanilla)^0.5)/A2stdlife)) -> 0 | BG140: =IF(A2stdlife="n/a","n/a",IF(BG$3>(A2stdlife+$E140),(Input!$P$332*(1+rvanilla)^0.5)-SUM($P140:BF140),(Input!$P$332*(1+rvanilla)^0.5)/A2stdlife)) -> 0 | BH140: =IF(A2stdlife="n/a","n/a",IF(BH$3>(A2stdlife+$E140),(Input!$P$332*(1+rvanilla)^0.5)-SUM($P140:BG140),(Input!$P$332*(1+rvanilla)^0.5)/A2stdlife)) -> 0 | BI140: =IF(A2stdlife="n/a","n/a",IF(BI$3>(A2stdlife+$E140),(Input!$P$332*(1+rvanilla)^0.5)-SUM($P140:BH140),(Input!$P$332*(1+rvanilla)^0.5)/A2stdlife)) -> 0
C141: =Asset2 -> Underground Cables (pre 2004-05) | G141: =SUM(G129:G140) -> 6.735940752 | H141: =SUM(H129:H140) -> 6.735940752 | I141: 6.735940752 | J141: 6.735940752 | K141: 6.735940752 | L141: 6.735940752 | M141: 6.735940752 | N141: 6.735940752 | O141: 6.735940752 | P141: 6.735940752 | Q141: 6.735940752 | R141: 6.735940752 | S141: 6.735940752 | T141: 6.735940752 | U141: 6.735940752 | V141: 6.735940752 | W141: 6.735940752 | X141: 6.735940752 | Y141: 6.735940752 | Z141: 6.735940752 | AA141: 6.735940752 | AB141: 6.735940752 | AC141: 6.735940752 | AD141: 6.735940752 | AE141: 6.735940752 | AF141: 6.735940752 | AG141: 6.735940752 | AH141: 6.735940752 | AI141: 6.735940752 | AJ141: 6.735940752 | AK141: 2.040990048 | AL141: 0 | AM141: 0 | AN141: 0 | AO141: 0 | AP141: 0 | AQ141: 0 | AR141: 0 | AS141: 0 | AT141: 0 | AU141: 0 | AV141: 0 | AW141: 0 | AX141: 0 | AY141: 0 | AZ141: 0 | BA141: 0 | BB141: 0 | BC141: 0 | BD141: 0 | BE141: 0 | BF141: 0 | BG141: 0 | BH141: 0 | BI141: 0
B142: =C154 -> Substations including Buildings (pre 2004-05) | D142: Initial Asset Base | G142: =IF(G$3>A3remlife,A3acvalue-SUM($F142:F142),IF(A3remlife="N/A","n/a",A3acvalue/A3remlife)) -> 41.97947719 | H142: =IF(H$3>A3remlife,A3acvalue-SUM($F142:G142),IF(A3remlife="N/A","n/a",A3acvalue/A3remlife)) -> 41.97947719 | I142: =IF(I$3>A3remlife,A3acvalue-SUM($F142:H142),IF(A3remlife="N/A","n/a",A3acvalue/A3remlife)) -> 41.97947719 | J142: =IF(J$3>A3remlife,A3acvalue-SUM($F142:I142),IF(A3remlife="N/A","n/a",A3acvalue/A3remlife)) -> 41.97947719 | K142: =IF(K$3>A3remlife,A3acvalue-SUM($F142:J142),IF(A3remlife="N/A","n/a",A3acvalue/A3remlife)) -> 41.97947719 | L142: =IF(L$3>A3remlife,A3acvalue-SUM($F142:K142),IF(A3remlife="N/A","n/a",A3acvalue/A3remlife)) -> 41.97947719 | M142: =IF(M$3>A3remlife,A3acvalue-SUM($F142:L142),IF(A3remlife="N/A","n/a",A3acvalue/A3remlife)) -> 41.97947719 | N142: =IF(N$3>A3remlife,A3acvalue-SUM($F142:M142),IF(A3remlife="N/A","n/a",A3acvalue/A3remlife)) -> 41.97947719 | O142: =IF(O$3>A3remlife,A3acvalue-SUM($F142:N142),IF(A3remlife="N/A","n/a",A3acvalue/A3remlife)) -> 41.97947719 | P142: =IF(P$3>A3remlife,A3acvalue-SUM($F142:O142),IF(A3remlife="N/A","n/a",A3acvalue/A3remlife)) -> 41.97947719 | Q142: =IF(Q$3>A3remlife,A3acvalue-SUM($F142:P142),IF(A3remlife="N/A","n/a",A3acvalue/A3remlife)) -> 41.97947719 | R142: =IF(R$3>A3remlife,A3acvalue-SUM($F142:Q142),IF(A3remlife="N/A","n/a",A3acvalue/A3remlife)) -> 41.97947719 | S142: =IF(S$3>A3remlife,A3acvalue-SUM($F142:R142),IF(A3remlife="N/A","n/a",A3acvalue/A3remlife)) -> 41.97947719 | T142: =IF(T$3>A3remlife,A3acvalue-SUM($F142:S142),IF(A3remlife="N/A","n/a",A3acvalue/A3remlife)) -> 41.97947719 | U142: =IF(U$3>A3remlife,A3acvalue-SUM($F142:T142),IF(A3remlife="N/A","n/a",A3acvalue/A3remlife)) -> 41.97947719 | V142: =IF(V$3>A3remlife,A3acvalue-SUM($F142:U142),IF(A3remlife="N/A","n/a",A3acvalue/A3remlife)) -> 41.97947719 | W142: =IF(W$3>A3remlife,A3acvalue-SUM($F142:V142),IF(A3remlife="N/A","n/a",A3acvalue/A3remlife)) -> 19.94025167 | X142: =IF(X$3>A3remlife,A3acvalue-SUM($F142:W142),IF(A3remlife="N/A","n/a",A3acvalue/A3remlife)) -> 0 | Y142: =IF(Y$3>A3remlife,A3acvalue-SUM($F142:X142),IF(A3remlife="N/A","n/a",A3acvalue/A3remlife)) -> 0 | Z142: =IF(Z$3>A3remlife,A3acvalue-SUM($F142:Y142),IF(A3remlife="N/A","n/a",A3acvalue/A3remlife)) -> 0 | AA142: =IF(AA$3>A3remlife,A3acvalue-SUM($F142:Z142),IF(A3remlife="N/A","n/a",A3acvalue/A3remlife)) -> 0 | AB142: =IF(AB$3>A3remlife,A3acvalue-SUM($F142:AA142),IF(A3remlife="N/A","n/a",A3acvalue/A3remlife)) -> 0 | AC142: =IF(AC$3>A3remlife,A3acvalue-SUM($F142:AB142),IF(A3remlife="N/A","n/a",A3acvalue/A3remlife)) -> 0 | AD142: =IF(AD$3>A3remlife,A3acvalue-SUM($F142:AC142),IF(A3remlife="N/A","n/a",A3acvalue/A3remlife)) -> 0 | AE142: =IF(AE$3>A3remlife,A3acvalue-SUM($F142:AD142),IF(A3remlife="N/A","n/a",A3acvalue/A3remlife)) -> 0 | AF142: =IF(AF$3>A3remlife,A3acvalue-SUM($F142:AE142),IF(A3remlife="N/A","n/a",A3acvalue/A3remlife)) -> 0 | AG142: =IF(AG$3>A3remlife,A3acvalue-SUM($F142:AF142),IF(A3remlife="N/A","n/a",A3acvalue/A3remlife)) -> 0 | AH142: =IF(AH$3>A3remlife,A3acvalue-SUM($F142:AG142),IF(A3remlife="N/A","n/a",A3acvalue/A3remlife)) -> 0 | AI142: =IF(AI$3>A3remlife,A3acvalue-SUM($F142:AH142),IF(A3remlife="N/A","n/a",A3acvalue/A3remlife)) -> 0 | AJ142: =IF(AJ$3>A3remlife,A3acvalue-SUM($F142:AI142),IF(A3remlife="N/A","n/a",A3acvalue/A3remlife)) -> 0 | AK142: =IF(AK$3>A3remlife,A3acvalue-SUM($F142:AJ142),IF(A3remlife="N/A","n/a",A3acvalue/A3remlife)) -> 0 | AL142: =IF(AL$3>A3remlife,A3acvalue-SUM($F142:AK142),IF(A3remlife="N/A","n/a",A3acvalue/A3remlife)) -> 0 | AM142: =IF(AM$3>A3remlife,A3acvalue-SUM($F142:AL142),IF(A3remlife="N/A","n/a",A3acvalue/A3remlife)) -> 0 | AN142: =IF(AN$3>A3remlife,A3acvalue-SUM($F142:AM142),IF(A3remlife="N/A","n/a",A3acvalue/A3remlife)) -> 0 | AO142: =IF(AO$3>A3remlife,A3acvalue-SUM($F142:AN142),IF(A3remlife="N/A","n/a",A3acvalue/A3remlife)) -> 0 | AP142: =IF(AP$3>A3remlife,A3acvalue-SUM($F142:AO142),IF(A3remlife="N/A","n/a",A3acvalue/A3remlife)) -> 0 | AQ142: =IF(AQ$3>A3remlife,A3acvalue-SUM($F142:AP142),IF(A3remlife="N/A","n/a",A3acvalue/A3remlife)) -> 0 | AR142: =IF(AR$3>A3remlife,A3acvalue-SUM($F142:AQ142),IF(A3remlife="N/A","n/a",A3acvalue/A3remlife)) -> 0 | AS142: =IF(AS$3>A3remlife,A3acvalue-SUM($F142:AR142),IF(A3remlife="N/A","n/a",A3acvalue/A3remlife)) -> 0 | AT142: =IF(AT$3>A3remlife,A3acvalue-SUM($F142:AS142),IF(A3remlife="N/A","n/a",A3acvalue/A3remlife)) -> 0 | AU142: =IF(AU$3>A3remlife,A3acvalue-SUM($F142:AT142),IF(A3remlife="N/A","n/a",A3acvalue/A3remlife)) -> 0 | AV142: =IF(AV$3>A3remlife,A3acvalue-SUM($F142:AU142),IF(A3remlife="N/A","n/a",A3acvalue/A3remlife)) -> 0 | AW142: =IF(AW$3>A3remlife,A3acvalue-SUM($F142:AV142),IF(A3remlife="N/A","n/a",A3acvalue/A3remlife)) -> 0 | AX142: =IF(AX$3>A3remlife,A3acvalue-SUM($F142:AW142),IF(A3remlife="N/A","n/a",A3acvalue/A3remlife)) -> 0 | AY142: =IF(AY$3>A3remlife,A3acvalue-SUM($F142:AX142),IF(A3remlife="N/A","n/a",A3acvalue/A3remlife)) -> 0 | AZ142: =IF(AZ$3>A3remlife,A3acvalue-SUM($F142:AY142),IF(A3remlife="N/A","n/a",A3acvalue/A3remlife)) -> 0 | BA142: =IF(BA$3>A3remlife,A3acvalue-SUM($F142:AZ142),IF(A3remlife="N/A","n/a",A3acvalue/A3remlife)) -> 0 | BB142: =IF(BB$3>A3remlife,A3acvalue-SUM($F142:BA142),IF(A3remlife="N/A","n/a",A3acvalue/A3remlife)) -> 0 | BC142: =IF(BC$3>A3remlife,A3acvalue-SUM($F142:BB142),IF(A3remlife="N/A","n/a",A3acvalue/A3remlife)) -> 0 | BD142: =IF(BD$3>A3remlife,A3acvalue-SUM($F142:BC142),IF(A3remlife="N/A","n/a",A3acvalue/A3remlife)) -> 0 | BE142: =IF(BE$3>A3remlife,A3acvalue-SUM($F142:BD142),IF(A3remlife="N/A","n/a",A3acvalue/A3remlife)) -> 0 | BF142: =IF(BF$3>A3remlife,A3acvalue-SUM($F142:BE142),IF(A3remlife="N/A","n/a",A3acvalue/A3remlife)) -> 0 | BG142: =IF(BG$3>A3remlife,A3acvalue-SUM($F142:BF142),IF(A3remlife="N/A","n/a",A3acvalue/A3remlife)) -> 0 | BH142: =IF(BH$3>A3remlife,A3acvalue-SUM($F142:BG142),IF(A3remlife="N/A","n/a",A3acvalue/A3remlife)) -> 0 | BI142: =IF(BI$3>A3remlife,A3acvalue-SUM($F142:BH142),IF(A3remlife="N/A","n/a",A3acvalue/A3remlife)) -> 0
D143: Capex in year | E143: 0
E144: 1 | H144: =IF(A3stdlife="n/a","n/a",IF(H$3>(A3stdlife+$E144),(Input!$G$333*(1+rvanilla)^0.5)-SUM($G144:G144),(Input!$G$333*(1+rvanilla)^0.5)/A3stdlife)) -> 0 | I144: =IF(A3stdlife="n/a","n/a",IF(I$3>(A3stdlife+$E144),(Input!$G$333*(1+rvanilla)^0.5)-SUM($G144:H144),(Input!$G$333*(1+rvanilla)^0.5)/A3stdlife)) -> 0 | J144: =IF(A3stdlife="n/a","n/a",IF(J$3>(A3stdlife+$E144),(Input!$G$333*(1+rvanilla)^0.5)-SUM($G144:I144),(Input!$G$333*(1+rvanilla)^0.5)/A3stdlife)) -> 0 | K144: =IF(A3stdlife="n/a","n/a",IF(K$3>(A3stdlife+$E144),(Input!$G$333*(1+rvanilla)^0.5)-SUM($G144:J144),(Input!$G$333*(1+rvanilla)^0.5)/A3stdlife)) -> 0 | L144: =IF(A3stdlife="n/a","n/a",IF(L$3>(A3stdlife+$E144),(Input!$G$333*(1+rvanilla)^0.5)-SUM($G144:K144),(Input!$G$333*(1+rvanilla)^0.5)/A3stdlife)) -> 0 | M144: =IF(A3stdlife="n/a","n/a",IF(M$3>(A3stdlife+$E144),(Input!$G$333*(1+rvanilla)^0.5)-SUM($G144:L144),(Input!$G$333*(1+rvanilla)^0.5)/A3stdlife)) -> 0 | N144: =IF(A3stdlife="n/a","n/a",IF(N$3>(A3stdlife+$E144),(Input!$G$333*(1+rvanilla)^0.5)-SUM($G144:M144),(Input!$G$333*(1+rvanilla)^0.5)/A3stdlife)) -> 0 | O144: =IF(A3stdlife="n/a","n/a",IF(O$3>(A3stdlife+$E144),(Input!$G$333*(1+rvanilla)^0.5)-SUM($G144:N144),(Input!$G$333*(1+rvanilla)^0.5)/A3stdlife)) -> 0 | P144: =IF(A3stdlife="n/a","n/a",IF(P$3>(A3stdlife+$E144),(Input!$G$333*(1+rvanilla)^0.5)-SUM($G144:O144),(Input!$G$333*(1+rvanilla)^0.5)/A3stdlife)) -> 0 | Q144: =IF(A3stdlife="n/a","n/a",IF(Q$3>(A3stdlife+$E144),(Input!$G$333*(1+rvanilla)^0.5)-SUM($G144:P144),(Input!$G$333*(1+rvanilla)^0.5)/A3stdlife)) -> 0 | R144: =IF(A3stdlife="n/a","n/a",IF(R$3>(A3stdlife+$E144),(Input!$G$333*(1+rvanilla)^0.5)-SUM($G144:Q144),(Input!$G$333*(1+rvanilla)^0.5)/A3stdlife)) -> 0 | S144: =IF(A3stdlife="n/a","n/a",IF(S$3>(A3stdlife+$E144),(Input!$G$333*(1+rvanilla)^0.5)-SUM($G144:R144),(Input!$G$333*(1+rvanilla)^0.5)/A3stdlife)) -> 0 | T144: =IF(A3stdlife="n/a","n/a",IF(T$3>(A3stdlife+$E144),(Input!$G$333*(1+rvanilla)^0.5)-SUM($G144:S144),(Input!$G$333*(1+rvanilla)^0.5)/A3stdlife)) -> 0 | U144: =IF(A3stdlife="n/a","n/a",IF(U$3>(A3stdlife+$E144),(Input!$G$333*(1+rvanilla)^0.5)-SUM($G144:T144),(Input!$G$333*(1+rvanilla)^0.5)/A3stdlife)) -> 0 | V144: =IF(A3stdlife="n/a","n/a",IF(V$3>(A3stdlife+$E144),(Input!$G$333*(1+rvanilla)^0.5)-SUM($G144:U144),(Input!$G$333*(1+rvanilla)^0.5)/A3stdlife)) -> 0 | W144: =IF(A3stdlife="n/a","n/a",IF(W$3>(A3stdlife+$E144),(Input!$G$333*(1+rvanilla)^0.5)-SUM($G144:V144),(Input!$G$333*(1+rvanilla)^0.5)/A3stdlife)) -> 0 | X144: =IF(A3stdlife="n/a","n/a",IF(X$3>(A3stdlife+$E144),(Input!$G$333*(1+rvanilla)^0.5)-SUM($G144:W144),(Input!$G$333*(1+rvanilla)^0.5)/A3stdlife)) -> 0 | Y144: =IF(A3stdlife="n/a","n/a",IF(Y$3>(A3stdlife+$E144),(Input!$G$333*(1+rvanilla)^0.5)-SUM($G144:X144),(Input!$G$333*(1+rvanilla)^0.5)/A3stdlife)) -> 0 | Z144: =IF(A3stdlife="n/a","n/a",IF(Z$3>(A3stdlife+$E144),(Input!$G$333*(1+rvanilla)^0.5)-SUM($G144:Y144),(Input!$G$333*(1+rvanilla)^0.5)/A3stdlife)) -> 0 | AA144: =IF(A3stdlife="n/a","n/a",IF(AA$3>(A3stdlife+$E144),(Input!$G$333*(1+rvanilla)^0.5)-SUM($G144:Z144),(Input!$G$333*(1+rvanilla)^0.5)/A3stdlife)) -> 0 | AB144: =IF(A3stdlife="n/a","n/a",IF(AB$3>(A3stdlife+$E144),(Input!$G$333*(1+rvanilla)^0.5)-SUM($G144:AA144),(Input!$G$333*(1+rvanilla)^0.5)/A3stdlife)) -> 0 | AC144: =IF(A3stdlife="n/a","n/a",IF(AC$3>(A3stdlife+$E144),(Input!$G$333*(1+rvanilla)^0.5)-SUM($G144:AB144),(Input!$G$333*(1+rvanilla)^0.5)/A3stdlife)) -> 0 | AD144: =IF(A3stdlife="n/a","n/a",IF(AD$3>(A3stdlife+$E144),(Input!$G$333*(1+rvanilla)^0.5)-SUM($G144:AC144),(Input!$G$333*(1+rvanilla)^0.5)/A3stdlife)) -> 0 | AE144: =IF(A3stdlife="n/a","n/a",IF(AE$3>(A3stdlife+$E144),(Input!$G$333*(1+rvanilla)^0.5)-SUM($G144:AD144),(Input!$G$333*(1+rvanilla)^0.5)/A3stdlife)) -> 0 | AF144: =IF(A3stdlife="n/a","n/a",IF(AF$3>(A3stdlife+$E144),(Input!$G$333*(1+rvanilla)^0.5)-SUM($G144:AE144),(Input!$G$333*(1+rvanilla)^0.5)/A3stdlife)) -> 0 | AG144: =IF(A3stdlife="n/a","n/a",IF(AG$3>(A3stdlife+$E144),(Input!$G$333*(1+rvanilla)^0.5)-SUM($G144:AF144),(Input!$G$333*(1+rvanilla)^0.5)/A3stdlife)) -> 0 | AH144: =IF(A3stdlife="n/a","n/a",IF(AH$3>(A3stdlife+$E144),(Input!$G$333*(1+rvanilla)^0.5)-SUM($G144:AG144),(Input!$G$333*(1+rvanilla)^0.5)/A3stdlife)) -> 0 | AI144: =IF(A3stdlife="n/a","n/a",IF(AI$3>(A3stdlife+$E144),(Input!$G$333*(1+rvanilla)^0.5)-SUM($G144:AH144),(Input!$G$333*(1+rvanilla)^0.5)/A3stdlife)) -> 0 | AJ144: =IF(A3stdlife="n/a","n/a",IF(AJ$3>(A3stdlife+$E144),(Input!$G$333*(1+rvanilla)^0.5)-SUM($G144:AI144),(Input!$G$333*(1+rvanilla)^0.5)/A3stdlife)) -> 0 | AK144: =IF(A3stdlife="n/a","n/a",IF(AK$3>(A3stdlife+$E144),(Input!$G$333*(1+rvanilla)^0.5)-SUM($G144:AJ144),(Input!$G$333*(1+rvanilla)^0.5)/A3stdlife)) -> 0 | AL144: =IF(A3stdlife="n/a","n/a",IF(AL$3>(A3stdlife+$E144),(Input!$G$333*(1+rvanilla)^0.5)-SUM($G144:AK144),(Input!$G$333*(1+rvanilla)^0.5)/A3stdlife)) -> 0 | AM144: =IF(A3stdlife="n/a","n/a",IF(AM$3>(A3stdlife+$E144),(Input!$G$333*(1+rvanilla)^0.5)-SUM($G144:AL144),(Input!$G$333*(1+rvanilla)^0.5)/A3stdlife)) -> 0 | AN144: =IF(A3stdlife="n/a","n/a",IF(AN$3>(A3stdlife+$E144),(Input!$G$333*(1+rvanilla)^0.5)-SUM($G144:AM144),(Input!$G$333*(1+rvanilla)^0.5)/A3stdlife)) -> 0 | AO144: =IF(A3stdlife="n/a","n/a",IF(AO$3>(A3stdlife+$E144),(Input!$G$333*(1+rvanilla)^0.5)-SUM($G144:AN144),(Input!$G$333*(1+rvanilla)^0.5)/A3stdlife)) -> 0 | AP144: =IF(A3stdlife="n/a","n/a",IF(AP$3>(A3stdlife+$E144),(Input!$G$333*(1+rvanilla)^0.5)-SUM($G144:AO144),(Input!$G$333*(1+rvanilla)^0.5)/A3stdlife)) -> 0 | AQ144: =IF(A3stdlife="n/a","n/a",IF(AQ$3>(A3stdlife+$E144),(Input!$G$333*(1+rvanilla)^0.5)-SUM($G144:AP144),(Input!$G$333*(1+rvanilla)^0.5)/A3stdlife)) -> 0 | AR144: =IF(A3stdlife="n/a","n/a",IF(AR$3>(A3stdlife+$E144),(Input!$G$333*(1+rvanilla)^0.5)-SUM($G144:AQ144),(Input!$G$333*(1+rvanilla)^0.5)/A3stdlife)) -> 0 | AS144: =IF(A3stdlife="n/a","n/a",IF(AS$3>(A3stdlife+$E144),(Input!$G$333*(1+rvanilla)^0.5)-SUM($G144:AR144),(Input!$G$333*(1+rvanilla)^0.5)/A3stdlife)) -> 0 | AT144: =IF(A3stdlife="n/a","n/a",IF(AT$3>(A3stdlife+$E144),(Input!$G$333*(1+rvanilla)^0.5)-SUM($G144:AS144),(Input!$G$333*(1+rvanilla)^0.5)/A3stdlife)) -> 0 | AU144: =IF(A3stdlife="n/a","n/a",IF(AU$3>(A3stdlife+$E144),(Input!$G$333*(1+rvanilla)^0.5)-SUM($G144:AT144),(Input!$G$333*(1+rvanilla)^0.5)/A3stdlife)) -> 0 | AV144: =IF(A3stdlife="n/a","n/a",IF(AV$3>(A3stdlife+$E144),(Input!$G$333*(1+rvanilla)^0.5)-SUM($G144:AU144),(Input!$G$333*(1+rvanilla)^0.5)/A3stdlife)) -> 0 | AW144: =IF(A3stdlife="n/a","n/a",IF(AW$3>(A3stdlife+$E144),(Input!$G$333*(1+rvanilla)^0.5)-SUM($G144:AV144),(Input!$G$333*(1+rvanilla)^0.5)/A3stdlife)) -> 0 | AX144: =IF(A3stdlife="n/a","n/a",IF(AX$3>(A3stdlife+$E144),(Input!$G$333*(1+rvanilla)^0.5)-SUM($G144:AW144),(Input!$G$333*(1+rvanilla)^0.5)/A3stdlife)) -> 0 | AY144: =IF(A3stdlife="n/a","n/a",IF(AY$3>(A3stdlife+$E144),(Input!$G$333*(1+rvanilla)^0.5)-SUM($G144:AX144),(Input!$G$333*(1+rvanilla)^0.5)/A3stdlife)) -> 0 | AZ144: =IF(A3stdlife="n/a","n/a",IF(AZ$3>(A3stdlife+$E144),(Input!$G$333*(1+rvanilla)^0.5)-SUM($G144:AY144),(Input!$G$333*(1+rvanilla)^0.5)/A3stdlife)) -> 0 | BA144: =IF(A3stdlife="n/a","n/a",IF(BA$3>(A3stdlife+$E144),(Input!$G$333*(1+rvanilla)^0.5)-SUM($G144:AZ144),(Input!$G$333*(1+rvanilla)^0.5)/A3stdlife)) -> 0 | BB144: =IF(A3stdlife="n/a","n/a",IF(BB$3>(A3stdlife+$E144),(Input!$G$333*(1+rvanilla)^0.5)-SUM($G144:BA144),(Input!$G$333*(1+rvanilla)^0.5)/A3stdlife)) -> 0 | BC144: =IF(A3stdlife="n/a","n/a",IF(BC$3>(A3stdlife+$E144),(Input!$G$333*(1+rvanilla)^0.5)-SUM($G144:BB144),(Input!$G$333*(1+rvanilla)^0.5)/A3stdlife)) -> 0 | BD144: =IF(A3stdlife="n/a","n/a",IF(BD$3>(A3stdlife+$E144),(Input!$G$333*(1+rvanilla)^0.5)-SUM($G144:BC144),(Input!$G$333*(1+rvanilla)^0.5)/A3stdlife)) -> 0 | BE144: =IF(A3stdlife="n/a","n/a",IF(BE$3>(A3stdlife+$E144),(Input!$G$333*(1+rvanilla)^0.5)-SUM($G144:BD144),(Input!$G$333*(1+rvanilla)^0.5)/A3stdlife)) -> 0 | BF144: =IF(A3stdlife="n/a","n/a",IF(BF$3>(A3stdlife+$E144),(Input!$G$333*(1+rvanilla)^0.5)-SUM($G144:BE144),(Input!$G$333*(1+rvanilla)^0.5)/A3stdlife)) -> 0 | BG144: =IF(A3stdlife="n/a","n/a",IF(BG$3>(A3stdlife+$E144),(Input!$G$333*(1+rvanilla)^0.5)-SUM($G144:BF144),(Input!$G$333*(1+rvanilla)^0.5)/A3stdlife)) -> 0 | BH144: =IF(A3stdlife="n/a","n/a",IF(BH$3>(A3stdlife+$E144),(Input!$G$333*(1+rvanilla)^0.5)-SUM($G144:BG144),(Input!$G$333*(1+rvanilla)^0.5)/A3stdlife)) -> 0 | BI144: =IF(A3stdlife="n/a","n/a",IF(BI$3>(A3stdlife+$E144),(Input!$G$333*(1+rvanilla)^0.5)-SUM($G144:BH144),(Input!$G$333*(1+rvanilla)^0.5)/A3stdlife)) -> 0
E145: 2 | I145: =IF(A3stdlife="n/a","n/a",IF(I$3>(A3stdlife+$E145),(Input!$H$333*(1+rvanilla)^0.5)-SUM($H145:H145),(Input!$H$333*(1+rvanilla)^0.5)/A3stdlife)) -> 0 | J145: =IF(A3stdlife="n/a","n/a",IF(J$3>(A3stdlife+$E145),(Input!$H$333*(1+rvanilla)^0.5)-SUM($H145:I145),(Input!$H$333*(1+rvanilla)^0.5)/A3stdlife)) -> 0 | K145: =IF(A3stdlife="n/a","n/a",IF(K$3>(A3stdlife+$E145),(Input!$H$333*(1+rvanilla)^0.5)-SUM($H145:J145),(Input!$H$333*(1+rvanilla)^0.5)/A3stdlife)) -> 0 | L145: =IF(A3stdlife="n/a","n/a",IF(L$3>(A3stdlife+$E145),(Input!$H$333*(1+rvanilla)^0.5)-SUM($H145:K145),(Input!$H$333*(1+rvanilla)^0.5)/A3stdlife)) -> 0 | M145: =IF(A3stdlife="n/a","n/a",IF(M$3>(A3stdlife+$E145),(Input!$H$333*(1+rvanilla)^0.5)-SUM($H145:L145),(Input!$H$333*(1+rvanilla)^0.5)/A3stdlife)) -> 0 | N145: =IF(A3stdlife="n/a","n/a",IF(N$3>(A3stdlife+$E145),(Input!$H$333*(1+rvanilla)^0.5)-SUM($H145:M145),(Input!$H$333*(1+rvanilla)^0.5)/A3stdlife)) -> 0 | O145: =IF(A3stdlife="n/a","n/a",IF(O$3>(A3stdlife+$E145),(Input!$H$333*(1+rvanilla)^0.5)-SUM($H145:N145),(Input!$H$333*(1+rvanilla)^0.5)/A3stdlife)) -> 0 | P145: =IF(A3stdlife="n/a","n/a",IF(P$3>(A3stdlife+$E145),(Input!$H$333*(1+rvanilla)^0.5)-SUM($H145:O145),(Input!$H$333*(1+rvanilla)^0.5)/A3stdlife)) -> 0 | Q145: =IF(A3stdlife="n/a","n/a",IF(Q$3>(A3stdlife+$E145),(Input!$H$333*(1+rvanilla)^0.5)-SUM($H145:P145),(Input!$H$333*(1+rvanilla)^0.5)/A3stdlife)) -> 0 | R145: =IF(A3stdlife="n/a","n/a",IF(R$3>(A3stdlife+$E145),(Input!$H$333*(1+rvanilla)^0.5)-SUM($H145:Q145),(Input!$H$333*(1+rvanilla)^0.5)/A3stdlife)) -> 0 | S145: =IF(A3stdlife="n/a","n/a",IF(S$3>(A3stdlife+$E145),(Input!$H$333*(1+rvanilla)^0.5)-SUM($H145:R145),(Input!$H$333*(1+rvanilla)^0.5)/A3stdlife)) -> 0 | T145: =IF(A3stdlife="n/a","n/a",IF(T$3>(A3stdlife+$E145),(Input!$H$333*(1+rvanilla)^0.5)-SUM($H145:S145),(Input!$H$333*(1+rvanilla)^0.5)/A3stdlife)) -> 0 | U145: =IF(A3stdlife="n/a","n/a",IF(U$3>(A3stdlife+$E145),(Input!$H$333*(1+rvanilla)^0.5)-SUM($H145:T145),(Input!$H$333*(1+rvanilla)^0.5)/A3stdlife)) -> 0 | V145: =IF(A3stdlife="n/a","n/a",IF(V$3>(A3stdlife+$E145),(Input!$H$333*(1+rvanilla)^0.5)-SUM($H145:U145),(Input!$H$333*(1+rvanilla)^0.5)/A3stdlife)) -> 0 | W145: =IF(A3stdlife="n/a","n/a",IF(W$3>(A3stdlife+$E145),(Input!$H$333*(1+rvanilla)^0.5)-SUM($H145:V145),(Input!$H$333*(1+rvanilla)^0.5)/A3stdlife)) -> 0 | X145: =IF(A3stdlife="n/a","n/a",IF(X$3>(A3stdlife+$E145),(Input!$H$333*(1+rvanilla)^0.5)-SUM($H145:W145),(Input!$H$333*(1+rvanilla)^0.5)/A3stdlife)) -> 0 | Y145: =IF(A3stdlife="n/a","n/a",IF(Y$3>(A3stdlife+$E145),(Input!$H$333*(1+rvanilla)^0.5)-SUM($H145:X145),(Input!$H$333*(1+rvanilla)^0.5)/A3stdlife)) -> 0 | Z145: =IF(A3stdlife="n/a","n/a",IF(Z$3>(A3stdlife+$E145),(Input!$H$333*(1+rvanilla)^0.5)-SUM($H145:Y145),(Input!$H$333*(1+rvanilla)^0.5)/A3stdlife)) -> 0 | AA145: =IF(A3stdlife="n/a","n/a",IF(AA$3>(A3stdlife+$E145),(Input!$H$333*(1+rvanilla)^0.5)-SUM($H145:Z145),(Input!$H$333*(1+rvanilla)^0.5)/A3stdlife)) -> 0 | AB145: =IF(A3stdlife="n/a","n/a",IF(AB$3>(A3stdlife+$E145),(Input!$H$333*(1+rvanilla)^0.5)-SUM($H145:AA145),(Input!$H$333*(1+rvanilla)^0.5)/A3stdlife)) -> 0 | AC145: =IF(A3stdlife="n/a","n/a",IF(AC$3>(A3stdlife+$E145),(Input!$H$333*(1+rvanilla)^0.5)-SUM($H145:AB145),(Input!$H$333*(1+rvanilla)^0.5)/A3stdlife)) -> 0 | AD145: =IF(A3stdlife="n/a","n/a",IF(AD$3>(A3stdlife+$E145),(Input!$H$333*(1+rvanilla)^0.5)-SUM($H145:AC145),(Input!$H$333*(1+rvanilla)^0.5)/A3stdlife)) -> 0 | AE145: =IF(A3stdlife="n/a","n/a",IF(AE$3>(A3stdlife+$E145),(Input!$H$333*(1+rvanilla)^0.5)-SUM($H145:AD145),(Input!$H$333*(1+rvanilla)^0.5)/A3stdlife)) -> 0 | AF145: =IF(A3stdlife="n/a","n/a",IF(AF$3>(A3stdlife+$E145),(Input!$H$333*(1+rvanilla)^0.5)-SUM($H145:AE145),(Input!$H$333*(1+rvanilla)^0.5)/A3stdlife)) -> 0 | AG145: =IF(A3stdlife="n/a","n/a",IF(AG$3>(A3stdlife+$E145),(Input!$H$333*(1+rvanilla)^0.5)-SUM($H145:AF145),(Input!$H$333*(1+rvanilla)^0.5)/A3stdlife)) -> 0 | AH145: =IF(A3stdlife="n/a","n/a",IF(AH$3>(A3stdlife+$E145),(Input!$H$333*(1+rvanilla)^0.5)-SUM($H145:AG145),(Input!$H$333*(1+rvanilla)^0.5)/A3stdlife)) -> 0 | AI145: =IF(A3stdlife="n/a","n/a",IF(AI$3>(A3stdlife+$E145),(Input!$H$333*(1+rvanilla)^0.5)-SUM($H145:AH145),(Input!$H$333*(1+rvanilla)^0.5)/A3stdlife)) -> 0 | AJ145: =IF(A3stdlife="n/a","n/a",IF(AJ$3>(A3stdlife+$E145),(Input!$H$333*(1+rvanilla)^0.5)-SUM($H145:AI145),(Input!$H$333*(1+rvanilla)^0.5)/A3stdlife)) -> 0 | AK145: =IF(A3stdlife="n/a","n/a",IF(AK$3>(A3stdlife+$E145),(Input!$H$333*(1+rvanilla)^0.5)-SUM($H145:AJ145),(Input!$H$333*(1+rvanilla)^0.5)/A3stdlife)) -> 0 | AL145: =IF(A3stdlife="n/a","n/a",IF(AL$3>(A3stdlife+$E145),(Input!$H$333*(1+rvanilla)^0.5)-SUM($H145:AK145),(Input!$H$333*(1+rvanilla)^0.5)/A3stdlife)) -> 0 | AM145: =IF(A3stdlife="n/a","n/a",IF(AM$3>(A3stdlife+$E145),(Input!$H$333*(1+rvanilla)^0.5)-SUM($H145:AL145),(Input!$H$333*(1+rvanilla)^0.5)/A3stdlife)) -> 0 | AN145: =IF(A3stdlife="n/a","n/a",IF(AN$3>(A3stdlife+$E145),(Input!$H$333*(1+rvanilla)^0.5)-SUM($H145:AM145),(Input!$H$333*(1+rvanilla)^0.5)/A3stdlife)) -> 0 | AO145: =IF(A3stdlife="n/a","n/a",IF(AO$3>(A3stdlife+$E145),(Input!$H$333*(1+rvanilla)^0.5)-SUM($H145:AN145),(Input!$H$333*(1+rvanilla)^0.5)/A3stdlife)) -> 0 | AP145: =IF(A3stdlife="n/a","n/a",IF(AP$3>(A3stdlife+$E145),(Input!$H$333*(1+rvanilla)^0.5)-SUM($H145:AO145),(Input!$H$333*(1+rvanilla)^0.5)/A3stdlife)) -> 0 | AQ145: =IF(A3stdlife="n/a","n/a",IF(AQ$3>(A3stdlife+$E145),(Input!$H$333*(1+rvanilla)^0.5)-SUM($H145:AP145),(Input!$H$333*(1+rvanilla)^0.5)/A3stdlife)) -> 0 | AR145: =IF(A3stdlife="n/a","n/a",IF(AR$3>(A3stdlife+$E145),(Input!$H$333*(1+rvanilla)^0.5)-SUM($H145:AQ145),(Input!$H$333*(1+rvanilla)^0.5)/A3stdlife)) -> 0 | AS145: =IF(A3stdlife="n/a","n/a",IF(AS$3>(A3stdlife+$E145),(Input!$H$333*(1+rvanilla)^0.5)-SUM($H145:AR145),(Input!$H$333*(1+rvanilla)^0.5)/A3stdlife)) -> 0 | AT145: =IF(A3stdlife="n/a","n/a",IF(AT$3>(A3stdlife+$E145),(Input!$H$333*(1+rvanilla)^0.5)-SUM($H145:AS145),(Input!$H$333*(1+rvanilla)^0.5)/A3stdlife)) -> 0 | AU145: =IF(A3stdlife="n/a","n/a",IF(AU$3>(A3stdlife+$E145),(Input!$H$333*(1+rvanilla)^0.5)-SUM($H145:AT145),(Input!$H$333*(1+rvanilla)^0.5)/A3stdlife)) -> 0 | AV145: =IF(A3stdlife="n/a","n/a",IF(AV$3>(A3stdlife+$E145),(Input!$H$333*(1+rvanilla)^0.5)-SUM($H145:AU145),(Input!$H$333*(1+rvanilla)^0.5)/A3stdlife)) -> 0 | AW145: =IF(A3stdlife="n/a","n/a",IF(AW$3>(A3stdlife+$E145),(Input!$H$333*(1+rvanilla)^0.5)-SUM($H145:AV145),(Input!$H$333*(1+rvanilla)^0.5)/A3stdlife)) -> 0 | AX145: =IF(A3stdlife="n/a","n/a",IF(AX$3>(A3stdlife+$E145),(Input!$H$333*(1+rvanilla)^0.5)-SUM($H145:AW145),(Input!$H$333*(1+rvanilla)^0.5)/A3stdlife)) -> 0 | AY145: =IF(A3stdlife="n/a","n/a",IF(AY$3>(A3stdlife+$E145),(Input!$H$333*(1+rvanilla)^0.5)-SUM($H145:AX145),(Input!$H$333*(1+rvanilla)^0.5)/A3stdlife)) -> 0 | AZ145: =IF(A3stdlife="n/a","n/a",IF(AZ$3>(A3stdlife+$E145),(Input!$H$333*(1+rvanilla)^0.5)-SUM($H145:AY145),(Input!$H$333*(1+rvanilla)^0.5)/A3stdlife)) -> 0 | BA145: =IF(A3stdlife="n/a","n/a",IF(BA$3>(A3stdlife+$E145),(Input!$H$333*(1+rvanilla)^0.5)-SUM($H145:AZ145),(Input!$H$333*(1+rvanilla)^0.5)/A3stdlife)) -> 0 | BB145: =IF(A3stdlife="n/a","n/a",IF(BB$3>(A3stdlife+$E145),(Input!$H$333*(1+rvanilla)^0.5)-SUM($H145:BA145),(Input!$H$333*(1+rvanilla)^0.5)/A3stdlife)) -> 0 | BC145: =IF(A3stdlife="n/a","n/a",IF(BC$3>(A3stdlife+$E145),(Input!$H$333*(1+rvanilla)^0.5)-SUM($H145:BB145),(Input!$H$333*(1+rvanilla)^0.5)/A3stdlife)) -> 0 | BD145: =IF(A3stdlife="n/a","n/a",IF(BD$3>(A3stdlife+$E145),(Input!$H$333*(1+rvanilla)^0.5)-SUM($H145:BC145),(Input!$H$333*(1+rvanilla)^0.5)/A3stdlife)) -> 0 | BE145: =IF(A3stdlife="n/a","n/a",IF(BE$3>(A3stdlife+$E145),(Input!$H$333*(1+rvanilla)^0.5)-SUM($H145:BD145),(Input!$H$333*(1+rvanilla)^0.5)/A3stdlife)) -> 0 | BF145: =IF(A3stdlife="n/a","n/a",IF(BF$3>(A3stdlife+$E145),(Input!$H$333*(1+rvanilla)^0.5)-SUM($H145:BE145),(Input!$H$333*(1+rvanilla)^0.5)/A3stdlife)) -> 0 | BG145: =IF(A3stdlife="n/a","n/a",IF(BG$3>(A3stdlife+$E145),(Input!$H$333*(1+rvanilla)^0.5)-SUM($H145:BF145),(Input!$H$333*(1+rvanilla)^0.5)/A3stdlife)) -> 0 | BH145: =IF(A3stdlife="n/a","n/a",IF(BH$3>(A3stdlife+$E145),(Input!$H$333*(1+rvanilla)^0.5)-SUM($H145:BG145),(Input!$H$333*(1+rvanilla)^0.5)/A3stdlife)) -> 0 | BI145: =IF(A3stdlife="n/a","n/a",IF(BI$3>(A3stdlife+$E145),(Input!$H$333*(1+rvanilla)^0.5)-SUM($H145:BH145),(Input!$H$333*(1+rvanilla)^0.5)/A3stdlife)) -> 0
E146: 3 | J146: =IF(A3stdlife="n/a","n/a",IF(J$3>(A3stdlife+$E146),(Input!$I$333*(1+rvanilla)^0.5)-SUM($I146:I146),(Input!$I$333*(1+rvanilla)^0.5)/A3stdlife)) -> 0 | K146: =IF(A3stdlife="n/a","n/a",IF(K$3>(A3stdlife+$E146),(Input!$I$333*(1+rvanilla)^0.5)-SUM($I146:J146),(Input!$I$333*(1+rvanilla)^0.5)/A3stdlife)) -> 0 | L146: =IF(A3stdlife="n/a","n/a",IF(L$3>(A3stdlife+$E146),(Input!$I$333*(1+rvanilla)^0.5)-SUM($I146:K146),(Input!$I$333*(1+rvanilla)^0.5)/A3stdlife)) -> 0 | M146: =IF(A3stdlife="n/a","n/a",IF(M$3>(A3stdlife+$E146),(Input!$I$333*(1+rvanilla)^0.5)-SUM($I146:L146),(Input!$I$333*(1+rvanilla)^0.5)/A3stdlife)) -> 0 | N146: =IF(A3stdlife="n/a","n/a",IF(N$3>(A3stdlife+$E146),(Input!$I$333*(1+rvanilla)^0.5)-SUM($I146:M146),(Input!$I$333*(1+rvanilla)^0.5)/A3stdlife)) -> 0 | O146: =IF(A3stdlife="n/a","n/a",IF(O$3>(A3stdlife+$E146),(Input!$I$333*(1+rvanilla)^0.5)-SUM($I146:N146),(Input!$I$333*(1+rvanilla)^0.5)/A3stdlife)) -> 0 | P146: =IF(A3stdlife="n/a","n/a",IF(P$3>(A3stdlife+$E146),(Input!$I$333*(1+rvanilla)^0.5)-SUM($I146:O146),(Input!$I$333*(1+rvanilla)^0.5)/A3stdlife)) -> 0 | Q146: =IF(A3stdlife="n/a","n/a",IF(Q$3>(A3stdlife+$E146),(Input!$I$333*(1+rvanilla)^0.5)-SUM($I146:P146),(Input!$I$333*(1+rvanilla)^0.5)/A3stdlife)) -> 0 | R146: =IF(A3stdlife="n/a","n/a",IF(R$3>(A3stdlife+$E146),(Input!$I$333*(1+rvanilla)^0.5)-SUM($I146:Q146),(Input!$I$333*(1+rvanilla)^0.5)/A3stdlife)) -> 0 | S146: =IF(A3stdlife="n/a","n/a",IF(S$3>(A3stdlife+$E146),(Input!$I$333*(1+rvanilla)^0.5)-SUM($I146:R146),(Input!$I$333*(1+rvanilla)^0.5)/A3stdlife)) -> 0 | T146: =IF(A3stdlife="n/a","n/a",IF(T$3>(A3stdlife+$E146),(Input!$I$333*(1+rvanilla)^0.5)-SUM($I146:S146),(Input!$I$333*(1+rvanilla)^0.5)/A3stdlife)) -> 0 | U146: =IF(A3stdlife="n/a","n/a",IF(U$3>(A3stdlife+$E146),(Input!$I$333*(1+rvanilla)^0.5)-SUM($I146:T146),(Input!$I$333*(1+rvanilla)^0.5)/A3stdlife)) -> 0 | V146: =IF(A3stdlife="n/a","n/a",IF(V$3>(A3stdlife+$E146),(Input!$I$333*(1+rvanilla)^0.5)-SUM($I146:U146),(Input!$I$333*(1+rvanilla)^0.5)/A3stdlife)) -> 0 | W146: =IF(A3stdlife="n/a","n/a",IF(W$3>(A3stdlife+$E146),(Input!$I$333*(1+rvanilla)^0.5)-SUM($I146:V146),(Input!$I$333*(1+rvanilla)^0.5)/A3stdlife)) -> 0 | X146: =IF(A3stdlife="n/a","n/a",IF(X$3>(A3stdlife+$E146),(Input!$I$333*(1+rvanilla)^0.5)-SUM($I146:W146),(Input!$I$333*(1+rvanilla)^0.5)/A3stdlife)) -> 0 | Y146: =IF(A3stdlife="n/a","n/a",IF(Y$3>(A3stdlife+$E146),(Input!$I$333*(1+rvanilla)^0.5)-SUM($I146:X146),(Input!$I$333*(1+rvanilla)^0.5)/A3stdlife)) -> 0 | Z146: =IF(A3stdlife="n/a","n/a",IF(Z$3>(A3stdlife+$E146),(Input!$I$333*(1+rvanilla)^0.5)-SUM($I146:Y146),(Input!$I$333*(1+rvanilla)^0.5)/A3stdlife)) -> 0 | AA146: =IF(A3stdlife="n/a","n/a",IF(AA$3>(A3stdlife+$E146),(Input!$I$333*(1+rvanilla)^0.5)-SUM($I146:Z146),(Input!$I$333*(1+rvanilla)^0.5)/A3stdlife)) -> 0 | AB146: =IF(A3stdlife="n/a","n/a",IF(AB$3>(A3stdlife+$E146),(Input!$I$333*(1+rvanilla)^0.5)-SUM($I146:AA146),(Input!$I$333*(1+rvanilla)^0.5)/A3stdlife)) -> 0 | AC146: =IF(A3stdlife="n/a","n/a",IF(AC$3>(A3stdlife+$E146),(Input!$I$333*(1+rvanilla)^0.5)-SUM($I146:AB146),(Input!$I$333*(1+rvanilla)^0.5)/A3stdlife)) -> 0 | AD146: =IF(A3stdlife="n/a","n/a",IF(AD$3>(A3stdlife+$E146),(Input!$I$333*(1+rvanilla)^0.5)-SUM($I146:AC146),(Input!$I$333*(1+rvanilla)^0.5)/A3stdlife)) -> 0 | AE146: =IF(A3stdlife="n/a","n/a",IF(AE$3>(A3stdlife+$E146),(Input!$I$333*(1+rvanilla)^0.5)-SUM($I146:AD146),(Input!$I$333*(1+rvanilla)^0.5)/A3stdlife)) -> 0 | AF146: =IF(A3stdlife="n/a","n/a",IF(AF$3>(A3stdlife+$E146),(Input!$I$333*(1+rvanilla)^0.5)-SUM($I146:AE146),(Input!$I$333*(1+rvanilla)^0.5)/A3stdlife)) -> 0 | AG146: =IF(A3stdlife="n/a","n/a",IF(AG$3>(A3stdlife+$E146),(Input!$I$333*(1+rvanilla)^0.5)-SUM($I146:AF146),(Input!$I$333*(1+rvanilla)^0.5)/A3stdlife)) -> 0 | AH146: =IF(A3stdlife="n/a","n/a",IF(AH$3>(A3stdlife+$E146),(Input!$I$333*(1+rvanilla)^0.5)-SUM($I146:AG146),(Input!$I$333*(1+rvanilla)^0.5)/A3stdlife)) -> 0 | AI146: =IF(A3stdlife="n/a","n/a",IF(AI$3>(A3stdlife+$E146),(Input!$I$333*(1+rvanilla)^0.5)-SUM($I146:AH146),(Input!$I$333*(1+rvanilla)^0.5)/A3stdlife)) -> 0 | AJ146: =IF(A3stdlife="n/a","n/a",IF(AJ$3>(A3stdlife+$E146),(Input!$I$333*(1+rvanilla)^0.5)-SUM($I146:AI146),(Input!$I$333*(1+rvanilla)^0.5)/A3stdlife)) -> 0 | AK146: =IF(A3stdlife="n/a","n/a",IF(AK$3>(A3stdlife+$E146),(Input!$I$333*(1+rvanilla)^0.5)-SUM($I146:AJ146),(Input!$I$333*(1+rvanilla)^0.5)/A3stdlife)) -> 0 | AL146: =IF(A3stdlife="n/a","n/a",IF(AL$3>(A3stdlife+$E146),(Input!$I$333*(1+rvanilla)^0.5)-SUM($I146:AK146),(Input!$I$333*(1+rvanilla)^0.5)/A3stdlife)) -> 0 | AM146: =IF(A3stdlife="n/a","n/a",IF(AM$3>(A3stdlife+$E146),(Input!$I$333*(1+rvanilla)^0.5)-SUM($I146:AL146),(Input!$I$333*(1+rvanilla)^0.5)/A3stdlife)) -> 0 | AN146: =IF(A3stdlife="n/a","n/a",IF(AN$3>(A3stdlife+$E146),(Input!$I$333*(1+rvanilla)^0.5)-SUM($I146:AM146),(Input!$I$333*(1+rvanilla)^0.5)/A3stdlife)) -> 0 | AO146: =IF(A3stdlife="n/a","n/a",IF(AO$3>(A3stdlife+$E146),(Input!$I$333*(1+rvanilla)^0.5)-SUM($I146:AN146),(Input!$I$333*(1+rvanilla)^0.5)/A3stdlife)) -> 0 | AP146: =IF(A3stdlife="n/a","n/a",IF(AP$3>(A3stdlife+$E146),(Input!$I$333*(1+rvanilla)^0.5)-SUM($I146:AO146),(Input!$I$333*(1+rvanilla)^0.5)/A3stdlife)) -> 0 | AQ146: =IF(A3stdlife="n/a","n/a",IF(AQ$3>(A3stdlife+$E146),(Input!$I$333*(1+rvanilla)^0.5)-SUM($I146:AP146),(Input!$I$333*(1+rvanilla)^0.5)/A3stdlife)) -> 0 | AR146: =IF(A3stdlife="n/a","n/a",IF(AR$3>(A3stdlife+$E146),(Input!$I$333*(1+rvanilla)^0.5)-SUM($I146:AQ146),(Input!$I$333*(1+rvanilla)^0.5)/A3stdlife)) -> 0 | AS146: =IF(A3stdlife="n/a","n/a",IF(AS$3>(A3stdlife+$E146),(Input!$I$333*(1+rvanilla)^0.5)-SUM($I146:AR146),(Input!$I$333*(1+rvanilla)^0.5)/A3stdlife)) -> 0 | AT146: =IF(A3stdlife="n/a","n/a",IF(AT$3>(A3stdlife+$E146),(Input!$I$333*(1+rvanilla)^0.5)-SUM($I146:AS146),(Input!$I$333*(1+rvanilla)^0.5)/A3stdlife)) -> 0 | AU146: =IF(A3stdlife="n/a","n/a",IF(AU$3>(A3stdlife+$E146),(Input!$I$333*(1+rvanilla)^0.5)-SUM($I146:AT146),(Input!$I$333*(1+rvanilla)^0.5)/A3stdlife)) -> 0 | AV146: =IF(A3stdlife="n/a","n/a",IF(AV$3>(A3stdlife+$E146),(Input!$I$333*(1+rvanilla)^0.5)-SUM($I146:AU146),(Input!$I$333*(1+rvanilla)^0.5)/A3stdlife)) -> 0 | AW146: =IF(A3stdlife="n/a","n/a",IF(AW$3>(A3stdlife+$E146),(Input!$I$333*(1+rvanilla)^0.5)-SUM($I146:AV146),(Input!$I$333*(1+rvanilla)^0.5)/A3stdlife)) -> 0 | AX146: =IF(A3stdlife="n/a","n/a",IF(AX$3>(A3stdlife+$E146),(Input!$I$333*(1+rvanilla)^0.5)-SUM($I146:AW146),(Input!$I$333*(1+rvanilla)^0.5)/A3stdlife)) -> 0 | AY146: =IF(A3stdlife="n/a","n/a",IF(AY$3>(A3stdlife+$E146),(Input!$I$333*(1+rvanilla)^0.5)-SUM($I146:AX146),(Input!$I$333*(1+rvanilla)^0.5)/A3stdlife)) -> 0 | AZ146: =IF(A3stdlife="n/a","n/a",IF(AZ$3>(A3stdlife+$E146),(Input!$I$333*(1+rvanilla)^0.5)-SUM($I146:AY146),(Input!$I$333*(1+rvanilla)^0.5)/A3stdlife)) -> 0 | BA146: =IF(A3stdlife="n/a","n/a",IF(BA$3>(A3stdlife+$E146),(Input!$I$333*(1+rvanilla)^0.5)-SUM($I146:AZ146),(Input!$I$333*(1+rvanilla)^0.5)/A3stdlife)) -> 0 | BB146: =IF(A3stdlife="n/a","n/a",IF(BB$3>(A3stdlife+$E146),(Input!$I$333*(1+rvanilla)^0.5)-SUM($I146:BA146),(Input!$I$333*(1+rvanilla)^0.5)/A3stdlife)) -> 0 | BC146: =IF(A3stdlife="n/a","n/a",IF(BC$3>(A3stdlife+$E146),(Input!$I$333*(1+rvanilla)^0.5)-SUM($I146:BB146),(Input!$I$333*(1+rvanilla)^0.5)/A3stdlife)) -> 0 | BD146: =IF(A3stdlife="n/a","n/a",IF(BD$3>(A3stdlife+$E146),(Input!$I$333*(1+rvanilla)^0.5)-SUM($I146:BC146),(Input!$I$333*(1+rvanilla)^0.5)/A3stdlife)) -> 0 | BE146: =IF(A3stdlife="n/a","n/a",IF(BE$3>(A3stdlife+$E146),(Input!$I$333*(1+rvanilla)^0.5)-SUM($I146:BD146),(Input!$I$333*(1+rvanilla)^0.5)/A3stdlife)) -> 0 | BF146: =IF(A3stdlife="n/a","n/a",IF(BF$3>(A3stdlife+$E146),(Input!$I$333*(1+rvanilla)^0.5)-SUM($I146:BE146),(Input!$I$333*(1+rvanilla)^0.5)/A3stdlife)) -> 0 | BG146: =IF(A3stdlife="n/a","n/a",IF(BG$3>(A3stdlife+$E146),(Input!$I$333*(1+rvanilla)^0.5)-SUM($I146:BF146),(Input!$I$333*(1+rvanilla)^0.5)/A3stdlife)) -> 0 | BH146: =IF(A3stdlife="n/a","n/a",IF(BH$3>(A3stdlife+$E146),(Input!$I$333*(1+rvanilla)^0.5)-SUM($I146:BG146),(Input!$I$333*(1+rvanilla)^0.5)/A3stdlife)) -> 0 | BI146: =IF(A3stdlife="n/a","n/a",IF(BI$3>(A3stdlife+$E146),(Input!$I$333*(1+rvanilla)^0.5)-SUM($I146:BH146),(Input!$I$333*(1+rvanilla)^0.5)/A3stdlife)) -> 0
E147: 4 | K147: =IF(A3stdlife="n/a","n/a",IF(K$3>(A3stdlife+$E147),(Input!$J$333*(1+rvanilla)^0.5)-SUM($J147:J147),(Input!$J$333*(1+rvanilla)^0.5)/A3stdlife)) -> 0 | L147: =IF(A3stdlife="n/a","n/a",IF(L$3>(A3stdlife+$E147),(Input!$J$333*(1+rvanilla)^0.5)-SUM($J147:K147),(Input!$J$333*(1+rvanilla)^0.5)/A3stdlife)) -> 0 | M147: =IF(A3stdlife="n/a","n/a",IF(M$3>(A3stdlife+$E147),(Input!$J$333*(1+rvanilla)^0.5)-SUM($J147:L147),(Input!$J$333*(1+rvanilla)^0.5)/A3stdlife)) -> 0 | N147: =IF(A3stdlife="n/a","n/a",IF(N$3>(A3stdlife+$E147),(Input!$J$333*(1+rvanilla)^0.5)-SUM($J147:M147),(Input!$J$333*(1+rvanilla)^0.5)/A3stdlife)) -> 0 | O147: =IF(A3stdlife="n/a","n/a",IF(O$3>(A3stdlife+$E147),(Input!$J$333*(1+rvanilla)^0.5)-SUM($J147:N147),(Input!$J$333*(1+rvanilla)^0.5)/A3stdlife)) -> 0 | P147: =IF(A3stdlife="n/a","n/a",IF(P$3>(A3stdlife+$E147),(Input!$J$333*(1+rvanilla)^0.5)-SUM($J147:O147),(Input!$J$333*(1+rvanilla)^0.5)/A3stdlife)) -> 0 | Q147: =IF(A3stdlife="n/a","n/a",IF(Q$3>(A3stdlife+$E147),(Input!$J$333*(1+rvanilla)^0.5)-SUM($J147:P147),(Input!$J$333*(1+rvanilla)^0.5)/A3stdlife)) -> 0 | R147: =IF(A3stdlife="n/a","n/a",IF(R$3>(A3stdlife+$E147),(Input!$J$333*(1+rvanilla)^0.5)-SUM($J147:Q147),(Input!$J$333*(1+rvanilla)^0.5)/A3stdlife)) -> 0 | S147: =IF(A3stdlife="n/a","n/a",IF(S$3>(A3stdlife+$E147),(Input!$J$333*(1+rvanilla)^0.5)-SUM($J147:R147),(Input!$J$333*(1+rvanilla)^0.5)/A3stdlife)) -> 0 | T147: =IF(A3stdlife="n/a","n/a",IF(T$3>(A3stdlife+$E147),(Input!$J$333*(1+rvanilla)^0.5)-SUM($J147:S147),(Input!$J$333*(1+rvanilla)^0.5)/A3stdlife)) -> 0 | U147: =IF(A3stdlife="n/a","n/a",IF(U$3>(A3stdlife+$E147),(Input!$J$333*(1+rvanilla)^0.5)-SUM($J147:T147),(Input!$J$333*(1+rvanilla)^0.5)/A3stdlife)) -> 0 | V147: =IF(A3stdlife="n/a","n/a",IF(V$3>(A3stdlife+$E147),(Input!$J$333*(1+rvanilla)^0.5)-SUM($J147:U147),(Input!$J$333*(1+rvanilla)^0.5)/A3stdlife)) -> 0 | W147: =IF(A3stdlife="n/a","n/a",IF(W$3>(A3stdlife+$E147),(Input!$J$333*(1+rvanilla)^0.5)-SUM($J147:V147),(Input!$J$333*(1+rvanilla)^0.5)/A3stdlife)) -> 0 | X147: =IF(A3stdlife="n/a","n/a",IF(X$3>(A3stdlife+$E147),(Input!$J$333*(1+rvanilla)^0.5)-SUM($J147:W147),(Input!$J$333*(1+rvanilla)^0.5)/A3stdlife)) -> 0 | Y147: =IF(A3stdlife="n/a","n/a",IF(Y$3>(A3stdlife+$E147),(Input!$J$333*(1+rvanilla)^0.5)-SUM($J147:X147),(Input!$J$333*(1+rvanilla)^0.5)/A3stdlife)) -> 0 | Z147: =IF(A3stdlife="n/a","n/a",IF(Z$3>(A3stdlife+$E147),(Input!$J$333*(1+rvanilla)^0.5)-SUM($J147:Y147),(Input!$J$333*(1+rvanilla)^0.5)/A3stdlife)) -> 0 | AA147: =IF(A3stdlife="n/a","n/a",IF(AA$3>(A3stdlife+$E147),(Input!$J$333*(1+rvanilla)^0.5)-SUM($J147:Z147),(Input!$J$333*(1+rvanilla)^0.5)/A3stdlife)) -> 0 | AB147: =IF(A3stdlife="n/a","n/a",IF(AB$3>(A3stdlife+$E147),(Input!$J$333*(1+rvanilla)^0.5)-SUM($J147:AA147),(Input!$J$333*(1+rvanilla)^0.5)/A3stdlife)) -> 0 | AC147: =IF(A3stdlife="n/a","n/a",IF(AC$3>(A3stdlife+$E147),(Input!$J$333*(1+rvanilla)^0.5)-SUM($J147:AB147),(Input!$J$333*(1+rvanilla)^0.5)/A3stdlife)) -> 0 | AD147: =IF(A3stdlife="n/a","n/a",IF(AD$3>(A3stdlife+$E147),(Input!$J$333*(1+rvanilla)^0.5)-SUM($J147:AC147),(Input!$J$333*(1+rvanilla)^0.5)/A3stdlife)) -> 0 | AE147: =IF(A3stdlife="n/a","n/a",IF(AE$3>(A3stdlife+$E147),(Input!$J$333*(1+rvanilla)^0.5)-SUM($J147:AD147),(Input!$J$333*(1+rvanilla)^0.5)/A3stdlife)) -> 0 | AF147: =IF(A3stdlife="n/a","n/a",IF(AF$3>(A3stdlife+$E147),(Input!$J$333*(1+rvanilla)^0.5)-SUM($J147:AE147),(Input!$J$333*(1+rvanilla)^0.5)/A3stdlife)) -> 0 | AG147: =IF(A3stdlife="n/a","n/a",IF(AG$3>(A3stdlife+$E147),(Input!$J$333*(1+rvanilla)^0.5)-SUM($J147:AF147),(Input!$J$333*(1+rvanilla)^0.5)/A3stdlife)) -> 0 | AH147: =IF(A3stdlife="n/a","n/a",IF(AH$3>(A3stdlife+$E147),(Input!$J$333*(1+rvanilla)^0.5)-SUM($J147:AG147),(Input!$J$333*(1+rvanilla)^0.5)/A3stdlife)) -> 0 | AI147: =IF(A3stdlife="n/a","n/a",IF(AI$3>(A3stdlife+$E147),(Input!$J$333*(1+rvanilla)^0.5)-SUM($J147:AH147),(Input!$J$333*(1+rvanilla)^0.5)/A3stdlife)) -> 0 | AJ147: =IF(A3stdlife="n/a","n/a",IF(AJ$3>(A3stdlife+$E147),(Input!$J$333*(1+rvanilla)^0.5)-SUM($J147:AI147),(Input!$J$333*(1+rvanilla)^0.5)/A3stdlife)) -> 0 | AK147: =IF(A3stdlife="n/a","n/a",IF(AK$3>(A3stdlife+$E147),(Input!$J$333*(1+rvanilla)^0.5)-SUM($J147:AJ147),(Input!$J$333*(1+rvanilla)^0.5)/A3stdlife)) -> 0 | AL147: =IF(A3stdlife="n/a","n/a",IF(AL$3>(A3stdlife+$E147),(Input!$J$333*(1+rvanilla)^0.5)-SUM($J147:AK147),(Input!$J$333*(1+rvanilla)^0.5)/A3stdlife)) -> 0 | AM147: =IF(A3stdlife="n/a","n/a",IF(AM$3>(A3stdlife+$E147),(Input!$J$333*(1+rvanilla)^0.5)-SUM($J147:AL147),(Input!$J$333*(1+rvanilla)^0.5)/A3stdlife)) -> 0 | AN147: =IF(A3stdlife="n/a","n/a",IF(AN$3>(A3stdlife+$E147),(Input!$J$333*(1+rvanilla)^0.5)-SUM($J147:AM147),(Input!$J$333*(1+rvanilla)^0.5)/A3stdlife)) -> 0 | AO147: =IF(A3stdlife="n/a","n/a",IF(AO$3>(A3stdlife+$E147),(Input!$J$333*(1+rvanilla)^0.5)-SUM($J147:AN147),(Input!$J$333*(1+rvanilla)^0.5)/A3stdlife)) -> 0 | AP147: =IF(A3stdlife="n/a","n/a",IF(AP$3>(A3stdlife+$E147),(Input!$J$333*(1+rvanilla)^0.5)-SUM($J147:AO147),(Input!$J$333*(1+rvanilla)^0.5)/A3stdlife)) -> 0 | AQ147: =IF(A3stdlife="n/a","n/a",IF(AQ$3>(A3stdlife+$E147),(Input!$J$333*(1+rvanilla)^0.5)-SUM($J147:AP147),(Input!$J$333*(1+rvanilla)^0.5)/A3stdlife)) -> 0 | AR147: =IF(A3stdlife="n/a","n/a",IF(AR$3>(A3stdlife+$E147),(Input!$J$333*(1+rvanilla)^0.5)-SUM($J147:AQ147),(Input!$J$333*(1+rvanilla)^0.5)/A3stdlife)) -> 0 | AS147: =IF(A3stdlife="n/a","n/a",IF(AS$3>(A3stdlife+$E147),(Input!$J$333*(1+rvanilla)^0.5)-SUM($J147:AR147),(Input!$J$333*(1+rvanilla)^0.5)/A3stdlife)) -> 0 | AT147: =IF(A3stdlife="n/a","n/a",IF(AT$3>(A3stdlife+$E147),(Input!$J$333*(1+rvanilla)^0.5)-SUM($J147:AS147),(Input!$J$333*(1+rvanilla)^0.5)/A3stdlife)) -> 0 | AU147: =IF(A3stdlife="n/a","n/a",IF(AU$3>(A3stdlife+$E147),(Input!$J$333*(1+rvanilla)^0.5)-SUM($J147:AT147),(Input!$J$333*(1+rvanilla)^0.5)/A3stdlife)) -> 0 | AV147: =IF(A3stdlife="n/a","n/a",IF(AV$3>(A3stdlife+$E147),(Input!$J$333*(1+rvanilla)^0.5)-SUM($J147:AU147),(Input!$J$333*(1+rvanilla)^0.5)/A3stdlife)) -> 0 | AW147: =IF(A3stdlife="n/a","n/a",IF(AW$3>(A3stdlife+$E147),(Input!$J$333*(1+rvanilla)^0.5)-SUM($J147:AV147),(Input!$J$333*(1+rvanilla)^0.5)/A3stdlife)) -> 0 | AX147: =IF(A3stdlife="n/a","n/a",IF(AX$3>(A3stdlife+$E147),(Input!$J$333*(1+rvanilla)^0.5)-SUM($J147:AW147),(Input!$J$333*(1+rvanilla)^0.5)/A3stdlife)) -> 0 | AY147: =IF(A3stdlife="n/a","n/a",IF(AY$3>(A3stdlife+$E147),(Input!$J$333*(1+rvanilla)^0.5)-SUM($J147:AX147),(Input!$J$333*(1+rvanilla)^0.5)/A3stdlife)) -> 0 | AZ147: =IF(A3stdlife="n/a","n/a",IF(AZ$3>(A3stdlife+$E147),(Input!$J$333*(1+rvanilla)^0.5)-SUM($J147:AY147),(Input!$J$333*(1+rvanilla)^0.5)/A3stdlife)) -> 0 | BA147: =IF(A3stdlife="n/a","n/a",IF(BA$3>(A3stdlife+$E147),(Input!$J$333*(1+rvanilla)^0.5)-SUM($J147:AZ147),(Input!$J$333*(1+rvanilla)^0.5)/A3stdlife)) -> 0 | BB147: =IF(A3stdlife="n/a","n/a",IF(BB$3>(A3stdlife+$E147),(Input!$J$333*(1+rvanilla)^0.5)-SUM($J147:BA147),(Input!$J$333*(1+rvanilla)^0.5)/A3stdlife)) -> 0 | BC147: =IF(A3stdlife="n/a","n/a",IF(BC$3>(A3stdlife+$E147),(Input!$J$333*(1+rvanilla)^0.5)-SUM($J147:BB147),(Input!$J$333*(1+rvanilla)^0.5)/A3stdlife)) -> 0 | BD147: =IF(A3stdlife="n/a","n/a",IF(BD$3>(A3stdlife+$E147),(Input!$J$333*(1+rvanilla)^0.5)-SUM($J147:BC147),(Input!$J$333*(1+rvanilla)^0.5)/A3stdlife)) -> 0 | BE147: =IF(A3stdlife="n/a","n/a",IF(BE$3>(A3stdlife+$E147),(Input!$J$333*(1+rvanilla)^0.5)-SUM($J147:BD147),(Input!$J$333*(1+rvanilla)^0.5)/A3stdlife)) -> 0 | BF147: =IF(A3stdlife="n/a","n/a",IF(BF$3>(A3stdlife+$E147),(Input!$J$333*(1+rvanilla)^0.5)-SUM($J147:BE147),(Input!$J$333*(1+rvanilla)^0.5)/A3stdlife)) -> 0 | BG147: =IF(A3stdlife="n/a","n/a",IF(BG$3>(A3stdlife+$E147),(Input!$J$333*(1+rvanilla)^0.5)-SUM($J147:BF147),(Input!$J$333*(1+rvanilla)^0.5)/A3stdlife)) -> 0 | BH147: =IF(A3stdlife="n/a","n/a",IF(BH$3>(A3stdlife+$E147),(Input!$J$333*(1+rvanilla)^0.5)-SUM($J147:BG147),(Input!$J$333*(1+rvanilla)^0.5)/A3stdlife)) -> 0 | BI147: =IF(A3stdlife="n/a","n/a",IF(BI$3>(A3stdlife+$E147),(Input!$J$333*(1+rvanilla)^0.5)-SUM($J147:BH147),(Input!$J$333*(1+rvanilla)^0.5)/A3stdlife)) -> 0
E148: 5 | L148: =IF(A3stdlife="n/a","n/a",IF(L$3>(A3stdlife+$E148),(Input!$K$333*(1+rvanilla)^0.5)-SUM($K148:K148),(Input!$K$333*(1+rvanilla)^0.5)/A3stdlife)) -> 0 | M148: =IF(A3stdlife="n/a","n/a",IF(M$3>(A3stdlife+$E148),(Input!$K$333*(1+rvanilla)^0.5)-SUM($K148:L148),(Input!$K$333*(1+rvanilla)^0.5)/A3stdlife)) -> 0 | N148: =IF(A3stdlife="n/a","n/a",IF(N$3>(A3stdlife+$E148),(Input!$K$333*(1+rvanilla)^0.5)-SUM($K148:M148),(Input!$K$333*(1+rvanilla)^0.5)/A3stdlife)) -> 0 | O148: =IF(A3stdlife="n/a","n/a",IF(O$3>(A3stdlife+$E148),(Input!$K$333*(1+rvanilla)^0.5)-SUM($K148:N148),(Input!$K$333*(1+rvanilla)^0.5)/A3stdlife)) -> 0 | P148: =IF(A3stdlife="n/a","n/a",IF(P$3>(A3stdlife+$E148),(Input!$K$333*(1+rvanilla)^0.5)-SUM($K148:O148),(Input!$K$333*(1+rvanilla)^0.5)/A3stdlife)) -> 0 | Q148: =IF(A3stdlife="n/a","n/a",IF(Q$3>(A3stdlife+$E148),(Input!$K$333*(1+rvanilla)^0.5)-SUM($K148:P148),(Input!$K$333*(1+rvanilla)^0.5)/A3stdlife)) -> 0 | R148: =IF(A3stdlife="n/a","n/a",IF(R$3>(A3stdlife+$E148),(Input!$K$333*(1+rvanilla)^0.5)-SUM($K148:Q148),(Input!$K$333*(1+rvanilla)^0.5)/A3stdlife)) -> 0 | S148: =IF(A3stdlife="n/a","n/a",IF(S$3>(A3stdlife+$E148),(Input!$K$333*(1+rvanilla)^0.5)-SUM($K148:R148),(Input!$K$333*(1+rvanilla)^0.5)/A3stdlife)) -> 0 | T148: =IF(A3stdlife="n/a","n/a",IF(T$3>(A3stdlife+$E148),(Input!$K$333*(1+rvanilla)^0.5)-SUM($K148:S148),(Input!$K$333*(1+rvanilla)^0.5)/A3stdlife)) -> 0 | U148: =IF(A3stdlife="n/a","n/a",IF(U$3>(A3stdlife+$E148),(Input!$K$333*(1+rvanilla)^0.5)-SUM($K148:T148),(Input!$K$333*(1+rvanilla)^0.5)/A3stdlife)) -> 0 | V148: =IF(A3stdlife="n/a","n/a",IF(V$3>(A3stdlife+$E148),(Input!$K$333*(1+rvanilla)^0.5)-SUM($K148:U148),(Input!$K$333*(1+rvanilla)^0.5)/A3stdlife)) -> 0 | W148: =IF(A3stdlife="n/a","n/a",IF(W$3>(A3stdlife+$E148),(Input!$K$333*(1+rvanilla)^0.5)-SUM($K148:V148),(Input!$K$333*(1+rvanilla)^0.5)/A3stdlife)) -> 0 | X148: =IF(A3stdlife="n/a","n/a",IF(X$3>(A3stdlife+$E148),(Input!$K$333*(1+rvanilla)^0.5)-SUM($K148:W148),(Input!$K$333*(1+rvanilla)^0.5)/A3stdlife)) -> 0 | Y148: =IF(A3stdlife="n/a","n/a",IF(Y$3>(A3stdlife+$E148),(Input!$K$333*(1+rvanilla)^0.5)-SUM($K148:X148),(Input!$K$333*(1+rvanilla)^0.5)/A3stdlife)) -> 0 | Z148: =IF(A3stdlife="n/a","n/a",IF(Z$3>(A3stdlife+$E148),(Input!$K$333*(1+rvanilla)^0.5)-SUM($K148:Y148),(Input!$K$333*(1+rvanilla)^0.5)/A3stdlife)) -> 0 | AA148: =IF(A3stdlife="n/a","n/a",IF(AA$3>(A3stdlife+$E148),(Input!$K$333*(1+rvanilla)^0.5)-SUM($K148:Z148),(Input!$K$333*(1+rvanilla)^0.5)/A3stdlife)) -> 0 | AB148: =IF(A3stdlife="n/a","n/a",IF(AB$3>(A3stdlife+$E148),(Input!$K$333*(1+rvanilla)^0.5)-SUM($K148:AA148),(Input!$K$333*(1+rvanilla)^0.5)/A3stdlife)) -> 0 | AC148: =IF(A3stdlife="n/a","n/a",IF(AC$3>(A3stdlife+$E148),(Input!$K$333*(1+rvanilla)^0.5)-SUM($K148:AB148),(Input!$K$333*(1+rvanilla)^0.5)/A3stdlife)) -> 0 | AD148: =IF(A3stdlife="n/a","n/a",IF(AD$3>(A3stdlife+$E148),(Input!$K$333*(1+rvanilla)^0.5)-SUM($K148:AC148),(Input!$K$333*(1+rvanilla)^0.5)/A3stdlife)) -> 0 | AE148: =IF(A3stdlife="n/a","n/a",IF(AE$3>(A3stdlife+$E148),(Input!$K$333*(1+rvanilla)^0.5)-SUM($K148:AD148),(Input!$K$333*(1+rvanilla)^0.5)/A3stdlife)) -> 0 | AF148: =IF(A3stdlife="n/a","n/a",IF(AF$3>(A3stdlife+$E148),(Input!$K$333*(1+rvanilla)^0.5)-SUM($K148:AE148),(Input!$K$333*(1+rvanilla)^0.5)/A3stdlife)) -> 0 | AG148: =IF(A3stdlife="n/a","n/a",IF(AG$3>(A3stdlife+$E148),(Input!$K$333*(1+rvanilla)^0.5)-SUM($K148:AF148),(Input!$K$333*(1+rvanilla)^0.5)/A3stdlife)) -> 0 | AH148: =IF(A3stdlife="n/a","n/a",IF(AH$3>(A3stdlife+$E148),(Input!$K$333*(1+rvanilla)^0.5)-SUM($K148:AG148),(Input!$K$333*(1+rvanilla)^0.5)/A3stdlife)) -> 0 | AI148: =IF(A3stdlife="n/a","n/a",IF(AI$3>(A3stdlife+$E148),(Input!$K$333*(1+rvanilla)^0.5)-SUM($K148:AH148),(Input!$K$333*(1+rvanilla)^0.5)/A3stdlife)) -> 0 | AJ148: =IF(A3stdlife="n/a","n/a",IF(AJ$3>(A3stdlife+$E148),(Input!$K$333*(1+rvanilla)^0.5)-SUM($K148:AI148),(Input!$K$333*(1+rvanilla)^0.5)/A3stdlife)) -> 0 | AK148: =IF(A3stdlife="n/a","n/a",IF(AK$3>(A3stdlife+$E148),(Input!$K$333*(1+rvanilla)^0.5)-SUM($K148:AJ148),(Input!$K$333*(1+rvanilla)^0.5)/A3stdlife)) -> 0 | AL148: =IF(A3stdlife="n/a","n/a",IF(AL$3>(A3stdlife+$E148),(Input!$K$333*(1+rvanilla)^0.5)-SUM($K148:AK148),(Input!$K$333*(1+rvanilla)^0.5)/A3stdlife)) -> 0 | AM148: =IF(A3stdlife="n/a","n/a",IF(AM$3>(A3stdlife+$E148),(Input!$K$333*(1+rvanilla)^0.5)-SUM($K148:AL148),(Input!$K$333*(1+rvanilla)^0.5)/A3stdlife)) -> 0 | AN148: =IF(A3stdlife="n/a","n/a",IF(AN$3>(A3stdlife+$E148),(Input!$K$333*(1+rvanilla)^0.5)-SUM($K148:AM148),(Input!$K$333*(1+rvanilla)^0.5)/A3stdlife)) -> 0 | AO148: =IF(A3stdlife="n/a","n/a",IF(AO$3>(A3stdlife+$E148),(Input!$K$333*(1+rvanilla)^0.5)-SUM($K148:AN148),(Input!$K$333*(1+rvanilla)^0.5)/A3stdlife)) -> 0 | AP148: =IF(A3stdlife="n/a","n/a",IF(AP$3>(A3stdlife+$E148),(Input!$K$333*(1+rvanilla)^0.5)-SUM($K148:AO148),(Input!$K$333*(1+rvanilla)^0.5)/A3stdlife)) -> 0 | AQ148: =IF(A3stdlife="n/a","n/a",IF(AQ$3>(A3stdlife+$E148),(Input!$K$333*(1+rvanilla)^0.5)-SUM($K148:AP148),(Input!$K$333*(1+rvanilla)^0.5)/A3stdlife)) -> 0 | AR148: =IF(A3stdlife="n/a","n/a",IF(AR$3>(A3stdlife+$E148),(Input!$K$333*(1+rvanilla)^0.5)-SUM($K148:AQ148),(Input!$K$333*(1+rvanilla)^0.5)/A3stdlife)) -> 0 | AS148: =IF(A3stdlife="n/a","n/a",IF(AS$3>(A3stdlife+$E148),(Input!$K$333*(1+rvanilla)^0.5)-SUM($K148:AR148),(Input!$K$333*(1+rvanilla)^0.5)/A3stdlife)) -> 0 | AT148: =IF(A3stdlife="n/a","n/a",IF(AT$3>(A3stdlife+$E148),(Input!$K$333*(1+rvanilla)^0.5)-SUM($K148:AS148),(Input!$K$333*(1+rvanilla)^0.5)/A3stdlife)) -> 0 | AU148: =IF(A3stdlife="n/a","n/a",IF(AU$3>(A3stdlife+$E148),(Input!$K$333*(1+rvanilla)^0.5)-SUM($K148:AT148),(Input!$K$333*(1+rvanilla)^0.5)/A3stdlife)) -> 0 | AV148: =IF(A3stdlife="n/a","n/a",IF(AV$3>(A3stdlife+$E148),(Input!$K$333*(1+rvanilla)^0.5)-SUM($K148:AU148),(Input!$K$333*(1+rvanilla)^0.5)/A3stdlife)) -> 0 | AW148: =IF(A3stdlife="n/a","n/a",IF(AW$3>(A3stdlife+$E148),(Input!$K$333*(1+rvanilla)^0.5)-SUM($K148:AV148),(Input!$K$333*(1+rvanilla)^0.5)/A3stdlife)) -> 0 | AX148: =IF(A3stdlife="n/a","n/a",IF(AX$3>(A3stdlife+$E148),(Input!$K$333*(1+rvanilla)^0.5)-SUM($K148:AW148),(Input!$K$333*(1+rvanilla)^0.5)/A3stdlife)) -> 0 | AY148: =IF(A3stdlife="n/a","n/a",IF(AY$3>(A3stdlife+$E148),(Input!$K$333*(1+rvanilla)^0.5)-SUM($K148:AX148),(Input!$K$333*(1+rvanilla)^0.5)/A3stdlife)) -> 0 | AZ148: =IF(A3stdlife="n/a","n/a",IF(AZ$3>(A3stdlife+$E148),(Input!$K$333*(1+rvanilla)^0.5)-SUM($K148:AY148),(Input!$K$333*(1+rvanilla)^0.5)/A3stdlife)) -> 0 | BA148: =IF(A3stdlife="n/a","n/a",IF(BA$3>(A3stdlife+$E148),(Input!$K$333*(1+rvanilla)^0.5)-SUM($K148:AZ148),(Input!$K$333*(1+rvanilla)^0.5)/A3stdlife)) -> 0 | BB148: =IF(A3stdlife="n/a","n/a",IF(BB$3>(A3stdlife+$E148),(Input!$K$333*(1+rvanilla)^0.5)-SUM($K148:BA148),(Input!$K$333*(1+rvanilla)^0.5)/A3stdlife)) -> 0 | BC148: =IF(A3stdlife="n/a","n/a",IF(BC$3>(A3stdlife+$E148),(Input!$K$333*(1+rvanilla)^0.5)-SUM($K148:BB148),(Input!$K$333*(1+rvanilla)^0.5)/A3stdlife)) -> 0 | BD148: =IF(A3stdlife="n/a","n/a",IF(BD$3>(A3stdlife+$E148),(Input!$K$333*(1+rvanilla)^0.5)-SUM($K148:BC148),(Input!$K$333*(1+rvanilla)^0.5)/A3stdlife)) -> 0 | BE148: =IF(A3stdlife="n/a","n/a",IF(BE$3>(A3stdlife+$E148),(Input!$K$333*(1+rvanilla)^0.5)-SUM($K148:BD148),(Input!$K$333*(1+rvanilla)^0.5)/A3stdlife)) -> 0 | BF148: =IF(A3stdlife="n/a","n/a",IF(BF$3>(A3stdlife+$E148),(Input!$K$333*(1+rvanilla)^0.5)-SUM($K148:BE148),(Input!$K$333*(1+rvanilla)^0.5)/A3stdlife)) -> 0 | BG148: =IF(A3stdlife="n/a","n/a",IF(BG$3>(A3stdlife+$E148),(Input!$K$333*(1+rvanilla)^0.5)-SUM($K148:BF148),(Input!$K$333*(1+rvanilla)^0.5)/A3stdlife)) -> 0 | BH148: =IF(A3stdlife="n/a","n/a",IF(BH$3>(A3stdlife+$E148),(Input!$K$333*(1+rvanilla)^0.5)-SUM($K148:BG148),(Input!$K$333*(1+rvanilla)^0.5)/A3stdlife)) -> 0 | BI148: =IF(A3stdlife="n/a","n/a",IF(BI$3>(A3stdlife+$E148),(Input!$K$333*(1+rvanilla)^0.5)-SUM($K148:BH148),(Input!$K$333*(1+rvanilla)^0.5)/A3stdlife)) -> 0
E149: 6 | M149: =IF(A3stdlife="n/a","n/a",IF(M$3>(A3stdlife+$E149),(Input!$L$333*(1+rvanilla)^0.5)-SUM($L149:L149),(Input!$L$333*(1+rvanilla)^0.5)/A3stdlife)) -> 0 | N149: =IF(A3stdlife="n/a","n/a",IF(N$3>(A3stdlife+$E149),(Input!$L$333*(1+rvanilla)^0.5)-SUM($L149:M149),(Input!$L$333*(1+rvanilla)^0.5)/A3stdlife)) -> 0 | O149: =IF(A3stdlife="n/a","n/a",IF(O$3>(A3stdlife+$E149),(Input!$L$333*(1+rvanilla)^0.5)-SUM($L149:N149),(Input!$L$333*(1+rvanilla)^0.5)/A3stdlife)) -> 0 | P149: =IF(A3stdlife="n/a","n/a",IF(P$3>(A3stdlife+$E149),(Input!$L$333*(1+rvanilla)^0.5)-SUM($L149:O149),(Input!$L$333*(1+rvanilla)^0.5)/A3stdlife)) -> 0 | Q149: =IF(A3stdlife="n/a","n/a",IF(Q$3>(A3stdlife+$E149),(Input!$L$333*(1+rvanilla)^0.5)-SUM($L149:P149),(Input!$L$333*(1+rvanilla)^0.5)/A3stdlife)) -> 0 | R149: =IF(A3stdlife="n/a","n/a",IF(R$3>(A3stdlife+$E149),(Input!$L$333*(1+rvanilla)^0.5)-SUM($L149:Q149),(Input!$L$333*(1+rvanilla)^0.5)/A3stdlife)) -> 0 | S149: =IF(A3stdlife="n/a","n/a",IF(S$3>(A3stdlife+$E149),(Input!$L$333*(1+rvanilla)^0.5)-SUM($L149:R149),(Input!$L$333*(1+rvanilla)^0.5)/A3stdlife)) -> 0 | T149: =IF(A3stdlife="n/a","n/a",IF(T$3>(A3stdlife+$E149),(Input!$L$333*(1+rvanilla)^0.5)-SUM($L149:S149),(Input!$L$333*(1+rvanilla)^0.5)/A3stdlife)) -> 0 | U149: =IF(A3stdlife="n/a","n/a",IF(U$3>(A3stdlife+$E149),(Input!$L$333*(1+rvanilla)^0.5)-SUM($L149:T149),(Input!$L$333*(1+rvanilla)^0.5)/A3stdlife)) -> 0 | V149: =IF(A3stdlife="n/a","n/a",IF(V$3>(A3stdlife+$E149),(Input!$L$333*(1+rvanilla)^0.5)-SUM($L149:U149),(Input!$L$333*(1+rvanilla)^0.5)/A3stdlife)) -> 0 | W149: =IF(A3stdlife="n/a","n/a",IF(W$3>(A3stdlife+$E149),(Input!$L$333*(1+rvanilla)^0.5)-SUM($L149:V149),(Input!$L$333*(1+rvanilla)^0.5)/A3stdlife)) -> 0 | X149: =IF(A3stdlife="n/a","n/a",IF(X$3>(A3stdlife+$E149),(Input!$L$333*(1+rvanilla)^0.5)-SUM($L149:W149),(Input!$L$333*(1+rvanilla)^0.5)/A3stdlife)) -> 0 | Y149: =IF(A3stdlife="n/a","n/a",IF(Y$3>(A3stdlife+$E149),(Input!$L$333*(1+rvanilla)^0.5)-SUM($L149:X149),(Input!$L$333*(1+rvanilla)^0.5)/A3stdlife)) -> 0 | Z149: =IF(A3stdlife="n/a","n/a",IF(Z$3>(A3stdlife+$E149),(Input!$L$333*(1+rvanilla)^0.5)-SUM($L149:Y149),(Input!$L$333*(1+rvanilla)^0.5)/A3stdlife)) -> 0 | AA149: =IF(A3stdlife="n/a","n/a",IF(AA$3>(A3stdlife+$E149),(Input!$L$333*(1+rvanilla)^0.5)-SUM($L149:Z149),(Input!$L$333*(1+rvanilla)^0.5)/A3stdlife)) -> 0 | AB149: =IF(A3stdlife="n/a","n/a",IF(AB$3>(A3stdlife+$E149),(Input!$L$333*(1+rvanilla)^0.5)-SUM($L149:AA149),(Input!$L$333*(1+rvanilla)^0.5)/A3stdlife)) -> 0 | AC149: =IF(A3stdlife="n/a","n/a",IF(AC$3>(A3stdlife+$E149),(Input!$L$333*(1+rvanilla)^0.5)-SUM($L149:AB149),(Input!$L$333*(1+rvanilla)^0.5)/A3stdlife)) -> 0 | AD149: =IF(A3stdlife="n/a","n/a",IF(AD$3>(A3stdlife+$E149),(Input!$L$333*(1+rvanilla)^0.5)-SUM($L149:AC149),(Input!$L$333*(1+rvanilla)^0.5)/A3stdlife)) -> 0 | AE149: =IF(A3stdlife="n/a","n/a",IF(AE$3>(A3stdlife+$E149),(Input!$L$333*(1+rvanilla)^0.5)-SUM($L149:AD149),(Input!$L$333*(1+rvanilla)^0.5)/A3stdlife)) -> 0 | AF149: =IF(A3stdlife="n/a","n/a",IF(AF$3>(A3stdlife+$E149),(Input!$L$333*(1+rvanilla)^0.5)-SUM($L149:AE149),(Input!$L$333*(1+rvanilla)^0.5)/A3stdlife)) -> 0 | AG149: =IF(A3stdlife="n/a","n/a",IF(AG$3>(A3stdlife+$E149),(Input!$L$333*(1+rvanilla)^0.5)-SUM($L149:AF149),(Input!$L$333*(1+rvanilla)^0.5)/A3stdlife)) -> 0 | AH149: =IF(A3stdlife="n/a","n/a",IF(AH$3>(A3stdlife+$E149),(Input!$L$333*(1+rvanilla)^0.5)-SUM($L149:AG149),(Input!$L$333*(1+rvanilla)^0.5)/A3stdlife)) -> 0 | AI149: =IF(A3stdlife="n/a","n/a",IF(AI$3>(A3stdlife+$E149),(Input!$L$333*(1+rvanilla)^0.5)-SUM($L149:AH149),(Input!$L$333*(1+rvanilla)^0.5)/A3stdlife)) -> 0 | AJ149: =IF(A3stdlife="n/a","n/a",IF(AJ$3>(A3stdlife+$E149),(Input!$L$333*(1+rvanilla)^0.5)-SUM($L149:AI149),(Input!$L$333*(1+rvanilla)^0.5)/A3stdlife)) -> 0 | AK149: =IF(A3stdlife="n/a","n/a",IF(AK$3>(A3stdlife+$E149),(Input!$L$333*(1+rvanilla)^0.5)-SUM($L149:AJ149),(Input!$L$333*(1+rvanilla)^0.5)/A3stdlife)) -> 0 | AL149: =IF(A3stdlife="n/a","n/a",IF(AL$3>(A3stdlife+$E149),(Input!$L$333*(1+rvanilla)^0.5)-SUM($L149:AK149),(Input!$L$333*(1+rvanilla)^0.5)/A3stdlife)) -> 0 | AM149: =IF(A3stdlife="n/a","n/a",IF(AM$3>(A3stdlife+$E149),(Input!$L$333*(1+rvanilla)^0.5)-SUM($L149:AL149),(Input!$L$333*(1+rvanilla)^0.5)/A3stdlife)) -> 0 | AN149: =IF(A3stdlife="n/a","n/a",IF(AN$3>(A3stdlife+$E149),(Input!$L$333*(1+rvanilla)^0.5)-SUM($L149:AM149),(Input!$L$333*(1+rvanilla)^0.5)/A3stdlife)) -> 0 | AO149: =IF(A3stdlife="n/a","n/a",IF(AO$3>(A3stdlife+$E149),(Input!$L$333*(1+rvanilla)^0.5)-SUM($L149:AN149),(Input!$L$333*(1+rvanilla)^0.5)/A3stdlife)) -> 0 | AP149: =IF(A3stdlife="n/a","n/a",IF(AP$3>(A3stdlife+$E149),(Input!$L$333*(1+rvanilla)^0.5)-SUM($L149:AO149),(Input!$L$333*(1+rvanilla)^0.5)/A3stdlife)) -> 0 | AQ149: =IF(A3stdlife="n/a","n/a",IF(AQ$3>(A3stdlife+$E149),(Input!$L$333*(1+rvanilla)^0.5)-SUM($L149:AP149),(Input!$L$333*(1+rvanilla)^0.5)/A3stdlife)) -> 0 | AR149: =IF(A3stdlife="n/a","n/a",IF(AR$3>(A3stdlife+$E149),(Input!$L$333*(1+rvanilla)^0.5)-SUM($L149:AQ149),(Input!$L$333*(1+rvanilla)^0.5)/A3stdlife)) -> 0 | AS149: =IF(A3stdlife="n/a","n/a",IF(AS$3>(A3stdlife+$E149),(Input!$L$333*(1+rvanilla)^0.5)-SUM($L149:AR149),(Input!$L$333*(1+rvanilla)^0.5)/A3stdlife)) -> 0 | AT149: =IF(A3stdlife="n/a","n/a",IF(AT$3>(A3stdlife+$E149),(Input!$L$333*(1+rvanilla)^0.5)-SUM($L149:AS149),(Input!$L$333*(1+rvanilla)^0.5)/A3stdlife)) -> 0 | AU149: =IF(A3stdlife="n/a","n/a",IF(AU$3>(A3stdlife+$E149),(Input!$L$333*(1+rvanilla)^0.5)-SUM($L149:AT149),(Input!$L$333*(1+rvanilla)^0.5)/A3stdlife)) -> 0 | AV149: =IF(A3stdlife="n/a","n/a",IF(AV$3>(A3stdlife+$E149),(Input!$L$333*(1+rvanilla)^0.5)-SUM($L149:AU149),(Input!$L$333*(1+rvanilla)^0.5)/A3stdlife)) -> 0 | AW149: =IF(A3stdlife="n/a","n/a",IF(AW$3>(A3stdlife+$E149),(Input!$L$333*(1+rvanilla)^0.5)-SUM($L149:AV149),(Input!$L$333*(1+rvanilla)^0.5)/A3stdlife)) -> 0 | AX149: =IF(A3stdlife="n/a","n/a",IF(AX$3>(A3stdlife+$E149),(Input!$L$333*(1+rvanilla)^0.5)-SUM($L149:AW149),(Input!$L$333*(1+rvanilla)^0.5)/A3stdlife)) -> 0 | AY149: =IF(A3stdlife="n/a","n/a",IF(AY$3>(A3stdlife+$E149),(Input!$L$333*(1+rvanilla)^0.5)-SUM($L149:AX149),(Input!$L$333*(1+rvanilla)^0.5)/A3stdlife)) -> 0 | AZ149: =IF(A3stdlife="n/a","n/a",IF(AZ$3>(A3stdlife+$E149),(Input!$L$333*(1+rvanilla)^0.5)-SUM($L149:AY149),(Input!$L$333*(1+rvanilla)^0.5)/A3stdlife)) -> 0 | BA149: =IF(A3stdlife="n/a","n/a",IF(BA$3>(A3stdlife+$E149),(Input!$L$333*(1+rvanilla)^0.5)-SUM($L149:AZ149),(Input!$L$333*(1+rvanilla)^0.5)/A3stdlife)) -> 0 | BB149: =IF(A3stdlife="n/a","n/a",IF(BB$3>(A3stdlife+$E149),(Input!$L$333*(1+rvanilla)^0.5)-SUM($L149:BA149),(Input!$L$333*(1+rvanilla)^0.5)/A3stdlife)) -> 0 | BC149: =IF(A3stdlife="n/a","n/a",IF(BC$3>(A3stdlife+$E149),(Input!$L$333*(1+rvanilla)^0.5)-SUM($L149:BB149),(Input!$L$333*(1+rvanilla)^0.5)/A3stdlife)) -> 0 | BD149: =IF(A3stdlife="n/a","n/a",IF(BD$3>(A3stdlife+$E149),(Input!$L$333*(1+rvanilla)^0.5)-SUM($L149:BC149),(Input!$L$333*(1+rvanilla)^0.5)/A3stdlife)) -> 0 | BE149: =IF(A3stdlife="n/a","n/a",IF(BE$3>(A3stdlife+$E149),(Input!$L$333*(1+rvanilla)^0.5)-SUM($L149:BD149),(Input!$L$333*(1+rvanilla)^0.5)/A3stdlife)) -> 0 | BF149: =IF(A3stdlife="n/a","n/a",IF(BF$3>(A3stdlife+$E149),(Input!$L$333*(1+rvanilla)^0.5)-SUM($L149:BE149),(Input!$L$333*(1+rvanilla)^0.5)/A3stdlife)) -> 0 | BG149: =IF(A3stdlife="n/a","n/a",IF(BG$3>(A3stdlife+$E149),(Input!$L$333*(1+rvanilla)^0.5)-SUM($L149:BF149),(Input!$L$333*(1+rvanilla)^0.5)/A3stdlife)) -> 0 | BH149: =IF(A3stdlife="n/a","n/a",IF(BH$3>(A3stdlife+$E149),(Input!$L$333*(1+rvanilla)^0.5)-SUM($L149:BG149),(Input!$L$333*(1+rvanilla)^0.5)/A3stdlife)) -> 0 | BI149: =IF(A3stdlife="n/a","n/a",IF(BI$3>(A3stdlife+$E149),(Input!$L$333*(1+rvanilla)^0.5)-SUM($L149:BH149),(Input!$L$333*(1+rvanilla)^0.5)/A3stdlife)) -> 0
